Workbook

Sheet !
A1: ! | B1: Mã huyện | C1: Tên huyện | D1: TT | E1: 1 | F1: 2 | G1: 3 | H1: 4 | I1: 5 | J1: 6 | K1: 7 | L1: 8 | M1: 9 | N1: 10 | O1: 11 | P1: 12 | Q1: 13 | R1: 14 | S1: 15 | T1: 16 | U1: 17 | V1: 18 | W1: 19 | X1: 20 | Y1: 21 | Z1: 22 | AA1: 23 | AB1: 24 | AC1: 25 | AD1: 26 | AE1: 27 | AF1: 28 | AG1: 29 | AH1: 30
B2: BT | C2: HUYỆN BỐ TRẠCH | D2: 1 | E2: TT Hoàn Lão | F2: TT Nông trường Việt Trung | G2: Xã Bắc Trạch | H2: Xã Cự Nẫm | I2: Xã Đại Trạch | J2: Xã Đồng Trạch | K2: Xã Đức Trạch | L2: Xã Hạ Trạch | M2: Xã Hải Trạch | N2: Xã Hoà Trạch | O2: Xã Hoàn Trạch | P2: Xã Hưng Trạch | Q2: Xã Lâm Trạch | R2: Xã Liên Trạch | S2: Xã Lý Trạch | T2: Xã Mỹ Trạch | U2: Xã Nam Trạch | V2: Xã Nhân Trạch | W2: Xã Phú Định | X2: Xã Phú Trạch | Y2: Xã Phúc Trạch | Z2: Xã Sơn Lộc | AA2: Xã Sơn Trạch | AB2: Xã Tân Trạch | AC2: Xã Tây Trạch | AD2: Xã Thanh Trạch | AE2: Xã Thượng Trạch | AF2: Xã Trung Trạch | AG2: Xã Vạn Trạch | AH2: Xã Xuân Trạch
B3: QT | C3: HUYỆN QUẢNG TRẠCH | D3: 2 | E3: Cảnh Dương | F3: Cảnh Hóa | G3: Phù Hóa | H3: Quảng Châu | I3: Quảng Đông | J3: Quảng Hợp | K3: Quảng Hưng | L3: Quảng Kim | M3: Quảng Liên | N3: Quảng Lưu | O3: Quảng Phú | P3: Quảng Phương | Q3: Quảng Thạch | R3: Quảng Thanh | S3: Quảng Tiến | T3: Quảng Trường | U3: Quảng Tùng | V3: Quảng Xuân
B4: BD | C4: THỊ XÃ BA ĐỒN | D4: 3 | E4: Ba Đồn | F4: Quảng Hải | G4: Quảng Hòa | H4: Quảng Lộc | I4: Quảng Long | J4: Quảng Minh | K4: Quảng Phong | L4: Quảng Phúc | M4: Quảng Sơn | N4: Quảng Tân | O4: Quảng Thọ | P4: Quảng Thuận | Q4: Quảng Thủy | R4: Quảng Tiên | S4: Quảng Trung | T4: Quảng Văn
B5: DH | C5: THÀNH PHỐ ĐỒNG HỚI | D5: 4 | E5: P. Bắc Lý | F5: P. Bắc Nghĩa | G5: P. Đồng Mỹ | H5: P. Đức Ninh Đông | I5: P. Hải Đình | J5: P. Hải Thành | K5: P. Nam Lý | L5: P. Phú Hải | M5: P. Đồng Phú | N5: P. Đồng Sơn | O5: Đức Ninh | P5: Lộc Ninh | Q5: Nghĩa Ninh | R5: Quang Phú | S5: Thuận Đức | T5: Bảo Ninh
B6: QN | C6: HUYỆN QUẢNG NINH | D6: 5 | E6: Thị trấn Quán Hàu | F6: Tân Ninh | G6: An Ninh | H6: Duy Ninh | I6: Gia Ninh | J6: Hải Ninh | K6: Hàm Ninh | L6: Hiền Ninh | M6: Lương Ninh | N6: Trường Sơn | O6: Trường Xuân | P6: Vạn Ninh | Q6: Vĩnh Ninh | R6: Võ Ninh | S6: Xuân Ninh
B7: LT | C7: HUYỆN LỆ THỦY | D7: 6 | E7: An Thủy | F7: Cam Thủy | G7: Dương Thủy | H7: Hoa Thủy | I7: Hồng Thủy | J7: Hưng Thủy | K7: Kim Thủy | L7: Lâm Thủy | M7: Liên Thủy | N7: Lộc Thủy | O7: Mai Thủy | P7: Mỹ Thủy | Q7: Ngân Thủy | R7: Ngư Thủy Bắc | S7: Ngư Thủy Nam | T7: Ngư Thủy Trung | U7: Phong Thủy | V7: Phú Thủy | W7: Sen Thủy | X7: Sơn Thủy | Y7: Tân Thủy | Z7: Thái Thủy | AA7: Thanh Thủy | AB7: thị trấn Kiến Giang | AC7: thị trấn Nông Trường Lệ Ninh | AD7: Trường Thủy | AE7: Văn Thủy | AF7: Xuân Thủy
B8: TH | C8: HUYỆN TUYÊN HÓA | D8: 7 | E8: thị trần Đồng Lê | F8: Cao Quảng | G8: Châu Hóa | H8: Đồng Hóa | I8: Đức Hóa | J8: Hương Hóa | K8: Kim Hóa | L8: Lâm Hóa | M8: Lê Hóa | N8: Mai Hóa | O8: Nam Hóa | P8: Ngư Hóa | Q8: Phong Hoá | R8: Sơn Hóa | S8: Thạch Hóa | T8: Thanh Hóa | U8: Thanh Thạch | V8: Thuận Hóa | W8: Tiến Hóa | X8: Văn Hóa
B9: MH | C9: HUYỆN MINH HÓA | D9: 8 | E9: Dân Hoá | F9: Hóa Hợp | G9: Hóa Phúc | H9: Hóa Sơn | I9: Hóa Thanh | J9: Hóa Tiến | K9: Hồng Hóa | L9: Minh Hóa | M9: Quy Hóa | N9: Tân Hóa | O9: thị trấn Quy Đạt | P9: Thượng Hóa | Q9: Trọng Hóa | R9: Trung Hóa | S9: Xuân Hóa | T9: Yên Hóa
B11: LUC | C11: LUN | D11: LUK | E11: HNK | F11: CLN | G11: RPH | H11: RDD | I11: RSX | J11: NTS | K11: LMU | L11: NKH | M11: CQP | N11: CAN | O11: SKK | P11: SKN | Q11: SKT | R11: TMD | S11: SKC | T11: SKS | U11: DVH | V11: DXH | W11: DYT | X11: DGD | Y11: DTT | Z11: DKH | AA11: DGT | AB11: DTL | AC11: DNL | AD11: DBV | AE11: DCH | AF11: DDT | AG11: DDL | AH11: DRA | AI11: DCK | AJ11: ONT | AK11: ODT | AL11: TSC | AM11: DTS | AN11: DNG | AO11: DSK | AP11: TON | AQ11: NTD | AR11: SKX | AS11: DSH | AT11: DKV | AU11: TIN | AV11: SON | AW11: MNC | AX11: PNK | AY11: BCS | AZ11: DCS | BA11: NCS
D13: KVL | E13: KVN | F13: KPH | G13: KDD | H13: KSX | I13: KKN | J13: KDV | K13: KDL | L13: KON
D14: DTD | E14: DBT | F14: DDL

Sheet ctpb (hidden)
A1: ctpb
A2: STT | B2: Chỉ tiêu | C2: Mã | D2: Hiện trạng (ha) | E2: So sánh CTPB voi HT | G2: KH 2016 với HT | I2: CTPB với KH
E3: Chỉ tiêu phân bổ (ha) | F3: CTPB-HT | G3: KH 2016 | H3: KH-Htrang | I3: CTPB-KH
B4: Tổng diện tích đất của đơn vị hành chính | D4: ='Biểu 01CH'!D7 -> 119418.1831 | E4: 212417.63 | F4: =E4-D4 -> 92999.4469 | G4: ='Biểu 13CH'!BL5 -> 119418.1889 | H4: =G4-D4 -> 0.005799999984 | I4: =E4-G4 -> 92999.4411
A5: 1 | B5: Đất nông nghiệp | C5: NNP | D5: =VLOOKUP(C5,'Biểu 01CH'!C8:D49,2,0) -> 108638.2717 | E5: 196421.54 | F5: =E5-D5 -> 87783.2683 | G5: =VLOOKUP(C5,'Biểu 06 CH'!$C$8:$F$49,2,0) -> 107274.52 | H5: -1363.7517 | I5: 89147.02
A6: 1.1 | B6: Đất trồng lúa | C6: LUA | D6: =VLOOKUP(C6,'Biểu 01CH'!C9:D50,2,0) -> 5331.8275 | E6: 6923.3 | F6: =E6-D6 -> 1591.4725 | G6: =VLOOKUP(C6,'Biểu 06 CH'!$C$8:$F$49,2,0) -> 5278.77 | H6: -53.0575 | I6: 1644.53
B7: Trong đó: Đất chuyên trồng lúa nước | C7: LUC | D7: =VLOOKUP(C7,'Biểu 01CH'!C10:D51,2,0) -> 5005.5785 | E7: 3795 | F7: -1210.5785 | G7: =VLOOKUP(C7,'Biểu 06 CH'!$C$8:$F$49,2,0) -> 4952.48 | H7: -53.0985 | I7: -1157.48
A8: 1.2 | B8: Đất trồng cây hàng năm khác | C8: HNK | D8: =VLOOKUP(C8,'Biểu 01CH'!C11:D52,2,0) -> 2344.384 | E8: 7269.4 | F8: 4925.016 | G8: =VLOOKUP(C8,'Biểu 06 CH'!$C$8:$F$49,2,0) -> 2496.15 | H8: 151.766 | I8: 4773.25
A9: 1.3 | B9: Đất trồng cây lâu năm | C9: CLN | D9: =VLOOKUP(C9,'Biểu 01CH'!C12:D53,2,0) -> 631.594 | E9: 10393.5 | F9: 9761.906 | G9: =VLOOKUP(C9,'Biểu 06 CH'!$C$8:$F$49,2,0) -> 1084.93 | H9: 453.336 | I9: 9308.57
A10: 1.4 | B10: Đất rừng phòng hộ | C10: RPH | D10: =VLOOKUP(C10,'Biểu 01CH'!C13:D54,2,0) -> 53671.925 | E10: 19249 | F10: -34422.925 | G10: =VLOOKUP(C10,'Biểu 06 CH'!$C$8:$F$49,2,0) -> 54301.74 | H10: 629.815 | I10: -35052.74
A11: 1.5 | B11: Đất rừng đặc dụng | C11: RDD | D11: =VLOOKUP(C11,'Biểu 01CH'!C14:D55,2,0) -> 0 | E11: 93005.04 | F11: 93005.04 | G11: =VLOOKUP(C11,'Biểu 06 CH'!$C$8:$F$49,2,0) -> 0 | H11: 0 | I11: 93005.04
A12: 1.6 | B12: Đất rừng sản xuất | C12: RSX | D12: =VLOOKUP(C12,'Biểu 01CH'!C15:D56,2,0) -> 46075.1329 | E12: 57485.5 | F12: 11410.3671 | G12: =VLOOKUP(C12,'Biểu 06 CH'!$C$8:$F$49,2,0) -> 43366.23 | H12: -2708.9029 | I12: 14119.27
A13: 1.7 | B13: Đất nuôi trồng thuỷ sản | C13: NTS | D13: =VLOOKUP(C13,'Biểu 01CH'!C16:D57,2,0) -> 501.5445 | E13: 1045.8 | F13: 544.2555 | G13: =VLOOKUP(C13,'Biểu 06 CH'!$C$8:$F$49,2,0) -> 504.68 | H13: 3.1355 | I13: 541.12
A14: 1.8 | B14: Đất làm muối | C14: LMU | D14: =VLOOKUP(C14,'Biểu 01CH'!C17:D58,2,0) -> 0 | F14: 0 | G14: =VLOOKUP(C14,'Biểu 06 CH'!$C$8:$F$49,2,0) -> 0 | H14: 0 | I14: 0
A15: 1.9 | B15: Đất nông nghiệp khác | C15: NKH | D15: =VLOOKUP(C15,'Biểu 01CH'!C18:D59,2,0) -> 81.8638 | F15: -81.8638 | G15: =VLOOKUP(C15,'Biểu 06 CH'!$C$8:$F$49,2,0) -> 0 | H15: -81.8638 | I15: 0
A16: 2 | B16: Đất phi nông nghiệp | C16: PNN | D16: =VLOOKUP(C16,'Biểu 01CH'!C19:D60,2,0) -> 7557.0784 | E16: 12998.5 | F16: 5441.4216 | G16: =VLOOKUP(C16,'Biểu 06 CH'!$C$8:$F$49,2,0) -> 9122.14 | H16: 1565.0616 | I16: 3876.36
A17: 2.1 | B17: Đất quốc phòng | C17: CQP | D17: =VLOOKUP(C17,'Biểu 01CH'!C20:D61,2,0) -> 136.8152 | E17: 960.87 | F17: =E17-D17 -> 824.0548 | G17: =VLOOKUP(C17,'Biểu 06 CH'!$C$8:$F$49,2,0) -> 152.51 | H17: 15.6948 | I17: 808.36
A18: 2.2 | B18: Đất an ninh | C18: CAN | D18: =VLOOKUP(C18,'Biểu 01CH'!C21:D62,2,0) -> 1.717 | E18: 86.4 | F18: 84.683 | G18: =VLOOKUP(C18,'Biểu 06 CH'!$C$8:$F$49,2,0) -> 2.25 | H18: 0.533 | I18: 84.15
A19: 2.3 | B19: Đất khu công nghiệp | C19: SKK | D19: =VLOOKUP(C19,'Biểu 01CH'!C22:D63,2,0) -> 21.9302 | E19: 60 | F19: 38.0698 | G19: =VLOOKUP(C19,'Biểu 06 CH'!$C$8:$F$49,2,0) -> 161.49 | H19: 139.5598 | I19: -101.49
A20: 2.4 | B20: Đất khu chế xuất | C20: SKT | D20: =VLOOKUP(C20,'Biểu 01CH'!C23:D64,2,0) -> 0 | F20: 0 | G20: =VLOOKUP(C20,'Biểu 06 CH'!$C$8:$F$49,2,0) -> 0 | H20: 0 | I20: 0
A21: 2.5 | B21: Đất cụm công nghiệp | C21: SKN | D21: =VLOOKUP(C21,'Biểu 01CH'!C24:D65,2,0) -> 0 | E21: 5 | F21: 5 | G21: =VLOOKUP(C21,'Biểu 06 CH'!$C$8:$F$49,2,0) -> 0 | H21: 0 | I21: 5
A22: 2.6 | B22: Đất thương mại dịch vụ | C22: TMD | D22: =VLOOKUP(C22,'Biểu 01CH'!C25:D66,2,0) -> 519.574 | E22: 450.6 | F22: -68.974 | G22: =VLOOKUP(C22,'Biểu 06 CH'!$C$8:$F$49,2,0) -> 453.78 | H22: -65.794 | I22: -3.18
A23: 2.7 | B23: Đất cơ sở sản xuất phi nông nghiệp | C23: SKC | D23: =VLOOKUP(C23,'Biểu 01CH'!C26:D67,2,0) -> 53.881 | E23: 56.55 | F23: 2.669 | G23: =VLOOKUP(C23,'Biểu 06 CH'!$C$8:$F$49,2,0) -> 65.52 | H23: 11.639 | I23: -8.97
A24: 2.8 | B24: Đất sử dụng cho hoạt động khoáng sản | C24: SKS | D24: =VLOOKUP(C24,'Biểu 01CH'!C27:D68,2,0) -> 0 | E24: 59.8 | F24: 59.8 | G24: =VLOOKUP(C24,'Biểu 06 CH'!$C$8:$F$49,2,0) -> 0 | H24: 0 | I24: 59.8
A25: 2.9 | B25: Đất phát triển hạ tầng cấp quốc gia, cấp tỉnh, cấp huyện, cấp xã | C25: DHT | D25: =VLOOKUP(C25,'Biểu 01CH'!C28:D69,2,0) -> 3257.5982 | E25: 5365.7 | F25: 2108.1018 | G25: =VLOOKUP(C25,'Biểu 06 CH'!$C$8:$F$49,2,0) -> 4447.7 | H25: 1190.1018 | I25: 918
A26: 2.10 | B26: Đất có di tích lịch sử - văn hóa | C26: DDT | D26: =VLOOKUP(C26,'Biểu 01CH'!C29:D70,2,0) -> 139.0222 | E26: 23.5 | F26: -115.5222 | G26: =VLOOKUP(C26,'Biểu 06 CH'!$C$8:$F$49,2,0) -> 139.02 | H26: -0.0022 | I26: -115.52
A27: 2.11 | B27: Đất danh lam thắng cảnh | C27: DDL | D27: =VLOOKUP(C27,'Biểu 01CH'!C30:D71,2,0) -> 0 | E27: 12.4 | F27: 12.4 | G27: =VLOOKUP(C27,'Biểu 06 CH'!$C$8:$F$49,2,0) -> 0 | H27: 0 | I27: 12.4
A28: 2.12 | B28: Đất bải thải, xử lý chất thải | C28: DRA | D28: =VLOOKUP(C28,'Biểu 01CH'!C31:D72,2,0) -> 5.2604 | E28: 32.92 | F28: 27.6596 | G28: =VLOOKUP(C28,'Biểu 06 CH'!$C$8:$F$49,2,0) -> 6.94 | H28: 1.6796 | I28: 25.98
A29: 2.13 | B29: Đất ở tại nông thôn | C29: ONT | D29: =VLOOKUP(C29,'Biểu 01CH'!C32:D73,2,0) -> 610.7093 | E29: 1100.5 | F29: 489.7907 | G29: =VLOOKUP(C29,'Biểu 06 CH'!$C$8:$F$49,2,0) -> 662.86 | H29: 52.1507 | I29: 437.64
A30: 2.14 | B30: Đất ở tại đô thị | C30: ODT | D30: =VLOOKUP(C30,'Biểu 01CH'!C33:D74,2,0) -> 29.36 | E30: 130.9 | F30: 101.54 | G30: =VLOOKUP(C30,'Biểu 06 CH'!$C$8:$F$49,2,0) -> 56.88 | H30: 27.52 | I30: 74.02
A31: 2.15 | B31: Đất xây dựng trụ sở cơ quan | C31: TSC | D31: =VLOOKUP(C31,'Biểu 01CH'!C34:D75,2,0) -> 12.7756 | E31: 29.96 | F31: 17.1844 | G31: =VLOOKUP(C31,'Biểu 06 CH'!$C$8:$F$49,2,0) -> 12.82 | H31: 0.0444 | I31: 17.14
A32: 2.16 | B32: Đất xây dựng trụ sở của tổ chức sự nghiệp | C32: DTS | D32: =VLOOKUP(C32,'Biểu 01CH'!C35:D76,2,0) -> 2.181 | E32: 5.74 | F32: 3.559 | G32: =VLOOKUP(C32,'Biểu 06 CH'!$C$8:$F$49,2,0) -> 2.3 | H32: 0.119 | I32: 3.44
A33: 2.17 | B33: Đất xây dựng cơ sở ngoại giao | C33: DNG | D33: =VLOOKUP(C33,'Biểu 01CH'!C36:D77,2,0) -> 0 | F33: 0 | G33: =VLOOKUP(C33,'Biểu 06 CH'!$C$8:$F$49,2,0) -> 0 | H33: 0 | I33: 0
A34: 2.18 | B34: Đất cơ sở tôn giáo | C34: TON | D34: =VLOOKUP(C34,'Biểu 01CH'!C37:D78,2,0) -> 1.86 | E34: 13.55 | F34: 11.69 | G34: =VLOOKUP(C34,'Biểu 06 CH'!$C$8:$F$49,2,0) -> 2.76 | H34: 0.9 | I34: 10.79
A35: 2.19 | B35: Đất làm nghĩa trang, nghĩa địa, nhà tang lễ, nhà hỏa táng | C35: NTD | D35: =VLOOKUP(C35,'Biểu 01CH'!C38:D79,2,0) -> 324.7623 | E35: 727.8 | F35: 403.0377 | G35: =VLOOKUP(C35,'Biểu 06 CH'!$C$8:$F$49,2,0) -> 341.13 | H35: 16.3677 | I35: 386.67
A36: 2.20 | B36: Đất sản xuất vật liệu xây dựng, làm đồ gốm | C36: SKX | D36: =VLOOKUP(C36,'Biểu 01CH'!C39:D80,2,0) -> 135.0874 | G36: =VLOOKUP(C36,'Biểu 06 CH'!$C$8:$F$49,2,0) -> 0 | H36: -135.0874 | I36: 0
A37: 2.21 | B37: Đất sinh hoạt cộng đồng | C37: DSH | D37: =VLOOKUP(C37,'Biểu 01CH'!C40:D81,2,0) -> 18.7322 | G37: =VLOOKUP(C37,'Biểu 06 CH'!$C$8:$F$49,2,0) -> 0 | H37: -18.7322 | I37: 0
A38: 2.22 | B38: Đất khu vui chơi giải trí công cộng | C38: DKV | D38: =VLOOKUP(C38,'Biểu 01CH'!C41:D82,2,0) -> 3.924 | G38: =VLOOKUP(C38,'Biểu 06 CH'!$C$8:$F$49,2,0) -> 0 | H38: -3.924 | I38: 0
A39: 2.23 | B39: Đất cơ sở tín ngưỡng | C39: TIN | D39: =VLOOKUP(C39,'Biểu 01CH'!C42:D83,2,0) -> 6.167 | G39: =VLOOKUP(C39,'Biểu 06 CH'!$C$8:$F$49,2,0) -> 0 | H39: -6.167 | I39: 0
A40: 2.24 | B40: Đất sông, ngòi, kênh, rạch, suối | C40: SON | D40: =VLOOKUP(C40,'Biểu 01CH'!C43:D84,2,0) -> 2151.8772 | G40: =VLOOKUP(C40,'Biểu 06 CH'!$C$8:$F$49,2,0) -> 0 | H40: -2151.8772 | I40: 0
A41: 2.25 | B41: Đất có mặt nước chuyên dùng | C41: MNC | D41: =VLOOKUP(C41,'Biểu 01CH'!C44:D85,2,0) -> 123.8442 | G41: =VLOOKUP(C41,'Biểu 06 CH'!$C$8:$F$49,2,0) -> 0 | H41: -123.8442 | I41: 0
A42: 2.26 | B42: Đất phi nông nghiệp khác | C42: PNK | D42: =VLOOKUP(C42,'Biểu 01CH'!C45:D86,2,0) -> 0 | F42: 0 | G42: =VLOOKUP(C42,'Biểu 06 CH'!$C$8:$F$49,2,0) -> 0 | H42: 0 | I42: 0
A43: 3 | B43: Đất chưa sử dụng | C43: CSD | D43: =VLOOKUP(C43,'Biểu 01CH'!C46:D87,2,0) -> 3222.839 | E43: 2997.59 | F43: -225.249 | G43: =VLOOKUP(C43,'Biểu 06 CH'!$C$8:$F$49,2,0) -> 3021.53 | H43: -201.309 | I43: -23.94

Sheet Biểu chỉ tiêu phân bổ (hidden)
A4: Biểu chỉ tiêu phân bổ
A5: STT | B5: Chỉ tiêu | C5: Mã | D5: Hiện trạng (ha) | E5: So sánh CTPB voi HT | I5: KH 2016 với HT | K5: KH-CTPB
E6: Chỉ tiêu phân bổ (ha) | F6: CTPB-HT | G6: % | H6: (+-1 | I6: KH 2016 | J6: KH-Htrang | K6: KH-CTPB
B7: Tổng diện tích đất của đơn vị hành chính | D7: ='Biểu 01CH'!D7 -> 119418.1831 | E7: 212417.63 | F7: =E7-D7 -> 92999.4469 | I7: ='Biểu 13CH'!BL5 -> 119418.1889 | J7: =I7-D7 -> 0.005799999984 | K7: =I7-E7 -> -92999.4411
A8: 1 | B8: Đất nông nghiệp | C8: NNP | D8: =VLOOKUP(C8,'Biểu 01CH'!C8:D49,2,0) -> 108638.2717 | E8: 196421.54 | F8: 87783.2683 | G8: =E8*100/$E$7 -> 92.46950924 | H8: =IF(F8>0,F8,F8*-1) -> 87783.2683 | I8: =VLOOKUP(C8,'Biểu 06 CH'!C8:F49,2,0) -> 107274.52 | J8: -1363.7517 | K8: =I8-E8 -> -89147.02
A9: 1.1 | B9: Đất trồng lúa | C9: LUA | D9: =VLOOKUP(C9,'Biểu 01CH'!C9:D50,2,0) -> 5331.8275 | E9: 6923.3 | F9: 1591.4725 | G9: =E9*100/$E$8 -> 3.524715263 | H9: =IF(F9>0,"tăng "&F9,F9*-1) -> tăng 1591,4725 | I9: =VLOOKUP(C9,'Biểu 06 CH'!C9:$F$49,2,0) -> 5278.77 | J9: -53.0575 | K9: -1644.53
B10: Trong đó: Đất chuyên trồng lúa nước | C10: LUC | D10: =VLOOKUP(C10,'Biểu 01CH'!C10:D51,2,0) -> 5005.5785 | E10: 3795 | F10: -1210.5785 | G10: =E10*100/$E$8 -> 1.932069161 | H10: =IF(F10>0,F10,F10*-1) -> 1210.5785 | I10: =VLOOKUP(C10,'Biểu 06 CH'!C10:$F$49,2,0) -> 4952.48 | J10: -53.0985 | K10: 1157.48
A11: 1.2 | B11: Đất trồng cây hàng năm khác | C11: HNK | D11: =VLOOKUP(C11,'Biểu 01CH'!C11:D52,2,0) -> 2344.384 | E11: 7269.4 | F11: 4925.016 | G11: 3.700917934 | H11: 4925.016 | I11: =VLOOKUP(C11,'Biểu 06 CH'!C11:$F$49,2,0) -> 2496.15 | J11: 151.766 | K11: -4773.25
A12: 1.3 | B12: Đất trồng cây lâu năm | C12: CLN | D12: =VLOOKUP(C12,'Biểu 01CH'!C12:D53,2,0) -> 631.594 | E12: 10393.5 | F12: 9761.906 | G12: 5.291425777 | H12: 9761.906 | I12: =VLOOKUP(C12,'Biểu 06 CH'!C12:$F$49,2,0) -> 1084.93 | J12: 453.336 | K12: -9308.57
A13: 1.4 | B13: Đất rừng phòng hộ | C13: RPH | D13: =VLOOKUP(C13,'Biểu 01CH'!C13:D54,2,0) -> 53671.925 | E13: 19249 | F13: -34422.925 | G13: 9.799841708 | H13: 34422.925 | I13: =VLOOKUP(C13,'Biểu 06 CH'!C13:$F$49,2,0) -> 54301.74 | J13: 629.815 | K13: 35052.74 | L13: 123
A14: 1.5 | B14: Đất rừng đặc dụng | C14: RDD | D14: =VLOOKUP(C14,'Biểu 01CH'!C14:D55,2,0) -> 0 | E14: 93005.04 | F14: 93005.04 | G14: 47.34971531 | H14: 93005.04 | I14: =VLOOKUP(C14,'Biểu 06 CH'!C14:$F$49,2,0) -> 0 | J14: 0 | K14: -93005.04
A15: 1.6 | B15: Đất rừng sản xuất | C15: RSX | D15: =VLOOKUP(C15,'Biểu 01CH'!C15:D56,2,0) -> 46075.1329 | E15: 57485.5 | F15: 11410.3671 | G15: 29.26639308 | H15: 11410.3671 | I15: =VLOOKUP(C15,'Biểu 06 CH'!C15:$F$49,2,0) -> 43366.23 | J15: -2708.9029 | K15: -14119.27
A16: 1.7 | B16: Đất nuôi trồng thuỷ sản | C16: NTS | D16: =VLOOKUP(C16,'Biểu 01CH'!C16:D57,2,0) -> 501.5445 | E16: 1045.8 | F16: 544.2555 | G16: 0.5324263317 | H16: 544.2555 | I16: =VLOOKUP(C16,'Biểu 06 CH'!C16:$F$49,2,0) -> 504.68 | J16: 3.1355 | K16: -541.12
A17: 1.8 | B17: Đất làm muối | C17: LMU | D17: =VLOOKUP(C17,'Biểu 01CH'!C17:D58,2,0) -> 0 | F17: 0 | G17: 0 | H17: 0 | I17: =VLOOKUP(C17,'Biểu 06 CH'!C17:$F$49,2,0) -> 0 | J17: 0 | K17: 0
A18: 1.9 | B18: Đất nông nghiệp khác | C18: NKH | D18: =VLOOKUP(C18,'Biểu 01CH'!C18:D59,2,0) -> 81.8638 | F18: -81.8638 | G18: 0 | H18: 81.8638 | I18: =VLOOKUP(C18,'Biểu 06 CH'!C18:$F$49,2,0) -> 0 | J18: -81.8638 | K18: 0
A19: 2 | B19: Đất phi nông nghiệp | C19: PNN | D19: =VLOOKUP(C19,'Biểu 01CH'!C19:D60,2,0) -> 7557.0784 | E19: 12998.5 | F19: 5441.4216 | G19: =E19*100/$E$7 -> 6.119313166 | H19: 5441.4216 | I19: =VLOOKUP(C19,'Biểu 06 CH'!C19:$F$49,2,0) -> 9122.14 | J19: 1565.0616 | K19: -3876.36
A20: 2.1 | B20: Đất quốc phòng | C20: CQP | D20: =VLOOKUP(C20,'Biểu 01CH'!C20:D61,2,0) -> 136.8152 | E20: 960.87 | F20: 824.0548 | G20: =E20*100/$E$19 -> 7.392160634 | H20: 824.0548 | I20: =VLOOKUP(C20,'Biểu 06 CH'!C20:$F$49,2,0) -> 152.51 | J20: 15.6948 | K20: -808.36
A21: 2.2 | B21: Đất an ninh | C21: CAN | D21: =VLOOKUP(C21,'Biểu 01CH'!C21:D62,2,0) -> 1.717 | E21: 86.4 | F21: 84.683 | G21: =E21*100/$E$19 -> 0.6646920799 | H21: 84.683 | I21: =VLOOKUP(C21,'Biểu 06 CH'!C21:$F$49,2,0) -> 2.25 | J21: 0.533 | K21: -84.15
A22: 2.3 | B22: Đất khu công nghiệp | C22: SKK | D22: =VLOOKUP(C22,'Biểu 01CH'!C22:D63,2,0) -> 21.9302 | E22: 60 | F22: 38.0698 | G22: 0.4615917221 | H22: 38.0698 | I22: =VLOOKUP(C22,'Biểu 06 CH'!C22:$F$49,2,0) -> 161.49 | J22: 139.5598 | K22: 101.49
A23: 2.4 | B23: Đất khu chế xuất | C23: SKT | D23: =VLOOKUP(C23,'Biểu 01CH'!C23:D64,2,0) -> 0 | F23: 0 | G23: 0 | H23: 0 | I23: =VLOOKUP(C23,'Biểu 06 CH'!C23:$F$49,2,0) -> 0 | J23: 0 | K23: 0
A24: 2.5 | B24: Đất cụm công nghiệp | C24: SKN | D24: =VLOOKUP(C24,'Biểu 01CH'!C24:D65,2,0) -> 0 | E24: 5 | F24: 5 | G24: 0.03846597684 | H24: 5 | I24: =VLOOKUP(C24,'Biểu 06 CH'!C24:$F$49,2,0) -> 0 | J24: 0 | K24: -5
A25: 2.6 | B25: Đất thương mại dịch vụ | C25: TMD | D25: =VLOOKUP(C25,'Biểu 01CH'!C25:D66,2,0) -> 519.574 | E25: 450.6 | F25: -68.974 | G25: 3.466553833 | H25: 68.974 | I25: =VLOOKUP(C25,'Biểu 06 CH'!C25:$F$49,2,0) -> 453.78 | J25: -65.794 | K25: 3.18
A26: 2.7 | B26: Đất cơ sở sản xuất phi nông nghiệp | C26: SKC | D26: =VLOOKUP(C26,'Biểu 01CH'!C26:D67,2,0) -> 53.881 | E26: 56.55 | F26: 2.669 | G26: 0.4350501981 | H26: 2.669 | I26: =VLOOKUP(C26,'Biểu 06 CH'!C26:$F$49,2,0) -> 65.52 | J26: 11.639 | K26: 8.97
A27: 2.8 | B27: Đất sử dụng cho hoạt động khoáng sản | C27: SKS | D27: =VLOOKUP(C27,'Biểu 01CH'!C27:D68,2,0) -> 0 | E27: 59.8 | F27: 59.8 | G27: 0.460053083 | H27: 59.8 | I27: =VLOOKUP(C27,'Biểu 06 CH'!C27:$F$49,2,0) -> 0 | J27: 0 | K27: -59.8
A28: 2.9 | B28: Đất phát triển hạ tầng cấp quốc gia, cấp tỉnh, cấp huyện, cấp xã | C28: DHT | D28: =VLOOKUP(C28,'Biểu 01CH'!C28:D69,2,0) -> 3257.5982 | E28: 5365.7 | F28: 2108.1018 | G28: 41.27937839 | H28: 2108.1018 | I28: =VLOOKUP(C28,'Biểu 06 CH'!C28:$F$49,2,0) -> 4447.7 | J28: 1190.1018 | K28: -918
A29: 2.10 | B29: Đất có di tích lịch sử - văn hóa | C29: DDT | D29: =VLOOKUP(C29,'Biểu 01CH'!C29:D70,2,0) -> 139.0222 | E29: 23.5 | F29: -115.5222 | G29: 0.1807900912 | H29: 115.5222 | I29: =VLOOKUP(C29,'Biểu 06 CH'!C29:$F$49,2,0) -> 139.02 | J29: -0.0022 | K29: 115.52
A30: 2.11 | B30: Đất danh lam thắng cảnh | C30: DDL | D30: =VLOOKUP(C30,'Biểu 01CH'!C30:D71,2,0) -> 0 | E30: 12.4 | F30: 12.4 | G30: 0.09539562257 | H30: 12.4 | I30: =VLOOKUP(C30,'Biểu 06 CH'!C30:$F$49,2,0) -> 0 | J30: 0 | K30: -12.4
A31: 2.12 | B31: Đất bải thải, xử lý chất thải | C31: DRA | D31: =VLOOKUP(C31,'Biểu 01CH'!C31:D72,2,0) -> 5.2604 | E31: 32.92 | F31: 27.6596 | G31: 0.2532599915 | H31: 27.6596 | I31: =VLOOKUP(C31,'Biểu 06 CH'!C31:$F$49,2,0) -> 6.94 | J31: 1.6796 | K31: -25.98
A32: 2.13 | B32: Đất ở tại nông thôn | C32: ONT | D32: =VLOOKUP(C32,'Biểu 01CH'!C32:D73,2,0) -> 610.7093 | E32: 1100.5 | F32: 489.7907 | G32: 8.466361503 | H32: 489.7907 | I32: =VLOOKUP(C32,'Biểu 06 CH'!C32:$F$49,2,0) -> 662.86 | J32: 52.1507 | K32: -437.64
A33: 2.14 | B33: Đất ở tại đô thị | C33: ODT | D33: =VLOOKUP(C33,'Biểu 01CH'!C33:D74,2,0) -> 29.36 | E33: 130.9 | F33: 101.54 | G33: 1.007039274 | H33: 101.54 | I33: =VLOOKUP(C33,'Biểu 06 CH'!C33:$F$49,2,0) -> 56.88 | J33: 27.52 | K33: -74.02
A34: 2.15 | B34: Đất xây dựng trụ sở cơ quan | C34: TSC | D34: =VLOOKUP(C34,'Biểu 01CH'!C34:D75,2,0) -> 12.7756 | E34: 29.96 | F34: 17.1844 | G34: 0.2304881332 | H34: 17.1844 | I34: =VLOOKUP(C34,'Biểu 06 CH'!C34:$F$49,2,0) -> 12.82 | J34: 0.0444 | K34: -17.14
A35: 2.16 | B35: Đất xây dựng trụ sở của tổ chức sự nghiệp | C35: DTS | D35: =VLOOKUP(C35,'Biểu 01CH'!C35:D76,2,0) -> 2.181 | E35: 5.74 | F35: 3.559 | G35: 0.04415894142 | H35: 3.559 | I35: =VLOOKUP(C35,'Biểu 06 CH'!C35:$F$49,2,0) -> 2.3 | J35: 0.119 | K35: -3.44
A36: 2.17 | B36: Đất xây dựng cơ sở ngoại giao | C36: DNG | D36: =VLOOKUP(C36,'Biểu 01CH'!C36:D77,2,0) -> 0 | F36: 0 | G36: 0 | H36: 0 | I36: =VLOOKUP(C36,'Biểu 06 CH'!C36:$F$49,2,0) -> 0 | J36: 0 | K36: 0
A37: 2.18 | B37: Đất cơ sở tôn giáo | C37: TON | D37: =VLOOKUP(C37,'Biểu 01CH'!C37:D78,2,0) -> 1.86 | E37: 13.55 | F37: 11.69 | G37: 0.1042427972 | H37: 11.69 | I37: =VLOOKUP(C37,'Biểu 06 CH'!C37:$F$49,2,0) -> 2.76 | J37: 0.9 | K37: -10.79
A38: 2.19 | B38: Đất làm nghĩa trang, nghĩa địa, nhà tang lễ, nhà hỏa táng | C38: NTD | D38: =VLOOKUP(C38,'Biểu 01CH'!C38:D79,2,0) -> 324.7623 | E38: 727.8 | F38: 403.0377 | G38: 5.599107589 | H38: 403.0377 | I38: =VLOOKUP(C38,'Biểu 06 CH'!C38:$F$49,2,0) -> 341.13 | J38: 16.3677 | K38: -386.67
A39: 2.20 | B39: Đất sản xuất vật liệu xây dựng, làm đồ gốm | C39: SKX | D39: =VLOOKUP(C39,'Biểu 01CH'!C39:D80,2,0) -> 135.0874 | G39: 0 | H39: 0 | I39: =VLOOKUP(C39,'Biểu 06 CH'!C39:$F$49,2,0) -> 0 | J39: -135.0874 | K39: 0
A40: 2.21 | B40: Đất sinh hoạt cộng đồng | C40: DSH | D40: =VLOOKUP(C40,'Biểu 01CH'!C40:D81,2,0) -> 18.7322 | G40: 0 | H40: 0 | I40: =VLOOKUP(C40,'Biểu 06 CH'!C40:$F$49,2,0) -> 0 | J40: -18.7322 | K40: 0
A41: 2.22 | B41: Đất khu vui chơi giải trí công cộng | C41: DKV | D41: =VLOOKUP(C41,'Biểu 01CH'!C41:D82,2,0) -> 3.924 | G41: 0 | H41: 0 | I41: =VLOOKUP(C41,'Biểu 06 CH'!C41:$F$49,2,0) -> 0 | J41: -3.924 | K41: 0
A42: 2.23 | B42: Đất cơ sở tín ngưỡng | C42: TIN | D42: =VLOOKUP(C42,'Biểu 01CH'!C42:D83,2,0) -> 6.167 | G42: 0 | H42: 0 | I42: =VLOOKUP(C42,'Biểu 06 CH'!C42:$F$49,2,0) -> 0 | J42: -6.167 | K42: 0
A43: 2.24 | B43: Đất sông, ngòi, kênh, rạch, suối | C43: SON | D43: =VLOOKUP(C43,'Biểu 01CH'!C43:D84,2,0) -> 2151.8772 | G43: 0 | H43: 0 | I43: =VLOOKUP(C43,'Biểu 06 CH'!C43:$F$49,2,0) -> 0 | J43: -2151.8772 | K43: 0
A44: 2.25 | B44: Đất có mặt nước chuyên dùng | C44: MNC | D44: =VLOOKUP(C44,'Biểu 01CH'!C44:D85,2,0) -> 123.8442 | G44: 0 | H44: 0 | I44: =VLOOKUP(C44,'Biểu 06 CH'!C44:$F$49,2,0) -> 0 | J44: -123.8442 | K44: 0
A45: 2.26 | B45: Đất phi nông nghiệp khác | C45: PNK | D45: =VLOOKUP(C45,'Biểu 01CH'!C45:D86,2,0) -> 0 | F45: =E45-D45 -> 0 | G45: 0 | H45: 0 | I45: =VLOOKUP(C45,'Biểu 06 CH'!C45:$F$49,2,0) -> 0 | J45: 0 | K45: 0
A46: 3 | B46: Đất chưa sử dụng | C46: CSD | D46: =VLOOKUP(C46,'Biểu 01CH'!C46:D87,2,0) -> 3222.839 | E46: 2997.59 | F46: =E46-D46 -> -225.249 | G46: =E46*100/$E$7 -> 1.411177594 | H46: 225.249 | I46: =VLOOKUP(C46,'Biểu 06 CH'!C46:$F$49,2,0) -> 3021.53 | J46: -201.309 | K46: 23.94

Sheet nhu cau (hidden)
A1: nhu cau
A2: STT | B2: Chỉ tiêu | C2: Mã | D2: Hiện trạng (ha) | E2: Nhu cầu SDĐ các ngành, lĩnh vực | F2: Tăng (+) giảm (-) | G2: CTPB với KH
G3: CTPB-KH
A4: 1 | B4: Đất nông nghiệp khác | C4: NKH | D4: =VLOOKUP(C4,'Biểu 01CH'!C18:D59,2,0) -> 81.8638 | E4: =VLOOKUP(C4,'Biểu 06 CH'!$C$8:$F$49,2,0) -> 0 | F4: =E4-D4 -> -81.8638 | G4: =#REF!-E4 -> 
A5: 2 | B5: Đất sản xuất vật liệu xây dựng, làm đồ gốm | C5: SKX | D5: =VLOOKUP(C5,'Biểu 01CH'!C39:D80,2,0) -> 135.0874 | E5: =VLOOKUP(C5,'Biểu 06 CH'!$C$8:$F$49,2,0) -> 0 | F5: -135.0874 | G5: =#REF!-E5 -> 
A6: 3 | B6: Đất sinh hoạt cộng đồng | C6: DSH | D6: =VLOOKUP(C6,'Biểu 01CH'!C40:D81,2,0) -> 18.7322 | E6: =VLOOKUP(C6,'Biểu 06 CH'!$C$8:$F$49,2,0) -> 0 | F6: -18.7322 | G6: =#REF!-E6 -> 
A7: 4 | B7: Đất khu vui chơi giải trí công cộng | C7: DKV | D7: =VLOOKUP(C7,'Biểu 01CH'!C41:D82,2,0) -> 3.924 | E7: =VLOOKUP(C7,'Biểu 06 CH'!$C$8:$F$49,2,0) -> 0 | F7: -3.924 | G7: =#REF!-E7 -> 
A8: 5 | B8: Đất cơ sở tín ngưỡng | C8: TIN | D8: =VLOOKUP(C8,'Biểu 01CH'!C42:D83,2,0) -> 6.167 | E8: =VLOOKUP(C8,'Biểu 06 CH'!$C$8:$F$49,2,0) -> 0 | F8: -6.167 | G8: =#REF!-E8 -> 
A9: 6 | B9: Đất sông, ngòi, kênh, rạch, suối | C9: SON | D9: =VLOOKUP(C9,'Biểu 01CH'!C43:D84,2,0) -> 2151.8772 | E9: =VLOOKUP(C9,'Biểu 06 CH'!$C$8:$F$49,2,0) -> 0 | F9: -2151.8772 | G9: =#REF!-E9 ->  | H9: =IF(F9>=0,F9,F9*-1) -> 2151.8772
A10: 7 | B10: Đất có mặt nước chuyên dùng | C10: MNC | D10: =VLOOKUP(C10,'Biểu 01CH'!C44:D85,2,0) -> 123.8442 | E10: =VLOOKUP(C10,'Biểu 06 CH'!$C$8:$F$49,2,0) -> 0 | F10: -123.8442 | G10: =#REF!-E10 ->  | H10: =IF(F10>=0,F10,F10*-1) -> 123.8442

Sheet Biểu 01CH
A1: Biểu 01/CH
A2: HIỆN TRẠNG SỬ DỤNG ĐẤT NĂM 2019 CỦA HUYỆN QUẢNG NINH
R3: Đơn vị tính: ha
A4: STT | B4: Chỉ tiêu sử dụng đất | C4: Mã | D4: Tổng diện tích | E4: Phân theo đơn vị hành chính
E5: Thị trấn Quán Hàu | F5: Tân Ninh | G5: An Ninh | H5: Duy Ninh | I5: Gia Ninh | J5: Hải Ninh | K5: Hàm Ninh | L5: Hiền Ninh | M5: Lương Ninh | N5: Trường Sơn | O5: Trường Xuân | P5: Vạn Ninh | Q5: Vĩnh Ninh | R5: Võ Ninh | S5: Xuân Ninh
A6: -1 | B6: -2 | C6: -3 | D6: (4)=(5)+(6)+...(19) | E6: -5 | F6: -6 | G6: -7 | H6: -8 | I6: -9 | J6: -10 | K6: -11 | L6: -12 | M6: -13 | N6: -14 | O6: -15 | P6: -16 | Q6: -17 | R6: -18 | S6: -19
B7: TỔNG DIỆN TÍCH TỰ NHIÊN | D7: 119418.1831 | E7: 330.6512 | F7: 1145.1216 | G7: 1944.3967 | H7: 778.458 | I7: 2852.1054 | J7: 3826.6084 | K7: 2010.711 | L7: 1499.774 | M7: 539.7467 | N7: 77961.7781 | O7: 15645.574 | P7: 2910.866 | Q7: 4975.154 | R7: 2170.751 | S7: 826.487
A8: 1 | B8: Đất nông nghiệp | C8: NNP | D8: 108638.2717 | E8: 130.886 | F8: 753.244 | G8: 1541.136 | H8: 511.885 | I8: 2375.9649 | J8: 2926.234 | K8: 1559.667 | L8: 984.104 | M8: 307.9688 | N8: 75418.491 | O8: 13601.172 | P8: 2214.998 | Q8: 4207.222 | R8: 1500.446 | S8: 604.853
A9: 1.1 | B9: Đất trồng lúa | C9: LUA | D9: 5331.8275 | E9: 50.977 | F9: 641.67 | G9: 957.881 | H9: 404.089 | I9: 561.85 | J9: 0 | K9: 421.466 | L9: 274.98 | M9: 203.5355 | N9: 22.96 | O9: 75.028 | P9: 813.96 | Q9: 414.3 | R9: 189.731 | S9: 299.4
B10: Trong đó: Đất chuyên trồng lúa nước | C10: LUC | D10: 5005.5785 | E10: 43.429 | F10: 641.67 | G10: 947.391 | H10: 404.089 | I10: 561.85 | J10: 0 | K10: 417.548 | L10: 173.27 | M10: 202.6025 | N10: 10.19 | O10: 75.028 | P10: 717.65 | Q10: 321.73 | R10: 189.731 | S10: 299.4
A11: 1.2 | B11: Đất trồng cây hàng năm khác | C11: HNK | D11: 2344.384 | E11: 64.898 | F11: 70.581 | G11: 174.151 | H11: 93.808 | I11: 95.7099 | J11: 72.911 | K11: 133.859 | L11: 252.578 | M11: 46.8911 | N11: 221.67 | O11: 203.119 | P11: 423.368 | Q11: 230.69 | R11: 129.741 | S11: 130.409
A12: 1.3 | B12: Đất trồng cây lâu năm | C12: CLN | D12: 631.594 | E12: 0 | F12: 0 | G12: 0.512 | H12: 1.988 | I12: 0.01 | J12: 0.352 | K12: 3.086 | L12: 3.138 | M12: 0 | N12: 314.42 | O12: 158.448 | P12: 107.41 | Q12: 10.13 | R12: 26.7 | S12: 5.4
A13: 1.4 | B13: Đất rừng phòng hộ | C13: RPH | D13: 53671.925 | E13: 0 | F13: 10.772 | G13: 0 | H13: 0 | I13: 981.191 | J13: 1251.561 | K13: 0 | L13: 15.47 | M13: 0 | N13: 40997.28 | O13: 9677.8 | P13: 0 | Q13: 0 | R13: 737.851 | S13: 0
A14: 1.5 | B14: Đất rừng đặc dụng | C14: RDD | D14: 0 | E14: 0 | F14: 0 | G14: 0 | H14: 0 | I14: 0 | J14: 0 | K14: 0 | L14: 0 | M14: 0 | N14: 0 | O14: 0 | P14: 0 | Q14: 0 | R14: 0 | S14: 0
A15: 1.6 | B15: Đất rừng sản xuất | C15: RSX | D15: 46075.1329 | E15: 0.547 | F15: 0.891 | G15: 370.708 | H15: 0 | I15: 722.321 | J15: 1438.109 | K15: 959.388 | L15: 409.738 | M15: 14.5109 | N15: 33862.1 | O15: 3475.358 | P15: 840.098 | Q15: 3475.82 | R15: 344.962 | S15: 160.582
A16: 1.7 | B16: Đất nuôi trồng thuỷ sản | C16: NTS | D16: 501.5445 | E16: 14.464 | F16: 29.33 | G16: 32.842 | H16: 12 | I16: 10.401 | J16: 137.621 | K16: 41.868 | L16: 28.2 | M16: 42.9745 | N16: 0.061 | O16: 3.788 | P16: 12.511 | Q16: 59.49 | R16: 69.593 | S16: 6.401
A17: 1.8 | B17: Đất làm muối | C17: LMU | D17: 0 | E17: 0 | F17: 0 | G17: 0 | H17: 0 | I17: 0 | J17: 0 | K17: 0 | L17: 0 | M17: 0 | N17: 0 | O17: 0 | P17: 0 | Q17: 0 | R17: 0 | S17: 0
A18: 1.9 | B18: Đất nông nghiệp khác | C18: NKH | D18: 81.8638 | E18: 0 | F18: 0 | G18: 5.042 | H18: 0 | I18: 4.482 | J18: 25.68 | K18: 0 | L18: 0 | M18: 0.0568 | N18: 0 | O18: 7.631 | P18: 17.651 | Q18: 16.792 | R18: 1.868 | S18: 2.661
A19: 2 | B19: Đất phi nông nghiệp | C19: PNN | D19: 7557.0784 | E19: 181.0572 | F19: 355.1936 | G19: 372.1727 | H19: 258.295 | I19: 454.6905 | J19: 635.8964 | K19: 411.869 | L19: 448.995 | M19: 222.0679 | N19: 704.5571 | O19: 1460.338 | P19: 641.05 | Q19: 741.902 | R19: 462.161 | S19: 206.833
A20: 2.1 | B20: Đất quốc phòng | C20: CQP | D20: 136.8152 | E20: 1.2892 | F20: 0 | G20: 0.2942 | H20: 0 | I20: 0 | J20: 0 | K20: 0.018 | L20: 0 | M20: 1.6328 | N20: 2.004 | O20: 27.692 | P20: 77.48 | Q20: 0 | R20: 26.405 | S20: 0
A21: 2.2 | B21: Đất an ninh | C21: CAN | D21: 1.717 | E21: 1.442 | F21: 0 | G21: 0 | H21: 0 | I21: 0 | J21: 0 | K21: 0 | L21: 0 | M21: 0 | N21: 0 | O21: 0 | P21: 0 | Q21: 0 | R21: 0 | S21: 0.275
A22: 2.3 | B22: Đất khu công nghiệp | C22: SKK | D22: 21.9302 | E22: 5.889 | F22: 0 | G22: 0 | H22: 0 | I22: 0 | J22: 0 | K22: 0 | L22: 0 | M22: 0.0812 | N22: 0 | O22: 0 | P22: 0 | Q22: 15.96 | R22: 0 | S22: 0
A23: 2.4 | B23: Đất khu chế xuất | C23: SKT | D23: 0 | E23: 0 | F23: 0 | G23: 0 | H23: 0 | I23: 0 | J23: 0 | K23: 0 | L23: 0 | M23: 0 | N23: 0 | O23: 0 | P23: 0 | Q23: 0 | R23: 0 | S23: 0
A24: 2.5 | B24: Đất cụm công nghiệp | C24: SKN | D24: 0 | E24: 0 | F24: 0 | G24: 0 | H24: 0 | I24: 0 | J24: 0 | K24: 0 | L24: 0 | M24: 0 | N24: 0 | O24: 0 | P24: 0 | Q24: 0 | R24: 0 | S24: 0
A25: 2.6 | B25: Đất thương mại dịch vụ | C25: TMD | D25: 519.574 | E25: 1.5 | F25: 0.544 | G25: 1.3014 | H25: 2.2 | I25: 2.9791 | J25: 497 | K25: 0.658 | L25: 0.082 | M25: 1.0415 | N25: 0 | O25: 4.468 | P25: 1 | Q25: 4.78 | R25: 2.02 | S25: 0
A26: 2.7 | B26: Đất cơ sở sản xuất phi nông nghiệp | C26: SKC | D26: 53.881 | E26: 6.7 | F26: 0 | G26: 0 | H26: 0 | I26: 0.4352 | J26: 0.07 | K26: 0 | L26: 0.082 | M26: 0.2418 | N26: 6.072 | O26: 0 | P26: 26.42 | Q26: 11.05 | R26: 0 | S26: 2.81
A27: 2.8 | B27: Đất sử dụng cho hoạt động khoáng sản | C27: SKS | D27: 0 | E27: 0 | F27: 0 | G27: 0 | H27: 0 | I27: 0 | J27: 0 | K27: 0 | L27: 0 | M27: 0 | N27: 0 | O27: 0 | P27: 0 | Q27: 0 | R27: 0 | S27: 0
A28: 2.9 | B28: Đất phát triển hạ tầng cấp quốc gia, cấp tỉnh, cấp huyện, cấp xã | C28: DHT | D28: 3257.5982 | E28: 52.193 | F28: 187.4189 | G28: 265.8732 | H28: 106.022 | I28: 152.5452 | J28: 63.8084 | K28: 151.355 | L28: 151.765 | M28: 85.0224 | N28: 145.0641 | O28: 853.862 | P28: 353.74 | Q28: 432.15 | R28: 147.831 | S28: 108.948
A29: 2.10 | B29: Đất có di tích lịch sử - văn hóa | C29: DDT | D29: 139.0222 | E29: 0.5 | F29: 0 | G29: 0 | H29: 0 | I29: 0 | J29: 0 | K29: 0 | L29: 2.18 | M29: 0.0492 | N29: 0 | O29: 136.252 | P29: 0 | Q29: 0 | R29: 0.041 | S29: 0
A30: 2.11 | B30: Đất danh lam thắng cảnh | C30: DDL | D30: 0 | E30: 0 | F30: 0 | G30: 0 | H30: 0 | I30: 0 | J30: 0 | K30: 0 | L30: 0 | M30: 0 | N30: 0 | O30: 0 | P30: 0 | Q30: 0 | R30: 0 | S30: 0
A31: 2.12 | B31: Đất bải thải, xử lý chất thải | C31: DRA | D31: 5.2604 | E31: 0 | F31: 0 | G31: 0 | H31: 0 | I31: 0 | J31: 0 | K31: 0 | L31: 0 | M31: 0.5104 | N31: 0 | O31: 0 | P31: 0 | Q31: 4.48 | R31: 0.25 | S31: 0.02
A32: 2.13 | B32: Đất ở tại nông thôn | C32: ONT | D32: 610.7093 | E32: 0 | F32: 31.11 | G32: 48.5016 | H32: 37.88 | I32: 47.81 | J32: 39.844 | K32: 38.346 | L32: 42.24 | M32: 31.7137 | N32: 37.013 | O32: 30.782 | P32: 56.4 | Q32: 53.4 | R32: 72.75 | S32: 42.919
A33: 2.14 | B33: Đất ở tại đô thị | C33: ODT | D33: 29.36 | E33: 29.36 | F33: 0 | G33: 0 | H33: 0 | I33: 0 | J33: 0 | K33: 0 | L33: 0 | M33: 0 | N33: 0 | O33: 0 | P33: 0 | Q33: 0 | R33: 0 | S33: 0
A34: 2.15 | B34: Đất xây dựng trụ sở cơ quan | C34: TSC | D34: 12.7756 | E34: 3.424 | F34: 0.77 | G34: 0.6944 | H34: 0.3 | I34: 0.364 | J34: 0.44 | K34: 0.439 | L34: 0.65 | M34: 0.7032 | N34: 0.812 | O34: 0.2 | P34: 2.12 | Q34: 0.61 | R34: 0.39 | S34: 0.859
A35: 2.16 | B35: Đất xây dựng trụ sở của tổ chức sự nghiệp | C35: DTS | D35: 2.181 | E35: 0.02 | F35: 0 | G35: 0 | H35: 0 | I35: 0.21 | J35: 0 | K35: 0 | L35: 0 | M35: 0 | N35: 0 | O35: 1.561 | P35: 0 | Q35: 0.39 | R35: 0 | S35: 0
A36: 2.17 | B36: Đất xây dựng cơ sở ngoại giao | C36: DNG | D36: 0 | E36: 0 | F36: 0 | G36: 0 | H36: 0 | I36: 0 | J36: 0 | K36: 0 | L36: 0 | M36: 0 | N36: 0 | O36: 0 | P36: 0 | Q36: 0 | R36: 0 | S36: 0
A37: 2.18 | B37: Đất cơ sở tôn giáo | C37: TON | D37: 1.86 | E37: 0 | F37: 0.09 | G37: 0.42 | H37: 0.35 | I37: 0 | J37: 0 | K37: 0 | L37: 0 | M37: 0 | N37: 0 | O37: 0 | P37: 1 | Q37: 0 | R37: 0 | S37: 0
A38: 2.19 | B38: Đất làm nghĩa trang, nghĩa địa, nhà tang lễ, nhà hỏa táng | C38: NTD | D38: 324.7623 | E38: 6.441 | F38: 25.624 | G38: 42.9574 | H38: 22.949 | I38: 38.889 | J38: 20.012 | K38: 14.9 | L38: 23.734 | M38: 17.4939 | N38: 4.201 | O38: 2.879 | P38: 48.052 | Q38: 18.512 | R38: 20.084 | S38: 18.034
A39: 2.20 | B39: Đất sản xuất vật liệu xây dựng, làm đồ gốm | C39: SKX | D39: 135.0874 | E39: 0.23 | F39: 0.2997 | G39: 0 | H39: 0.07 | I39: 21.469 | J39: 0 | K39: 0 | L39: 0 | M39: 1.7907 | N39: 0 | O39: 28.788 | P39: 67.51 | Q39: 2.55 | R39: 11.95 | S39: 0.43
A40: 2.21 | B40: Đất sinh hoạt cộng đồng | C40: DSH | D40: 18.7322 | E40: 0.455 | F40: 0.505 | G40: 1.18 | H40: 1.23 | I40: 0.564 | J40: 0.91 | K40: 1.238 | L40: 1.17 | M40: 1.6222 | N40: 0.95 | O40: 1.84 | P40: 2.678 | Q40: 1.42 | R40: 1.52 | S40: 1.45
A41: 2.22 | B41: Đất khu vui chơi giải trí công cộng | C41: DKV | D41: 3.924 | E41: 0.4 | F41: 0 | G41: 0 | H41: 0 | I41: 0 | J41: 2.094 | K41: 0 | L41: 0 | M41: 0 | N41: 0 | O41: 0 | P41: 0 | Q41: 0 | R41: 1.43 | S41: 0
A42: 2.23 | B42: Đất cơ sở tín ngưỡng | C42: TIN | D42: 6.167 | E42: 0 | F42: 0.793 | G42: 0.222 | H42: 0.63 | I42: 0.03 | J42: 0.028 | K42: 0.459 | L42: 0.614 | M42: 0 | N42: 0 | O42: 2.031 | P42: 1.09 | Q42: 0 | R42: 0.01 | S42: 0.26
A43: 2.24 | B43: Đất sông, ngòi, kênh, rạch, suối | C43: SON | D43: 2151.8772 | E43: 70.425 | F43: 89.315 | G43: 0 | H43: 58.745 | I43: 189.395 | J43: 11.69 | K43: 196.618 | L43: 205.354 | M43: 79.2852 | N43: 507.941 | O43: 360.211 | P43: 0.22 | Q43: 178.28 | R43: 176.58 | S43: 27.818
A44: 2.25 | B44: Đất có mặt nước chuyên dùng | C44: MNC | D44: 123.8442 | E44: 0.789 | F44: 18.724 | G44: 10.7285 | H44: 27.919 | I44: 0 | J44: 0 | K44: 7.838 | L44: 21.124 | M44: 0.8797 | N44: 0.5 | O44: 9.772 | P44: 3.34 | Q44: 18.32 | R44: 0.9 | S44: 3.01
A45: 2.26 | B45: Đất phi nông nghiệp khác | C45: PNK | D45: 0 | E45: 0 | F45: 0 | G45: 0 | H45: 0 | I45: 0 | J45: 0 | K45: 0 | L45: 0 | M45: 0 | N45: 0 | O45: 0 | P45: 0 | Q45: 0 | R45: 0 | S45: 0
A46: 3 | B46: Đất chưa sử dụng | C46: CSD | D46: 3222.839 | E46: 18.708 | F46: 36.684 | G46: 31.088 | H46: 8.278 | I46: 21.45 | J46: 264.478 | K46: 39.178 | L46: 66.678 | M46: 9.71 | N46: 1838.73 | O46: 584.064 | P46: 54.818 | Q46: 26.03 | R46: 208.144 | S46: 14.801
A47: 4 | B47: Đất khu công nghệ cao* | C47: KCN | D47: 0 | E47: 0 | F47: 0 | G47: 0 | H47: 0 | I47: 0 | J47: 0 | K47: 0 | L47: 0 | M47: 0 | N47: 0 | O47: 0 | P47: 0 | Q47: 0 | R47: 0 | S47: 0
A48: 5 | B48: Đất khu kinh tế* | C48: KKT | D48: 0
A49: 6 | B49: Đất đô thị* | C49: KDT | D49: 330.6512 | E49: 330.6512 | G49: 0 | H49: 0 | I49: 0 | J49: 0 | K49: 0 | L49: 0 | M49: 0 | N49: 0 | P49: 0 | Q49: 0 | R49: 0 | S49: 0
B50: Ghi chú: * Không tổng hợp khi tính tổng diện tích tự nhiên

Sheet Biểu 02 CH
A1: Biểu 02/CH
A2: =UPPER("KẾT QUẢ THỰC HIỆN KẾ HOẠCH SỬ DỤNG ĐẤT NĂM "&'SL HIỆN TRẠNG'!D2&" CỦA "&'SL HIỆN TRẠNG'!C1) -> KẾT QUẢ THỰC HIỆN KẾ HOẠCH SỬ DỤNG ĐẤT NĂM 2019 CỦA HUYỆN QUẢNG NINH
A4: STT | B4: Chỉ tiêu sử dụng đất | C4: Mã | D4: Diện tích kế hoạch được duyệt (ha) | E4: Kết quả thực hiện
E5: Diện tích (ha) | F5: So sánh
F6: Tăng (+) giảm (-) (ha) | G6: Tỷ lệ (%)
A7: -1 | B7: -2 | C7: -3 | D7: -4 | E7: -5 | F7: -6 | G7: -7
B8: TỔNG DIỆN TÍCH TỰ NHIÊN | E8: =SUM(F8:G8) -> 287.3381237 | F8: =F9+F20+F47 -> -0.001100000005 | G8: =G9+G20+G47 -> 287.3392237
A9: 1 | B9: Đất nông nghiệp | C9: NNP | D9: 107293.94 | E9: =VLOOKUP($C9,'SL HIỆN TRẠNG'!$D$4:$E$61,2,0) -> 108638.2717 | F9: =E9-D9 -> 1344.3317 | G9: =IF(D9=0,"-",E9/D9*100) -> 101.2529428 | H9: =IF(F9>=0,F9,F9*-1) -> 1344.3317
A10: 1.1 | B10: Đất trồng lúa | C10: LUA | D10: 5292.16 | E10: =VLOOKUP(C10,'SL HIỆN TRẠNG'!$D$4:$E$61,2,0) -> 5331.8275 | F10: =E10-D10 -> 39.6675 | G10: 100.7495522 | H10: =IF(F10>=0,F10,F10*-1) -> 39.6675
B11: Trong đó: Đất chuyên trồng lúa nước | C11: LUC | D11: 4965.9 | E11: =VLOOKUP(C11,'SL HIỆN TRẠNG'!$D$4:$E$61,2,0) -> 5005.5785 | F11: =E11-D11 -> 39.6785 | G11: 100.7990193 | H11: 39.6785
A12: 1.2 | B12: Đất trồng cây hàng năm khác | C12: HNK | D12: 2306.94 | E12: =VLOOKUP(C12,'SL HIỆN TRẠNG'!$D$4:$E$61,2,0) -> 2344.384 | F12: 37.444 | G12: 101.6231025 | H12: 37.444
A13: 1.3 | B13: Đất trồng cây lâu năm | C13: CLN | D13: 836.69 | E13: =VLOOKUP(C13,'SL HIỆN TRẠNG'!$D$4:$E$61,2,0) -> 631.594 | F13: -205.096 | G13: 75.48721749 | H13: 205.096
A14: 1.4 | B14: Đất rừng phòng hộ | C14: RPH | D14: 53960.24 | E14: =VLOOKUP(C14,'SL HIỆN TRẠNG'!$D$4:$E$61,2,0) -> 53671.925 | F14: -288.315 | G14: 99.46568992 | H14: 288.315
A15: 1.5 | B15: Đất rừng đặc dụng | C15: RDD | E15: =VLOOKUP(C15,'SL HIỆN TRẠNG'!$D$4:$E$61,2,0) -> 0 | F15: 0 | G15: =IF(D15=0,"-",E15/D15*100) -> - | H15: 0
A16: 1.6 | B16: Đất rừng sản xuất | C16: RSX | D16: 44188.17 | E16: =VLOOKUP(C16,'SL HIỆN TRẠNG'!$D$4:$E$61,2,0) -> 46075.1329 | F16: =E16-D16 -> 1886.9629 | G16: =IF(D16=0,"-",E16/D16*100) -> 104.2702898 | H16: 1886.9629
A17: 1.7 | B17: Đất nuôi trồng thuỷ sản | C17: NTS | D17: 452.83 | E17: =VLOOKUP(C17,'SL HIỆN TRẠNG'!$D$4:$E$61,2,0) -> 501.5445 | F17: 48.7145 | G17: 110.7577899 | H17: 48.7145
A18: 1.8 | B18: Đất làm muối | C18: LMU | D18: 0 | E18: =VLOOKUP(C18,'SL HIỆN TRẠNG'!$D$4:$E$61,2,0) -> 0 | F18: 0 | G18: - | H18: 0
A19: 1.9 | B19: Đất nông nghiệp khác | C19: NKH | D19: 256.91 | E19: =VLOOKUP(C19,'SL HIỆN TRẠNG'!$D$4:$E$61,2,0) -> 81.8638 | F19: -175.0462 | G19: 31.86477755 | H19: 175.0462
A20: 2 | B20: Đất phi nông nghiệp | C20: PNN | D20: 8955.26 | E20: =VLOOKUP(C20,'SL HIỆN TRẠNG'!$D$4:$E$61,2,0) -> 7557.0782 | F20: -1398.1818 | G20: 84.38703287 | H20: 1398.1818
A21: 2.1 | B21: Đất quốc phòng | C21: CQP | D21: 232.52 | E21: =VLOOKUP(C21,'SL HIỆN TRẠNG'!$D$4:$E$61,2,0) -> 136.8152 | F21: -95.7048 | G21: 58.84018579 | H21: 95.7048
A22: 2.2 | B22: Đất an ninh | C22: CAN | D22: 1.72 | E22: =VLOOKUP(C22,'SL HIỆN TRẠNG'!$D$4:$E$61,2,0) -> 1.717 | F22: -0.003 | G22: 99.8255814 | H22: 0.003
A23: 2.3 | B23: Đất khu công nghiệp | C23: SKK | D23: 41.93 | E23: =VLOOKUP(C23,'SL HIỆN TRẠNG'!$D$4:$E$61,2,0) -> 21.9302 | F23: -19.9998 | G23: 52.30193179 | H23: 19.9998
A24: 2.4 | B24: Đất khu chế xuất | C24: SKT | D24: 0 | E24: =VLOOKUP(C24,'SL HIỆN TRẠNG'!$D$4:$E$61,2,0) -> 0 | F24: 0 | G24: - | H24: 0
A25: 2.5 | B25: Đất cụm công nghiệp | C25: SKN | E25: =VLOOKUP(C25,'SL HIỆN TRẠNG'!$D$4:$E$61,2,0) -> 0 | F25: 0 | G25: - | H25: 0
A26: 2.6 | B26: Đất thương mại dịch vụ | C26: TMD | D26: 901.25 | E26: =VLOOKUP(C26,'SL HIỆN TRẠNG'!$D$4:$E$61,2,0) -> 519.574 | F26: -381.676 | G26: 57.65037448 | H26: 381.676
A27: 2.7 | B27: Đất cơ sở sản xuất phi nông nghiệp | C27: SKC | D27: 63 | E27: =VLOOKUP(C27,'SL HIỆN TRẠNG'!$D$4:$E$61,2,0) -> 53.881 | F27: -9.119 | G27: 85.52539683 | H27: 9.119
A28: 2.8 | B28: Đất sử dụng cho hoạt động khoáng sản | C28: SKS | D28: 0 | E28: =VLOOKUP(C28,'SL HIỆN TRẠNG'!$D$4:$E$61,2,0) -> 0 | F28: 0 | G28: - | H28: 0
A29: 2.9 | B29: Đất phát triển hạ tầng cấp quốc gia, cấp tỉnh, cấp huyện, cấp xã | C29: DHT | D29: 3542.85 | E29: =VLOOKUP(C29,'SL HIỆN TRẠNG'!$D$4:$E$61,2,0) -> 3257.5982 | F29: -285.2518 | G29: 91.94852167 | H29: 285.2518
A30: 2.10 | B30: Đất có di tích lịch sử - văn hóa | C30: DDT | D30: 139.02 | E30: =VLOOKUP(C30,'SL HIỆN TRẠNG'!$D$4:$E$61,2,0) -> 139.022 | F30: 0.002 | G30: 100.0014386 | H30: 0.002
A31: 2.11 | B31: Đất danh lam thắng cảnh | C31: DDL | D31: 0 | E31: =VLOOKUP(C31,'SL HIỆN TRẠNG'!$D$4:$E$61,2,0) -> 0 | F31: 0 | G31: - | H31: 0
A32: 2.12 | B32: Đất bải thải, xử lý chất thải | C32: DRA | D32: 5.26 | E32: =VLOOKUP(C32,'SL HIỆN TRẠNG'!$D$4:$E$61,2,0) -> 5.2604 | F32: 0.0004 | G32: 100.0076046 | H32: 0.0004
A33: 2.13 | B33: Đất ở tại nông thôn | C33: ONT | D33: 733.62 | E33: =VLOOKUP(C33,'SL HIỆN TRẠNG'!$D$4:$E$61,2,0) -> 610.7093 | F33: -122.9107 | G33: 83.24599929 | H33: 122.9107
A34: 2.14 | B34: Đất ở tại đô thị | C34: ODT | D34: 52.55 | E34: =VLOOKUP(C34,'SL HIỆN TRẠNG'!$D$4:$E$61,2,0) -> 29.36 | F34: -23.19 | G34: 55.87059943 | H34: 23.19
A35: 2.15 | B35: Đất xây dựng trụ sở cơ quan | C35: TSC | D35: 12.65 | E35: =VLOOKUP(C35,'SL HIỆN TRẠNG'!$D$4:$E$61,2,0) -> 12.7756 | F35: 0.1256 | G35: 100.9928854 | H35: 0.1256
A36: 2.16 | B36: Đất xây dựng trụ sở của tổ chức sự nghiệp | C36: DTS | D36: 2.12 | E36: =VLOOKUP(C36,'SL HIỆN TRẠNG'!$D$4:$E$61,2,0) -> 2.181 | F36: 0.061 | G36: 102.8773585 | H36: 0.061
A37: 2.17 | B37: Đất xây dựng cơ sở ngoại giao | C37: DNG | D37: 0 | E37: =VLOOKUP(C37,'SL HIỆN TRẠNG'!$D$4:$E$61,2,0) -> 0 | F37: 0 | G37: - | H37: 0
A38: 2.18 | B38: Đất cơ sở tôn giáo | C38: TON | D38: 2.5 | E38: =VLOOKUP(C38,'SL HIỆN TRẠNG'!$D$4:$E$61,2,0) -> 1.86 | F38: -0.64 | G38: 74.4 | H38: 0.64
A39: 2.19 | B39: Đất làm nghĩa trang, nghĩa địa, nhà tang lễ, nhà hỏa táng | C39: NTD | D39: 335.04 | E39: =VLOOKUP(C39,'SL HIỆN TRẠNG'!$D$4:$E$61,2,0) -> 324.7623 | F39: -10.2777 | G39: 96.93239613 | H39: 10.2777
A40: 2.20 | B40: Đất sản xuất vật liệu xây dựng, làm đồ gốm | C40: SKX | D40: 152.28 | E40: =VLOOKUP(C40,'SL HIỆN TRẠNG'!$D$4:$E$61,2,0) -> 135.0874 | F40: -17.1926 | G40: 88.70987654 | H40: 17.1926
A41: 2.21 | B41: Đất sinh hoạt cộng đồng | C41: DSH | D41: 18.65 | E41: =VLOOKUP(C41,'SL HIỆN TRẠNG'!$D$4:$E$61,2,0) -> 18.7322 | F41: 0.0822 | G41: 100.4407507 | H41: 0.0822
A42: 2.22 | B42: Đất khu vui chơi giải trí công cộng | C42: DKV | D42: 446.31 | E42: =VLOOKUP(C42,'SL HIỆN TRẠNG'!$D$4:$E$61,2,0) -> 3.924 | F42: -442.386 | G42: 0.879209518 | H42: 442.386
A43: 2.23 | B43: Đất cơ sở tín ngưỡng | C43: TIN | D43: 6.45 | E43: =VLOOKUP(C43,'SL HIỆN TRẠNG'!$D$4:$E$61,2,0) -> 6.167 | F43: -0.283 | G43: 95.6124031 | H43: 0.283
A44: 2.24 | B44: Đất sông, ngòi, kênh, rạch, suối | C44: SON | D44: 2140.54 | E44: =VLOOKUP(C44,'SL HIỆN TRẠNG'!$D$4:$E$61,2,0) -> 2151.8772 | F44: 11.3372 | G44: 100.5296421 | H44: 11.3372
A45: 2.25 | B45: Đất có mặt nước chuyên dùng | C45: MNC | D45: 123.82 | E45: =VLOOKUP(C45,'SL HIỆN TRẠNG'!$D$4:$E$61,2,0) -> 123.8442 | F45: 0.0242 | G45: 100.0195445 | H45: 0.0242
A46: 2.26 | B46: Đất phi nông nghiệp khác | C46: PNK | E46: =VLOOKUP(C46,'SL HIỆN TRẠNG'!$D$4:$E$61,2,0) -> 0 | F46: 0 | G46: - | H46: 0
A47: 3 | B47: Đất chưa sử dụng | C47: CSD | D47: 3168.99 | E47: =VLOOKUP(C47,'SL HIỆN TRẠNG'!$D$4:$E$61,2,0) -> 3222.839 | F47: 53.849 | G47: 101.699248 | H47: 53.849

Sheet Biểu 06 CH
A1: Biểu 06/CH
A2: KẾ HOẠCH SỬ DỤNG ĐẤT NĂM 2020 CỦA HUYỆN QUẢNG NINH
T3: Đơn vị tính: ha
A4: STT | B4: Chỉ tiêu sử dụng đất | C4: Mã | D4: Diện tích cấp tỉnh phân bổ | E4: Diện tích cấp huyện xác định | F4: Tổng diện tích | G4: Diện tích phân theo đơn vị hành chính
G5: Thị trấn Quán Hàu | H5: Tân Ninh | I5: An Ninh | J5: Duy Ninh | K5: Gia Ninh | L5: Hải Ninh | M5: Hàm Ninh | N5: Hiền Ninh | O5: Lương Ninh | P5: Trường Sơn | Q5: Trường Xuân | R5: Vạn Ninh | S5: Vĩnh Ninh | T5: Võ Ninh | U5: Xuân Ninh
A6: -1 | B6: -2 | C6: -3 | F6: (4)=(5)+(6)+...(19) | G6: -5 | H6: -6 | I6: -7 | J6: -8 | K6: -9 | L6: -10 | M6: -11 | N6: -12 | O6: -13 | P6: -14 | Q6: -15 | R6: -16 | S6: -17 | T6: -18 | U6: -19
A7: I
A8: 1 | B8: Đất nông nghiệp | C8: NNP | D8: 107274.52 | E8: 161.8017 | F8: 107436.3217 | G8: 100.086 | H8: 751.314 | I8: 1537.426 | J8: 508.955 | K8: 2364.6649 | L8: 1943.404 | M8: 1567.417 | N8: 979.034 | O8: 292.0988 | P8: 75402.291 | Q8: 13573.892 | R8: 2215.088 | S8: 4153.622 | T8: 1443.616 | U8: 603.413
A9: 1.1 | B9: Đất trồng lúa | C9: LUA | D9: 5278.77 | E9: 16.4775 | F9: 5295.2475 | G9: 46.057 | H9: 639.94 | I9: 955.501 | J9: 401.919 | K9: 560.65 | L9: 0 | M9: 420.766 | N9: 272.17 | O9: 193.4555 | P9: 22.96 | Q9: 74.918 | R9: 813.96 | S9: 405.68 | T9: 188.471 | U9: 298.8
B10: Trong đó: Đất chuyên trồng lúa nước | C10: LUC | D10: 4952.48 | E10: 17.7485 | F10: 4970.2285 | G10: 38.909 | H10: 639.94 | I10: 945.011 | J10: 401.919 | K10: 560.65 | L10: 0 | M10: 416.848 | N10: 170.46 | O10: 192.5225 | P10: 10.19 | Q10: 74.918 | R10: 717.65 | S10: 313.94 | T10: 188.471 | U10: 298.8
A11: 1.2 | B11: Đất trồng cây hàng năm khác | C11: HNK | D11: 2496.15 | E11: -189.886 | F11: 2306.264 | G11: 41.018 | H11: 70.381 | I11: 173.661 | J11: 93.398 | K11: 95.3799 | L11: 72.901 | M11: 133.239 | N11: 252.278 | O11: 44.1811 | P11: 221.37 | Q11: 201.109 | R11: 422.768 | S11: 228.24 | T11: 126.731 | U11: 129.609
A12: 1.3 | B12: Đất trồng cây lâu năm | C12: CLN | D12: 1084.93 | E12: -456.086 | F12: 628.844 | G12: 0 | H12: 0 | I12: 0.492 | J12: 1.738 | K12: 0.01 | L12: 0.352 | M12: 3.086 | N12: 3.138 | O12: 0 | P12: 314.22 | Q12: 156.898 | R12: 107.4 | S12: 10.13 | T12: 25.98 | U12: 5.4
A13: 1.4 | B13: Đất rừng phòng hộ | C13: RPH | D13: 54301.74 | E13: -653.475 | F13: 53648.265 | G13: 0 | H13: 10.772 | I13: 0 | J13: 0 | K13: 981.191 | L13: 1250.441 | M13: 0 | N13: 15.47 | O13: 0 | P13: 40997.28 | Q13: 9664.8 | R13: 0 | S13: 0 | T13: 728.311 | U13: 0
A14: 1.5 | B14: Đất rừng đặc dụng | C14: RDD | F14: 0 | G14: 0 | H14: 0 | I14: 0 | J14: 0 | K14: 0 | L14: 0 | M14: 0 | N14: 0 | O14: 0 | P14: 0 | Q14: 0 | R14: 0 | S14: 0 | T14: 0 | U14: 0
A15: 1.6 | B15: Đất rừng sản xuất | C15: RSX | D15: 43366.23 | E15: 1589.2529 | F15: 44955.4829 | G15: 0.547 | H15: 0.891 | I15: 370.308 | J15: 0 | K15: 690.701 | L15: 490.679 | M15: 954.298 | N15: 408.278 | O15: 12.4809 | P15: 33846.4 | Q15: 3450.398 | R15: 837.598 | S15: 3433.03 | T15: 299.332 | U15: 160.542
A16: 1.7 | B16: Đất nuôi trồng thuỷ sản | C16: NTS | D16: 504.68 | E16: -43.8155 | F16: 460.8645 | G16: 12.464 | H16: 29.33 | I16: 31.542 | J16: 11.9 | K16: 10.651 | L16: 103.351 | M16: 41.868 | N16: 27.7 | O16: 41.9245 | P16: 0.061 | Q16: 3.788 | R16: 12.511 | S16: 59.49 | T16: 67.883 | U16: 6.401
A17: 1.8 | B17: Đất làm muối | C17: LMU | F17: 0 | G17: 0 | H17: 0 | I17: 0 | J17: 0 | K17: 0 | L17: 0 | M17: 0 | N17: 0 | O17: 0 | P17: 0 | Q17: 0 | R17: 0 | S17: 0 | T17: 0 | U17: 0
A18: 1.9 | B18: Đất nông nghiệp khác | C18: NKH | E18: 141.3538 | F18: 141.3538 | G18: 0 | H18: 0 | I18: 5.922 | J18: 0 | K18: 26.082 | L18: 25.68 | M18: 14.16 | N18: 0 | O18: 0.0568 | P18: 0 | Q18: 21.981 | R18: 20.851 | S18: 17.052 | T18: 6.908 | U18: 2.661
A19: 2 | B19: Đất phi nông nghiệp | C19: PNN | D19: 9122.14 | E19: -311.8296 | F19: 8810.3104 | G19: 213.3372 | H19: 357.1536 | I19: 376.1127 | J19: 261.315 | K19: 466.1105 | L19: 1646.0464 | M19: 413.429 | N19: 454.085 | O19: 239.6879 | P19: 721.4571 | Q19: 1489.799 | R19: 646.28 | S19: 795.503 | T19: 521.701 | U19: 208.293
A20: 2.1 | B20: Đất quốc phòng | C20: CQP | D20: 152.51 | E20: 39.0052 | F20: 191.5152 | G20: 1.2892 | H20: 0 | I20: 0.2942 | J20: 0 | K20: 0 | L20: 2.7 | M20: 0.018 | N20: 0 | O20: 1.6328 | P20: 2.004 | Q20: 40.692 | R20: 77.48 | S20: 39 | T20: 26.405 | U20: 0
A21: 2.2 | B21: Đất an ninh | C21: CAN | D21: 2.25 | E21: -0.333 | F21: 1.917 | G21: 1.442 | H21: 0 | I21: 0 | J21: 0 | K21: 0 | L21: 0.2 | M21: 0 | N21: 0 | O21: 0 | P21: 0 | Q21: 0 | R21: 0 | S21: 0 | T21: 0 | U21: 0.275
A22: 2.3 | B22: Đất khu công nghiệp | C22: SKK | D22: 161.49 | E22: -119.5598 | F22: 41.9302 | G22: 16.889 | H22: 0 | I22: 0 | J22: 0 | K22: 0 | L22: 0 | M22: 0 | N22: 0 | O22: 5.0812 | P22: 0 | Q22: 0 | R22: 0 | S22: 19.96 | T22: 0 | U22: 0
A23: 2.4 | B23: Đất khu chế xuất | C23: SKT | F23: 0 | G23: 0 | H23: 0 | I23: 0 | J23: 0 | K23: 0 | L23: 0 | M23: 0 | N23: 0 | O23: 0 | P23: 0 | Q23: 0 | R23: 0 | S23: 0 | T23: 0 | U23: 0
A24: 2.5 | B24: Đất cụm công nghiệp | C24: SKN | F24: 0 | G24: 0 | H24: 0 | I24: 0 | J24: 0 | K24: 0 | L24: 0 | M24: 0 | N24: 0 | O24: 0 | P24: 0 | Q24: 0 | R24: 0 | S24: 0 | T24: 0 | U24: 0
A25: 2.6 | B25: Đất thương mại dịch vụ | C25: TMD | D25: 453.78 | E25: 361.694 | F25: 815.474 | G25: 3.5 | H25: 0.544 | I25: 1.4014 | J25: 2.2 | K25: 3.1291 | L25: 782.55 | M25: 0.658 | N25: 0.082 | O25: 2.2415 | P25: 0 | Q25: 4.968 | R25: 1.93 | S25: 4.78 | T25: 7.29 | U25: 0.2
A26: 2.7 | B26: Đất cơ sở sản xuất phi nông nghiệp | C26: SKC | D26: 65.52 | E26: -9.619 | F26: 55.901 | G26: 6.6 | H26: 0 | I26: 0 | J26: 0 | K26: 0.4352 | L26: 0.07 | M26: 0 | N26: 0.082 | O26: 0.2418 | P26: 6.072 | Q26: 2.12 | R26: 26.42 | S26: 11.05 | T26: 0 | U26: 2.81
A27: 2.8 | B27: Đất sử dụng cho hoạt động khoáng sản | C27: SKS | F27: 0 | G27: 0 | H27: 0 | I27: 0 | J27: 0 | K27: 0 | L27: 0 | M27: 0 | N27: 0 | O27: 0 | P27: 0 | Q27: 0 | R27: 0 | S27: 0 | T27: 0 | U27: 0
A28: 2.9 | B28: Đất phát triển hạ tầng cấp quốc gia, cấp tỉnh, cấp huyện, cấp xã | C28: DHT | D28: 4447.7 | E28: -863.1418 | F28: 3584.5582 | G28: 61.463 | H28: 187.5289 | I28: 267.2432 | J28: 107.652 | K28: 152.6852 | L28: 313.9984 | M28: 151.495 | N28: 155.005 | O28: 97.4424 | P28: 160.5641 | Q28: 865.452 | R28: 354.22 | S28: 436.35 | T28: 164.221 | U28: 109.238
A29: 2.10 | B29: Đất có di tích lịch sử - văn hóa | C29: DDT | D29: 139.02 | E29: 0.0022 | F29: 139.0222 | G29: 0.5 | H29: 0 | I29: 0 | J29: 0 | K29: 0 | L29: 0 | M29: 0 | N29: 2.18 | O29: 0.0492 | P29: 0 | Q29: 136.252 | R29: 0 | S29: 0 | T29: 0.041 | U29: 0
A30: 2.11 | B30: Đất danh lam thắng cảnh | C30: DDL | F30: 0 | G30: 0 | H30: 0 | I30: 0 | J30: 0 | K30: 0 | L30: 0 | M30: 0 | N30: 0 | O30: 0 | P30: 0 | Q30: 0 | R30: 0 | S30: 0 | T30: 0 | U30: 0
A31: 2.12 | B31: Đất bải thải, xử lý chất thải | C31: DRA | D31: 6.94 | E31: -1.6796 | F31: 5.2604 | G31: 0 | H31: 0 | I31: 0 | J31: 0 | K31: 0 | L31: 0 | M31: 0 | N31: 0 | O31: 0.5104 | P31: 0 | Q31: 0 | R31: 0 | S31: 4.48 | T31: 0.25 | U31: 0.02
A32: 2.13 | B32: Đất ở tại nông thôn | C32: ONT | D32: 662.86 | E32: 34.7193 | F32: 697.5793 | G32: 0 | H32: 32.96 | I32: 50.2516 | J32: 39.42 | K32: 49.01 | L32: 71.564 | M32: 39.946 | N32: 44.09 | O32: 33.2137 | P32: 38.413 | Q32: 32.972 | R32: 58.92 | S32: 59.8 | T32: 103.13 | U32: 43.889
A33: 2.14 | B33: Đất ở tại đô thị | C33: ODT | D33: 56.88 | E33: -15.04 | F33: 41.84 | G33: 41.84 | H33: 0 | I33: 0 | J33: 0 | K33: 0 | L33: 0 | M33: 0 | N33: 0 | O33: 0 | P33: 0 | Q33: 0 | R33: 0 | S33: 0 | T33: 0 | U33: 0
A34: 2.15 | B34: Đất xây dựng trụ sở cơ quan | C34: TSC | D34: 12.82 | E34: -0.1744 | F34: 12.6456 | G34: 3.224 | H34: 0.77 | I34: 0.6944 | J34: 0.3 | K34: 0.364 | L34: 0.44 | M34: 0.439 | N34: 0.65 | O34: 0.7032 | P34: 0.812 | Q34: 0.27 | R34: 2.12 | S34: 0.61 | T34: 0.39 | U34: 0.859
A35: 2.16 | B35: Đất xây dựng trụ sở của tổ chức sự nghiệp | C35: DTS | D35: 2.3 | E35: -0.119 | F35: 2.181 | G35: 0.02 | H35: 0 | I35: 0 | J35: 0 | K35: 0.21 | L35: 0 | M35: 0 | N35: 0 | O35: 0 | P35: 0 | Q35: 1.561 | R35: 0 | S35: 0.39 | T35: 0 | U35: 0
A36: 2.17 | B36: Đất xây dựng cơ sở ngoại giao | C36: DNG | F36: 0 | G36: 0 | H36: 0 | I36: 0 | J36: 0 | K36: 0 | L36: 0 | M36: 0 | N36: 0 | O36: 0 | P36: 0 | Q36: 0 | R36: 0 | S36: 0 | T36: 0 | U36: 0
A37: 2.18 | B37: Đất cơ sở tôn giáo | C37: TON | D37: 2.76 | F37: 1.86 | G37: 0 | H37: 0.09 | I37: 0.42 | J37: 0.35 | K37: 0 | L37: 0 | M37: 0 | N37: 0 | O37: 0 | P37: 0 | Q37: 0 | R37: 1 | S37: 0 | T37: 0 | U37: 0
A38: 2.19 | B38: Đất làm nghĩa trang, nghĩa địa, nhà tang lễ, nhà hỏa táng | C38: NTD | D38: 341.13 | F38: 335.6423 | G38: 5.801 | H38: 25.624 | I38: 43.2574 | J38: 22.949 | K38: 48.879 | L38: 19.952 | M38: 14.9 | N38: 23.734 | O38: 17.4939 | P38: 4.201 | Q38: 2.869 | R38: 49.352 | S38: 18.512 | T38: 20.084 | U38: 18.034
A39: 2.20 | B39: Đất sản xuất vật liệu xây dựng, làm đồ gốm | C39: SKX | E39: 142.5874 | F39: 142.5874 | G39: 0.23 | H39: 0.2997 | I39: 0 | J39: 0.07 | K39: 21.469 | L39: 0 | M39: 0 | N39: 0 | O39: 1.7907 | P39: 0 | Q39: 28.788 | R39: 67.51 | S39: 2.55 | T39: 19.45 | U39: 0.43
A40: 2.21 | B40: Đất sinh hoạt cộng đồng | C40: DSH | E40: 18.7322 | F40: 18.7322 | G40: 0.455 | H40: 0.505 | I40: 1.18 | J40: 1.23 | K40: 0.564 | L40: 0.91 | M40: 1.238 | N40: 1.17 | O40: 1.6222 | P40: 0.95 | Q40: 1.84 | R40: 2.678 | S40: 1.42 | T40: 1.52 | U40: 1.45
A41: 2.22 | B41: Đất khu vui chơi giải trí công cộng | C41: DKV | E41: 450.254 | F41: 450.254 | G41: 0.4 | H41: 0 | I41: 0.42 | J41: 0 | K41: 0 | L41: 448.004 | M41: 0 | N41: 0 | O41: 0 | P41: 0 | Q41: 0 | R41: 0 | S41: 0 | T41: 1.43 | U41: 0
A42: 2.23 | B42: Đất cơ sở tín ngưỡng | C42: TIN | E42: 6.167 | F42: 6.167 | G42: 0 | H42: 0.793 | I42: 0.222 | J42: 0.63 | K42: 0.03 | L42: 0.028 | M42: 0.459 | N42: 0.614 | O42: 0 | P42: 0 | Q42: 2.031 | R42: 1.09 | S42: 0 | T42: 0.01 | U42: 0.26
A43: 2.24 | B43: Đất sông, ngòi, kênh, rạch, suối | C43: SON | E43: 2141.7572 | F43: 2141.7572 | G43: 68.925 | H43: 89.315 | I43: 0 | J43: 58.745 | K43: 189.335 | L43: 5.63 | M43: 196.618 | N43: 205.354 | O43: 76.7852 | P43: 507.941 | Q43: 360.211 | R43: 0.22 | S43: 178.28 | T43: 176.58 | U43: 27.818
A44: 2.25 | B44: Đất có mặt nước chuyên dùng | C44: MNC | E44: 123.4842 | F44: 123.4842 | G44: 0.759 | H44: 18.724 | I44: 10.7285 | J44: 27.769 | K44: 0 | L44: 0 | M44: 7.658 | N44: 21.124 | O44: 0.8797 | P44: 0.5 | Q44: 9.772 | R44: 3.34 | S44: 18.32 | T44: 0.9 | U44: 3.01
A45: 2.26 | B45: Đất phi nông nghiệp khác | C45: PNK | E45: 0 | F45: 0 | G45: 0 | H45: 0 | I45: 0 | J45: 0 | K45: 0 | L45: 0 | M45: 0 | N45: 0 | O45: 0 | P45: 0 | Q45: 0 | R45: 0 | S45: 0 | T45: 0 | U45: 0
A46: 3 | B46: Đất chưa sử dụng | C46: CSD | D46: 3021.53 | E46: 150.029 | F46: 3171.559 | G46: 17.228 | H46: 36.654 | I46: 30.858 | J46: 8.188 | K46: 21.33 | L46: 237.158 | M46: 29.868 | N46: 66.658 | O46: 7.96 | P46: 1838.027 | Q46: 581.871 | R46: 49.498 | S46: 26.03 | T46: 205.434 | U46: 14.781
A47: 4 | B47: Đất khu công nghệ cao* | C47: KCN
A48: 5 | B48: Đất khu kinh tế* | C48: KKT
A49: 6 | B49: Đất đô thị* | C49: KDT | F49: 330.6512 | G49: 330.6512
A50: II | B50: KHU CHỨC NĂNG*
A51: 1 | B51: Khu vực chuyên trồng lúa nước | C51: KVL
A52: 2 | B52: Khu vực chuyên trồng cây công nghiệp lâu năm | C52: KVN
A53: 3 | B53: Khu vực rừng phòng hộ | C53: KPH
A54: 4 | B54: Khu vực rừng đặc dụng | C54: KDD
A55: 5 | B55: Khu vực rừng sản xuất | C55: KSX
A56: 6 | B56: Khu vực công nghiệp, cụm công nghiệp | C56: KKN
A57: 7 | B57: Khu đô thị-thương mại - dịch vụ | C57: KDV
A58: 8 | B58: Khu du lịch | C58: KDL
A59: 9 | B59: Khu ở, làng nghề, sản xuất phi nông nghiệp nông thôn | C59: KON
B60: Ghi chú: * Không tổng hợp khi tính tổng diện tích tự nhiên

Sheet Biểu 07 CH
A1: Biểu 07/CH
C2: KẾ HOẠCH CHUYỂN MỤC ĐÍCH SỬ DỤNG ĐẤT NĂM 2020 CỦA HUYỆN QUẢNG NINH
R3: Đơn vị tính: ha
A4: STT | B4: Chỉ tiêu sử dụng đất | C4: Mã | D4: Tổng diện tích | E4: Diện tích phân theo đơn vị hành chính
E5: Thị trấn Quán Hàu | F5: Tân Ninh | G5: An Ninh | H5: Duy Ninh | I5: Gia Ninh | J5: Hải Ninh | K5: Hàm Ninh | L5: Hiền Ninh | M5: Lương Ninh | N5: Trường Sơn | O5: Trường Xuân | P5: Vạn Ninh | Q5: Vĩnh Ninh | R5: Võ Ninh | S5: Xuân Ninh
A6: -1 | B6: -2 | C6: -3 | D6: (4)=(5)+(6)+...(19) | E6: -5 | F6: -6 | G6: -7 | H6: -8 | I6: -9 | J6: -10 | K6: -11 | L6: -12 | M6: -13 | N6: -14 | O6: -15 | P6: -16 | Q6: -17 | R6: -18 | S6: -19
A7: 1 | B7: Đất nông nghiệp chuyển sang đất phi nông nghiệp | C7: NNP/PNN | D7: 1215.33 | E7: 35.32 | F7: 3.66 | G7: 6.09 | H7: 5.1 | I7: 12.25 | J7: 982.83 | K7: 2.27 | L7: 7.88 | M7: 25.95 | N7: 16.2 | O7: 29.19 | P7: 1.91 | Q7: 61.65 | R7: 58.09 | S7: 2.04
A8: 1.1 | B8: Đất lúa nước | C8: LUA/PNN | D8: 36.33 | E8: 4.92 | F8: 1.73 | G8: 2.38 | H8: 2.17 | I8: 0.95 | J8: 0 | K8: 0.7 | L8: 2.81 | M8: 10.08 | N8: 0 | O8: 0.11 | P8: 0 | Q8: 8.62 | R8: 1.26 | S8: 0.6
B9: Trong đó: Đất chuyên trồng lúa nước | C9: LUC/PNN | D9: 35.1 | E9: 4.52 | F9: 1.73 | G9: 2.38 | H9: 2.17 | I9: 0.95 | J9: 0 | K9: 0.7 | L9: 2.81 | M9: 10.08 | N9: 0 | O9: 0.11 | P9: 0 | Q9: 7.79 | R9: 1.26 | S9: 0.6
A10: 1.2 | B10: Đất trồng cây hàng năm khác | C10: HNK/PNN | D10: 38.12 | E10: 23.88 | F10: 0.2 | G10: 0.49 | H10: 0.41 | I10: 0.33 | J10: 0.01 | K10: 0.62 | L10: 0.3 | M10: 2.71 | N10: 0.3 | O10: 2.01 | P10: 0.6 | Q10: 2.45 | R10: 3.01 | S10: 0.8
A11: 1.3 | B11: Đất trồng cây lâu năm | C11: CLN/PNN | D11: 2.75 | E11: 0 | F11: 0 | G11: 0.02 | H11: 0.25 | I11: 0 | J11: 0 | K11: 0 | L11: 0 | M11: 0 | N11: 0.2 | O11: 1.55 | P11: 0.01 | Q11: 0 | R11: 0.72 | S11: 0
A12: 1.4 | B12: Đất rừng phòng hộ | C12: RPH/PNN | D12: 23.66 | E12: 0 | F12: 0 | G12: 0 | H12: 0 | I12: 0 | J12: 1.12 | K12: 0 | L12: 0 | M12: 0 | N12: 0 | O12: 13 | P12: 0 | Q12: 0 | R12: 9.54 | S12: 0
A13: 1.5 | B13: Đất rừng đặc dụng | C13: RDD/PNN | D13: 0 | E13: 0 | F13: 0 | G13: 0 | H13: 0 | I13: 0 | J13: 0 | K13: 0 | L13: 0 | M13: 0 | N13: 0 | O13: 0 | P13: 0 | Q13: 0 | R13: 0 | S13: 0
A14: 1.6 | B14: Đất rừng sản xuất | C14: RSX/PNN | D14: 1074.42 | E14: 0 | F14: 0 | G14: 0.4 | H14: 0 | I14: 10.02 | J14: 947.43 | K14: 0.25 | L14: 1.46 | M14: 2.03 | N14: 15.7 | O14: 12.41 | P14: 1.3 | Q14: 42.79 | R14: 40.59 | S14: 0.04
A15: 1.7 | B15: Đất nuôi trồng thuỷ sản | C15: NTS/PNN | D15: 40.05 | E15: 2 | F15: 0 | G15: 0.42 | H15: 0.1 | I15: 0 | J15: 34.27 | K15: 0 | L15: 0.5 | M15: 1.05 | N15: 0 | O15: 0 | P15: 0 | Q15: 0 | R15: 1.71 | S15: 0
A16: 1.8 | B16: Đất làm muối | C16: LMU/PNN | D16: 0 | E16: 0 | F16: 0 | G16: 0 | H16: 0 | I16: 0 | J16: 0 | K16: 0 | L16: 0 | M16: 0 | N16: 0 | O16: 0 | P16: 0 | Q16: 0 | R16: 0 | S16: 0
A17: 1.9 | B17: Đất nông nghiệp khác | C17: NKH/PNN | D17: 0 | E17: 0 | F17: 0 | G17: 0 | H17: 0 | I17: 0 | J17: 0 | K17: 0 | L17: 0 | M17: 0 | N17: 0 | O17: 0 | P17: 0 | Q17: 0 | R17: 0 | S17: 0
A18: 2 | B18: Chuyển đổi cơ cấu sử dụng đất trong nội bộ đất nông nghiệp | D18: 45.48 | E18: 0 | F18: 0 | G18: 0 | H18: 0 | I18: 21.85 | J18: 0 | K18: 4.84 | L18: 0 | M18: 0 | N18: 0 | O18: 12.55 | P18: 1.2 | Q18: 0 | R18: 5.04 | S18: 0
A19: 2.1 | B19: Đất chuyên trồng lúa chuyển sang đất trồng cây lâu năm | C19: LUA/CLN | D19: 0 | E19: 0 | F19: 0 | G19: 0 | H19: 0 | I19: 0 | J19: 0 | K19: 0 | L19: 0 | M19: 0 | N19: 0 | O19: 0 | P19: 0 | Q19: 0 | R19: 0 | S19: 0
A20: 2.2 | B20: Đất chuyên trồng lúa chuyển sang đất lâm nghiệp | C20: LUA/LNP | D20: 0 | E20: 0 | F20: 0 | G20: 0 | H20: 0 | I20: 0 | J20: 0 | K20: 0 | L20: 0 | M20: 0 | N20: 0 | O20: 0 | P20: 0 | Q20: 0 | R20: 0 | S20: 0
A21: 2.3 | B21: Đất chuyên trồng lúa chuyển sang đất nuôi trồng thuỷ sản | C21: LUA/NTS | D21: 0.25 | E21: 0 | F21: 0 | G21: 0 | H21: 0 | I21: 0.25 | J21: 0 | K21: 0 | L21: 0 | M21: 0 | N21: 0 | O21: 0 | P21: 0 | Q21: 0 | R21: 0 | S21: 0
A22: 2.4 | B22: Đất chuyên trồng lúa chuyển sang đất làm muối | C22: LUA/LMU | D22: 0 | E22: 0 | F22: 0 | G22: 0 | H22: 0 | I22: 0 | J22: 0 | K22: 0 | L22: 0 | M22: 0 | N22: 0 | O22: 0 | P22: 0 | Q22: 0 | R22: 0 | S22: 0
A23: 2.5 | B23: Đất trồng cây hàng năm khác chuyển sang đất nuôi trồng thủy sản | C23: HNK/NTS | D23: 0 | E23: 0 | F23: 0 | G23: 0 | H23: 0 | I23: 0 | J23: 0 | K23: 0 | L23: 0 | M23: 0 | N23: 0 | O23: 0 | P23: 0 | Q23: 0 | R23: 0 | S23: 0
A24: 2.6 | B24: Đất trồng cây hàng năm khác chuyển sang đất làm muối | C24: HNK/LMU | D24: 0 | E24: 0 | F24: 0 | G24: 0 | H24: 0 | I24: 0 | J24: 0 | K24: 0 | L24: 0 | M24: 0 | N24: 0 | O24: 0 | P24: 0 | Q24: 0 | R24: 0 | S24: 0
A25: 2.7 | B25: Đất rừng phòng hộ chuyển sang đất sản xuất nông nghiệp, đất nuôi trồng thủy sản, đất làm muối và đất nông nghiệp khác | C25: RPH/NKR(a) | D25: 0 | E25: 0 | F25: 0 | G25: 0 | H25: 0 | I25: 0 | J25: 0 | K25: 0 | L25: 0 | M25: 0 | N25: 0 | O25: 0 | P25: 0 | Q25: 0 | R25: 0 | S25: 0
A26: 2.8 | B26: Đất rừng đặc dụng chuyển sang đất sản xuất nông nghiệp, đất nuôi trồng thủy sản, đất làm muối và đất nông nghiệp khác | C26: RDD/NKR(a) | D26: 0 | E26: 0 | F26: 0 | G26: 0 | H26: 0 | I26: 0 | J26: 0 | K26: 0 | L26: 0 | M26: 0 | N26: 0 | O26: 0 | P26: 0 | Q26: 0 | R26: 0 | S26: 0
A27: 2.9 | B27: Đất rừng sản xuất chuyển sang đất sản xuất nông nghiệp, đất nuôi trồng thủy sản, đất làm muối và đất nông nghiệp khác | C27: RSX/NKR(a) | D27: 45.23 | E27: 0 | F27: 0 | G27: 0 | H27: 0 | I27: 21.6 | J27: 0 | K27: 4.84 | L27: 0 | M27: 0 | N27: 0 | O27: 12.55 | P27: 1.2 | Q27: 0 | R27: 5.04 | S27: 0
A28: 3 | B28: Đất phi nông nghiệp không phải là đất ở chuyển sang đất ở | C28: PKO/OTC | D28: 3.89 | E28: 0.96 | F28: 0.18 | G28: 0.13 | H28: 0.1 | I28: 0.06 | J28: 0.6 | K28: 0.23 | L28: 0 | M28: 0.1 | N28: 0 | O28: 0 | P28: 0.35 | Q28: 0.85 | R28: 0.33 | S28: 0
B29: Ghi chú: - (a) gồm đất sản xuất nông nghiệp, đất nuôi trồng thủy sản, đất làm muối và đất nông nghiệp khác. - PKO là đất phi nông nghiệp không phải là đất ở.

Sheet Biểu 08 CH
A1: Biểu 08/CH
A2: KẾ HOẠCH THU HỒI ĐẤT NĂM 2020 CỦA HUYỆN QUẢNG NINH
R3: Đơn vị tính: ha
A4: STT | B4: Chỉ tiêu sử dụng đất | C4: Mã | D4: Tổng diện tích | E4: Diện tích phân theo đơn vị hành chính
E5: Thị trấn Quán Hàu | F5: Tân Ninh | G5: An Ninh | H5: Duy Ninh | I5: Gia Ninh | J5: Hải Ninh | K5: Hàm Ninh | L5: Hiền Ninh | M5: Lương Ninh | N5: Trường Sơn | O5: Trường Xuân | P5: Vạn Ninh | Q5: Vĩnh Ninh | R5: Võ Ninh | S5: Xuân Ninh
A6: -1 | B6: -2 | C6: -3 | D6: (4)=(5)+(6)+...(19) | E6: -5 | F6: -6 | G6: -7 | H6: -8 | I6: -9 | J6: -10 | K6: -11 | L6: -12 | M6: -13 | N6: -14 | O6: -15 | P6: -16 | Q6: -17 | R6: -18 | S6: -19
A7: 1 | B7: Đất nông nghiệp | C7: NNP | D7: 932.44 | E7: 28.91 | F7: 1.93 | G7: 3.71 | H7: 2.93 | I7: 11.15 | J7: 718.87 | K7: 1.57 | L7: 5.07 | M7: 14.7 | N7: 16.2 | O7: 26.46 | P7: 1.78 | Q7: 53.86 | R7: 44.06 | S7: 1.24
A8: 1.1 | B8: Đất trồng lúa | C8: LUA | D8: 35.87 | E8: 4.92 | F8: 1.73 | G8: 2.38 | H8: 2.17 | I8: 0.8 | J8: 0 | K8: 0.7 | L8: 2.81 | M8: 9.77 | N8: 0 | O8: 0.11 | P8: 0 | Q8: 8.62 | R8: 1.26 | S8: 0.6
B9: Trong đó: Đất chuyên trồng lúa nước | C9: LUC | D9: 34.64 | E9: 4.52 | F9: 1.73 | G9: 2.38 | H9: 2.17 | I9: 0.8 | J9: 0 | K9: 0.7 | L9: 2.81 | M9: 9.77 | N9: 0 | O9: 0.11 | P9: 0 | Q9: 7.79 | R9: 1.26 | S9: 0.6
A10: Ẩn | B10: Đất trồng lúa nương | C10: LUN | D10: 0 | E10: 0 | F10: 0 | G10: 0 | H10: 0 | I10: 0 | J10: 0 | K10: 0 | L10: 0 | M10: 0 | N10: 0 | O10: 0 | P10: 0 | Q10: 0 | R10: 0 | S10: 0
A11: Ẩn | B11: Đất trồng lúa nước còn lại | C11: LUK | D11: 1.23 | E11: 0.4 | F11: 0 | G11: 0 | H11: 0 | I11: 0 | J11: 0 | K11: 0 | L11: 0 | M11: 0 | N11: 0 | O11: 0 | P11: 0 | Q11: 0.83 | R11: 0 | S11: 0
A12: 1.2 | B12: Đất trồng cây hàng năm khác | C12: HNK | D12: 32.5 | E12: 21.99 | F12: 0.2 | G12: 0.49 | H12: 0.41 | I12: 0.33 | J12: 0 | K12: 0.62 | L12: 0.3 | M12: 1.85 | N12: 0.3 | O12: 1.39 | P12: 0.47 | Q12: 2.45 | R12: 1.1 | S12: 0.6
A13: 1.3 | B13: Đất trồng cây lâu năm | C13: CLN | D13: 0.64 | E13: 0 | F13: 0 | G13: 0.02 | H13: 0.25 | I13: 0 | J13: 0 | K13: 0 | L13: 0 | M13: 0 | N13: 0.2 | O13: 0.05 | P13: 0.01 | Q13: 0 | R13: 0.11 | S13: 0
A14: 1.4 | B14: Đất rừng phòng hộ | C14: RPH | D14: 23.66 | E14: 0 | F14: 0 | G14: 0 | H14: 0 | I14: 0 | J14: 1.12 | K14: 0 | L14: 0 | M14: 0 | N14: 0 | O14: 13 | P14: 0 | Q14: 0 | R14: 9.54 | S14: 0
A15: 1.5 | B15: Đất rừng đặc dụng | C15: RDD | D15: 0 | E15: 0 | F15: 0 | G15: 0 | H15: 0 | I15: 0 | J15: 0 | K15: 0 | L15: 0 | M15: 0 | N15: 0 | O15: 0 | P15: 0 | Q15: 0 | R15: 0 | S15: 0
A16: 1.6 | B16: Đất rừng sản xuất | C16: RSX | D16: 824.94 | E16: 0 | F16: 0 | G16: 0.4 | H16: 0 | I16: 10.02 | J16: 707.45 | K16: 0.25 | L16: 1.46 | M16: 2.03 | N16: 15.7 | O16: 11.91 | P16: 1.3 | Q16: 42.79 | R16: 31.59 | S16: 0.04
A17: 1.7 | B17: Đất nuôi trồng thuỷ sản | C17: NTS | D17: 14.83 | E17: 2 | F17: 0 | G17: 0.42 | H17: 0.1 | I17: 0 | J17: 10.3 | K17: 0 | L17: 0.5 | M17: 1.05 | N17: 0 | O17: 0 | P17: 0 | Q17: 0 | R17: 0.46 | S17: 0
A18: 1.8 | B18: Đất làm muối | C18: LMU | D18: 0 | E18: 0 | F18: 0 | G18: 0 | H18: 0 | I18: 0 | J18: 0 | K18: 0 | L18: 0 | M18: 0 | N18: 0 | O18: 0 | P18: 0 | Q18: 0 | R18: 0 | S18: 0
A19: 1.9 | B19: Đất nông nghiệp khác | C19: NKH | D19: 0 | E19: 0 | F19: 0 | G19: 0 | H19: 0 | I19: 0 | J19: 0 | K19: 0 | L19: 0 | M19: 0 | N19: 0 | O19: 0 | P19: 0 | Q19: 0 | R19: 0 | S19: 0
A20: 2 | B20: Đất phi nông nghiệp | C20: PNN | D20: 16.18 | E20: 1.67 | F20: 0.43 | G20: 0.58 | H20: 0.22 | I20: 0.07 | J20: 9.44 | K20: 0.31 | L20: 0.28 | M20: 0.66 | N20: 0 | O20: 0.23 | P20: 0.37 | Q20: 1.15 | R20: 0.51 | S20: 0.26
A21: 2.1 | B21: Đất quốc phòng | C21: CQP | D21: 0 | E21: 0 | F21: 0 | G21: 0 | H21: 0 | I21: 0 | J21: 0 | K21: 0 | L21: 0 | M21: 0 | N21: 0 | O21: 0 | P21: 0 | Q21: 0 | R21: 0 | S21: 0
A22: 2.2 | B22: Đất an ninh | C22: CAN | D22: 0 | E22: 0 | F22: 0 | G22: 0 | H22: 0 | I22: 0 | J22: 0 | K22: 0 | L22: 0 | M22: 0 | N22: 0 | O22: 0 | P22: 0 | Q22: 0 | R22: 0 | S22: 0
A23: 2.3 | B23: Đất khu công nghiệp | C23: SKK | D23: 0 | E23: 0 | F23: 0 | G23: 0 | H23: 0 | I23: 0 | J23: 0 | K23: 0 | L23: 0 | M23: 0 | N23: 0 | O23: 0 | P23: 0 | Q23: 0 | R23: 0 | S23: 0
A24: 2.4 | B24: Đất khu chế xuất | C24: SKT | D24: 0 | E24: 0 | F24: 0 | G24: 0 | H24: 0 | I24: 0 | J24: 0 | K24: 0 | L24: 0 | M24: 0 | N24: 0 | O24: 0 | P24: 0 | Q24: 0 | R24: 0 | S24: 0
A25: 2.5 | B25: Đất cụm công nghiệp | C25: SKN | D25: 0 | E25: 0 | F25: 0 | G25: 0 | H25: 0 | I25: 0 | J25: 0 | K25: 0 | L25: 0 | M25: 0 | N25: 0 | O25: 0 | P25: 0 | Q25: 0 | R25: 0 | S25: 0
A26: 2.6 | B26: Đất thương mại dịch vụ | C26: TMD | D26: 0 | E26: 0 | F26: 0 | G26: 0 | H26: 0 | I26: 0 | J26: 0 | K26: 0 | L26: 0 | M26: 0 | N26: 0 | O26: 0 | P26: 0 | Q26: 0 | R26: 0 | S26: 0
A27: 2.7 | B27: Đất cơ sở sản xuất phi nông nghiệp | C27: SKC | D27: 0.1 | E27: 0.1 | F27: 0 | G27: 0 | H27: 0 | I27: 0 | J27: 0 | K27: 0 | L27: 0 | M27: 0 | N27: 0 | O27: 0 | P27: 0 | Q27: 0 | R27: 0 | S27: 0
A28: 2.8 | B28: Đất sử dụng cho hoạt động khoáng sản | C28: SKS | D28: 0 | E28: 0 | F28: 0 | G28: 0 | H28: 0 | I28: 0 | J28: 0 | K28: 0 | L28: 0 | M28: 0 | N28: 0 | O28: 0 | P28: 0 | Q28: 0 | R28: 0 | S28: 0
A29: 2.9 | B29: Đất phát triển hạ tầng cấp quốc gia, cấp tỉnh, cấp huyện, cấp xã | C29: DHT | D29: 15.12 | E29: 0.94 | F29: 0.43 | G29: 0.58 | H29: 0.21 | I29: 0.03 | J29: 9.42 | K29: 0.31 | L29: 0.28 | M29: 0.65 | N29: 0 | O29: 0.06 | P29: 0.37 | Q29: 1.15 | R29: 0.43 | S29: 0.26
A30: Ẩn | B30: Đất xây dựng cơ sở văn hóa | C30: DVH | D30: 0 | E30: 0 | F30: 0 | G30: 0 | H30: 0 | I30: 0 | J30: 0 | K30: 0 | L30: 0 | M30: 0 | N30: 0 | O30: 0 | P30: 0 | Q30: 0 | R30: 0 | S30: 0
A31: Ẩn | B31: Đất xây dựng cơ sở dịch vụ xã hội | C31: DXH | D31: 0 | E31: 0 | F31: 0 | G31: 0 | H31: 0 | I31: 0 | J31: 0 | K31: 0 | L31: 0 | M31: 0 | N31: 0 | O31: 0 | P31: 0 | Q31: 0 | R31: 0 | S31: 0
A32: Ẩn | B32: Đất xây dựng cơ sở y tế | C32: DYT | D32: 0 | E32: 0 | F32: 0 | G32: 0 | H32: 0 | I32: 0 | J32: 0 | K32: 0 | L32: 0 | M32: 0 | N32: 0 | O32: 0 | P32: 0 | Q32: 0 | R32: 0 | S32: 0
A33: Ẩn | B33: Đất xây dựng cơ sở giáo dục và đào tạo | C33: DGD | D33: 0.45 | E33: 0 | F33: 0 | G33: 0.13 | H33: 0 | I33: 0 | J33: 0 | K33: 0.05 | L33: 0 | M33: 0 | N33: 0 | O33: 0 | P33: 0.27 | Q33: 0 | R33: 0 | S33: 0
A34: Ẩn | B34: Đất xây dựng cơ sở thể dục thể thao | C34: DTT | D34: 0.15 | E34: 0 | F34: 0 | G34: 0 | H34: 0 | I34: 0 | J34: 0 | K34: 0.15 | L34: 0 | M34: 0 | N34: 0 | O34: 0 | P34: 0 | Q34: 0 | R34: 0 | S34: 0
A35: Ẩn | B35: Đất xây dựng cơ sở khoa học và công nghệ | C35: DKH | D35: 0 | E35: 0 | F35: 0 | G35: 0 | H35: 0 | I35: 0 | J35: 0 | K35: 0 | L35: 0 | M35: 0 | N35: 0 | O35: 0 | P35: 0 | Q35: 0 | R35: 0 | S35: 0
A36: Ẩn | B36: Đất giao thông | C36: DGT | D36: 12.31 | E36: 0.82 | F36: 0.03 | G36: 0 | H36: 0.11 | I36: 0.02 | J36: 9.42 | K36: 0.11 | L36: 0.01 | M36: 0.29 | N36: 0 | O36: 0.06 | P36: 0.09 | Q36: 1.02 | R36: 0.33 | S36: 0
A37: Ẩn | B37: Đất thủy lợi | C37: DTL | D37: 2.21 | E37: 0.12 | F37: 0.4 | G37: 0.45 | H37: 0.1 | I37: 0.01 | J37: 0 | K37: 0 | L37: 0.27 | M37: 0.36 | N37: 0 | O37: 0 | P37: 0.01 | Q37: 0.13 | R37: 0.1 | S37: 0.26
A38: Ẩn | B38: Đất công trình năng lượng | C38: DNL | D38: 0 | E38: 0 | F38: 0 | G38: 0 | H38: 0 | I38: 0 | J38: 0 | K38: 0 | L38: 0 | M38: 0 | N38: 0 | O38: 0 | P38: 0 | Q38: 0 | R38: 0 | S38: 0
A39: Ẩn | B39: Đất công trình bưu chính viễn thông | C39: DBV | D39: 0 | E39: 0 | F39: 0 | G39: 0 | H39: 0 | I39: 0 | J39: 0 | K39: 0 | L39: 0 | M39: 0 | N39: 0 | O39: 0 | P39: 0 | Q39: 0 | R39: 0 | S39: 0
A40: Ẩn | B40: Đất chợ | C40: DCH | D40: 0 | E40: 0 | F40: 0 | G40: 0 | H40: 0 | I40: 0 | J40: 0 | K40: 0 | L40: 0 | M40: 0 | N40: 0 | O40: 0 | P40: 0 | Q40: 0 | R40: 0 | S40: 0
A41: 2.10 | B41: Đất có di tích lịch sử - văn hóa | C41: DDT | D41: 0 | E41: 0 | F41: 0 | G41: 0 | H41: 0 | I41: 0 | J41: 0 | K41: 0 | L41: 0 | M41: 0 | N41: 0 | O41: 0 | P41: 0 | Q41: 0 | R41: 0 | S41: 0
A42: 2.11 | B42: Đất danh lam thắng cảnh | C42: DDL | D42: 0 | E42: 0 | F42: 0 | G42: 0 | H42: 0 | I42: 0 | J42: 0 | K42: 0 | L42: 0 | M42: 0 | N42: 0 | O42: 0 | P42: 0 | Q42: 0 | R42: 0 | S42: 0
A43: 2.12 | B43: Đất bải thải, xử lý chất thải | C43: DRA | D43: 0 | E43: 0 | F43: 0 | G43: 0 | H43: 0 | I43: 0 | J43: 0 | K43: 0 | L43: 0 | M43: 0 | N43: 0 | O43: 0 | P43: 0 | Q43: 0 | R43: 0 | S43: 0
A44: 2.13 | B44: Đất ở tại nông thôn | C44: ONT | D44: 0.29 | E44: 0 | F44: 0 | G44: 0 | H44: 0.01 | I44: 0.03 | J44: 0 | K44: 0 | L44: 0 | M44: 0.01 | N44: 0 | O44: 0.16 | P44: 0 | Q44: 0 | R44: 0.08 | S44: 0
A45: 2.14 | B45: Đất ở tại đô thị | C45: ODT | D45: 0 | E45: 0 | F45: 0 | G45: 0 | H45: 0 | I45: 0 | J45: 0 | K45: 0 | L45: 0 | M45: 0 | N45: 0 | O45: 0 | P45: 0 | Q45: 0 | R45: 0 | S45: 0
A46: 2.15 | B46: Đất xây dựng trụ sở cơ quan | C46: TSC | D46: 0 | E46: 0 | F46: 0 | G46: 0 | H46: 0 | I46: 0 | J46: 0 | K46: 0 | L46: 0 | M46: 0 | N46: 0 | O46: 0 | P46: 0 | Q46: 0 | R46: 0 | S46: 0
A47: 2.16 | B47: Đất xây dựng trụ sở của tổ chức sự nghiệp | C47: DTS | D47: 0 | E47: 0 | F47: 0 | G47: 0 | H47: 0 | I47: 0 | J47: 0 | K47: 0 | L47: 0 | M47: 0 | N47: 0 | O47: 0 | P47: 0 | Q47: 0 | R47: 0 | S47: 0
A48: 2.17 | B48: Đất xây dựng cơ sở ngoại giao | C48: DNG | D48: 0 | E48: 0 | F48: 0 | G48: 0 | H48: 0 | I48: 0 | J48: 0 | K48: 0 | L48: 0 | M48: 0 | N48: 0 | O48: 0 | P48: 0 | Q48: 0 | R48: 0 | S48: 0
A49: 2.18 | B49: Đất cơ sở tôn giáo | C49: TON | D49: 0 | E49: 0 | F49: 0 | G49: 0 | H49: 0 | I49: 0 | J49: 0 | K49: 0 | L49: 0 | M49: 0 | N49: 0 | O49: 0 | P49: 0 | Q49: 0 | R49: 0 | S49: 0
A50: 2.19 | B50: Đất làm nghĩa trang, nghĩa địa, nhà tang lễ, nhà hỏa táng | C50: NTD | D50: 0.67 | E50: 0.63 | F50: 0 | G50: 0 | H50: 0 | I50: 0.01 | J50: 0.02 | K50: 0 | L50: 0 | M50: 0 | N50: 0 | O50: 0.01 | P50: 0 | Q50: 0 | R50: 0 | S50: 0
A51: 2.20 | B51: Đất sản xuất vật liệu xây dựng, làm đồ gốm | C51: SKX | D51: 0 | E51: 0 | F51: 0 | G51: 0 | H51: 0 | I51: 0 | J51: 0 | K51: 0 | L51: 0 | M51: 0 | N51: 0 | O51: 0 | P51: 0 | Q51: 0 | R51: 0 | S51: 0
A52: 2.21 | B52: Đất sinh hoạt cộng đồng | C52: DSH | D52: 0 | E52: 0 | F52: 0 | G52: 0 | H52: 0 | I52: 0 | J52: 0 | K52: 0 | L52: 0 | M52: 0 | N52: 0 | O52: 0 | P52: 0 | Q52: 0 | R52: 0 | S52: 0
A53: 2.22 | B53: Đất khu vui chơi giải trí công cộng | C53: DKV | D53: 0 | E53: 0 | F53: 0 | G53: 0 | H53: 0 | I53: 0 | J53: 0 | K53: 0 | L53: 0 | M53: 0 | N53: 0 | O53: 0 | P53: 0 | Q53: 0 | R53: 0 | S53: 0
A54: 2.23 | B54: Đất cơ sở tín ngưỡng | C54: TIN | D54: 0 | E54: 0 | F54: 0 | G54: 0 | H54: 0 | I54: 0 | J54: 0 | K54: 0 | L54: 0 | M54: 0 | N54: 0 | O54: 0 | P54: 0 | Q54: 0 | R54: 0 | S54: 0
A55: 2.24 | B55: Đất sông, ngòi, kênh, rạch, suối | C55: SON | D55: 0 | E55: 0 | F55: 0 | G55: 0 | H55: 0 | I55: 0 | J55: 0 | K55: 0 | L55: 0 | M55: 0 | N55: 0 | O55: 0 | P55: 0 | Q55: 0 | R55: 0 | S55: 0
A56: 2.25 | B56: Đất có mặt nước chuyên dùng | C56: MNC | D56: 0 | E56: 0 | F56: 0 | G56: 0 | H56: 0 | I56: 0 | J56: 0 | K56: 0 | L56: 0 | M56: 0 | N56: 0 | O56: 0 | P56: 0 | Q56: 0 | R56: 0 | S56: 0
A57: 2.26 | B57: Đất phi nông nghiệp khác | C57: PNK | D57: 0 | E57: 0 | F57: 0 | G57: 0 | H57: 0 | I57: 0 | J57: 0 | K57: 0 | L57: 0 | M57: 0 | N57: 0 | O57: 0 | P57: 0 | Q57: 0 | R57: 0 | S57: 0

Sheet Biểu 09 CH
A1: Biểu 09/CH
A2: KẾ HOẠCH ĐƯA ĐẤT CHƯA SỬ DỤNG VÀO SỬ DỤNG NĂM 2020 CỦA HUYỆN QUẢNG NINH
R3: Đơn vị tính: ha
A4: STT | B4: Chỉ tiêu sử dụng đất | C4: Mã | D4: Tổng diện tích | E4: Diện tích phân theo đơn vị hành chính
E5: Thị trấn Quán Hàu | F5: Tân Ninh | G5: An Ninh | H5: Duy Ninh | I5: Gia Ninh | J5: Hải Ninh | K5: Hàm Ninh | L5: Hiền Ninh | M5: Lương Ninh | N5: Trường Sơn | O5: Trường Xuân | P5: Vạn Ninh | Q5: Vĩnh Ninh | R5: Võ Ninh | S5: Xuân Ninh
A6: -1 | B6: -2 | C6: -3 | D6: (4)=(5)+(6)+...(19) | E6: -5 | F6: -6 | G6: -7 | H6: -8 | I6: -9 | J6: -10 | K6: -11 | L6: -12 | M6: -13 | N6: -14 | O6: -15 | P6: -16 | Q6: -17 | R6: -18 | S6: -19
A7: 1 | B7: Đất nông nghiệp | C7: NNP | D7: 13.04 | E7: 0 | F7: 0 | G7: 0 | H7: 0 | I7: 0 | J7: 0 | K7: 9.24 | L7: 0 | M7: 0 | N7: 0 | O7: 1.8 | P7: 2 | Q7: 0 | R7: 0 | S7: 0
A8: 1.1 | B8: Đất trồng lúa | C8: LUA | D8: 0 | E8: 0 | F8: 0 | G8: 0 | H8: 0 | I8: 0 | J8: 0 | K8: 0 | L8: 0 | M8: 0 | N8: 0 | O8: 0 | P8: 0 | Q8: 0 | R8: 0 | S8: 0
B9: Trong đó: Đất chuyên trồng lúa nước | C9: LUC | D9: 0 | E9: 0 | F9: 0 | G9: 0 | H9: 0 | I9: 0 | J9: 0 | K9: 0 | L9: 0 | M9: 0 | N9: 0 | O9: 0 | P9: 0 | Q9: 0 | R9: 0 | S9: 0
A10: 1.2 | B10: Đất trồng cây hàng năm khác | C10: HNK | D10: 0 | E10: 0 | F10: 0 | G10: 0 | H10: 0 | I10: 0 | J10: 0 | K10: 0 | L10: 0 | M10: 0 | N10: 0 | O10: 0 | P10: 0 | Q10: 0 | R10: 0 | S10: 0
A11: 1.3 | B11: Đất trồng cây lâu năm | C11: CLN | D11: 0 | E11: 0 | F11: 0 | G11: 0 | H11: 0 | I11: 0 | J11: 0 | K11: 0 | L11: 0 | M11: 0 | N11: 0 | O11: 0 | P11: 0 | Q11: 0 | R11: 0 | S11: 0
A12: 1.4 | B12: Đất rừng phòng hộ | C12: RPH | D12: 0 | E12: 0 | F12: 0 | G12: 0 | H12: 0 | I12: 0 | J12: 0 | K12: 0 | L12: 0 | M12: 0 | N12: 0 | O12: 0 | P12: 0 | Q12: 0 | R12: 0 | S12: 0
A13: 1.5 | B13: Đất rừng đặc dụng | C13: RDD | D13: 0 | E13: 0 | F13: 0 | G13: 0 | H13: 0 | I13: 0 | J13: 0 | K13: 0 | L13: 0 | M13: 0 | N13: 0 | O13: 0 | P13: 0 | Q13: 0 | R13: 0 | S13: 0
A14: 1.6 | B14: Đất rừng sản xuất | C14: RSX | D14: 0 | E14: 0 | F14: 0 | G14: 0 | H14: 0 | I14: 0 | J14: 0 | K14: 0 | L14: 0 | M14: 0 | N14: 0 | O14: 0 | P14: 0 | Q14: 0 | R14: 0 | S14: 0
A15: 1.7 | B15: Đất nuôi trồng thuỷ sản | C15: NTS | D15: 0 | E15: 0 | F15: 0 | G15: 0 | H15: 0 | I15: 0 | J15: 0 | K15: 0 | L15: 0 | M15: 0 | N15: 0 | O15: 0 | P15: 0 | Q15: 0 | R15: 0 | S15: 0
A16: 1.8 | B16: Đất làm muối | C16: LMU | D16: 0 | E16: 0 | F16: 0 | G16: 0 | H16: 0 | I16: 0 | J16: 0 | K16: 0 | L16: 0 | M16: 0 | N16: 0 | O16: 0 | P16: 0 | Q16: 0 | R16: 0 | S16: 0
A17: 1.9 | B17: Đất nông nghiệp khác | C17: NKH | D17: 13.04 | E17: 0 | F17: 0 | G17: 0 | H17: 0 | I17: 0 | J17: 0 | K17: 9.24 | L17: 0 | M17: 0 | N17: 0 | O17: 1.8 | P17: 2 | Q17: 0 | R17: 0 | S17: 0
A18: 2 | B18: Đất phi nông nghiệp | C18: PNN | D18: 38.24 | E18: 1.48 | F18: 0.03 | G18: 0.23 | H18: 0.09 | I18: 0.12 | J18: 27.32 | K18: 0.07 | L18: 0.02 | M18: 1.75 | N18: 0.7 | O18: 0.38 | P18: 3.32 | Q18: 0 | R18: 2.71 | S18: 0.02
A19: 2.1 | B19: Đất quốc phòng | C19: CQP | D19: 2.7 | E19: 0 | F19: 0 | G19: 0 | H19: 0 | I19: 0 | J19: 2.7 | K19: 0 | L19: 0 | M19: 0 | N19: 0 | O19: 0 | P19: 0 | Q19: 0 | R19: 0 | S19: 0
A20: 2.2 | B20: Đất an ninh | C20: CAN | D20: 0.2 | E20: 0 | F20: 0 | G20: 0 | H20: 0 | I20: 0 | J20: 0.2 | K20: 0 | L20: 0 | M20: 0 | N20: 0 | O20: 0 | P20: 0 | Q20: 0 | R20: 0 | S20: 0
A21: 2.3 | B21: Đất khu công nghiệp | C21: SKK | D21: 1 | E21: 0 | F21: 0 | G21: 0 | H21: 0 | I21: 0 | J21: 0 | K21: 0 | L21: 0 | M21: 1 | N21: 0 | O21: 0 | P21: 0 | Q21: 0 | R21: 0 | S21: 0
A22: 2.4 | B22: Đất khu chế xuất | C22: SKT | D22: 0 | E22: 0 | F22: 0 | G22: 0 | H22: 0 | I22: 0 | J22: 0 | K22: 0 | L22: 0 | M22: 0 | N22: 0 | O22: 0 | P22: 0 | Q22: 0 | R22: 0 | S22: 0
A23: 2.5 | B23: Đất cụm công nghiệp | C23: SKN | D23: 0 | E23: 0 | F23: 0 | G23: 0 | H23: 0 | I23: 0 | J23: 0 | K23: 0 | L23: 0 | M23: 0 | N23: 0 | O23: 0 | P23: 0 | Q23: 0 | R23: 0 | S23: 0
A24: 2.6 | B24: Đất thương mại dịch vụ | C24: TMD | D24: 18.08 | E24: 0 | F24: 0 | G24: 0 | H24: 0 | I24: 0 | J24: 17.28 | K24: 0 | L24: 0 | M24: 0 | N24: 0 | O24: 0 | P24: 0.8 | Q24: 0 | R24: 0 | S24: 0
A25: 2.7 | B25: Đất cơ sở sản xuất phi nông nghiệp | C25: SKC | D25: 0 | E25: 0 | F25: 0 | G25: 0 | H25: 0 | I25: 0 | J25: 0 | K25: 0 | L25: 0 | M25: 0 | N25: 0 | O25: 0 | P25: 0 | Q25: 0 | R25: 0 | S25: 0
A26: 2.8 | B26: Đất sử dụng cho hoạt động khoáng sản | C26: SKS | D26: 0 | E26: 0 | F26: 0 | G26: 0 | H26: 0 | I26: 0 | J26: 0 | K26: 0 | L26: 0 | M26: 0 | N26: 0 | O26: 0 | P26: 0 | Q26: 0 | R26: 0 | S26: 0
A27: 2.9 | B27: Đất phát triển hạ tầng cấp quốc gia, cấp tỉnh, cấp huyện, cấp xã | C27: DHT | D27: 10.06 | E27: 1.03 | F27: 0.02 | G27: 0 | H27: 0.02 | I27: 0.02 | J27: 6.94 | K27: 0 | L27: 0.02 | M27: 0.55 | N27: 0.5 | O27: 0.01 | P27: 0.81 | Q27: 0 | R27: 0.12 | S27: 0.02
A28: 2.10 | B28: Đất có di tích lịch sử - văn hóa | C28: DDT | D28: 0 | E28: 0 | F28: 0 | G28: 0 | H28: 0 | I28: 0 | J28: 0 | K28: 0 | L28: 0 | M28: 0 | N28: 0 | O28: 0 | P28: 0 | Q28: 0 | R28: 0 | S28: 0
A29: 2.11 | B29: Đất danh lam thắng cảnh | C29: DDL | D29: 0 | E29: 0 | F29: 0 | G29: 0 | H29: 0 | I29: 0 | J29: 0 | K29: 0 | L29: 0 | M29: 0 | N29: 0 | O29: 0 | P29: 0 | Q29: 0 | R29: 0 | S29: 0
A30: 2.12 | B30: Đất bải thải, xử lý chất thải | C30: DRA | D30: 0 | E30: 0 | F30: 0 | G30: 0 | H30: 0 | I30: 0 | J30: 0 | K30: 0 | L30: 0 | M30: 0 | N30: 0 | O30: 0 | P30: 0 | Q30: 0 | R30: 0 | S30: 0
A31: 2.13 | B31: Đất ở tại nông thôn | C31: ONT | D31: 5.75 | E31: 0 | F31: 0.01 | G31: 0.23 | H31: 0.07 | I31: 0.1 | J31: 0.2 | K31: 0.07 | L31: 0 | M31: 0.2 | N31: 0.2 | O31: 0.37 | P31: 1.71 | Q31: 0 | R31: 2.59 | S31: 0
A32: 2.14 | B32: Đất ở tại đô thị | C32: ODT | D32: 0.45 | E32: 0.45 | F32: 0 | G32: 0 | H32: 0 | I32: 0 | J32: 0 | K32: 0 | L32: 0 | M32: 0 | N32: 0 | O32: 0 | P32: 0 | Q32: 0 | R32: 0 | S32: 0
A33: 2.15 | B33: Đất xây dựng trụ sở cơ quan | C33: TSC | D33: 0 | E33: 0 | F33: 0 | G33: 0 | H33: 0 | I33: 0 | J33: 0 | K33: 0 | L33: 0 | M33: 0 | N33: 0 | O33: 0 | P33: 0 | Q33: 0 | R33: 0 | S33: 0
A34: 2.16 | B34: Đất xây dựng trụ sở của tổ chức sự nghiệp | C34: DTS | D34: 0 | E34: 0 | F34: 0 | G34: 0 | H34: 0 | I34: 0 | J34: 0 | K34: 0 | L34: 0 | M34: 0 | N34: 0 | O34: 0 | P34: 0 | Q34: 0 | R34: 0 | S34: 0
A35: 2.17 | B35: Đất xây dựng cơ sở ngoại giao | C35: DNG | D35: 0 | E35: 0 | F35: 0 | G35: 0 | H35: 0 | I35: 0 | J35: 0 | K35: 0 | L35: 0 | M35: 0 | N35: 0 | O35: 0 | P35: 0 | Q35: 0 | R35: 0 | S35: 0
A36: 2.18 | B36: Đất cơ sở tôn giáo | C36: TON | D36: 0 | E36: 0 | F36: 0 | G36: 0 | H36: 0 | I36: 0 | J36: 0 | K36: 0 | L36: 0 | M36: 0 | N36: 0 | O36: 0 | P36: 0 | Q36: 0 | R36: 0 | S36: 0
A37: 2.19 | B37: Đất làm nghĩa trang, nghĩa địa, nhà tang lễ, nhà hỏa táng | C37: NTD | D37: 0 | E37: 0 | F37: 0 | G37: 0 | H37: 0 | I37: 0 | J37: 0 | K37: 0 | L37: 0 | M37: 0 | N37: 0 | O37: 0 | P37: 0 | Q37: 0 | R37: 0 | S37: 0
A38: 2.20 | B38: Đất sản xuất vật liệu xây dựng, làm đồ gốm | C38: SKX | D38: 0 | E38: 0 | F38: 0 | G38: 0 | H38: 0 | I38: 0 | J38: 0 | K38: 0 | L38: 0 | M38: 0 | N38: 0 | O38: 0 | P38: 0 | Q38: 0 | R38: 0 | S38: 0
A39: 2.21 | B39: Đất sinh hoạt cộng đồng | C39: DSH | D39: 0 | E39: 0 | F39: 0 | G39: 0 | H39: 0 | I39: 0 | J39: 0 | K39: 0 | L39: 0 | M39: 0 | N39: 0 | O39: 0 | P39: 0 | Q39: 0 | R39: 0 | S39: 0
A40: 2.22 | B40: Đất khu vui chơi giải trí công cộng | C40: DKV | D40: 0 | E40: 0 | F40: 0 | G40: 0 | H40: 0 | I40: 0 | J40: 0 | K40: 0 | L40: 0 | M40: 0 | N40: 0 | O40: 0 | P40: 0 | Q40: 0 | R40: 0 | S40: 0
A41: 2.23 | B41: Đất cơ sở tín ngưỡng | C41: TIN | D41: 0 | E41: 0 | F41: 0 | G41: 0 | H41: 0 | I41: 0 | J41: 0 | K41: 0 | L41: 0 | M41: 0 | N41: 0 | O41: 0 | P41: 0 | Q41: 0 | R41: 0 | S41: 0
A42: 2.24 | B42: Đất sông, ngòi, kênh, rạch, suối | C42: SON | D42: 0 | E42: 0 | F42: 0 | G42: 0 | H42: 0 | I42: 0 | J42: 0 | K42: 0 | L42: 0 | M42: 0 | N42: 0 | O42: 0 | P42: 0 | Q42: 0 | R42: 0 | S42: 0
A43: 2.25 | B43: Đất có mặt nước chuyên dùng | C43: MNC | D43: 0 | E43: 0 | F43: 0 | G43: 0 | H43: 0 | I43: 0 | J43: 0 | K43: 0 | L43: 0 | M43: 0 | N43: 0 | O43: 0 | P43: 0 | Q43: 0 | R43: 0 | S43: 0
A44: 2.26 | B44: Đất phi nông nghiệp khác | C44: PNK | D44: 0 | E44: 0 | F44: 0 | G44: 0 | H44: 0 | I44: 0 | J44: 0 | K44: 0 | L44: 0 | M44: 0 | N44: 0 | O44: 0 | P44: 0 | Q44: 0 | R44: 0 | S44: 0

Sheet Biểu 13CH
A1: Biểu 13/CH | B1: Biểu 13/CH | C1: CHU CHUYỂN ĐẤT ĐAI TRONG KẾ HOẠCH SỬ DỤNG ĐẤT NĂM 2020 CỦA HUYỆN QUẢNG NINH
BJ2: Đơn vị tính: ha
A3: STT | B3: Chỉ tiêu sử dụng đất | C3: Mã | D3: Diện tích đầu kỳ, năm 2019 | E3: Chu chuyển đất đai trong năm kế hoạch 2020 | BJ3: Cộng giảm | BK3: Tăng (+) Giảm (-) | BL3: Diện tích cuối kỳ năm 2020 | BM3: Kiểm tra | BN3: so sanh % | BP3: 0.6683403989
E4: NNP | F4: LUA | G4: LUC | H4: LUN | I4: LUK | J4: HNK | K4: CLN | L4: RPH | M4: RDD | N4: RSX | O4: NTS | P4: LMU | Q4: NKH | R4: PNN | S4: CQP | T4: CAN | U4: SKK | V4: SKT | W4: SKN | X4: TMD | Y4: SKC | Z4: SKS | AA4: DHT | AB4: DVH | AC4: DXH | AD4: DYT | AE4: DGD | AF4: DTT | AG4: DKH | AH4: DGT | AI4: DTL | AJ4: DNL | AK4: DBV | AL4: DCH | AM4: DDT | AN4: DDL | AO4: DRA | AP4: DCK | AQ4: ONT | AR4: ODT | AS4: TSC | AT4: DTS | AU4: DNG | AV4: DSK | AW4: TON | AX4: NTD | AY4: SKX | AZ4: DSH | BA4: DKV | BB4: TIN | BC4: SON | BD4: MNC | BE4: PNK | BF4: CSD | BG4: BCS | BH4: DCS | BI4: NCS
A5: I | B5: TỔNG DIỆN TÍCH ĐẤT TỰ NHIÊN | D5: 119418.1889 | E5: 107436.3217 | F5: 5295.2475 | G5: 4970.2285 | H5: 0 | I5: 325.019 | J5: 2306.264 | K5: 628.844 | L5: 53648.265 | M5: 0 | N5: 44955.4829 | O5: 460.8645 | P5: 0 | Q5: 141.3538 | R5: 8810.3082 | S5: 191.5152 | T5: 1.917 | U5: 41.9302 | V5: 0 | W5: 0 | X5: 815.474 | Y5: 55.901 | Z5: 0 | AA5: 3584.5582 | AB5: 1.985 | AC5: 0 | AD5: 4.6694 | AE5: 66.7356 | AF5: 279.6686 | AG5: 0 | AH5: 1604.6841 | AI5: 1453.0733 | AJ5: 160.1236 | AK5: 5.2278 | AL5: 8.3908 | AM5: 139.022 | AN5: 0 | AO5: 5.2604 | AP5: 0 | AQ5: 697.5793 | AR5: 41.84 | AS5: 12.6456 | AT5: 2.181 | AU5: 0 | AV5: 0 | AW5: 1.86 | AX5: 335.6423 | AY5: 142.5874 | AZ5: 18.7322 | BA5: 450.254 | BB5: 6.167 | BC5: 2141.7572 | BD5: 123.4842 | BE5: 0 | BF5: 3171.559 | BG5: 806.831 | BH5: 2323.91 | BI5: 40.818 | BJ5: 1266.95 | BK5: -1.000444172e-11 | BL5: 119418.1889 | BM5: sai | BN5: noi bo | BO5: 1.000444172e-11 | BP5: tu nhien
A6: 1 | B6: Đất nông nghiệp | C6: NNP | D6: 108638.2717 | E6: 107422.9417 | F6: 5295.2475 | G6: 4970.2285 | H6: 0 | I6: 325.019 | J6: 2306.264 | K6: 628.844 | L6: 53648.265 | M6: 0 | N6: 44955.4829 | O6: 460.8645 | P6: 0 | Q6: 127.9738 | R6: 1215.33 | S6: 52 | T6: 0 | U6: 19 | V6: 0 | W6: 0 | X6: 273.27 | Y6: 2.12 | Z6: 0 | AA6: 315.7 | AB6: 0.07 | AC6: 0 | AD6: 0 | AE6: 0.97 | AF6: 237.02 | AG6: 0 | AH6: 65.78 | AI6: 2 | AJ6: 5.96 | AK6: 3.9 | AL6: 0 | AM6: 0 | AN6: 0 | AO6: 0 | AP6: 0 | AQ6: 78.52 | AR6: 11.07 | AS6: 0.04 | AT6: 0 | AU6: 0 | AV6: 0 | AW6: 0 | AX6: 11.6 | AY6: 7.5 | AZ6: 0 | BA6: 444.51 | BB6: 0 | BC6: 0 | BD6: 0 | BE6: 0 | BF6: 0 | BG6: 0 | BH6: 0 | BI6: 0 | BJ6: 1215.33 | BK6: -1201.95 | BL6: 107436.3217 | BM6: ok | BN6: 89.96646381 | BO6: 1201.95 | BP6: 89.96646381
A7: 1.1 | B7: Đất trồng lúa | C7: LUA | D7: 5331.8275 | E7: 5295.4975 | F7: 5295.2475 | G7: 4970.2285 | H7: 0 | I7: 325.019 | J7: 0 | K7: 0 | L7: 0 | M7: 0 | N7: 0 | O7: 0.25 | P7: 0 | Q7: 0 | R7: 36.33 | S7: 0 | T7: 0 | U7: 5.97 | V7: 0 | W7: 0 | X7: 0.46 | Y7: 0 | Z7: 0 | AA7: 15.09 | AB7: 0 | AC7: 0 | AD7: 0 | AE7: 0.62 | AF7: 1.47 | AG7: 0 | AH7: 8.27 | AI7: 0 | AJ7: 0.83 | AK7: 3.9 | AL7: 0 | AM7: 0 | AN7: 0 | AO7: 0 | AP7: 0 | AQ7: 11.19 | AR7: 3.62 | AS7: 0 | AT7: 0 | AU7: 0 | AV7: 0 | AW7: 0 | AX7: 0 | AY7: 0 | AZ7: 0 | BA7: 0 | BB7: 0 | BC7: 0 | BD7: 0 | BE7: 0 | BF7: 0 | BG7: 0 | BH7: 0 | BI7: 0 | BJ7: 36.58 | BK7: -36.58 | BL7: 5295.2475 | BM7: ok | BN7: 4.928731193 | BO7: 36.58 | BP7: 4.434205165
A8: 1.1.1 | B8: Đất chuyên trồng lúa nước | C8: LUC | D8: 5005.5785 | E8: 4970.4785 | F8: 4970.2285 | G8: 4970.2285 | H8: 0 | I8: 0 | J8: 0 | K8: 0 | L8: 0 | M8: 0 | N8: 0 | O8: 0.25 | P8: 0 | Q8: 0 | R8: 35.1 | S8: 0 | T8: 0 | U8: 5.97 | V8: 0 | W8: 0 | X8: 0.46 | Y8: 0 | Z8: 0 | AA8: 15.09 | AB8: 0 | AC8: 0 | AD8: 0 | AE8: 0.62 | AF8: 1.47 | AG8: 0 | AH8: 8.27 | AI8: 0 | AJ8: 0.83 | AK8: 3.9 | AL8: 0 | AM8: 0 | AN8: 0 | AO8: 0 | AP8: 0 | AQ8: 10.36 | AR8: 3.22 | AS8: 0 | AT8: 0 | AU8: 0 | AV8: 0 | AW8: 0 | AX8: 0 | AY8: 0 | AZ8: 0 | BA8: 0 | BB8: 0 | BC8: 0 | BD8: 0 | BE8: 0 | BF8: 0 | BG8: 0 | BH8: 0 | BI8: 0 | BJ8: 35.35 | BK8: -35.35 | BL8: 4970.2285 | BM8: ok | BN8: 4.626208736 | BO8: 35.35 | BP8: 4.162036408
A9: 1.1.2 | B9: Đất trồng lúa nương | C9: LUN | D9: 0 | E9: 0 | F9: 0 | G9: 0 | H9: 0 | I9: 0 | J9: 0 | K9: 0 | L9: 0 | M9: 0 | N9: 0 | O9: 0 | P9: 0 | Q9: 0 | R9: 0 | S9: 0 | T9: 0 | U9: 0 | V9: 0 | W9: 0 | X9: 0 | Y9: 0 | Z9: 0 | AA9: 0 | AB9: 0 | AC9: 0 | AD9: 0 | AE9: 0 | AF9: 0 | AG9: 0 | AH9: 0 | AI9: 0 | AJ9: 0 | AK9: 0 | AL9: 0 | AM9: 0 | AN9: 0 | AO9: 0 | AP9: 0 | AQ9: 0 | AR9: 0 | AS9: 0 | AT9: 0 | AU9: 0 | AV9: 0 | AW9: 0 | AX9: 0 | AY9: 0 | AZ9: 0 | BA9: 0 | BB9: 0 | BC9: 0 | BD9: 0 | BE9: 0 | BF9: 0 | BG9: 0 | BH9: 0 | BI9: 0 | BJ9: 0 | BK9: 0 | BL9: 0 | BM9: ok | BN9: 0 | BO9: 0 | BP9: 0
A10: 1.1.3 | B10: Đất trồng lúa nước còn lại | C10: LUK | D10: 326.249 | E10: 325.019 | F10: 325.019 | G10: 0 | H10: 0 | I10: 325.019 | J10: 0 | K10: 0 | L10: 0 | M10: 0 | N10: 0 | O10: 0 | P10: 0 | Q10: 0 | R10: 1.23 | S10: 0 | T10: 0 | U10: 0 | V10: 0 | W10: 0 | X10: 0 | Y10: 0 | Z10: 0 | AA10: 0 | AB10: 0 | AC10: 0 | AD10: 0 | AE10: 0 | AF10: 0 | AG10: 0 | AH10: 0 | AI10: 0 | AJ10: 0 | AK10: 0 | AL10: 0 | AM10: 0 | AN10: 0 | AO10: 0 | AP10: 0 | AQ10: 0.83 | AR10: 0.4 | AS10: 0 | AT10: 0 | AU10: 0 | AV10: 0 | AW10: 0 | AX10: 0 | AY10: 0 | AZ10: 0 | BA10: 0 | BB10: 0 | BC10: 0 | BD10: 0 | BE10: 0 | BF10: 0 | BG10: 0 | BH10: 0 | BI10: 0 | BJ10: 1.23 | BK10: -1.23 | BL10: 325.019 | BM10: ok | BN10: 0.3025224569 | BO10: 1.23 | BP10: 0.2721687567
A11: 1.2 | B11: Đất trồng cây hàng năm khác | C11: HNK | D11: 2344.384 | E11: 2306.264 | F11: 0 | G11: 0 | H11: 0 | I11: 0 | J11: 2306.264 | K11: 0 | L11: 0 | M11: 0 | N11: 0 | O11: 0 | P11: 0 | Q11: 0 | R11: 38.12 | S11: 0 | T11: 0 | U11: 10 | V11: 0 | W11: 0 | X11: 5 | Y11: 0.62 | Z11: 0 | AA11: 8.51 | AB11: 0.07 | AC11: 0 | AD11: 0 | AE11: 0 | AF11: 0.55 | AG11: 0 | AH11: 7.16 | AI11: 0 | AJ11: 0.73 | AK11: 0 | AL11: 0 | AM11: 0 | AN11: 0 | AO11: 0 | AP11: 0 | AQ11: 6.54 | AR11: 7.45 | AS11: 0 | AT11: 0 | AU11: 0 | AV11: 0 | AW11: 0 | AX11: 0 | AY11: 0 | AZ11: 0 | BA11: 0 | BB11: 0 | BC11: 0 | BD11: 0 | BE11: 0 | BF11: 0 | BG11: 0 | BH11: 0 | BI11: 0 | BJ11: 38.12 | BK11: -38.12 | BL11: 2306.264 | BM11: ok | BN11: 2.146633432 | BO11: 38.12 | BP11: 1.93125019
A12: 1.3 | B12: Đất trồng cây lâu năm | C12: CLN | D12: 631.594 | E12: 628.844 | F12: 0 | G12: 0 | H12: 0 | I12: 0 | J12: 0 | K12: 628.844 | L12: 0 | M12: 0 | N12: 0 | O12: 0 | P12: 0 | Q12: 0 | R12: 2.75 | S12: 0 | T12: 0 | U12: 0 | V12: 0 | W12: 0 | X12: 0.61 | Y12: 1.5 | Z12: 0 | AA12: 0.09 | AB12: 0 | AC12: 0 | AD12: 0 | AE12: 0 | AF12: 0 | AG12: 0 | AH12: 0 | AI12: 0 | AJ12: 0.09 | AK12: 0 | AL12: 0 | AM12: 0 | AN12: 0 | AO12: 0 | AP12: 0 | AQ12: 0.51 | AR12: 0 | AS12: 0.04 | AT12: 0 | AU12: 0 | AV12: 0 | AW12: 0 | AX12: 0 | AY12: 0 | AZ12: 0 | BA12: 0 | BB12: 0 | BC12: 0 | BD12: 0 | BE12: 0 | BF12: 0 | BG12: 0 | BH12: 0 | BI12: 0 | BJ12: 2.75 | BK12: -2.75 | BL12: 628.844 | BM12: ok | BN12: 0.5853178795 | BO12: 2.75 | BP12: 0.5265897982
A13: 1.4 | B13: Đất rừng phòng hộ | C13: RPH | D13: 53671.925 | E13: 53648.265 | F13: 0 | G13: 0 | H13: 0 | I13: 0 | J13: 0 | K13: 0 | L13: 53648.265 | M13: 0 | N13: 0 | O13: 0 | P13: 0 | Q13: 0 | R13: 23.66 | S13: 13 | T13: 0 | U13: 0 | V13: 0 | W13: 0 | X13: 0 | Y13: 0 | Z13: 0 | AA13: 10.66 | AB13: 0 | AC13: 0 | AD13: 0 | AE13: 0 | AF13: 0 | AG13: 0 | AH13: 10.66 | AI13: 0 | AJ13: 0 | AK13: 0 | AL13: 0 | AM13: 0 | AN13: 0 | AO13: 0 | AP13: 0 | AQ13: 0 | AR13: 0 | AS13: 0 | AT13: 0 | AU13: 0 | AV13: 0 | AW13: 0 | AX13: 0 | AY13: 0 | AZ13: 0 | BA13: 0 | BB13: 0 | BC13: 0 | BD13: 0 | BE13: 0 | BF13: 0 | BG13: 0 | BH13: 0 | BI13: 0 | BJ13: 23.66 | BK13: -23.66 | BL13: 53648.265 | BM13: ok | BN13: 49.93494207 | BO13: 23.66 | BP13: 44.92470158
A14: 1.5 | B14: Đất rừng đặc dụng | C14: RDD | D14: 0 | E14: 0 | F14: 0 | G14: 0 | H14: 0 | I14: 0 | J14: 0 | K14: 0 | L14: 0 | M14: 0 | N14: 0 | O14: 0 | P14: 0 | Q14: 0 | R14: 0 | S14: 0 | T14: 0 | U14: 0 | V14: 0 | W14: 0 | X14: 0 | Y14: 0 | Z14: 0 | AA14: 0 | AB14: 0 | AC14: 0 | AD14: 0 | AE14: 0 | AF14: 0 | AG14: 0 | AH14: 0 | AI14: 0 | AJ14: 0 | AK14: 0 | AL14: 0 | AM14: 0 | AN14: 0 | AO14: 0 | AP14: 0 | AQ14: 0 | AR14: 0 | AS14: 0 | AT14: 0 | AU14: 0 | AV14: 0 | AW14: 0 | AX14: 0 | AY14: 0 | AZ14: 0 | BA14: 0 | BB14: 0 | BC14: 0 | BD14: 0 | BE14: 0 | BF14: 0 | BG14: 0 | BH14: 0 | BI14: 0 | BJ14: 0 | BK14: 0 | BL14: 0 | BM14: ok | BN14: 0 | BO14: 0 | BP14: 0
A15: 1.6 | B15: Đất rừng sản xuất | C15: RSX | D15: 46075.1329 | E15: 45000.7129 | F15: 0 | G15: 0 | H15: 0 | I15: 0 | J15: 0 | K15: 0 | L15: 0 | M15: 0 | N15: 44955.4829 | O15: 0 | P15: 0 | Q15: 45.23 | R15: 1074.42 | S15: 39 | T15: 0 | U15: 2.03 | V15: 0 | W15: 0 | X15: 241.98 | Y15: 0 | Z15: 0 | AA15: 268.22 | AB15: 0 | AC15: 0 | AD15: 0 | AE15: 0.3 | AF15: 224.7 | AG15: 0 | AH15: 38.91 | AI15: 0 | AJ15: 4.31 | AK15: 0 | AL15: 0 | AM15: 0 | AN15: 0 | AO15: 0 | AP15: 0 | AQ15: 60 | AR15: 0 | AS15: 0 | AT15: 0 | AU15: 0 | AV15: 0 | AW15: 0 | AX15: 11.6 | AY15: 7.5 | AZ15: 0 | BA15: 444.09 | BB15: 0 | BC15: 0 | BD15: 0 | BE15: 0 | BF15: 0 | BG15: 0 | BH15: 0 | BI15: 0 | BJ15: 1119.65 | BK15: -1119.65 | BL15: 44955.4829 | BM15: ok | BN15: 41.84384032 | BO15: 1119.65 | BP15: 37.64542346
A16: 1.7 | B16: Đất nuôi trồng thuỷ sản | C16: NTS | D16: 501.5445 | E16: 461.4945 | F16: 0 | G16: 0 | H16: 0 | I16: 0 | J16: 0 | K16: 0 | L16: 0 | M16: 0 | N16: 0 | O16: 460.6145 | P16: 0 | Q16: 0.88 | R16: 40.05 | S16: 0 | T16: 0 | U16: 1 | V16: 0 | W16: 0 | X16: 25.22 | Y16: 0 | Z16: 0 | AA16: 13.13 | AB16: 0 | AC16: 0 | AD16: 0 | AE16: 0.05 | AF16: 10.3 | AG16: 0 | AH16: 0.78 | AI16: 2 | AJ16: 0 | AK16: 0 | AL16: 0 | AM16: 0 | AN16: 0 | AO16: 0 | AP16: 0 | AQ16: 0.28 | AR16: 0 | AS16: 0 | AT16: 0 | AU16: 0 | AV16: 0 | AW16: 0 | AX16: 0 | AY16: 0 | AZ16: 0 | BA16: 0.42 | BB16: 0 | BC16: 0 | BD16: 0 | BE16: 0 | BF16: 0 | BG16: 0 | BH16: 0 | BI16: 0 | BJ16: 40.93 | BK16: -40.68 | BL16: 460.8645 | BM16: ok | BN16: 0.4289652631 | BO16: 40.68 | BP16: 0.3859248781
A17: 1.8 | B17: Đất làm muối | C17: LMU | D17: 0 | E17: 0 | F17: 0 | G17: 0 | H17: 0 | I17: 0 | J17: 0 | K17: 0 | L17: 0 | M17: 0 | N17: 0 | O17: 0 | P17: 0 | Q17: 0 | R17: 0 | S17: 0 | T17: 0 | U17: 0 | V17: 0 | W17: 0 | X17: 0 | Y17: 0 | Z17: 0 | AA17: 0 | AB17: 0 | AC17: 0 | AD17: 0 | AE17: 0 | AF17: 0 | AG17: 0 | AH17: 0 | AI17: 0 | AJ17: 0 | AK17: 0 | AL17: 0 | AM17: 0 | AN17: 0 | AO17: 0 | AP17: 0 | AQ17: 0 | AR17: 0 | AS17: 0 | AT17: 0 | AU17: 0 | AV17: 0 | AW17: 0 | AX17: 0 | AY17: 0 | AZ17: 0 | BA17: 0 | BB17: 0 | BC17: 0 | BD17: 0 | BE17: 0 | BF17: 0 | BG17: 0 | BH17: 0 | BI17: 0 | BJ17: 0 | BK17: 0 | BL17: 0 | BM17: ok | BN17: 0 | BO17: 0 | BP17: 0
A18: 1.9 | B18: Đất nông nghiệp khác | C18: NKH | D18: 81.8638 | E18: 81.8638 | F18: 0 | G18: 0 | H18: 0 | I18: 0 | J18: 0 | K18: 0 | L18: 0 | M18: 0 | N18: 0 | O18: 0 | P18: 0 | Q18: 81.8638 | R18: 0 | S18: 0 | T18: 0 | U18: 0 | V18: 0 | W18: 0 | X18: 0 | Y18: 0 | Z18: 0 | AA18: 0 | AB18: 0 | AC18: 0 | AD18: 0 | AE18: 0 | AF18: 0 | AG18: 0 | AH18: 0 | AI18: 0 | AJ18: 0 | AK18: 0 | AL18: 0 | AM18: 0 | AN18: 0 | AO18: 0 | AP18: 0 | AQ18: 0 | AR18: 0 | AS18: 0 | AT18: 0 | AU18: 0 | AV18: 0 | AW18: 0 | AX18: 0 | AY18: 0 | AZ18: 0 | BA18: 0 | BB18: 0 | BC18: 0 | BD18: 0 | BE18: 0 | BF18: 0 | BG18: 0 | BH18: 0 | BI18: 0 | BJ18: 0 | BK18: 59.49 | BL18: 141.3538 | BM18: ok | BN18: 0.1315698432 | BO18: 59.49 | BP18: 0.1183687354
A19: 2 | B19: Đất phi nông nghiệp | C19: PNN | D19: 7557.0782 | E19: 0.34 | F19: 0 | G19: 0 | H19: 0 | I19: 0 | J19: 0 | K19: 0 | L19: 0 | M19: 0 | N19: 0 | O19: 0 | P19: 0 | Q19: 0.34 | R19: 7556.7382 | S19: 136.8152 | T19: 1.717 | U19: 21.9302 | V19: 0 | W19: 0 | X19: 524.124 | Y19: 53.781 | Z19: 0 | AA19: 3258.7982 | AB19: 1.915 | AC19: 0 | AD19: 4.6694 | AE19: 65.2656 | AF19: 35.9686 | AG19: 0 | AH19: 1536.1841 | AI19: 1451.0733 | AJ19: 154.0036 | AK19: 1.3278 | AL19: 8.3908 | AM19: 139.022 | AN19: 0 | AO19: 5.2604 | AP19: 0 | AQ19: 613.3093 | AR19: 30.32 | AS19: 12.6056 | AT19: 2.181 | AU19: 0 | AV19: 0 | AW19: 1.86 | AX19: 324.0423 | AY19: 135.0874 | AZ19: 18.7322 | BA19: 5.744 | BB19: 6.167 | BC19: 2141.7572 | BD19: 123.4842 | BE19: 0 | BF19: 0 | BG19: 0 | BH19: 0 | BI19: 0 | BJ19: 0.34 | BK19: 1253.23 | BL19: 8810.3082 | BM19: ok | BN19: 7.377693701 | BO19: 1253.23 | BP19: 7.377693701
A20: 2.1 | B20: Đất quốc phòng | C20: CQP | D20: 136.8152 | E20: 0 | F20: 0 | G20: 0 | H20: 0 | I20: 0 | J20: 0 | K20: 0 | L20: 0 | M20: 0 | N20: 0 | O20: 0 | P20: 0 | Q20: 0 | R20: 136.8152 | S20: 136.8152 | T20: 0 | U20: 0 | V20: 0 | W20: 0 | X20: 0 | Y20: 0 | Z20: 0 | AA20: 0 | AB20: 0 | AC20: 0 | AD20: 0 | AE20: 0 | AF20: 0 | AG20: 0 | AH20: 0 | AI20: 0 | AJ20: 0 | AK20: 0 | AL20: 0 | AM20: 0 | AN20: 0 | AO20: 0 | AP20: 0 | AQ20: 0 | AR20: 0 | AS20: 0 | AT20: 0 | AU20: 0 | AV20: 0 | AW20: 0 | AX20: 0 | AY20: 0 | AZ20: 0 | BA20: 0 | BB20: 0 | BC20: 0 | BD20: 0 | BE20: 0 | BF20: 0 | BG20: 0 | BH20: 0 | BI20: 0 | BJ20: 0 | BK20: 54.7 | BL20: 191.5152 | BM20: ok | BN20: 2.173762775 | BO20: 54.7 | BP20: 0.1603735593
A21: 2.2 | B21: Đất an ninh | C21: CAN | D21: 1.717 | E21: 0 | F21: 0 | G21: 0 | H21: 0 | I21: 0 | J21: 0 | K21: 0 | L21: 0 | M21: 0 | N21: 0 | O21: 0 | P21: 0 | Q21: 0 | R21: 1.717 | S21: 0 | T21: 1.717 | U21: 0 | V21: 0 | W21: 0 | X21: 0 | Y21: 0 | Z21: 0 | AA21: 0 | AB21: 0 | AC21: 0 | AD21: 0 | AE21: 0 | AF21: 0 | AG21: 0 | AH21: 0 | AI21: 0 | AJ21: 0 | AK21: 0 | AL21: 0 | AM21: 0 | AN21: 0 | AO21: 0 | AP21: 0 | AQ21: 0 | AR21: 0 | AS21: 0 | AT21: 0 | AU21: 0 | AV21: 0 | AW21: 0 | AX21: 0 | AY21: 0 | AZ21: 0 | BA21: 0 | BB21: 0 | BC21: 0 | BD21: 0 | BE21: 0 | BF21: 0 | BG21: 0 | BH21: 0 | BI21: 0 | BJ21: 0 | BK21: 0.2 | BL21: 1.917 | BM21: ok | BN21: 0.02175860318 | BO21: 0.2 | BP21: 0.001605283096
A22: 2.3 | B22: Đất khu công nghiệp | C22: SKK | D22: 21.9302 | E22: 0 | F22: 0 | G22: 0 | H22: 0 | I22: 0 | J22: 0 | K22: 0 | L22: 0 | M22: 0 | N22: 0 | O22: 0 | P22: 0 | Q22: 0 | R22: 21.9302 | S22: 0 | T22: 0 | U22: 21.9302 | V22: 0 | W22: 0 | X22: 0 | Y22: 0 | Z22: 0 | AA22: 0 | AB22: 0 | AC22: 0 | AD22: 0 | AE22: 0 | AF22: 0 | AG22: 0 | AH22: 0 | AI22: 0 | AJ22: 0 | AK22: 0 | AL22: 0 | AM22: 0 | AN22: 0 | AO22: 0 | AP22: 0 | AQ22: 0 | AR22: 0 | AS22: 0 | AT22: 0 | AU22: 0 | AV22: 0 | AW22: 0 | AX22: 0 | AY22: 0 | AZ22: 0 | BA22: 0 | BB22: 0 | BC22: 0 | BD22: 0 | BE22: 0 | BF22: 0 | BG22: 0 | BH22: 0 | BI22: 0 | BJ22: 0 | BK22: 20 | BL22: 41.9302 | BM22: ok | BN22: 0.4759220568 | BO22: 20 | BP22: 0.03511207161
A23: 2.4 | B23: Đất khu chế xuất | C23: SKT | D23: 0 | E23: 0 | F23: 0 | G23: 0 | H23: 0 | I23: 0 | J23: 0 | K23: 0 | L23: 0 | M23: 0 | N23: 0 | O23: 0 | P23: 0 | Q23: 0 | R23: 0 | S23: 0 | T23: 0 | U23: 0 | V23: 0 | W23: 0 | X23: 0 | Y23: 0 | Z23: 0 | AA23: 0 | AB23: 0 | AC23: 0 | AD23: 0 | AE23: 0 | AF23: 0 | AG23: 0 | AH23: 0 | AI23: 0 | AJ23: 0 | AK23: 0 | AL23: 0 | AM23: 0 | AN23: 0 | AO23: 0 | AP23: 0 | AQ23: 0 | AR23: 0 | AS23: 0 | AT23: 0 | AU23: 0 | AV23: 0 | AW23: 0 | AX23: 0 | AY23: 0 | AZ23: 0 | BA23: 0 | BB23: 0 | BC23: 0 | BD23: 0 | BE23: 0 | BF23: 0 | BG23: 0 | BH23: 0 | BI23: 0 | BJ23: 0 | BK23: 0 | BL23: 0 | BM23: ok | BN23: 0 | BO23: 0 | BP23: 0
A24: 2.5 | B24: Đất cụm công nghiệp | C24: SKN | D24: 0 | E24: 0 | F24: 0 | G24: 0 | H24: 0 | I24: 0 | J24: 0 | K24: 0 | L24: 0 | M24: 0 | N24: 0 | O24: 0 | P24: 0 | Q24: 0 | R24: 0 | S24: 0 | T24: 0 | U24: 0 | V24: 0 | W24: 0 | X24: 0 | Y24: 0 | Z24: 0 | AA24: 0 | AB24: 0 | AC24: 0 | AD24: 0 | AE24: 0 | AF24: 0 | AG24: 0 | AH24: 0 | AI24: 0 | AJ24: 0 | AK24: 0 | AL24: 0 | AM24: 0 | AN24: 0 | AO24: 0 | AP24: 0 | AQ24: 0 | AR24: 0 | AS24: 0 | AT24: 0 | AU24: 0 | AV24: 0 | AW24: 0 | AX24: 0 | AY24: 0 | AZ24: 0 | BA24: 0 | BB24: 0 | BC24: 0 | BD24: 0 | BE24: 0 | BF24: 0 | BG24: 0 | BH24: 0 | BI24: 0 | BJ24: 0 | BK24: 0 | BL24: 0 | BM24: ok | BN24: 0 | BO24: 0 | BP24: 0
A25: 2.6 | B25: Đất thương mại, dịch vụ | C25: TMD | D25: 519.574 | E25: 0 | F25: 0 | G25: 0 | H25: 0 | I25: 0 | J25: 0 | K25: 0 | L25: 0 | M25: 0 | N25: 0 | O25: 0 | P25: 0 | Q25: 0 | R25: 519.574 | S25: 0 | T25: 0 | U25: 0 | V25: 0 | W25: 0 | X25: 519.574 | Y25: 0 | Z25: 0 | AA25: 0 | AB25: 0 | AC25: 0 | AD25: 0 | AE25: 0 | AF25: 0 | AG25: 0 | AH25: 0 | AI25: 0 | AJ25: 0 | AK25: 0 | AL25: 0 | AM25: 0 | AN25: 0 | AO25: 0 | AP25: 0 | AQ25: 0 | AR25: 0 | AS25: 0 | AT25: 0 | AU25: 0 | AV25: 0 | AW25: 0 | AX25: 0 | AY25: 0 | AZ25: 0 | BA25: 0 | BB25: 0 | BC25: 0 | BD25: 0 | BE25: 0 | BF25: 0 | BG25: 0 | BH25: 0 | BI25: 0 | BJ25: 0 | BK25: 295.9 | BL25: 815.474 | BM25: ok | BN25: 9.255907756 | BO25: 295.9 | BP25: 0.6828725235
A26: 2.7 | B26: Đất cơ sở sản xuất phi nông nghiệp | C26: SKC | D26: 53.881 | E26: 0 | F26: 0 | G26: 0 | H26: 0 | I26: 0 | J26: 0 | K26: 0 | L26: 0 | M26: 0 | N26: 0 | O26: 0 | P26: 0 | Q26: 0 | R26: 53.881 | S26: 0 | T26: 0 | U26: 0 | V26: 0 | W26: 0 | X26: 0 | Y26: 53.781 | Z26: 0 | AA26: 0 | AB26: 0 | AC26: 0 | AD26: 0 | AE26: 0 | AF26: 0 | AG26: 0 | AH26: 0 | AI26: 0 | AJ26: 0 | AK26: 0 | AL26: 0 | AM26: 0 | AN26: 0 | AO26: 0 | AP26: 0 | AQ26: 0 | AR26: 0.1 | AS26: 0 | AT26: 0 | AU26: 0 | AV26: 0 | AW26: 0 | AX26: 0 | AY26: 0 | AZ26: 0 | BA26: 0 | BB26: 0 | BC26: 0 | BD26: 0 | BE26: 0 | BF26: 0 | BG26: 0 | BH26: 0 | BI26: 0 | BJ26: 0.1 | BK26: 2.02 | BL26: 55.901 | BM26: ok | BN26: 0.6344953971 | BO26: 2.02 | BP26: 0.04681112694
A27: 2.8 | B27: Đất sử dụng cho hoạt động khoáng sản | C27: SKS | D27: 0 | E27: 0 | F27: 0 | G27: 0 | H27: 0 | I27: 0 | J27: 0 | K27: 0 | L27: 0 | M27: 0 | N27: 0 | O27: 0 | P27: 0 | Q27: 0 | R27: 0 | S27: 0 | T27: 0 | U27: 0 | V27: 0 | W27: 0 | X27: 0 | Y27: 0 | Z27: 0 | AA27: 0 | AB27: 0 | AC27: 0 | AD27: 0 | AE27: 0 | AF27: 0 | AG27: 0 | AH27: 0 | AI27: 0 | AJ27: 0 | AK27: 0 | AL27: 0 | AM27: 0 | AN27: 0 | AO27: 0 | AP27: 0 | AQ27: 0 | AR27: 0 | AS27: 0 | AT27: 0 | AU27: 0 | AV27: 0 | AW27: 0 | AX27: 0 | AY27: 0 | AZ27: 0 | BA27: 0 | BB27: 0 | BC27: 0 | BD27: 0 | BE27: 0 | BF27: 0 | BG27: 0 | BH27: 0 | BI27: 0 | BJ27: 0 | BK27: 0 | BL27: 0 | BM27: ok | BN27: 0 | BO27: 0 | BP27: 0
A28: 2.9 | B28: Đất phát triển hạ tầng | C28: DHT | D28: 3257.5982 | E28: 0.34 | F28: 0 | G28: 0 | H28: 0 | I28: 0 | J28: 0 | K28: 0 | L28: 0 | M28: 0 | N28: 0 | O28: 0 | P28: 0 | Q28: 0.34 | R28: 3257.2582 | S28: 0 | T28: 0 | U28: 0 | V28: 0 | W28: 0 | X28: 4.46 | Y28: 0 | Z28: 0 | AA28: 3248.7282 | AB28: 1.915 | AC28: 0 | AD28: 4.6694 | AE28: 65.2656 | AF28: 30.8686 | AG28: 0 | AH28: 1535.4141 | AI28: 1447.0733 | AJ28: 153.8036 | AK28: 1.3278 | AL28: 8.3908 | AM28: 0 | AN28: 0 | AO28: 0 | AP28: 0 | AQ28: 2.13 | AR28: 0.63 | AS28: 0.03 | AT28: 0 | AU28: 0 | AV28: 0 | AW28: 0 | AX28: 0 | AY28: 0 | AZ28: 0 | BA28: 1.28 | BB28: 0 | BC28: 0 | BD28: 0 | BE28: 0 | BF28: 0 | BG28: 0 | BH28: 0 | BI28: 0 | BJ28: 8.87 | BK28: 326.96 | BL28: 3584.5582 | BM28: ok | BN28: 40.68595693 | BO28: 326.96 | BP28: 3.001685282
A29: 2.9.1 | B29: Đất xây dựng cơ sở văn hóa | C29: DVH | D29: 1.855 | E29: 0 | F29: 0 | G29: 0 | H29: 0 | I29: 0 | J29: 0 | K29: 0 | L29: 0 | M29: 0 | N29: 0 | O29: 0 | P29: 0 | Q29: 0 | R29: 1.855 | S29: 0 | T29: 0 | U29: 0 | V29: 0 | W29: 0 | X29: 0 | Y29: 0 | Z29: 0 | AA29: 1.855 | AB29: 1.855 | AC29: 0 | AD29: 0 | AE29: 0 | AF29: 0 | AG29: 0 | AH29: 0 | AI29: 0 | AJ29: 0 | AK29: 0 | AL29: 0 | AM29: 0 | AN29: 0 | AO29: 0 | AP29: 0 | AQ29: 0 | AR29: 0 | AS29: 0 | AT29: 0 | AU29: 0 | AV29: 0 | AW29: 0 | AX29: 0 | AY29: 0 | AZ29: 0 | BA29: 0 | BB29: 0 | BC29: 0 | BD29: 0 | BE29: 0 | BF29: 0 | BG29: 0 | BH29: 0 | BI29: 0 | BJ29: 0 | BK29: 0.13 | BL29: 1.985 | BM29: ok | BN29: 0.05537641989 | BO29: 0.13 | BP29: 0.001662225845
A30: 2.9.2 | B30: Đất xây dựng cơ sở dịch vụ xã hội | C30: DXH | D30: 0 | E30: 0 | F30: 0 | G30: 0 | H30: 0 | I30: 0 | J30: 0 | K30: 0 | L30: 0 | M30: 0 | N30: 0 | O30: 0 | P30: 0 | Q30: 0 | R30: 0 | S30: 0 | T30: 0 | U30: 0 | V30: 0 | W30: 0 | X30: 0 | Y30: 0 | Z30: 0 | AA30: 0 | AB30: 0 | AC30: 0 | AD30: 0 | AE30: 0 | AF30: 0 | AG30: 0 | AH30: 0 | AI30: 0 | AJ30: 0 | AK30: 0 | AL30: 0 | AM30: 0 | AN30: 0 | AO30: 0 | AP30: 0 | AQ30: 0 | AR30: 0 | AS30: 0 | AT30: 0 | AU30: 0 | AV30: 0 | AW30: 0 | AX30: 0 | AY30: 0 | AZ30: 0 | BA30: 0 | BB30: 0 | BC30: 0 | BD30: 0 | BE30: 0 | BF30: 0 | BG30: 0 | BH30: 0 | BI30: 0 | BJ30: 0 | BK30: 0 | BL30: 0 | BM30: ok | BN30: 0 | BO30: 0 | BP30: 0
A31: 2.9.3 | B31: Đất xây dựng cơ sở y tế | C31: DYT | D31: 4.6694 | E31: 0 | F31: 0 | G31: 0 | H31: 0 | I31: 0 | J31: 0 | K31: 0 | L31: 0 | M31: 0 | N31: 0 | O31: 0 | P31: 0 | Q31: 0 | R31: 4.6694 | S31: 0 | T31: 0 | U31: 0 | V31: 0 | W31: 0 | X31: 0 | Y31: 0 | Z31: 0 | AA31: 4.6694 | AB31: 0 | AC31: 0 | AD31: 4.6694 | AE31: 0 | AF31: 0 | AG31: 0 | AH31: 0 | AI31: 0 | AJ31: 0 | AK31: 0 | AL31: 0 | AM31: 0 | AN31: 0 | AO31: 0 | AP31: 0 | AQ31: 0 | AR31: 0 | AS31: 0 | AT31: 0 | AU31: 0 | AV31: 0 | AW31: 0 | AX31: 0 | AY31: 0 | AZ31: 0 | BA31: 0 | BB31: 0 | BC31: 0 | BD31: 0 | BE31: 0 | BF31: 0 | BG31: 0 | BH31: 0 | BI31: 0 | BJ31: 0 | BK31: 0 | BL31: 4.6694 | BM31: ok | BN31: 0.1302643098 | BO31: 0 | BP31: 0.003910124616
A32: 2.9.4 | B32: Đất xây dựng cơ sở giáo dục và đào tạo | C32: DGD | D32: 65.5256 | E32: 0 | F32: 0 | G32: 0 | H32: 0 | I32: 0 | J32: 0 | K32: 0 | L32: 0 | M32: 0 | N32: 0 | O32: 0 | P32: 0 | Q32: 0 | R32: 65.5256 | S32: 0 | T32: 0 | U32: 0 | V32: 0 | W32: 0 | X32: 0 | Y32: 0 | Z32: 0 | AA32: 65.0756 | AB32: 0 | AC32: 0 | AD32: 0 | AE32: 65.0756 | AF32: 0 | AG32: 0 | AH32: 0 | AI32: 0 | AJ32: 0 | AK32: 0 | AL32: 0 | AM32: 0 | AN32: 0 | AO32: 0 | AP32: 0 | AQ32: 0.45 | AR32: 0 | AS32: 0 | AT32: 0 | AU32: 0 | AV32: 0 | AW32: 0 | AX32: 0 | AY32: 0 | AZ32: 0 | BA32: 0 | BB32: 0 | BC32: 0 | BD32: 0 | BE32: 0 | BF32: 0 | BG32: 0 | BH32: 0 | BI32: 0 | BJ32: 0.45 | BK32: 1.21 | BL32: 66.7356 | BM32: ok | BN32: 1.861752447 | BO32: 1.21 | BP32: 0.05588394918
A33: 2.9.5 | B33: Đất xây dựng cơ sở thể dục thể thao | C33: DTT | D33: 27.1486 | E33: 0 | F33: 0 | G33: 0 | H33: 0 | I33: 0 | J33: 0 | K33: 0 | L33: 0 | M33: 0 | N33: 0 | O33: 0 | P33: 0 | Q33: 0 | R33: 27.1486 | S33: 0 | T33: 0 | U33: 0 | V33: 0 | W33: 0 | X33: 0 | Y33: 0 | Z33: 0 | AA33: 27.1486 | AB33: 0 | AC33: 0 | AD33: 0 | AE33: 0.15 | AF33: 26.9986 | AG33: 0 | AH33: 0 | AI33: 0 | AJ33: 0 | AK33: 0 | AL33: 0 | AM33: 0 | AN33: 0 | AO33: 0 | AP33: 0 | AQ33: 0 | AR33: 0 | AS33: 0 | AT33: 0 | AU33: 0 | AV33: 0 | AW33: 0 | AX33: 0 | AY33: 0 | AZ33: 0 | BA33: 0 | BB33: 0 | BC33: 0 | BD33: 0 | BE33: 0 | BF33: 0 | BG33: 0 | BH33: 0 | BI33: 0 | BJ33: 0.15 | BK33: 252.52 | BL33: 279.6686 | BM33: ok | BN33: 7.802038198 | BO33: 252.52 | BP33: 0.2341926323
A34: 2.9.6 | B34: Đất xây dựng cơ sở khoa học và công nghệ | C34: DKH | D34: 0 | E34: 0 | F34: 0 | G34: 0 | H34: 0 | I34: 0 | J34: 0 | K34: 0 | L34: 0 | M34: 0 | N34: 0 | O34: 0 | P34: 0 | Q34: 0 | R34: 0 | S34: 0 | T34: 0 | U34: 0 | V34: 0 | W34: 0 | X34: 0 | Y34: 0 | Z34: 0 | AA34: 0 | AB34: 0 | AC34: 0 | AD34: 0 | AE34: 0 | AF34: 0 | AG34: 0 | AH34: 0 | AI34: 0 | AJ34: 0 | AK34: 0 | AL34: 0 | AM34: 0 | AN34: 0 | AO34: 0 | AP34: 0 | AQ34: 0 | AR34: 0 | AS34: 0 | AT34: 0 | AU34: 0 | AV34: 0 | AW34: 0 | AX34: 0 | AY34: 0 | AZ34: 0 | BA34: 0 | BB34: 0 | BC34: 0 | BD34: 0 | BE34: 0 | BF34: 0 | BG34: 0 | BH34: 0 | BI34: 0 | BJ34: 0 | BK34: 0 | BL34: 0 | BM34: ok | BN34: 0 | BO34: 0 | BP34: 0
A35: 2.9.7 | B35: Đất giao thông | C35: DGT | D35: 1545.9541 | E35: 0.34 | F35: 0 | G35: 0 | H35: 0 | I35: 0 | J35: 0 | K35: 0 | L35: 0 | M35: 0 | N35: 0 | O35: 0 | P35: 0 | Q35: 0.34 | R35: 1545.6141 | S35: 0 | T35: 0 | U35: 0 | V35: 0 | W35: 0 | X35: 4.36 | Y35: 0 | Z35: 0 | AA35: 1538.0541 | AB35: 0.06 | AC35: 0 | AD35: 0 | AE35: 0.04 | AF35: 3.87 | AG35: 0 | AH35: 1533.7741 | AI35: 0 | AJ35: 0.13 | AK35: 0.18 | AL35: 0 | AM35: 0 | AN35: 0 | AO35: 0 | AP35: 0 | AQ35: 1.36 | AR35: 0.53 | AS35: 0.03 | AT35: 0 | AU35: 0 | AV35: 0 | AW35: 0 | AX35: 0 | AY35: 0 | AZ35: 0 | BA35: 1.28 | BB35: 0 | BC35: 0 | BD35: 0 | BE35: 0 | BF35: 0 | BG35: 0 | BH35: 0 | BI35: 0 | BJ35: 12.18 | BK35: 58.73 | BL35: 1604.6841 | BM35: ok | BN35: 44.7665796 | BO35: 58.73 | BP35: 1.343751831
A36: 2.9.8 | B36: Đất thủy lợi | C36: DTL | D36: 1449.2833 | E36: 0 | F36: 0 | G36: 0 | H36: 0 | I36: 0 | J36: 0 | K36: 0 | L36: 0 | M36: 0 | N36: 0 | O36: 0 | P36: 0 | Q36: 0 | R36: 1449.2833 | S36: 0 | T36: 0 | U36: 0 | V36: 0 | W36: 0 | X36: 0.1 | Y36: 0 | Z36: 0 | AA36: 1448.7633 | AB36: 0 | AC36: 0 | AD36: 0 | AE36: 0 | AF36: 0 | AG36: 0 | AH36: 1.64 | AI36: 1447.0733 | AJ36: 0.03 | AK36: 0.02 | AL36: 0 | AM36: 0 | AN36: 0 | AO36: 0 | AP36: 0 | AQ36: 0.32 | AR36: 0.1 | AS36: 0 | AT36: 0 | AU36: 0 | AV36: 0 | AW36: 0 | AX36: 0 | AY36: 0 | AZ36: 0 | BA36: 0 | BB36: 0 | BC36: 0 | BD36: 0 | BE36: 0 | BF36: 0 | BG36: 0 | BH36: 0 | BI36: 0 | BJ36: 2.21 | BK36: 3.79 | BL36: 1453.0733 | BM36: ok | BN36: 40.53702629 | BO36: 3.79 | BP36: 1.216793952
A37: 2.9.9 | B37: Đất công trình năng lượng | C37: DNL | D37: 153.6436 | E37: 0 | F37: 0 | G37: 0 | H37: 0 | I37: 0 | J37: 0 | K37: 0 | L37: 0 | M37: 0 | N37: 0 | O37: 0 | P37: 0 | Q37: 0 | R37: 153.6436 | S37: 0 | T37: 0 | U37: 0 | V37: 0 | W37: 0 | X37: 0 | Y37: 0 | Z37: 0 | AA37: 153.6436 | AB37: 0 | AC37: 0 | AD37: 0 | AE37: 0 | AF37: 0 | AG37: 0 | AH37: 0 | AI37: 0 | AJ37: 153.6436 | AK37: 0 | AL37: 0 | AM37: 0 | AN37: 0 | AO37: 0 | AP37: 0 | AQ37: 0 | AR37: 0 | AS37: 0 | AT37: 0 | AU37: 0 | AV37: 0 | AW37: 0 | AX37: 0 | AY37: 0 | AZ37: 0 | BA37: 0 | BB37: 0 | BC37: 0 | BD37: 0 | BE37: 0 | BF37: 0 | BG37: 0 | BH37: 0 | BI37: 0 | BJ37: 0 | BK37: 6.48 | BL37: 160.1236 | BM37: ok | BN37: 4.467038644 | BO37: 6.48 | BP37: 0.1340864415
A38: 2.9.10 | B38: Đất công trình bưu chính viễn thông | C38: DBV | D38: 1.1278 | E38: 0 | F38: 0 | G38: 0 | H38: 0 | I38: 0 | J38: 0 | K38: 0 | L38: 0 | M38: 0 | N38: 0 | O38: 0 | P38: 0 | Q38: 0 | R38: 1.1278 | S38: 0 | T38: 0 | U38: 0 | V38: 0 | W38: 0 | X38: 0 | Y38: 0 | Z38: 0 | AA38: 1.1278 | AB38: 0 | AC38: 0 | AD38: 0 | AE38: 0 | AF38: 0 | AG38: 0 | AH38: 0 | AI38: 0 | AJ38: 0 | AK38: 1.1278 | AL38: 0 | AM38: 0 | AN38: 0 | AO38: 0 | AP38: 0 | AQ38: 0 | AR38: 0 | AS38: 0 | AT38: 0 | AU38: 0 | AV38: 0 | AW38: 0 | AX38: 0 | AY38: 0 | AZ38: 0 | BA38: 0 | BB38: 0 | BC38: 0 | BD38: 0 | BE38: 0 | BF38: 0 | BG38: 0 | BH38: 0 | BI38: 0 | BJ38: 0 | BK38: 4.1 | BL38: 5.2278 | BM38: ok | BN38: 0.1458422408 | BO38: 4.1 | BP38: 0.004377725075
A39: 2.9.11 | B39: Đất chợ | C39: DCH | D39: 8.3908 | E39: 0 | F39: 0 | G39: 0 | H39: 0 | I39: 0 | J39: 0 | K39: 0 | L39: 0 | M39: 0 | N39: 0 | O39: 0 | P39: 0 | Q39: 0 | R39: 8.3908 | S39: 0 | T39: 0 | U39: 0 | V39: 0 | W39: 0 | X39: 0 | Y39: 0 | Z39: 0 | AA39: 8.3908 | AB39: 0 | AC39: 0 | AD39: 0 | AE39: 0 | AF39: 0 | AG39: 0 | AH39: 0 | AI39: 0 | AJ39: 0 | AK39: 0 | AL39: 8.3908 | AM39: 0 | AN39: 0 | AO39: 0 | AP39: 0 | AQ39: 0 | AR39: 0 | AS39: 0 | AT39: 0 | AU39: 0 | AV39: 0 | AW39: 0 | AX39: 0 | AY39: 0 | AZ39: 0 | BA39: 0 | BB39: 0 | BC39: 0 | BD39: 0 | BE39: 0 | BF39: 0 | BG39: 0 | BH39: 0 | BI39: 0 | BJ39: 0 | BK39: 0 | BL39: 8.3908 | BM39: ok | BN39: 0.2340818458 | BO39: 0 | BP39: 0.007026400314
A40: 2.1 | B40: Đất có di tích lịch sử - văn hóa | C40: DDT | D40: 139.022 | E40: 0 | F40: 0 | G40: 0 | H40: 0 | I40: 0 | J40: 0 | K40: 0 | L40: 0 | M40: 0 | N40: 0 | O40: 0 | P40: 0 | Q40: 0 | R40: 139.022 | S40: 0 | T40: 0 | U40: 0 | V40: 0 | W40: 0 | X40: 0 | Y40: 0 | Z40: 0 | AA40: 0 | AB40: 0 | AC40: 0 | AD40: 0 | AE40: 0 | AF40: 0 | AG40: 0 | AH40: 0 | AI40: 0 | AJ40: 0 | AK40: 0 | AL40: 0 | AM40: 139.022 | AN40: 0 | AO40: 0 | AP40: 0 | AQ40: 0 | AR40: 0 | AS40: 0 | AT40: 0 | AU40: 0 | AV40: 0 | AW40: 0 | AX40: 0 | AY40: 0 | AZ40: 0 | BA40: 0 | BB40: 0 | BC40: 0 | BD40: 0 | BE40: 0 | BF40: 0 | BG40: 0 | BH40: 0 | BI40: 0 | BJ40: 0 | BK40: 0 | BL40: 139.022 | BM40: ok | BN40: 1.577947069 | BO40: 0 | BP40: 0.1164161015
A41: 2.11 | B41: Đất danh lam thắng cảnh | C41: DDL | D41: 0 | E41: 0 | F41: 0 | G41: 0 | H41: 0 | I41: 0 | J41: 0 | K41: 0 | L41: 0 | M41: 0 | N41: 0 | O41: 0 | P41: 0 | Q41: 0 | R41: 0 | S41: 0 | T41: 0 | U41: 0 | V41: 0 | W41: 0 | X41: 0 | Y41: 0 | Z41: 0 | AA41: 0 | AB41: 0 | AC41: 0 | AD41: 0 | AE41: 0 | AF41: 0 | AG41: 0 | AH41: 0 | AI41: 0 | AJ41: 0 | AK41: 0 | AL41: 0 | AM41: 0 | AN41: 0 | AO41: 0 | AP41: 0 | AQ41: 0 | AR41: 0 | AS41: 0 | AT41: 0 | AU41: 0 | AV41: 0 | AW41: 0 | AX41: 0 | AY41: 0 | AZ41: 0 | BA41: 0 | BB41: 0 | BC41: 0 | BD41: 0 | BE41: 0 | BF41: 0 | BG41: 0 | BH41: 0 | BI41: 0 | BJ41: 0 | BK41: 0 | BL41: 0 | BM41: ok | BN41: 0 | BO41: 0 | BP41: 0
A42: 2.12 | B42: Đất bãi thải, xử lý chất thải | C42: DRA | D42: 5.2604 | E42: 0 | F42: 0 | G42: 0 | H42: 0 | I42: 0 | J42: 0 | K42: 0 | L42: 0 | M42: 0 | N42: 0 | O42: 0 | P42: 0 | Q42: 0 | R42: 5.2604 | S42: 0 | T42: 0 | U42: 0 | V42: 0 | W42: 0 | X42: 0 | Y42: 0 | Z42: 0 | AA42: 0 | AB42: 0 | AC42: 0 | AD42: 0 | AE42: 0 | AF42: 0 | AG42: 0 | AH42: 0 | AI42: 0 | AJ42: 0 | AK42: 0 | AL42: 0 | AM42: 0 | AN42: 0 | AO42: 5.2604 | AP42: 0 | AQ42: 0 | AR42: 0 | AS42: 0 | AT42: 0 | AU42: 0 | AV42: 0 | AW42: 0 | AX42: 0 | AY42: 0 | AZ42: 0 | BA42: 0 | BB42: 0 | BC42: 0 | BD42: 0 | BE42: 0 | BF42: 0 | BG42: 0 | BH42: 0 | BI42: 0 | BJ42: 0 | BK42: 0 | BL42: 5.2604 | BM42: ok | BN42: 0.05970733237 | BO42: 0 | BP42: 0.004405024099
A43: 2.13 | B43: Đất công trình công cộng khác | C43: DCK | D43: 0 | E43: 0 | F43: 0 | G43: 0 | H43: 0 | I43: 0 | J43: 0 | K43: 0 | L43: 0 | M43: 0 | N43: 0 | O43: 0 | P43: 0 | Q43: 0 | R43: 0 | S43: 0 | T43: 0 | U43: 0 | V43: 0 | W43: 0 | X43: 0 | Y43: 0 | Z43: 0 | AA43: 0 | AB43: 0 | AC43: 0 | AD43: 0 | AE43: 0 | AF43: 0 | AG43: 0 | AH43: 0 | AI43: 0 | AJ43: 0 | AK43: 0 | AL43: 0 | AM43: 0 | AN43: 0 | AO43: 0 | AP43: 0 | AQ43: 0 | AR43: 0 | AS43: 0 | AT43: 0 | AU43: 0 | AV43: 0 | AW43: 0 | AX43: 0 | AY43: 0 | AZ43: 0 | BA43: 0 | BB43: 0 | BC43: 0 | BD43: 0 | BE43: 0 | BF43: 0 | BG43: 0 | BH43: 0 | BI43: 0 | BJ43: 0 | BK43: 0 | BL43: 0 | BM43: ok | BN43: 0 | BO43: 0 | BP43: 0
A44: 2.13 | B44: Đất ở tại nông thôn | C44: ONT | D44: 610.7093 | E44: 0 | F44: 0 | G44: 0 | H44: 0 | I44: 0 | J44: 0 | K44: 0 | L44: 0 | M44: 0 | N44: 0 | O44: 0 | P44: 0 | Q44: 0 | R44: 610.7093 | S44: 0 | T44: 0 | U44: 0 | V44: 0 | W44: 0 | X44: 0.04 | Y44: 0 | Z44: 0 | AA44: 0.29 | AB44: 0 | AC44: 0 | AD44: 0 | AE44: 0 | AF44: 0 | AG44: 0 | AH44: 0.11 | AI44: 0 | AJ44: 0.18 | AK44: 0 | AL44: 0 | AM44: 0 | AN44: 0 | AO44: 0 | AP44: 0 | AQ44: 610.3793 | AR44: 0 | AS44: 0 | AT44: 0 | AU44: 0 | AV44: 0 | AW44: 0 | AX44: 0 | AY44: 0 | AZ44: 0 | BA44: 0 | BB44: 0 | BC44: 0 | BD44: 0 | BE44: 0 | BF44: 0 | BG44: 0 | BH44: 0 | BI44: 0 | BJ44: 0.33 | BK44: 86.87 | BL44: 697.5793 | BM44: ok | BN44: 7.917762741 | BO44: 86.87 | BP44: 0.584148283
A45: 2.14 | B45: Đất ở tại đô thị | C45: ODT | D45: 29.36 | E45: 0 | F45: 0 | G45: 0 | H45: 0 | I45: 0 | J45: 0 | K45: 0 | L45: 0 | M45: 0 | N45: 0 | O45: 0 | P45: 0 | Q45: 0 | R45: 29.36 | S45: 0 | T45: 0 | U45: 0 | V45: 0 | W45: 0 | X45: 0 | Y45: 0 | Z45: 0 | AA45: 0 | AB45: 0 | AC45: 0 | AD45: 0 | AE45: 0 | AF45: 0 | AG45: 0 | AH45: 0 | AI45: 0 | AJ45: 0 | AK45: 0 | AL45: 0 | AM45: 0 | AN45: 0 | AO45: 0 | AP45: 0 | AQ45: 0 | AR45: 29.36 | AS45: 0 | AT45: 0 | AU45: 0 | AV45: 0 | AW45: 0 | AX45: 0 | AY45: 0 | AZ45: 0 | BA45: 0 | BB45: 0 | BC45: 0 | BD45: 0 | BE45: 0 | BF45: 0 | BG45: 0 | BH45: 0 | BI45: 0 | BJ45: 0 | BK45: 12.48 | BL45: 41.84 | BM45: ok | BN45: 0.4748982561 | BO45: 12.48 | BP45: 0.03503653873
A46: 2.15 | B46: Đất xây dựng trụ sở cơ quan | C46: TSC | D46: 12.7756 | E46: 0 | F46: 0 | G46: 0 | H46: 0 | I46: 0 | J46: 0 | K46: 0 | L46: 0 | M46: 0 | N46: 0 | O46: 0 | P46: 0 | Q46: 0 | R46: 12.7756 | S46: 0 | T46: 0 | U46: 0 | V46: 0 | W46: 0 | X46: 0 | Y46: 0 | Z46: 0 | AA46: 0 | AB46: 0 | AC46: 0 | AD46: 0 | AE46: 0 | AF46: 0 | AG46: 0 | AH46: 0 | AI46: 0 | AJ46: 0 | AK46: 0 | AL46: 0 | AM46: 0 | AN46: 0 | AO46: 0 | AP46: 0 | AQ46: 0 | AR46: 0.2 | AS46: 12.5756 | AT46: 0 | AU46: 0 | AV46: 0 | AW46: 0 | AX46: 0 | AY46: 0 | AZ46: 0 | BA46: 0 | BB46: 0 | BC46: 0 | BD46: 0 | BE46: 0 | BF46: 0 | BG46: 0 | BH46: 0 | BI46: 0 | BJ46: 0.2 | BK46: -0.13 | BL46: 12.6456 | BM46: ok | BN46: 0.1435318687 | BO46: 0.13 | BP46: 0.01058934164
A47: 2.16 | B47: Đất xây dựng trụ sở của tổ chức sự nghiệp | C47: DTS | D47: 2.181 | E47: 0 | F47: 0 | G47: 0 | H47: 0 | I47: 0 | J47: 0 | K47: 0 | L47: 0 | M47: 0 | N47: 0 | O47: 0 | P47: 0 | Q47: 0 | R47: 2.181 | S47: 0 | T47: 0 | U47: 0 | V47: 0 | W47: 0 | X47: 0 | Y47: 0 | Z47: 0 | AA47: 0 | AB47: 0 | AC47: 0 | AD47: 0 | AE47: 0 | AF47: 0 | AG47: 0 | AH47: 0 | AI47: 0 | AJ47: 0 | AK47: 0 | AL47: 0 | AM47: 0 | AN47: 0 | AO47: 0 | AP47: 0 | AQ47: 0 | AR47: 0 | AS47: 0 | AT47: 2.181 | AU47: 0 | AV47: 0 | AW47: 0 | AX47: 0 | AY47: 0 | AZ47: 0 | BA47: 0 | BB47: 0 | BC47: 0 | BD47: 0 | BE47: 0 | BF47: 0 | BG47: 0 | BH47: 0 | BI47: 0 | BJ47: 0 | BK47: 0 | BL47: 2.181 | BM47: ok | BN47: 0.02475509313 | BO47: 0 | BP47: 0.001826354947
A48: 2.17 | B48: Đất xây dựng cơ sở ngoại giao | C48: DNG | D48: 0 | E48: 0 | F48: 0 | G48: 0 | H48: 0 | I48: 0 | J48: 0 | K48: 0 | L48: 0 | M48: 0 | N48: 0 | O48: 0 | P48: 0 | Q48: 0 | R48: 0 | S48: 0 | T48: 0 | U48: 0 | V48: 0 | W48: 0 | X48: 0 | Y48: 0 | Z48: 0 | AA48: 0 | AB48: 0 | AC48: 0 | AD48: 0 | AE48: 0 | AF48: 0 | AG48: 0 | AH48: 0 | AI48: 0 | AJ48: 0 | AK48: 0 | AL48: 0 | AM48: 0 | AN48: 0 | AO48: 0 | AP48: 0 | AQ48: 0 | AR48: 0 | AS48: 0 | AT48: 0 | AU48: 0 | AV48: 0 | AW48: 0 | AX48: 0 | AY48: 0 | AZ48: 0 | BA48: 0 | BB48: 0 | BC48: 0 | BD48: 0 | BE48: 0 | BF48: 0 | BG48: 0 | BH48: 0 | BI48: 0 | BJ48: 0 | BK48: 0 | BL48: 0 | BM48: ok | BN48: 0 | BO48: 0 | BP48: 0
A49: 2.19 | B49: Đất xây dựng công trình sự nghiệp khác | C49: DSK | D49: 0 | E49: 0 | F49: 0 | G49: 0 | H49: 0 | I49: 0 | J49: 0 | K49: 0 | L49: 0 | M49: 0 | N49: 0 | O49: 0 | P49: 0 | Q49: 0 | R49: 0 | S49: 0 | T49: 0 | U49: 0 | V49: 0 | W49: 0 | X49: 0 | Y49: 0 | Z49: 0 | AA49: 0 | AB49: 0 | AC49: 0 | AD49: 0 | AE49: 0 | AF49: 0 | AG49: 0 | AH49: 0 | AI49: 0 | AJ49: 0 | AK49: 0 | AL49: 0 | AM49: 0 | AN49: 0 | AO49: 0 | AP49: 0 | AQ49: 0 | AR49: 0 | AS49: 0 | AT49: 0 | AU49: 0 | AV49: 0 | AW49: 0 | AX49: 0 | AY49: 0 | AZ49: 0 | BA49: 0 | BB49: 0 | BC49: 0 | BD49: 0 | BE49: 0 | BF49: 0 | BG49: 0 | BH49: 0 | BI49: 0 | BJ49: 0 | BK49: 0 | BL49: 0 | BM49: ok | BN49: 0 | BO49: 0 | BP49: 0
A50: 2.18 | B50: Đất cơ sở tôn giáo | C50: TON | D50: 1.86 | E50: 0 | F50: 0 | G50: 0 | H50: 0 | I50: 0 | J50: 0 | K50: 0 | L50: 0 | M50: 0 | N50: 0 | O50: 0 | P50: 0 | Q50: 0 | R50: 1.86 | S50: 0 | T50: 0 | U50: 0 | V50: 0 | W50: 0 | X50: 0 | Y50: 0 | Z50: 0 | AA50: 0 | AB50: 0 | AC50: 0 | AD50: 0 | AE50: 0 | AF50: 0 | AG50: 0 | AH50: 0 | AI50: 0 | AJ50: 0 | AK50: 0 | AL50: 0 | AM50: 0 | AN50: 0 | AO50: 0 | AP50: 0 | AQ50: 0 | AR50: 0 | AS50: 0 | AT50: 0 | AU50: 0 | AV50: 0 | AW50: 1.86 | AX50: 0 | AY50: 0 | AZ50: 0 | BA50: 0 | BB50: 0 | BC50: 0 | BD50: 0 | BE50: 0 | BF50: 0 | BG50: 0 | BH50: 0 | BI50: 0 | BJ50: 0 | BK50: 0 | BL50: 1.86 | BM50: ok | BN50: 0.02111163376 | BO50: 0 | BP50: 0.001557551674
A51: 2.19 | B51: Đất làm nghĩa trang, nghĩa địa, nhà tang lễ, nhà hỏa táng | C51: NTD | D51: 324.7623 | E51: 0 | F51: 0 | G51: 0 | H51: 0 | I51: 0 | J51: 0 | K51: 0 | L51: 0 | M51: 0 | N51: 0 | O51: 0 | P51: 0 | Q51: 0 | R51: 324.7623 | S51: 0 | T51: 0 | U51: 0 | V51: 0 | W51: 0 | X51: 0.05 | Y51: 0 | Z51: 0 | AA51: 0.65 | AB51: 0 | AC51: 0 | AD51: 0 | AE51: 0 | AF51: 0.12 | AG51: 0 | AH51: 0.51 | AI51: 0 | AJ51: 0.02 | AK51: 0 | AL51: 0 | AM51: 0 | AN51: 0 | AO51: 0 | AP51: 0 | AQ51: 0 | AR51: 0 | AS51: 0 | AT51: 0 | AU51: 0 | AV51: 0 | AW51: 0 | AX51: 324.0423 | AY51: 0 | AZ51: 0 | BA51: 0.02 | BB51: 0 | BC51: 0 | BD51: 0 | BE51: 0 | BF51: 0 | BG51: 0 | BH51: 0 | BI51: 0 | BJ51: 0.72 | BK51: 10.88 | BL51: 335.6423 | BM51: ok | BN51: 3.809654468 | BO51: 10.88 | BP51: 0.2810646377
A52: 2.2 | B52: Đất sản xuất vật liệu xây dựng, làm đồ gốm | C52: SKX | D52: 135.0874 | E52: 0 | F52: 0 | G52: 0 | H52: 0 | I52: 0 | J52: 0 | K52: 0 | L52: 0 | M52: 0 | N52: 0 | O52: 0 | P52: 0 | Q52: 0 | R52: 135.0874 | S52: 0 | T52: 0 | U52: 0 | V52: 0 | W52: 0 | X52: 0 | Y52: 0 | Z52: 0 | AA52: 0 | AB52: 0 | AC52: 0 | AD52: 0 | AE52: 0 | AF52: 0 | AG52: 0 | AH52: 0 | AI52: 0 | AJ52: 0 | AK52: 0 | AL52: 0 | AM52: 0 | AN52: 0 | AO52: 0 | AP52: 0 | AQ52: 0 | AR52: 0 | AS52: 0 | AT52: 0 | AU52: 0 | AV52: 0 | AW52: 0 | AX52: 0 | AY52: 135.0874 | AZ52: 0 | BA52: 0 | BB52: 0 | BC52: 0 | BD52: 0 | BE52: 0 | BF52: 0 | BG52: 0 | BH52: 0 | BI52: 0 | BJ52: 0 | BK52: 7.5 | BL52: 142.5874 | BM52: ok | BN52: 1.618415574 | BO52: 7.5 | BP52: 0.1194017438
A53: 2.21 | B53: Đất sinh hoạt cộng đồng | C53: DSH | D53: 18.7322 | E53: 0 | F53: 0 | G53: 0 | H53: 0 | I53: 0 | J53: 0 | K53: 0 | L53: 0 | M53: 0 | N53: 0 | O53: 0 | P53: 0 | Q53: 0 | R53: 18.7322 | S53: 0 | T53: 0 | U53: 0 | V53: 0 | W53: 0 | X53: 0 | Y53: 0 | Z53: 0 | AA53: 0 | AB53: 0 | AC53: 0 | AD53: 0 | AE53: 0 | AF53: 0 | AG53: 0 | AH53: 0 | AI53: 0 | AJ53: 0 | AK53: 0 | AL53: 0 | AM53: 0 | AN53: 0 | AO53: 0 | AP53: 0 | AQ53: 0 | AR53: 0 | AS53: 0 | AT53: 0 | AU53: 0 | AV53: 0 | AW53: 0 | AX53: 0 | AY53: 0 | AZ53: 18.7322 | BA53: 0 | BB53: 0 | BC53: 0 | BD53: 0 | BE53: 0 | BF53: 0 | BG53: 0 | BH53: 0 | BI53: 0 | BJ53: 0 | BK53: 0 | BL53: 18.7322 | BM53: ok | BN53: 0.2126168526 | BO53: 0 | BP53: 0.01568622014
A54: 2.22 | B54: Đất khu vui chơi, giải trí công cộng | C54: DKV | D54: 3.924 | E54: 0 | F54: 0 | G54: 0 | H54: 0 | I54: 0 | J54: 0 | K54: 0 | L54: 0 | M54: 0 | N54: 0 | O54: 0 | P54: 0 | Q54: 0 | R54: 3.924 | S54: 0 | T54: 0 | U54: 0 | V54: 0 | W54: 0 | X54: 0 | Y54: 0 | Z54: 0 | AA54: 0 | AB54: 0 | AC54: 0 | AD54: 0 | AE54: 0 | AF54: 0 | AG54: 0 | AH54: 0 | AI54: 0 | AJ54: 0 | AK54: 0 | AL54: 0 | AM54: 0 | AN54: 0 | AO54: 0 | AP54: 0 | AQ54: 0 | AR54: 0 | AS54: 0 | AT54: 0 | AU54: 0 | AV54: 0 | AW54: 0 | AX54: 0 | AY54: 0 | AZ54: 0 | BA54: 3.924 | BB54: 0 | BC54: 0 | BD54: 0 | BE54: 0 | BF54: 0 | BG54: 0 | BH54: 0 | BI54: 0 | BJ54: 0 | BK54: 446.33 | BL54: 450.254 | BM54: ok | BN54: 5.110536315 | BO54: 446.33 | BP54: 0.3770397158
A55: 2.23 | B55: Đất cơ sở tín ngưỡng | C55: TIN | D55: 6.167 | E55: 0 | F55: 0 | G55: 0 | H55: 0 | I55: 0 | J55: 0 | K55: 0 | L55: 0 | M55: 0 | N55: 0 | O55: 0 | P55: 0 | Q55: 0 | R55: 6.167 | S55: 0 | T55: 0 | U55: 0 | V55: 0 | W55: 0 | X55: 0 | Y55: 0 | Z55: 0 | AA55: 0 | AB55: 0 | AC55: 0 | AD55: 0 | AE55: 0 | AF55: 0 | AG55: 0 | AH55: 0 | AI55: 0 | AJ55: 0 | AK55: 0 | AL55: 0 | AM55: 0 | AN55: 0 | AO55: 0 | AP55: 0 | AQ55: 0 | AR55: 0 | AS55: 0 | AT55: 0 | AU55: 0 | AV55: 0 | AW55: 0 | AX55: 0 | AY55: 0 | AZ55: 0 | BA55: 0 | BB55: 6.167 | BC55: 0 | BD55: 0 | BE55: 0 | BF55: 0 | BG55: 0 | BH55: 0 | BI55: 0 | BJ55: 0 | BK55: 0 | BL55: 6.167 | BM55: ok | BN55: 0.06999755128 | BO55: 0 | BP55: 0.005164204931
A56: 2.24 | B56: Đất sông, ngòi, kênh, rạch, suối | C56: SON | D56: 2151.8772 | E56: 0 | F56: 0 | G56: 0 | H56: 0 | I56: 0 | J56: 0 | K56: 0 | L56: 0 | M56: 0 | N56: 0 | O56: 0 | P56: 0 | Q56: 0 | R56: 2151.8772 | S56: 0 | T56: 0 | U56: 0 | V56: 0 | W56: 0 | Y56: 0 | Z56: 0 | AA56: 8.98 | AB56: 0 | AC56: 0 | AD56: 0 | AE56: 0 | AF56: 4.98 | AG56: 0 | AI56: 4 | AK56: 0 | AL56: 0 | AM56: 0 | AN56: 0 | AO56: 0 | AP56: 0 | AQ56: 0.62 | AR56: 0 | AS56: 0 | AT56: 0 | AU56: 0 | AV56: 0 | AW56: 0 | AX56: 0 | AZ56: 0 | BA56: 0.52 | BB56: 0 | BC56: 2141.7572 | BD56: 0 | BE56: 0 | BF56: 0 | BG56: 0 | BH56: 0 | BI56: 0 | BJ56: 10.12 | BK56: -10.12 | BL56: 2141.7572 | BM56: ok | BN56: 24.30967398 | BO56: 10.12 | BP56: 1.793493286
A57: 2.25 | B57: Đất có mặt nước chuyên dùng | C57: MNC | D57: 123.8442 | E57: 0 | F57: 0 | G57: 0 | H57: 0 | I57: 0 | J57: 0 | K57: 0 | L57: 0 | M57: 0 | N57: 0 | O57: 0 | P57: 0 | Q57: 0 | R57: 123.8442 | S57: 0 | T57: 0 | U57: 0 | V57: 0 | W57: 0 | X57: 0 | Y57: 0 | Z57: 0 | AA57: 0.15 | AB57: 0 | AC57: 0 | AD57: 0 | AE57: 0 | AF57: 0 | AG57: 0 | AH57: 0.15 | AI57: 0 | AK57: 0 | AL57: 0 | AM57: 0 | AN57: 0 | AO57: 0 | AP57: 0 | AQ57: 0.18 | AR57: 0.03 | AS57: 0 | AT57: 0 | AU57: 0 | AV57: 0 | AW57: 0 | AX57: 0 | AY57: 0 | AZ57: 0 | BA57: 0 | BB57: 0 | BC57: 0 | BD57: 123.4842 | BE57: 0 | BF57: 0 | BG57: 0 | BH57: 0 | BI57: 0 | BJ57: 0.36 | BK57: -0.36 | BL57: 123.4842 | BM57: ok | BN57: 1.401587745 | BO57: 0.36 | BP57: 0.1034048507
A58: 2.26 | B58: Đất phi nông nghiệp khác | C58: PNK | D58: 0 | E58: 0 | F58: 0 | G58: 0 | H58: 0 | I58: 0 | J58: 0 | K58: 0 | L58: 0 | M58: 0 | N58: 0 | O58: 0 | P58: 0 | Q58: 0 | R58: 0 | S58: 0 | T58: 0 | U58: 0 | V58: 0 | W58: 0 | X58: 0 | Y58: 0 | Z58: 0 | AA58: 0 | AB58: 0 | AC58: 0 | AD58: 0 | AE58: 0 | AF58: 0 | AG58: 0 | AH58: 0 | AI58: 0 | AJ58: 0 | AK58: 0 | AL58: 0 | AM58: 0 | AN58: 0 | AO58: 0 | AP58: 0 | AQ58: 0 | AR58: 0 | AS58: 0 | AT58: 0 | AU58: 0 | AV58: 0 | AW58: 0 | AX58: 0 | AY58: 0 | AZ58: 0 | BA58: 0 | BB58: 0 | BC58: 0 | BD58: 0 | BE58: 0 | BF58: 0 | BG58: 0 | BH58: 0 | BI58: 0 | BJ58: 0 | BK58: 0 | BL58: 0 | BM58: ok | BN58: 0 | BO58: 0 | BP58: 0
A59: 3 | B59: Đất chưa sử dụng | C59: CSD | D59: 3222.839 | E59: 13.04 | F59: 0 | G59: 0 | H59: 0 | I59: 0 | J59: 0 | K59: 0 | L59: 0 | M59: 0 | N59: 0 | O59: 0 | P59: 0 | Q59: 13.04 | R59: 38.24 | S59: 2.7 | T59: 0.2 | U59: 1 | V59: 0 | W59: 0 | X59: 18.08 | Y59: 0 | Z59: 0 | AA59: 10.06 | AB59: 0 | AC59: 0 | AD59: 0 | AE59: 0.5 | AF59: 6.68 | AG59: 0 | AH59: 2.72 | AI59: 0 | AJ59: 0.16 | AK59: 0 | AL59: 0 | AM59: 0 | AN59: 0 | AO59: 0 | AP59: 0 | AQ59: 5.75 | AR59: 0.45 | AS59: 0 | AT59: 0 | AU59: 0 | AV59: 0 | AW59: 0 | AX59: 0 | AY59: 0 | AZ59: 0 | BA59: 0 | BB59: 0 | BC59: 0 | BD59: 0 | BE59: 0 | BF59: 3171.559 | BG59: 806.831 | BH59: 2323.91 | BI59: 40.818 | BJ59: 51.28 | BK59: -51.28 | BL59: 3171.559 | BM59: ok | BN59: 2.655842489 | BO59: 51.28 | BP59: 2.655842489
A60: 3.1 | B60: Đất bằng chưa sử dụng | C60: BCS | D60: 855.541 | E60: 13.04 | F60: 0 | G60: 0 | H60: 0 | I60: 0 | J60: 0 | K60: 0 | L60: 0 | M60: 0 | N60: 0 | O60: 0 | P60: 0 | Q60: 13.04 | R60: 35.67 | S60: 2.7 | T60: 0.2 | U60: 1 | V60: 0 | W60: 0 | X60: 18.08 | Y60: 0 | Z60: 0 | AA60: 10.04 | AB60: 0 | AC60: 0 | AD60: 0 | AE60: 0.5 | AF60: 6.68 | AG60: 0 | AH60: 2.7 | AI60: 0 | AJ60: 0.16 | AK60: 0 | AL60: 0 | AM60: 0 | AN60: 0 | AO60: 0 | AP60: 0 | AQ60: 3.2 | AR60: 0.45 | AS60: 0 | AT60: 0 | AU60: 0 | AV60: 0 | AW60: 0 | AX60: 0 | AY60: 0 | AZ60: 0 | BA60: 0 | BB60: 0 | BC60: 0 | BD60: 0 | BE60: 0 | BF60: 806.831 | BG60: 806.831 | BH60: 0 | BI60: 0 | BJ60: 48.71 | BK60: -48.71 | BL60: 806.831 | BM60: ok | BN60: 9.157806761 | BO60: 48.71 | BP60: 0.6756349325
A61: 3.2 | B61: Đất đồi núi chưa sử dụng | C61: DCS | D61: 2326.48 | E61: 0 | F61: 0 | G61: 0 | H61: 0 | I61: 0 | J61: 0 | K61: 0 | L61: 0 | M61: 0 | N61: 0 | O61: 0 | P61: 0 | Q61: 0 | R61: 2.57 | S61: 0 | T61: 0 | U61: 0 | V61: 0 | W61: 0 | X61: 0 | Y61: 0 | Z61: 0 | AA61: 0.02 | AB61: 0 | AC61: 0 | AD61: 0 | AE61: 0 | AF61: 0 | AG61: 0 | AH61: 0.02 | AI61: 0 | AJ61: 0 | AK61: 0 | AL61: 0 | AM61: 0 | AN61: 0 | AO61: 0 | AP61: 0 | AQ61: 2.55 | AR61: 0 | AS61: 0 | AT61: 0 | AU61: 0 | AV61: 0 | AW61: 0 | AX61: 0 | AY61: 0 | AZ61: 0 | BA61: 0 | BB61: 0 | BC61: 0 | BD61: 0 | BE61: 0 | BF61: 2323.91 | BG61: 0 | BH61: 2323.91 | BI61: 0 | BJ61: 2.57 | BK61: -2.57 | BL61: 2323.91 | BM61: ok | BN61: 26.37717032 | BO61: 2.57 | BP61: 1.946026833
A62: 3.3 | B62: Núi đá không có rừng cây | C62: NCS | D62: 40.818 | E62: 0 | F62: 0 | G62: 0 | H62: 0 | I62: 0 | J62: 0 | K62: 0 | L62: 0 | M62: 0 | N62: 0 | O62: 0 | P62: 0 | Q62: 0 | R62: 0 | S62: 0 | T62: 0 | U62: 0 | V62: 0 | W62: 0 | X62: 0 | Y62: 0 | Z62: 0 | AA62: 0 | AB62: 0 | AC62: 0 | AD62: 0 | AE62: 0 | AF62: 0 | AG62: 0 | AH62: 0 | AI62: 0 | AJ62: 0 | AK62: 0 | AL62: 0 | AM62: 0 | AN62: 0 | AO62: 0 | AP62: 0 | AQ62: 0 | AR62: 0 | AS62: 0 | AT62: 0 | AU62: 0 | AV62: 0 | AW62: 0 | AX62: 0 | AY62: 0 | AZ62: 0 | BA62: 0 | BB62: 0 | BC62: 0 | BD62: 0 | BE62: 0 | BF62: 40.818 | BG62: 0 | BH62: 0 | BI62: 40.818 | BJ62: 0 | BK62: 0 | BL62: 40.818 | BM62: ok | BN62: 0.4632982079 | BO62: 0 | BP62: 0.0341807227
B63: Cộng tăng | E63: 13.38 | F63: 0 | G63: 0 | H63: 0 | I63: 0 | J63: 0 | K63: 0 | L63: 0 | M63: 0 | N63: 0 | O63: 0.25 | P63: 0 | Q63: 59.49 | R63: 1253.57 | S63: 54.7 | T63: 0.2 | U63: 20 | V63: 0 | W63: 0 | X63: 295.9 | Y63: 2.12 | Z63: 0 | AA63: 335.83 | AB63: 0.13 | AC63: 0 | AD63: 0 | AE63: 1.66 | AF63: 252.67 | AG63: 0 | AH63: 70.91 | AI63: 6 | AJ63: 6.48 | AK63: 4.1 | AL63: 0 | AM63: 0 | AN63: 0 | AO63: 0 | AP63: 0 | AQ63: 87.2 | AR63: 12.48 | AS63: 0.07 | AT63: 0 | AU63: 0 | AV63: 0 | AW63: 0 | AX63: 11.6 | AY63: 7.5 | AZ63: 0 | BA63: 446.33 | BB63: 0 | BC63: 0 | BD63: 0 | BE63: 0 | BF63: 0 | BG63: 0 | BH63: 0 | BI63: 0 | BJ63: 1266.95 | BO63: 0 | BP63: 0
B64: Diện tích cuối kỳ, năm 2020 | D64: 119418.1889 | E64: 107436.3217 | F64: 5295.2475 | G64: 4970.2285 | H64: 0 | I64: 325.019 | J64: 2306.264 | K64: 628.844 | L64: 53648.265 | M64: 0 | N64: 44955.4829 | O64: 460.8645 | P64: 0 | Q64: 141.3538 | R64: 8810.3082 | S64: 191.5152 | T64: 1.917 | U64: 41.9302 | V64: 0 | W64: 0 | X64: 815.474 | Y64: 55.901 | Z64: 0 | AA64: 3584.5582 | AB64: 1.985 | AC64: 0 | AD64: 4.6694 | AE64: 66.7356 | AF64: 279.6686 | AG64: 0 | AH64: 1604.6841 | AI64: 1453.0733 | AJ64: 160.1236 | AK64: 5.2278 | AL64: 8.3908 | AM64: 139.022 | AN64: 0 | AO64: 5.2604 | AP64: 0 | AQ64: 697.5793 | AR64: 41.84 | AS64: 12.6456 | AT64: 2.181 | AU64: 0 | AV64: 0 | AW64: 1.86 | AX64: 335.6423 | AY64: 142.5874 | AZ64: 18.7322 | BA64: 450.254 | BB64: 6.167 | BC64: 2141.7572 | BD64: 123.4842 | BE64: 0 | BF64: 3171.559 | BG64: 806.831 | BH64: 2323.91 | BI64: 40.818 | BK64: -1.000444172e-11 | BL64: 119418.1889 | BM64: sai | BO64: 1.000444172e-11 | BP64: 100

Sheet đt
A1: đt | B1: Ẩn công việc điều tra | C1: QH
A2: Biểu 10/CH:
B3: DANH MỤC CÔNG TRÌNH, DỰ ÁN TRONG KẾ HOẠCH SỬ DỤNG ĐẤT NĂM 2020 CỦA HUYỆN QUẢNG NINH - TỈNH QUẢNG BÌNH
A5: Thứ tự | B5: Tên công trình | C5: Mã quy hoạch | D5: vị trí (xã, phường, thị trấn) | E5: Diện tích | F5: LẤY VÀO LOẠI ĐẤT | BG5: Số tờ, Số thửa
F6: LUC | G6: LUN | H6: LUK | I6: HNK | J6: CLN | K6: RPH | L6: RDD | M6: RSX | N6: NTS | O6: LMU | P6: NKH | Q6: CQP | R6: CAN | S6: SKK | T6: SKN | U6: SKT | V6: TMD | W6: SKC | X6: SKS | Y6: DHT | Z6: DVH | AA6: DXH | AB6: DYT | AC6: DGD | AD6: DTT | AE6: DKH | AF6: DGT | AG6: DTL | AH6: DNL | AI6: DBV | AJ6: DCH | AK6: DDT | AL6: DDL | AM6: DRA | AN6: DCK | AO6: ONT | AP6: ODT | AQ6: TSC | AR6: DTS | AS6: DNG | AT6: DSK | AU6: TON | AV6: NTD | AW6: SKX | AX6: DSH | AY6: DKV | AZ6: TIN | BA6: SON | BB6: MNC | BC6: PNK | BD6: BCS | BE6: DCS | BF6: NCS
L7: QH | O7: QH | Q7: QH | R7: QH | S7: QH | U7: QH | X7: QH | AA7: QH | AB7: QH | AE7: QH | AH7: QH | AI7: QH | AK7: QH | AL7: QH | AM7: QH | AN7: QH | AS7: QH | AT7: QH | AU7: QH | AW7: QH | AY7: QH | AZ7: QH | BC7: QH
A8: I | B8: Đất quốc phòng | E8: =SUM(E9:E12) -> 54.7 | F8: =SUM(F9:F12) -> 0 | G8: 0 | H8: 0 | I8: 0 | J8: 0 | K8: 13 | L8: 0 | M8: 39 | N8: 0 | O8: 0 | P8: 0 | Q8: 0 | R8: 0 | S8: 0 | T8: 0 | U8: 0 | V8: 0 | W8: 0 | X8: 0 | Y8: 0 | Z8: 0 | AA8: 0 | AB8: 0 | AC8: 0 | AD8: 0 | AE8: 0 | AF8: 0 | AG8: 0 | AH8: 0 | AI8: 0 | AJ8: 0 | AK8: 0 | AL8: 0 | AM8: 0 | AN8: 0 | AO8: 0 | AP8: 0 | AQ8: 0 | AR8: 0 | AS8: 0 | AT8: 0 | AU8: 0 | AV8: 0 | AW8: 0 | AX8: 0 | AY8: 0 | AZ8: 0 | BA8: 0 | BB8: 0 | BC8: 0 | BD8: 2.7 | BE8: 0 | BF8: 0
A9: ok | B9: Thao trường huấn luyện kỹ thuật chiến đấu bộ binh bờ bắn biển | C9: CQP | D9: Hải Ninh | E9: =SUM(F9:Y9,AK9:BF9) -> 2.7 | Y9: =SUM(Z9:AJ9) -> 0 | BD9: 2.7
A10: ok | B10: Căn cứ hậu cần kỹ thuật | C10: CQP | D10: Trường Xuân | E10: =SUM(F10:Y10,AK10:BF10) -> 13 | K10: 13 | Y10: =SUM(Z10:AJ10) -> 0
A11: ok | B11: Khu tập trung quân dự bị | C11: CQP | D11: Vĩnh Ninh | E11: 35 | M11: 35 | Y11: 0
A12: ok | B12: Sở chỉ huy diễn tập | C12: CQP | D12: Vĩnh Ninh | E12: 4 | M12: 4 | Y12: 0
A13: II | B13: Đất an ninh | E13: =SUM(E14:E14) -> 0.2 | F13: 0 | G13: 0 | H13: 0 | I13: 0 | J13: 0 | K13: 0 | L13: 0 | M13: 0 | N13: 0 | O13: 0 | P13: 0 | Q13: 0 | R13: 0 | S13: 0 | T13: 0 | U13: 0 | V13: 0 | W13: 0 | X13: 0 | Y13: 0 | Z13: 0 | AA13: 0 | AB13: 0 | AC13: 0 | AD13: 0 | AE13: 0 | AF13: 0 | AG13: 0 | AH13: 0 | AI13: 0 | AJ13: 0 | AK13: =SUM(AK14:AK14) -> 0 | AL13: 0 | AM13: 0 | AN13: 0 | AO13: 0 | AP13: 0 | AQ13: 0 | AR13: 0 | AS13: 0 | AT13: 0 | AU13: 0 | AV13: 0 | AW13: 0 | AX13: 0 | AY13: 0 | AZ13: 0 | BA13: 0 | BB13: 0 | BC13: 0 | BD13: 0.2 | BE13: 0 | BF13: 0
A14: ok | B14: Nhà trực công an xã | C14: CAN | D14: Hải Ninh | E14: =SUM(F14:Y14,AK14:BF14) -> 0.2 | Y14: 0 | BD14: 0.2
A15: III | B15: Đất ở tại đô thị | E15: =SUM(E16:E22) -> 12.48 | F15: 3.22 | G15: 0 | H15: 0.4 | I15: 7.45 | J15: 0 | K15: 0 | L15: 0 | M15: 0 | N15: 0 | O15: 0 | P15: 0 | Q15: 0 | R15: 0 | S15: 0 | T15: 0 | U15: 0 | V15: 0 | W15: 0.1 | X15: 0 | Y15: 0.63 | Z15: 0 | AA15: 0 | AB15: 0 | AC15: 0 | AD15: 0 | AE15: 0 | AF15: 0.53 | AG15: 0.1 | AH15: 0 | AI15: 0 | AJ15: 0 | AK15: =SUM(AK16:AK22) -> 0 | AL15: 0 | AM15: 0 | AN15: 0 | AO15: 0 | AP15: 0 | AQ15: 0.2 | AR15: 0 | AS15: 0 | AT15: 0 | AU15: 0 | AV15: 0 | AW15: 0 | AX15: 0 | AY15: 0 | AZ15: 0 | BA15: 0 | BB15: 0.03 | BC15: 0 | BD15: 0.45 | BE15: 0 | BF15: 0
B16: Đất ở tại đô thị thuộc dự án Khu nhà ở thương mại tại vùng Ruộng Nhất | C16: ODT | D16: Thị trấn Quán Hàu | E16: =SUM(F16:Y16,AK16:BF16) -> 2.65 | F16: 2.6 | Y16: =SUM(Z16:AJ16) -> 0.05 | AF16: 0.02 | AG16: 0.03
A17: ok | B17: Dự án tạo quỹ đất - vùng Đồng Hang - giai đoạn 2 | C17: ODT | D17: Thị trấn Quán Hàu | E17: 3.95 | F17: 0.12 | I17: 3.39 | Y17: =SUM(Z17:AJ17) -> 0.44 | AF17: 0.44
B18: Đất ở tại đô thị thuộc dự án Khu nhà ở thương mại Đá Lả | C18: ODT | D18: Thị trấn Quán Hàu | E18: 2.85 | I18: 2.8 | Y18: =SUM(Z18:AJ18) -> 0.05 | AF18: 0.05
A20: ok | B20: Đất ở tại đô thị | C20: ODT | D20: Thị trấn Quán Hàu | E20: 1.41 | F20: 0.3 | H20: 0.4 | I20: 0.42 | Y20: 0.08 | AF20: 0.01 | AG20: 0.07 | BB20: 0.03 | BD20: 0.18
A21: ok | B21: Đất ở tại đô thị | C21: ODT | D21: Thị trấn Quán Hàu | E21: 1.12 | F21: 0.2 | I21: 0.34 | W21: 0.1 | Y21: 0.01 | AF21: 0.01 | AQ21: 0.2 | BD21: 0.27
A22: ok | B22: Chuyển mục đích đất ở nông nghiệp sang đất ở tại đô thị | C22: ODT | D22: Thị trấn Quán Hàu | E22: 0.5 | I22: 0.5 | Y22: 0
A23: IV | B23: Đất ở tại nông thôn | E23: =SUM(E24:E63) -> 87.2 | F23: 10.36 | G23: 0 | H23: 0.83 | I23: 6.54 | J23: 0.51 | K23: 0 | L23: 0 | M23: 60 | N23: 0.28 | O23: 0 | P23: 0 | Q23: 0 | R23: 0 | S23: 0 | T23: 0 | U23: 0 | V23: 0 | W23: 0 | X23: 0 | Y23: 2.13 | Z23: 0 | AA23: 0 | AB23: 0 | AC23: 0.45 | AD23: 0 | AE23: 0 | AF23: 1.36 | AG23: 0.32 | AH23: 0 | AI23: 0 | AJ23: 0 | AK23: =SUM(AK24:AK63) -> 0 | AL23: 0 | AM23: 0 | AN23: 0 | AO23: 0 | AP23: 0 | AQ23: 0 | AR23: 0 | AS23: 0 | AT23: 0 | AU23: 0 | AV23: 0 | AW23: 0 | AX23: 0 | AY23: 0 | AZ23: 0 | BA23: 0.62 | BB23: 0.18 | BC23: 0 | BD23: 3.2 | BE23: 2.55 | BF23: 0
A25: 2 | B25: Dự án Khu đô thị Dinh Mười (các lô OM411, TM-VP11, TM-VP13) | C25: ONT | D25: Võ Ninh | E25: 5.5 | M25: 5.5 | Y25: 0
A26: 3 | B26: Hạ tầng kỹ thuật khu đất ở mới thuộc Quy hoạch chung đô thị Dinh Mười (lô OM 47) | C26: ONT | D26: Võ Ninh | E26: 3.9 | M26: 3.9 | Y26: 0
A27: 4 | B27: Dự án khu dân cư Hà Thiệp - Bắc Ninh | C27: ONT | D27: Võ Ninh | E27: 4.6 | M27: 2.02 | Y27: =SUM(Z27:AJ27) -> 0.03 | AF27: 0.03 | BE27: 2.55
A28: 5 | B28: Khu dân cư Bắc Ninh 3, xã Võ Ninh | C28: ONT | D28: Võ Ninh | E28: 4.89 | M28: 4.75 | Y28: =SUM(Z28:AJ28) -> 0.14 | AF28: 0.14
A29: 6 | B29: Dự án khu dân cư Bắc Ninh - xã Võ Ninh | C29: ONT | D29: Võ Ninh | E29: 9.8 | M29: 9.64 | Y29: =SUM(Z29:AJ29) -> 0.16 | AF29: 0.16
A31: 8 | B31: Đất ở tại nông thôn | C31: ONT | D31: Võ Ninh | E31: 1.64 | I31: 0.65 | J31: 0.05 | M31: 0.78 | N31: 0.12 | Y31: 0 | BD31: 0.04
A32: 9 | B32: Chuyển mục đích đất nông nghiệp sang đất ở tại nông thôn | C32: ONT | D32: Võ Ninh | E32: 0.13 | M32: 0.07 | N32: 0.06 | Y32: 0
A33: 10 | B33: Đất ở tại nông thôn | C33: ONT | D33: Duy Ninh | E33: 1.4 | F33: 0.66 | I33: 0.23 | J33: 0.24 | N33: 0.1 | Y33: 0.1 | AF33: 0.1 | BD33: 0.07
A34: 11 | B34: Chuyển mục đích đất nông nghiệp sang đất ở tại nông thôn | C34: ONT | D34: Duy Ninh | E34: 0.15 | I34: 0.15 | Y34: 0
A35: 12 | B35: HTKT các khu đất ở, dịch vụ thương mại và đất sản xuất nông nghiệp | C35: ONT | D35: Hải Ninh | E35: 20.33 | M35: 19.73 | Y35: 0.04 | AF35: 0.04 | BA35: 0.56
A36: 13 | B36: Hạ tầng kỹ thuật các khu đất ở và các khu thương mại dịch vụ phía Bắc dự án FLC Quảng Bình | C36: ONT | D36: Hải Ninh | E36: 8.63 | M36: 8.63 | Y36: 0
A37: 14 | B37: Đất ở tại nông thôn | C37: ONT | D37: Hải Ninh | E37: 1.2 | M37: 1 | BD37: 0.2
A38: 15 | B38: Chuyển mục đích đất nông nghiệp sang đất ở tại nông thôn | C38: ONT | D38: Hải Ninh | E38: 1.6 | M38: 1.6
A39: 16 | B39: Hạ tầng kỹ thuật tạo quỹ đất tại xã Vĩnh Ninh | C39: ONT | D39: Vĩnh Ninh | E39: 4.81 | F39: 3.79 | I39: 0.38 | Y39: =SUM(Z39:AJ39) -> 0.64 | AF39: 0.53 | AG39: 0.11
A40: 17 | B40: Đất ở tại nông thôn | C40: ONT | D40: Vĩnh Ninh | E40: 1.04 | H40: 0.83 | Y40: =SUM(Z40:AJ40) -> 0.21 | AF40: 0.2 | AG40: 0.01
A41: 18 | B41: Chuyển mục đích đất nông nghiệp sang đất ở tại nông thôn | C41: ONT | D41: Vĩnh Ninh | E41: 0.55 | I41: 0.3 | M41: 0.25
A42: 19 | B42: Đất ở tại nông thôn | C42: ONT | D42: An Ninh | E42: 1.4 | F42: 0.78 | I42: 0.26 | Y42: =SUM(Z42:AJ42) -> 0.13 | AC42: 0.13 | BD42: 0.23
A43: 20 | B43: Chuyển mục đích đất nông nghiệp sang đất ở tại nông thôn | C43: ONT | D43: An Ninh | E43: 0.35 | I43: 0.23 | J43: 0.02 | M43: 0.1 | Y43: 0
A44: 21 | B44: Đất ở tại nông thôn | C44: ONT | D44: Gia Ninh | E44: 1.03 | F44: 0.8 | I44: 0.07 | Y44: 0 | BA44: 0.06 | BD44: 0.1
A45: 22 | B45: Chuyển mục đích đất nông nghiệp sang đất ở tại nông thôn | C45: ONT | D45: Gia Ninh | E45: 0.2 | I45: 0.2 | Y45: 0
A46: 23 | B46: Đất ở tại nông thôn (thôn Quyết Tiến, thôn Hàm Hoà, thôn Trần Xá, thôn Hà Kiên, thôn Trường Niên) | C46: ONT | D46: Hàm Ninh | E46: 1.14 | F46: 0.69 | I46: 0.15 | Y46: 0.05 | AC46: 0.05 | BB46: 0.18 | BD46: 0.07
A47: 24 | B47: Chuyển mục đích đất nông nghiệp sang đất ở tại nông thôn | C47: ONT | D47: Hàm Ninh | E47: 0.46 | I47: 0.46 | Y47: 0
A48: 25 | B48: Đất ở tại nông thôn | C48: ONT | D48: Hiền Ninh | E48: 1.35 | F48: 1.14 | I48: 0.21
A49: 26 | B49: Chuyển mục đích đất nông nghiệp sang đất ở tại nông thôn | C49: ONT | D49: Hiền Ninh | E49: 0.5 | M49: 0.5
A50: 27 | B50: Đất ở tại nông thôn | C50: ONT | D50: Lương Ninh | E50: 1.21 | F50: 0.41 | I50: 0.5 | Y50: 0.1 | AF50: 0.05 | AG50: 0.05 | BD50: 0.2
A51: 28 | B51: Chuyển mục đích đất nông nghiệp sang đất ở tại nông thôn | C51: ONT | D51: Lương Ninh | E51: 0.3 | I51: 0.3
A52: 29 | B52: Đất ở tại nông thôn (thôn Quảng Xá) | C52: ONT | D52: Tân Ninh | E52: 0.86 | F52: 0.74 | Y52: 0.12 | AG52: 0.12
A53: 30 | B53: Đất ở tại nông thôn (thôn Quảng Xá) CT từ KH 2019 | C53: ONT | D53: Tân Ninh | E53: 0.89 | F53: 0.82 | Y53: 0.06 | AF53: 0.03 | AG53: 0.03 | BD53: 0.01
A54: 31 | B54: Chuyển mục đích đất nông nghiệp sang đất ở tại nông thôn | C54: ONT | D54: Tân Ninh | E54: 0.1 | I54: 0.1 | Y54: 0
A55: 32 | B55: Đất ở tại nông thôn | C55: ONT | D55: Trường Sơn | E55: 1.2 | I55: 0.3 | J55: 0.2 | M55: 0.5 | Y55: 0 | BD55: 0.2
A56: 33 | B56: Chuyển mục đích đất nông nghiệp sang đất ở tại nông thôn | C56: ONT | D56: Trường Sơn | E56: 0.2 | M56: 0.2
A57: 34 | B57: Đất ở tại nông thôn | C57: ONT | D57: Trường Xuân | E57: 1.63 | F57: 0.1 | I57: 1.01 | M57: 0.35 | Y57: 0 | BD57: 0.17
A58: 35 | B58: Đất ở tái định cư phục vụ di dời các hộ có nhà dưới đường dây 500kV tại xã Trường Xuân | C58: ONT | D58: Trường Xuân | E58: 0.2 | BD58: 0.2
A59: 36 | B59: Chuyển mục đích đất nông nghiệp sang đất ở tại nông thôn | C59: ONT | D59: Trường Xuân | E59: 0.52 | I59: 0.08 | M59: 0.44 | Y59: 0
A60: 37 | B60: Đất ở tại nông thôn | C60: ONT | D60: Vạn Ninh | E60: 2.37 | I60: 0.31 | Y60: 0.35 | AC60: 0.27 | AF60: 0.08 | BD60: 1.71
A61: 38 | B61: Chuyển mục đích đất nông nghiệp sang đất ở tại nông thôn | C61: ONT | D61: Vạn Ninh | E61: 0.15 | I61: 0.15 | Y61: 0
A62: 39 | B62: Đất ở tại nông thôn | C62: ONT | D62: Xuân Ninh | E62: 0.43 | F62: 0.43 | Y62: 0
A63: 40 | B63: Chuyển mục đích đất nông nghiệp sang đất ở tại nông thôn | C63: ONT | D63: Xuân Ninh | E63: 0.54 | I63: 0.5 | M63: 0.04 | Y63: 0
A64: V | B64: Đất xây dựng trụ sở cơ quan | E64: =SUM(E65:E65) -> 0.07 | F64: 0 | G64: 0 | H64: 0 | I64: 0 | J64: 0.04 | K64: 0 | L64: 0 | M64: 0 | N64: 0 | O64: 0 | P64: 0 | Q64: 0 | R64: 0 | S64: 0 | T64: 0 | U64: 0 | V64: 0 | W64: 0 | X64: 0 | Y64: 0.03 | Z64: 0 | AA64: 0 | AB64: 0 | AC64: 0 | AD64: 0 | AE64: 0 | AF64: 0.03 | AG64: 0 | AH64: 0 | AI64: 0 | AJ64: 0 | AK64: =SUM(AK65:AK65) -> 0 | AL64: 0 | AM64: 0 | AN64: 0 | AO64: 0 | AP64: 0 | AQ64: 0 | AR64: 0 | AS64: 0 | AT64: 0 | AU64: 0 | AV64: 0 | AW64: 0 | AX64: 0 | AY64: 0 | AZ64: 0 | BA64: 0 | BB64: 0 | BC64: 0 | BD64: 0 | BE64: 0 | BF64: 0
A65: ok | B65: Trạm kiểm lâm Trường Xuân | C65: TSC | D65: Trường Xuân | E65: =SUM(F65:Y65,AK65:BF65) -> 0.07 | J65: 0.04 | Y65: =SUM(Z65:AJ65) -> 0.03 | AF65: 0.03
A66: VI | B66: Đất thương mại, dịch vụ | E66: =SUM(E67:E83) -> 301.66 | F66: =SUM(F67:F83) -> 0.46 | G66: 0 | H66: 0 | I66: 5 | J66: 0.61 | K66: 0 | L66: 0 | M66: 241.98 | N66: 25.22 | O66: 0 | P66: 0 | Q66: 0 | R66: 0 | S66: 0 | T66: 0 | U66: 0 | V66: 0 | W66: 0 | X66: 0 | Y66: 4.46 | Z66: 0 | AA66: 0 | AB66: 0 | AC66: 0 | AD66: 0 | AE66: 0 | AF66: 4.36 | AG66: 0.1 | AH66: 0 | AI66: 0 | AJ66: 0 | AK66: 0 | AL66: 0 | AM66: 0 | AN66: 0 | AO66: 0.04 | AP66: 0 | AQ66: 0 | AR66: 0 | AS66: 0 | AT66: 0 | AU66: 0 | AV66: 0.05 | AW66: 0 | AX66: 0 | AY66: 0 | AZ66: 0 | BA66: 5.76 | BB66: 0 | BC66: 0 | BD66: 18.08 | BE66: 0 | BF66: 0
A67: 1 | B67: Đất thương mại dịch vụ (CT từ KH 2018) | C67: TMD | D67: Thị trấn Quán Hàu | E67: =SUM(F67:Y67,AK67:BF67) -> 2 | I67: 1.89 | Y67: =SUM(Z67:AJ67) -> 0.1 | AF67: 0.1 | AV67: 0.01
A68: 2 | B68: Cửa hàng xăng dầu tại Km669 - Km670 (phải tuyến) trên tuyến đường tránh thành phố Đồng Hới | C68: TMD | D68: Lương Ninh | E68: 0.89 | I68: 0.86 | Y68: 0.03 | AF68: 0.03
A69: 3 | B69: Khu biệt thự nghỉ dưỡng FLC Hải Ninh (CT từ KH.2018) | C69: TMD | D69: Hải Ninh | E69: 94.19 | M69: 72.46 | N69: 13.01 | Y69: 1.33 | AF69: 1.33 | BA69: 2.07 | BD69: 5.32
A70: 4 | B70: Khu biệt thự sinh thái và nghỉ dưỡng cao cấp Hải Ninh (CT từ KH.2018) | C70: TMD | D70: Hải Ninh | E70: 74.94 | M70: 61.88 | N70: 10.47 | Y70: 0.7 | AF70: 0.7 | BA70: 1.67 | BD70: 0.22
A71: 5 | B71: Khu biệt thự sinh thái và nghỉ dưỡng cao cấp FLC Faros (CT từ KH.2018) | C71: TMD | D71: Hải Ninh | E71: 91.03 | M71: 87.86 | N71: 0.49 | Y71: 0.55 | AF71: 0.55 | BA71: 1.99 | BD71: 0.14
A72: 6 | B72: Khu biệt thự nghỉ dưỡng FLC Hải Ninh 2 | C72: TMD | D72: Hải Ninh | E72: 13.01 | I72: 0.01 | M72: 11.59 | Y72: 1.3 | AF72: 1.3 | AO72: 0.04 | AV72: 0.04 | BA72: 0.03
A73: 7 | B73: Dự án xây dựng công trình Club House của Công ty Cổ phần Tập đoàn FLC | C73: TMD | D73: Hải Ninh | E73: 3.54 | M73: 3.19 | Y73: 0.35 | AF73: 0.35
A74: 8 | B74: Đất thương mại dịch vụ | C74: TMD | D74: Hải Ninh | E74: 3 | M74: 3 | Y74: 0
B75: Đất thương mại dịch vụ | C75: TMD | D75: An Ninh | E75: 0.1 | Y75: 0.1 | AG75: 0.1
B76: Đất thương mại dịch vụ | C76: TMD | D76: Vạn Ninh | E76: 0.93 | I76: 0.13 | BD76: 0.8
A77: 10 | B77: Mở rộng bãi tắm xã Hải Ninh | C77: TMD | D77: Hải Ninh | E77: 11.6 | BD77: 11.6
A78: 11 | B78: Trụ sở Công ty CP Xây dựng và TV Bình Lợi | C78: TMD | D78: Trường Xuân | E78: 0.5 | M78: 0.5
A79: 12 | B79: Trạm kinh doanh xăng dầu Trường Thịnh trên tuyến đường tránh lũ của Công ty CP Tập đoàn Trường Thịnh | C79: TMD | D79: Võ Ninh | E79: 1.5 | M79: 1.5 | Y79: 0
A80: 13 | B80: Cửa hàng xăng dầu Xuân Ninh của Công ty TNHH Hải Vân ( CT từ KH 2018) | C80: TMD | D80: Xuân Ninh | E80: 0.2 | I80: 0.2 | Y80: 0
A81: 14 | B81: Đất thương mại dịch vụ (thuộc dự án Cơ sở kinh doanh mua bán cá giống của bà Nguyễn Thị Hương) | C81: TMD | D81: Gia Ninh | E81: 0.15 | F81: 0.15
B82: Mở rộng Cửa hàng Xăng dầu Lương Ninh của Công ty Xăng dầu Quảng Bình | C82: TMD | D82: Lương Ninh | E82: 0.31 | F82: 0.31
B83: Khu du lịch sinh thái vui chơi, nghỉ dưỡng Quán Hàu của Công ty Cổ phần tổng hợp Thành Phước | C83: TMD | D83: Võ Ninh | E83: 3.77 | I83: 1.91 | J83: 0.61 | N83: 1.25
A84: VII | B84: Đất khu công nghiệp | E84: =E85+E86+E87 -> 20 | F84: =F85+F86+F87 -> 5.97 | G84: 0 | H84: 0 | I84: 10 | J84: 0 | K84: 0 | L84: 0 | M84: 2.03 | N84: 1 | O84: 0 | P84: 0 | Q84: 0 | R84: 0 | S84: 0 | T84: 0 | U84: 0 | V84: 0 | W84: 0 | X84: 0 | Y84: 0 | Z84: 0 | AA84: 0 | AB84: 0 | AC84: 0 | AD84: 0 | AE84: 0 | AF84: 0 | AG84: 0 | AH84: 0 | AI84: 0 | AJ84: 0 | AK84: 0 | AL84: 0 | AM84: 0 | AN84: 0 | AO84: 0 | AP84: 0 | AQ84: 0 | AR84: 0 | AS84: 0 | AT84: 0 | AU84: 0 | AV84: 0 | AW84: 0 | AX84: 0 | AY84: 0 | AZ84: 0 | BA84: 0 | BB84: 0 | BC84: 0 | BD84: 1 | BE84: 0 | BF84: 0
A85: ok | B85: Xây dựng cơ sở hạ tầng và thu hút đầu tư KCN Tây Bắc Quán Hàu | C85: SKK | D85: Thị trấn Quán Hàu | E85: =SUM(F85:Y85,AK85:BF85) -> 11 | I85: 10 | N85: 1
A86: ok | B86: Xây dựng cơ sở hạ tầng và thu hút đầu tư KCN Tây Bắc Quán Hàu | C86: SKK | D86: Lương Ninh | E86: 5 | F86: 1.97 | M86: 2.03 | BD86: 1
A87: ok | B87: Xây dựng cơ sở hạ tầng và thu hút đầu tư KCN Tây Bắc Quán Hàu | C87: SKK | D87: Vĩnh Ninh | E87: 4 | F87: 4
A88: VIII | B88: Đất cơ sở sản xuất phi nông nghiệp | E88: =SUM(E89:E94) -> 2.12 | F88: 0 | G88: 0 | H88: 0 | I88: 0.62 | J88: 1.5 | K88: 0 | L88: 0 | M88: 0 | N88: 0 | O88: 0 | P88: 0 | Q88: 0 | R88: 0 | S88: 0 | T88: 0 | U88: 0 | V88: 0 | W88: 0 | X88: 0 | Y88: 0 | Z88: 0 | AA88: 0 | AB88: 0 | AC88: 0 | AD88: 0 | AE88: 0 | AF88: 0 | AG88: 0 | AH88: 0 | AI88: 0 | AJ88: 0 | AK88: =SUM(AK89:AK94) -> 0 | AL88: 0 | AM88: 0 | AN88: 0 | AO88: 0 | AP88: 0 | AQ88: 0 | AR88: 0 | AS88: 0 | AT88: 0 | AU88: 0 | AV88: 0 | AW88: 0 | AX88: 0 | AY88: 0 | AZ88: 0 | BA88: 0 | BB88: 0 | BC88: 0 | BD88: 0 | BE88: 0 | BF88: 0
A91: ok | B91: Bãi tập kết vật liệu xây dựng của Công ty TNHH Thục Linh (Lèn Con Rào Trù) | C91: SKC | D91: Trường Xuân | E91: =SUM(F91:Y91,AK91:BF91) -> 0.62 | I91: 0.62 | Y91: =SUM(Z91:AJ91) -> 0
A92: ok | B92: Bãi tập kết vật liệu xây dựng của Công ty TNHH VT &TM Hoà Phát (Lèn Khe Ngang) | C92: SKC | D92: Trường Xuân | E92: 1.5 | J92: 1.5 | Y92: 0
A95: IX | B95: Đất nghĩa trang, nghĩa địa | E95: =SUM(E96:E98) -> 11.6 | F95: =SUM(F96:F98) -> 0 | G95: 0 | H95: 0 | I95: 0 | J95: 0 | K95: 0 | L95: 0 | M95: 11.6 | N95: 0 | O95: 0 | P95: 0 | Q95: 0 | R95: 0 | S95: 0 | T95: 0 | U95: 0 | V95: 0 | W95: 0 | X95: 0 | Y95: 0 | Z95: 0 | AA95: 0 | AB95: 0 | AC95: 0 | AD95: 0 | AE95: 0 | AF95: 0 | AG95: 0 | AH95: 0 | AI95: 0 | AJ95: 0 | AK95: 0 | AL95: 0 | AM95: 0 | AN95: 0 | AO95: 0 | AP95: 0 | AQ95: 0 | AR95: 0 | AS95: 0 | AT95: 0 | AU95: 0 | AV95: 0 | AW95: 0 | AX95: 0 | AY95: 0 | AZ95: 0 | BA95: 0 | BB95: 0 | BC95: 0 | BD95: 0 | BE95: 0 | BF95: 0
A96: ok | B96: Quy hoạch nghĩa trang thôn Áng Sơn | C96: NTD | D96: Vạn Ninh | E96: =SUM(F96:Y96,AK96:BF96) -> 1.3 | M96: 1.3 | Y96: =SUM(Z96:AJ96) -> 0
A97: ok | B97: Đất nghĩa địa thôn Phúc Nhĩ | C97: NTD | D97: An Ninh | E97: 0.3 | M97: 0.3 | Y97: 0
A98: ok | B98: Nghĩa trang xã Gia Ninh | C98: NTD | D98: Gia Ninh | E98: 10 | M98: 10 | Y98: 0
A99: X | B99: Đất phát triển hạ tầng | E99: =E100+E125+E129+E154+E160+E163+E165+E172 -> 342.08 | F99: 15.09 | G99: 0 | H99: 0 | I99: 8.51 | J99: 0.09 | K99: 10.66 | L99: 0 | M99: 268.22 | N99: 13.13 | O99: 0 | P99: 0 | Q99: 0 | R99: 0 | S99: 0 | T99: 0 | U99: 0 | V99: 0 | W99: 0 | X99: 0 | Y99: 6.25 | Z99: 0 | AA99: 0 | AB99: 0 | AC99: 0 | AD99: 0.15 | AE99: 0 | AF99: 4.41 | AG99: 1.69 | AH99: 0 | AI99: 0 | AJ99: 0 | AK99: =AK100+AK125+AK129+AK154+AK160+AK163+AK165+AK172 -> 0 | AL99: 0 | AM99: 0 | AN99: 0 | AO99: 0.29 | AP99: 0 | AQ99: 0 | AR99: 0 | AS99: 0 | AT99: 0 | AU99: 0 | AV99: 0.65 | AW99: 0 | AX99: 0 | AY99: 0 | AZ99: 0 | BA99: 8.98 | BB99: 0.15 | BC99: 0 | BD99: 10.04 | BE99: 0.02 | BF99: 0
A100: 10.1 | B100: Đất giao thông | E100: =SUM(E101:E124) -> 71.04 | F100: =SUM(F101:F124) -> 8.27 | G100: 0 | H100: 0 | I100: 7.16 | J100: 0 | K100: 10.66 | L100: 0 | M100: 38.91 | N100: 0.78 | O100: 0 | P100: 0 | Q100: 0 | R100: 0 | S100: 0 | T100: 0 | U100: 0 | V100: 0 | W100: 0 | X100: 0 | Y100: 1.77 | Z100: 0 | AA100: 0 | AB100: 0 | AC100: 0 | AD100: 0 | AE100: 0 | AF100: 0.13 | AG100: 1.64 | AH100: 0 | AI100: 0 | AJ100: 0 | AK100: 0 | AL100: 0 | AM100: 0 | AN100: 0 | AO100: 0.11 | AP100: 0 | AQ100: 0 | AR100: 0 | AS100: 0 | AT100: 0 | AU100: 0 | AV100: 0.51 | AW100: 0 | AX100: 0 | AY100: 0 | AZ100: 0 | BA100: 0 | BB100: 0.15 | BC100: 0 | BD100: 2.7 | BE100: 0.02 | BF100: 0
A101: 1 | B101: Đầu tư xây dựng các trục đường giao thông, thoát nước và hồ điều hoà thuộc KCN Tây Bắc Quán Hàu (Chuyển tiếp KH 2017) | C101: DGT | D101: Thị trấn Quán Hàu | E101: =SUM(F101:Y101,AK101:BF101) -> 2.2 | I101: 1.2 | Y101: =SUM(Z101:AJ101) -> 0 | BD101: 1
B102: Đầu tư xây dựng các trục đường giao thông, thoát nước và hồ điều hoà thuộc KCN Tây Bắc Quán Hàu (Chuyển tiếp KH 2017) | C102: DGT | D102: Lương Ninh | E102: 1 | I102: 1 | Y102: 0
B103: Đầu tư xây dựng các trục đường giao thông, thoát nước và hồ điều hoà thuộc KCN Tây Bắc Quán Hàu (Chuyển tiếp KH 2017) | C103: DGT | D103: Vĩnh Ninh | E103: 3.8 | I103: 1.71 | M103: 2.09 | Y103: 0
A104: 2 | B104: Đường phía Tây Hạt Kiểm Lâm huyện Quảng Ninh | C104: DGT | D104: Vĩnh Ninh | E104: 0.05 | I104: 0.05 | Y104: 0
A105: 3 | B105: Quy hoạch đường giao thông trong khu dân cư | C105: DGT | D105: Tân Ninh | E105: 0.03 | I105: 0.03
A106: 4 | B106: Đường vào bản Đìu Đo | C106: DGT | D106: Trường Sơn | E106: 2 | M106: 1.5 | Y106: 0 | BD106: 0.5
A107: 5 | B107: Đường tránh lũ Phúc Nhĩ - Kim Nại | C107: DGT | D107: An Ninh | E107: 1.95 | F107: 1.6 | Y107: 0.35 | AG107: 0.35
A108: 6 | B108: Đường tránh lũ Nguyệt Áng đi Trường Dục | C108: DGT | D108: Xuân Ninh | E108: 0.49 | F108: 0.17 | I108: 0.04 | Y108: 0.26 | AG108: 0.26 | BD108: 0.02
B109: Đường tránh lũ Nguyệt Áng đi Trường Dục | C109: DGT | D109: Hiền Ninh | E109: 0.49 | F109: 0.17 | I109: 0.04 | Y109: 0.26 | AG109: 0.26 | BD109: 0.02
B110: Đường tránh lũ Nguyệt Áng đi Trường Dục | C110: DGT | D110: Tân Ninh | E110: 0.48 | F110: 0.17 | I110: 0.04 | Y110: 0.25 | AG110: 0.25 | BD110: 0.02
B111: Hạ tầng kỹ thuật thuộc dự án Khu nhà ở thương mại Đá Lả | C111: DGT | D111: Thị trấn Quán Hàu | E111: 3.33 | I111: 2.72 | Y111: 0.1 | AF111: 0.1 | AV111: 0.51
B112: Hạ tầng kỹ thuật thuộc dự án Khu nhà ở thương mại Ruộng Nhất | C112: DGT | D112: Thị trấn Quán Hàu | E112: 1.35 | F112: 1.3 | Y112: 0.05 | AF112: 0.03 | AG112: 0.02
A113: 7 | B113: Tuyến đường ngoài hàng rào phía Nam dự án FLC nối từ đường tránh lũ BOT đến xã Hải Ninh | C113: DGT | D113: Hải Ninh | E113: 3.6 | M113: 3.6 | Y113: 0
A114: 8 | B114: Dự án tuyến đường du lịch kết nối thành phố Đồng Hới và vùng Nam tỉnh Quảng Bình (đoạn đi qua huyện Quảng Ninh) | C114: DGT | D114: Hải Ninh | E114: 3.48 | M114: 3.19 | BD114: 0.29
A115: 9 | B115: Đường phía Đông dọc bờ sông Lệ Kỳ kết hợp đê chống lũ | C115: DGT | D115: Lương Ninh | E115: 3.75 | F115: 2.86 | I115: 0.04 | Y115: 0.29 | AG115: 0.29 | AO115: 0.01 | BD115: 0.55
A116: 10 | B116: Đường tránh lũ Long Đại - Hà Kiên | C116: DGT | D116: Hiền Ninh | E116: 2 | F116: 1.5 | N116: 0.5 | Y116: 0
A117: 11 | B117: Đường tránh lũ Duy Ninh | C117: DGT | D117: Duy Ninh | E117: 0.75 | F117: 0.5 | Y117: 0.1 | AG117: 0.1 | BB117: 0.15
A118: 12 | B118: Đường Lò Vôi | C118: DGT | D118: Vạn Ninh | E118: 0.3 | Y118: 0 | BD118: 0.3
A119: 13 | B119: Đường vào bản Ploang đi bản Rìn Rìn | C119: DGT | D119: Trường Sơn | E119: 3.5 | M119: 3.5 | Y119: 0
A120: 14 | B120: Đường từ bản Nà Lâm xã Trường Xuân đi xã Trường Sơn | C120: DGT | D120: Trường Sơn | E120: 10 | M120: 10 | Y120: 0
A121: 15 | B121: Đường từ bản Nà Lâm xã Trường Xuân đi xã Trường Sơn | C121: DGT | D121: Trường Xuân | E121: 9.5 | M121: 9.5 | Y121: 0
A122: 16 | B122: Xây dựng đường du lịch Dinh Mười, huyện Quảng Ninh | C122: DGT | D122: Hải Ninh | E122: 2.03 | K122: 1.12 | M122: 0.91 | Y122: 0
B123: Xây dựng đường du lịch Dinh Mười, huyện Quảng Ninh | C123: DGT | D123: Gia Ninh | E123: 0.11 | I123: 0.05 | Y123: 0.01 | AG123: 0.01 | AO123: 0.03 | BE123: 0.02
B124: Xây dựng đường du lịch Dinh Mười, huyện Quảng Ninh | C124: DGT | D124: Võ Ninh | E124: 14.85 | I124: 0.24 | K124: 9.54 | M124: 4.62 | N124: 0.28 | Y124: 0.1 | AG124: 0.1 | AO124: 0.07
A125: 10.2 | B125: Đất thủy lợi | E125: =SUM(E126:E128) -> 6 | F125: 0 | G125: 0 | H125: 0 | I125: 0 | J125: 0 | K125: 0 | L125: 0 | M125: 0 | N125: 2 | O125: 0 | P125: 0 | Q125: 0 | R125: 0 | S125: 0 | T125: 0 | U125: 0 | V125: 0 | W125: 0 | X125: 0 | Y125: 0 | Z125: 0 | AA125: 0 | AB125: 0 | AC125: 0 | AD125: 0 | AE125: 0 | AF125: 0 | AG125: 0 | AH125: 0 | AI125: 0 | AJ125: 0 | AK125: =SUM(AK126:AK128) -> 0 | AL125: 0 | AM125: 0 | AN125: 0 | AO125: 0 | AP125: 0 | AQ125: 0 | AR125: 0 | AS125: 0 | AT125: 0 | AU125: 0 | AV125: 0 | AW125: 0 | AX125: 0 | AY125: 0 | AZ125: 0 | BA125: 4 | BB125: 0 | BC125: 0 | BD125: 0 | BE125: 0 | BF125: 0
A126: ok | B126: Sửa chữa, nâng cấp kè chống sạt lở bờ sông Nhật Lệ (đoạn qua TT Quán Hàu và xã Lương Ninh) | C126: DTL | D126: Thị trấn Quán Hàu | E126: =SUM(F126:Y126,AK126:BF126) -> 2.5 | N126: 1 | Y126: 0 | BA126: 1.5
A127: ok | B127: Sửa chữa, nâng cấp kè chống sạt lở bờ sông Nhật Lệ (đoạn qua TT Quán Hàu và xã Lương Ninh) | C127: DTL | D127: Lương Ninh | E127: 3.5 | N127: 1 | Y127: 0 | BA127: 2.5
E128: =SUM(F128:Y128,AK128:BF128) -> 0 | Y128: 0
A129: 10.3 | B129: Đất năng lượng | E129: =SUM(E130:E153) -> 6.48 | F129: =SUM(F130:F153) -> 0.83 | G129: 0 | H129: 0 | I129: 0.73 | J129: 0.09 | K129: 0 | L129: 0 | M129: 4.31 | N129: 0 | O129: 0 | P129: 0 | Q129: 0 | R129: 0 | S129: 0 | T129: 0 | U129: 0 | V129: 0 | W129: 0 | X129: 0 | Y129: 0.16 | Z129: 0 | AA129: 0 | AB129: 0 | AC129: 0 | AD129: 0 | AE129: 0 | AF129: 0.13 | AG129: 0.03 | AH129: 0 | AI129: 0 | AJ129: 0 | AK129: 0 | AL129: 0 | AM129: 0 | AN129: 0 | AO129: 0.18 | AP129: 0 | AQ129: 0 | AR129: 0 | AS129: 0 | AT129: 0 | AU129: 0 | AV129: 0.02 | AW129: 0 | AX129: 0 | AY129: 0 | AZ129: 0 | BA129: 0 | BB129: 0 | BC129: 0 | BD129: 0.16 | BE129: 0 | BF129: 0
B130: Trạm biến áp 110KV Tây Bắc Quán Hàu và nhánh rẽ (Chuyển tiếp từ KH SDĐ 2017) | C130: DNL | D130: Duy Ninh | E130: =SUM(F130:Y130,AK130:BF130) -> 0.61 | F130: 0.54 | I130: 0.03 | J130: 0.01 | Y130: =SUM(Z130:AJ130) -> 0.01 | AF130: 0.01 | AO130: 0.01 | BD130: 0.01
B131: Trạm biến áp 110KV Tây Bắc Quán Hàu và nhánh rẽ (Chuyển tiếp từ KH SDĐ 2017) | C131: DNL | D131: Xuân Ninh | E131: 0.06 | I131: 0.06 | Y131: 0
B132: Trạm biến áp 110KV Tây Bắc Quán Hàu và nhánh rẽ (Chuyển tiếp từ KH SDĐ 2017) | C132: DNL | D132: Tân Ninh | E132: 0.03 | I132: 0.03 | Y132: 0
B133: Trạm biến áp 110KV Tây Bắc Quán Hàu và nhánh rẽ (Chuyển tiếp từ KH SDĐ 2017) | C133: DNL | D133: Hàm Ninh | E133: 0.03 | F133: 0.01 | I133: 0.01 | Y133: 0.01 | AF133: 0.01
B134: Trạm biến áp 110KV Tây Bắc Quán Hàu và nhánh rẽ (Chuyển tiếp từ KH SDĐ 2017) | C134: DNL | D134: Hiền Ninh | E134: 0.03 | I134: 0.03 | Y134: 0
B135: Trạm biến áp 110KV Tây Bắc Quán Hàu và nhánh rẽ (Chuyển tiếp từ KH SDĐ 2017) | C135: DNL | D135: Gia Ninh | E135: 0.01 | Y135: 0.01 | AF135: 0.01
B136: Trạm biến áp 110KV Tây Bắc Quán Hàu và nhánh rẽ (Chuyển tiếp từ KH SDĐ 2017) | C136: DNL | D136: Võ Ninh | E136: 0.03 | F136: 0.01 | Y136: 0 | AO136: 0.01 | BD136: 0.01
B137: Trạm biến áp 110KV Tây Bắc Quán Hàu và nhánh rẽ (Chuyển tiếp từ KH SDĐ 2017) | C137: DNL | D137: Lương Ninh | E137: 0.03 | F137: 0.01 | I137: 0.01 | Y137: 0.01 | AF137: 0.01
B138: Dự án Thành phần nâng cao hiệu quả năng lượng khu vực nông thôn tỉnh Quảng Bình (kfw) - Khu vực huyện Quảng Ninh | C138: DNL | D138: Trường Xuân | E138: 0.06 | I138: 0.02 | J138: 0.01 | M138: 0.01 | Y138: 0.01 | AF138: 0.01 | BD138: 0.01
B139: Dự án Thành phần nâng cao hiệu quả năng lượng khu vực nông thôn tỉnh Quảng Bình (kfw) - Khu vực huyện Quảng Ninh | C139: DNL | D139: Hiền Ninh | E139: 0.06 | I139: 0.02 | M139: 0.02 | Y139: 0.02 | AF139: 0.01 | AG139: 0.01
B140: Tiểu Dự án cải tạo và nâng cấp lưới điện phân phối nông thôn tỉnh Quảng Bình (KFWAF) - Khu vực huyện Quảng Ninh | C140: DNL | D140: Gia Ninh | E140: 0.02 | I140: 0.01 | M140: 0.01 | Y140: 0
B141: Tiểu Dự án cải tạo và nâng cấp lưới điện phân phối nông thôn tỉnh Quảng Bình (KFWAF) - Khu vực huyện Quảng Ninh | C141: DNL | D141: Vạn Ninh | E141: 0.05 | I141: 0.01 | J141: 0.01 | Y141: 0.02 | AF141: 0.01 | AG141: 0.01 | BD141: 0.01
B142: Tiểu Dự án cải tạo và nâng cấp lưới điện phân phối nông thôn tỉnh Quảng Bình (KFWAF) - Khu vực huyện Quảng Ninh | C142: DNL | D142: Vĩnh Ninh | E142: 0.04 | I142: 0.01 | M142: 0.01 | Y142: 0.02 | AF142: 0.01 | AG142: 0.01
B143: Đường dây 500KV Quảng Trạch - Dốc Sỏi (Chuyển tiếp từ KH SDĐ 2017) | C143: DNL | D143: Vĩnh Ninh | E143: 1.46 | M143: 1.44 | Y143: 0.02 | AF143: 0.02
B144: Đường dây 500KV Quảng Trạch - Dốc Sỏi (Chuyển tiếp từ KH SDĐ 2017) | C144: DNL | D144: Hàm Ninh | E144: 0.25 | M144: 0.25 | Y144: 0
B145: Đường dây 500KV Quảng Trạch - Dốc Sỏi (Chuyển tiếp từ KH SDĐ 2017) | C145: DNL | D145: Hiền Ninh | E145: 0.94 | M145: 0.94 | Y145: 0
B146: Đường dây 500KV Quảng Trạch - Dốc Sỏi (Chuyển tiếp từ KH SDĐ 2017) | C146: DNL | D146: Trường Xuân | E146: 2.09 | F146: 0.01 | I146: 0.28 | M146: 1.61 | Y146: 0.02 | AF146: 0.02 | AO146: 0.16 | AV146: 0.01
B147: Đường dây 500KV Quảng Trạch - Dốc Sỏi (Chuyển tiếp từ KH SDĐ 2017) | C147: DNL | D147: Vạn Ninh | E147: 0 | Y147: 0
B148: Đường dây 500KV Quảng Trạch - Dốc Sỏi (Chuyển tiếp từ KH SDĐ 2017) | C148: DNL | D148: An Ninh | E148: 0 | Y148: 0
B149: Đường dây 500KV Quảng Trạch - Dốc Sỏi (Chuyển tiếp từ KH SDĐ 2017) | C149: DNL | D149: Xuân Ninh | E149: 0 | Y149: 0
B150: Trạm biến áp Bảo Ninh 110kV và đầu nối | C150: DNL | D150: Duy Ninh | E150: 0.15 | F150: 0.14 | BD150: 0.01
B151: Trạm biến áp Bảo Ninh 110kV và đầu nối | C151: DNL | D151: Võ Ninh | E151: 0.47 | F151: 0.1 | I151: 0.2 | J151: 0.06 | BD151: 0.11
B152: Tuyến điện chiếu sáng từ trạm thu phí Quán Hàu đến khu vực dự án quần thể Reort, biệt thự nghỉ dưỡng cao cấp FLC | C152: DNL | D152: Võ Ninh | E152: 0.03 | F152: 0.01 | I152: 0.01 | M152: 0.01 | Y152: 0
B153: Tuyến điện chiếu sáng từ trạm thu phí Quán Hàu đến khu vực dự án quần thể Reort, biệt thự nghỉ dưỡng cao cấp FLC | C153: DNL | D153: Gia Ninh | E153: 0.03 | M153: 0.01 | Y153: 0.01 | AF153: 0.01 | AV153: 0.01
A154: 10.4 | B154: Đất cơ sở giáo dục đào tạo | E154: =SUM(E155:E159) -> 1.66 | F154: 0.62 | G154: 0 | H154: 0 | I154: 0 | J154: 0 | K154: 0 | L154: 0 | M154: 0.3 | N154: 0.05 | O154: 0 | P154: 0 | Q154: 0 | R154: 0 | S154: 0 | T154: 0 | U154: 0 | V154: 0 | W154: 0 | X154: 0 | Y154: 0.19 | Z154: 0 | AA154: 0 | AB154: 0 | AC154: 0 | AD154: 0.15 | AE154: 0 | AF154: 0.04 | AG154: 0 | AH154: 0 | AI154: 0 | AJ154: 0 | AK154: =SUM(AK155:AK159) -> 0 | AL154: 0 | AM154: 0 | AN154: 0 | AO154: 0 | AP154: 0 | AQ154: 0 | AR154: 0 | AS154: 0 | AT154: 0 | AU154: 0 | AV154: 0 | AW154: 0 | AX154: 0 | AY154: 0 | AZ154: 0 | BA154: 0 | BB154: 0 | BC154: 0 | BD154: 0.5 | BE154: 0 | BF154: 0
B155: Trường Mầm non Hàm Ninh cơ sở 2 (thôn Trần Xá) | C155: DGD | D155: Hàm Ninh | E155: =SUM(F155:Y155,AK155:BF155) -> 0.17 | Y155: =SUM(Z155:AJ155) -> 0.17 | AD155: 0.15 | AF155: 0.02
B156: Xây dựng nhà lớp học trường mầm non khu vực Phú Cát | C156: DGD | D156: Võ Ninh | E156: 0.3 | M156: 0.3
B157: Mở rộng trường tiểu học Lương Ninh | C157: DGD | D157: Lương Ninh | E157: 0.19 | F157: 0.17 | Y157: 0.02 | AF157: 0.02
B158: Xây dựng mới trường mầm non khu vực Lương Yến | C158: DGD | D158: Lương Ninh | E158: 0.5 | F158: 0.45 | N158: 0.05 | Y158: 0
B159: Trường mầm non Vạn Ninh | C159: DGD | D159: Vạn Ninh | E159: 0.5 | Y159: 0 | BD159: 0.5
A160: 10.5 | B160: Đất xây dựng công trình bưu chính, viễn thông | E160: =SUM(E161:E161) -> 4.1 | F160: 3.9 | G160: 0 | H160: 0 | I160: 0 | J160: 0 | K160: 0 | L160: 0 | M160: 0 | N160: 0 | O160: 0 | P160: 0 | Q160: 0 | R160: 0 | S160: 0 | T160: 0 | U160: 0 | V160: 0 | W160: 0 | X160: 0 | Y160: 0.2 | Z160: 0 | AA160: 0 | AB160: 0 | AC160: 0 | AD160: 0 | AE160: 0 | AF160: 0.18 | AG160: 0.02 | AH160: 0 | AI160: 0 | AJ160: 0 | AK160: =SUM(AK161:AK161) -> 0 | AL160: 0 | AM160: 0 | AN160: 0 | AO160: 0 | AP160: 0 | AQ160: 0 | AR160: 0 | AS160: 0 | AT160: 0 | AU160: 0 | AV160: 0 | AW160: 0 | AX160: 0 | AY160: 0 | AZ160: 0 | BA160: 0 | BB160: 0 | BC160: 0 | BD160: 0 | BE160: 0 | BF160: 0
B161: Hệ thống phát sóng AM tại Đài Phát sóng Phát thanh Đồng Hới của Đài Tiếng nói Việt Nam | C161: DBV | D161: Lương Ninh | E161: =SUM(F161:Y161,AK161:BF161) -> 4.1 | F161: 3.9 | Y161: =SUM(Z161:AJ161) -> 0.2 | AF161: 0.18 | AG161: 0.02
E162: =SUM(F162:Y162,AK162:BF162) -> 0 | Y162: 0
A163: 10.6 | B163: Đất cơ sở văn hóa | E163: =E164 -> 0.13 | F163: =F164 -> 0 | G163: 0 | H163: 0 | I163: 0.07 | J163: 0 | K163: 0 | L163: 0 | M163: 0 | N163: 0 | O163: 0 | P163: 0 | Q163: 0 | R163: 0 | S163: 0 | T163: 0 | U163: 0 | V163: 0 | W163: 0 | X163: 0 | Y163: 0.06 | Z163: 0 | AA163: 0 | AB163: 0 | AC163: 0 | AD163: 0 | AE163: 0 | AF163: 0.06 | AG163: 0 | AH163: 0 | AI163: 0 | AJ163: 0 | AK163: 0 | AL163: 0 | AM163: 0 | AN163: 0 | AO163: 0 | AP163: 0 | AQ163: 0 | AR163: 0 | AS163: 0 | AT163: 0 | AU163: 0 | AV163: 0 | AW163: 0 | AX163: 0 | AY163: 0 | AZ163: 0 | BA163: 0 | BB163: 0 | BC163: 0 | BD163: 0 | BE163: 0 | BF163: 0
B164: Dự án cải tạo khuôn viên đài tưởng niệm nghĩa trang liệt sỹ thị trấn Quán Hàu | C164: DVH | D164: Thị trấn Quán Hàu | E164: =SUM(F164:Y164,AK164:BF164) -> 0.13 | I164: 0.07 | Y164: =SUM(Z164:AJ164) -> 0.06 | AF164: 0.06
A165: 10.7 | B165: Đất xây dựng cơ sở thể dục thể thao | E165: =SUM(E166:E171) -> 252.67 | F165: =SUM(F166:F171) -> 1.47 | G165: 0 | H165: 0 | I165: 0.55 | J165: 0 | K165: 0 | L165: 0 | M165: 224.7 | N165: 10.3 | O165: 0 | P165: 0 | Q165: 0 | R165: 0 | S165: 0 | T165: 0 | U165: 0 | V165: 0 | W165: 0 | X165: 0 | Y165: 3.87 | Z165: 0 | AA165: 0 | AB165: 0 | AC165: 0 | AD165: 0 | AE165: 0 | AF165: 3.87 | AG165: 0 | AH165: 0 | AI165: 0 | AJ165: 0 | AK165: 0 | AL165: 0 | AM165: 0 | AN165: 0 | AO165: 0 | AP165: 0 | AQ165: 0 | AR165: 0 | AS165: 0 | AT165: 0 | AU165: 0 | AV165: 0.12 | AW165: 0 | AX165: 0 | AY165: 0 | AZ165: 0 | BA165: 4.98 | BB165: 0 | BC165: 0 | BD165: 6.68 | BE165: 0 | BF165: 0
A166: ok | B166: Dự án FLC Quảng Bình Golf Links | C166: DTT | D166: Hải Ninh | E166: =SUM(F166:Y166,AK166:BF166) -> 249.49 | M166: 223.69 | N166: 10.3 | Y166: =SUM(Z166:AJ166) -> 3.87 | AF166: 3.87 | BA166: 4.98 | BD166: 6.65
A167: ok | B167: Sân thể thao thôn Hiển Lộc | C167: DTT | D167: Duy Ninh | E167: 0.33 | F167: 0.33 | Y167: 0
A168: ok | B168: Sân thể thao thôn Tiền | C168: DTT | D168: Võ Ninh | E168: 0.7 | F168: 0.7 | Y168: 0
A169: ok | B169: Sân thể thao thôn Hà Thiệp | C169: DTT | D169: Võ Ninh | E169: 0.44 | F169: 0.44 | Y169: 0
A170: ok | B170: Khu thể thao và dịch vụ tổng hợp Hải Ninh | C170: DTT | D170: Hải Ninh | E170: 1.01 | M170: 1.01
B171: Trung tâm thể dục thể thao Đất Xanh | C171: DTT | D171: Thị trấn Quán Hàu | E171: 0.7 | I171: 0.55 | AV171: 0.12 | BD171: 0.03
A172: 10.8 | B172: Đất chợ | E172: =SUM(E173:E173) -> 0 | F172: 0 | G172: 0 | H172: 0 | I172: 0 | J172: 0 | K172: 0 | L172: 0 | M172: 0 | N172: 0 | O172: 0 | P172: 0 | Q172: 0 | R172: 0 | S172: 0 | T172: 0 | U172: 0 | V172: 0 | W172: 0 | X172: 0 | Y172: 0 | Z172: 0 | AA172: 0 | AB172: 0 | AC172: 0 | AD172: 0 | AE172: 0 | AF172: 0 | AG172: 0 | AH172: 0 | AI172: 0 | AJ172: 0 | AK172: =SUM(AK173:AK173) -> 0 | AL172: 0 | AM172: 0 | AN172: 0 | AO172: 0 | AP172: 0 | AQ172: 0 | AR172: 0 | AS172: 0 | AT172: 0 | AU172: 0 | AV172: 0 | AW172: 0 | AX172: 0 | AY172: 0 | AZ172: 0 | BA172: 0 | BB172: 0 | BC172: 0 | BD172: 0 | BE172: 0 | BF172: 0
Y173: 0
E174: 0 | Y174: 0
A175: XI | B175: Đất cơ sở tôn giáo | E175: =SUM(E176:E176) -> 0 | F175: 0 | G175: 0 | H175: 0 | I175: 0 | J175: 0 | K175: 0 | L175: 0 | M175: 0 | N175: 0 | O175: 0 | P175: 0 | Q175: 0 | R175: 0 | S175: 0 | T175: 0 | U175: 0 | V175: 0 | W175: 0 | X175: 0 | Y175: 0 | Z175: 0 | AA175: 0 | AB175: 0 | AC175: 0 | AD175: 0 | AE175: 0 | AF175: 0 | AG175: 0 | AH175: 0 | AI175: 0 | AJ175: 0 | AK175: =SUM(AK176:AK176) -> 0 | AL175: 0 | AM175: 0 | AN175: 0 | AO175: 0 | AP175: 0 | AQ175: 0 | AR175: 0 | AS175: 0 | AT175: 0 | AU175: 0 | AV175: 0 | AW175: 0 | AX175: 0 | AY175: 0 | AZ175: 0 | BA175: 0 | BB175: 0 | BC175: 0 | BD175: 0 | BE175: 0 | BF175: 0
Y176: 0
A177: XII | B177: Đất xử lý chôn lấp rác thải | E177: 0 | F177: 0 | G177: 0 | H177: 0 | I177: 0 | J177: 0 | K177: 0 | L177: 0 | M177: 0 | N177: 0 | O177: 0 | P177: 0 | Q177: 0 | R177: 0 | S177: 0 | T177: 0 | U177: 0 | V177: 0 | W177: 0 | X177: 0 | Y177: 0 | Z177: 0 | AA177: 0 | AB177: 0 | AC177: 0 | AD177: 0 | AE177: 0 | AF177: 0 | AG177: 0 | AH177: 0 | AI177: 0 | AJ177: 0 | AK177: 0 | AL177: 0 | AM177: 0 | AN177: 0 | AO177: 0 | AP177: 0 | AQ177: 0 | AR177: 0 | AS177: 0 | AT177: 0 | AU177: 0 | AV177: 0 | AW177: 0 | AX177: 0 | AY177: 0 | AZ177: 0 | BA177: 0 | BB177: 0 | BC177: 0 | BD177: 0 | BE177: 0 | BF177: =SUM(BF178:BF181) -> 0
E178: =SUM(F178:Y178,AK178:BF178) -> 0 | Y178: 0
E179: =SUM(F179:Y179,AK179:BF179) -> 0 | Y179: 0
E180: =SUM(F180:Y180,AK180:BF180) -> 0 | Y180: 0
E181: =SUM(F181:Y181,AK181:BF181) -> 0 | Y181: 0
A182: XIII | B182: Đất khu vui chơi, giải trí công cộng | E182: =SUM(E183:E187) -> 446.33 | F182: =SUM(F183:F187) -> 0 | G182: 0 | H182: 0 | I182: 0 | J182: 0 | K182: 0 | L182: 0 | M182: 444.09 | N182: 0.42 | O182: 0 | P182: 0 | Q182: 0 | R182: 0 | S182: 0 | T182: 0 | U182: 0 | V182: 0 | W182: 0 | X182: 0 | Y182: 1.28 | Z182: 0 | AA182: 0 | AB182: 0 | AC182: 0 | AD182: 0 | AE182: 0 | AF182: 1.28 | AG182: 0 | AH182: 0 | AI182: 0 | AJ182: 0 | AK182: 0 | AL182: 0 | AM182: 0 | AN182: 0 | AO182: 0 | AP182: 0 | AQ182: 0 | AR182: 0 | AS182: 0 | AT182: 0 | AU182: 0 | AV182: 0.02 | AW182: 0 | AX182: 0 | AY182: 0 | AZ182: 0 | BA182: 0.52 | BB182: 0 | BC182: 0 | BD182: 0 | BE182: 0 | BF182: 0
A183: ok | B183: Công viên, thể thao mạo hiểm FLC Faros Quảng Bình (CT từ KH.2018) | C183: DKV | D183: Hải Ninh | E183: =SUM(F183:Y183,AK183:BF183) -> 299.76 | M183: 298.1 | Y183: =SUM(Z183:AJ183) -> 1.14 | AF183: 1.14 | BA183: 0.52
A184: ok | B184: Công viên, thể thao mạo hiểm FLC Quảng Bình của Công ty Cổ phần Tập đoàn FLC (CT từ KH.2018) | C184: DKV | D184: Hải Ninh | E184: 130.03 | M184: 129.87 | Y184: 0.14 | AF184: 0.14 | AV184: 0.02
A185: ok | B185: Công viên động vật hoang dã FLC Quảng Bình của Công ty Cổ phần Tập đoàn FLC (CT từ KH.2018) | C185: DKV | D185: Hải Ninh | E185: 16.12 | M185: 16.12 | Y185: 0
A186: ok | B186: Đất khu vui chơi, giải trí công cộng | C186: DKV | D186: An Ninh | E186: 0.42 | N186: 0.42 | Y186: 0
E187: =SUM(F187:Y187,AK187:BF187) -> 0 | Y187: 0
A188: XIII | B188: Đất cơ sở tín ngưỡng | E188: =SUM(E189:E192) -> 0 | F188: 0 | G188: 0 | H188: 0 | I188: 0 | J188: 0 | K188: 0 | L188: 0 | M188: 0 | N188: 0 | O188: 0 | P188: 0 | Q188: 0 | R188: 0 | S188: 0 | T188: 0 | U188: 0 | V188: 0 | W188: 0 | X188: 0 | Y188: 0 | Z188: 0 | AA188: 0 | AB188: 0 | AC188: 0 | AD188: 0 | AE188: 0 | AF188: 0 | AG188: 0 | AH188: 0 | AI188: 0 | AJ188: 0 | AK188: =SUM(AK189:AK192) -> 0 | AL188: 0 | AM188: 0 | AN188: 0 | AO188: 0 | AP188: 0 | AQ188: 0 | AR188: 0 | AS188: 0 | AT188: 0 | AU188: 0 | AV188: 0 | AW188: 0 | AX188: 0 | AY188: 0 | AZ188: 0 | BA188: 0 | BB188: 0 | BC188: 0 | BD188: 0 | BE188: 0 | BF188: 0
E189: =SUM(F189:Y189,AK189:BF189) -> 0 | Y189: =SUM(Z189:AJ189) -> 0
E190: 0 | Y190: 0
E191: 0 | Y191: 0
E192: 0 | Y192: 0
E193: =SUM(F193:Y193,AK193:BF193) -> 0 | Y193: 0
A194: XV | B194: Đất sản xuất vật liệu xây dựng, làm đồ gốm | E194: =SUM(E195:E195) -> 7.5 | F194: 0 | G194: 0 | H194: 0 | I194: 0 | J194: 0 | K194: 0 | L194: 0 | M194: 7.5 | N194: 0 | O194: 0 | P194: 0 | Q194: 0 | R194: 0 | S194: 0 | T194: 0 | U194: 0 | V194: 0 | W194: 0 | X194: 0 | Y194: 0 | Z194: 0 | AA194: 0 | AB194: 0 | AC194: 0 | AD194: 0 | AE194: 0 | AF194: 0 | AG194: 0 | AH194: 0 | AI194: 0 | AJ194: 0 | AK194: =SUM(AK195:AK195) -> 0 | AL194: 0 | AM194: 0 | AN194: 0 | AO194: 0 | AP194: 0 | AQ194: 0 | AR194: 0 | AS194: 0 | AT194: 0 | AU194: 0 | AV194: 0 | AW194: 0 | AX194: 0 | AY194: 0 | AZ194: 0 | BA194: 0 | BB194: 0 | BC194: 0 | BD194: 0 | BE194: 0 | BF194: 0
A195: ok | B195: Cát làm vật liệu xây dựng (Khe Dinh Thủy) CT từ KH 2018 | C195: SKX | D195: Võ Ninh | E195: =SUM(F195:Y195,AK195:BF195) -> 7.5 | M195: 7.5 | Y195: =SUM(Z195:AJ195) -> 0
A196: XVI | B196: Đất rừng sản xuất | E196: =SUM(E197:E197) -> 0 | F196: 0 | G196: 0 | H196: 0 | I196: 0 | J196: 0 | K196: 0 | L196: 0 | M196: 0 | N196: 0 | O196: 0 | P196: 0 | Q196: 0 | R196: 0 | S196: 0 | T196: 0 | U196: 0 | V196: 0 | W196: 0 | X196: 0 | Y196: 0 | Z196: 0 | AA196: 0 | AB196: 0 | AC196: 0 | AD196: 0 | AE196: 0 | AF196: 0 | AG196: 0 | AH196: 0 | AI196: 0 | AJ196: 0 | AK196: =SUM(AK197:AK197) -> 0 | AL196: 0 | AM196: 0 | AN196: 0 | AO196: 0 | AP196: 0 | AQ196: 0 | AR196: 0 | AS196: 0 | AT196: 0 | AU196: 0 | AV196: 0 | AW196: 0 | AX196: 0 | AY196: 0 | AZ196: 0 | BA196: 0 | BB196: 0 | BC196: 0 | BD196: 0 | BE196: 0 | BF196: 0
A197: k thu hồi đất | B197: Dự án giao đất rừng sản xuất do UBND xã quản lý cho hộ gia đình, cá nhân sử dụng tại xã Hải Ninh | C197: RSX | D197: Trường Xuân | E197: =SUM(F197:Y197,AK197:BF197) -> 0 | Y197: =SUM(Z197:AJ197) -> 0
A198: XVIII | B198: Đất trồng cây hàng năm khác | E198: =SUM(E199:E199) -> 0 | F198: 0 | G198: 0 | H198: 0 | I198: 0 | J198: 0 | K198: 0 | L198: 0 | M198: 0 | N198: 0 | O198: 0 | P198: 0 | Q198: 0 | R198: 0 | S198: 0 | T198: 0 | U198: 0 | V198: 0 | W198: 0 | X198: 0 | Y198: 0 | Z198: 0 | AA198: 0 | AB198: 0 | AC198: 0 | AD198: 0 | AE198: 0 | AF198: 0 | AG198: 0 | AH198: 0 | AI198: 0 | AJ198: 0 | AK198: =SUM(AK199:AK199) -> 0 | AL198: 0 | AM198: 0 | AN198: 0 | AO198: 0 | AP198: 0 | AQ198: 0 | AR198: 0 | AS198: 0 | AT198: 0 | AU198: 0 | AV198: 0 | AW198: 0 | AX198: 0 | AY198: 0 | AZ198: 0 | BA198: 0 | BB198: 0 | BC198: 0 | BD198: 0 | BE198: 0 | BF198: 0
A200: XVIII | B200: Đất trồng cây lâu năm | E200: =SUM(E201:E202) -> 0 | F200: 0 | G200: 0 | H200: 0 | I200: 0 | J200: 0 | K200: 0 | L200: 0 | M200: 0 | N200: 0 | O200: 0 | P200: 0 | Q200: 0 | R200: 0 | S200: 0 | T200: 0 | U200: 0 | V200: 0 | W200: 0 | X200: 0 | Y200: 0 | Z200: 0 | AA200: 0 | AB200: 0 | AC200: 0 | AD200: 0 | AE200: 0 | AF200: 0 | AG200: 0 | AH200: 0 | AI200: 0 | AJ200: 0 | AK200: =SUM(AK201:AK202) -> 0 | AL200: 0 | AM200: 0 | AN200: 0 | AO200: 0 | AP200: 0 | AQ200: 0 | AR200: 0 | AS200: 0 | AT200: 0 | AU200: 0 | AV200: 0 | AW200: 0 | AX200: 0 | AY200: 0 | AZ200: 0 | BA200: 0 | BB200: 0 | BC200: 0 | BD200: 0 | BE200: 0 | BF200: 0
E202: =SUM(F202:Y202,AK202:BF202) -> 0 | Y202: 0
A203: XIX | B203: Đất nuôi trồng thuỷ sản | E203: =SUM(E204:E206) -> 0.25 | F203: =SUM(F204:F206) -> 0.25 | G203: 0 | H203: 0 | I203: 0 | J203: 0 | K203: 0 | L203: 0 | M203: 0 | N203: 0 | O203: 0 | P203: 0 | Q203: 0 | R203: 0 | S203: 0 | T203: 0 | U203: 0 | V203: 0 | W203: 0 | X203: 0 | Y203: 0 | Z203: 0 | AA203: 0 | AB203: 0 | AC203: 0 | AD203: 0 | AE203: 0 | AF203: 0 | AG203: 0 | AH203: 0 | AI203: 0 | AJ203: 0 | AK203: 0 | AL203: 0 | AM203: 0 | AN203: 0 | AO203: 0 | AP203: 0 | AQ203: 0 | AR203: 0 | AS203: 0 | AT203: 0 | AU203: 0 | AV203: 0 | AW203: 0 | AX203: 0 | AY203: 0 | AZ203: 0 | BA203: 0 | BB203: 0 | BC203: 0 | BD203: 0 | BE203: 0 | BF203: 0
B206: Đất nuôi trồng thủy sản (thuộc dự án Cơ sở kinh doanh mua bán cá giống của bà Nguyễn Thị Hương) | C206: NTS | D206: Gia Ninh | E206: =SUM(F206:Y206,AK206:BF206) -> 0.25 | F206: 0.25
A207: XX | B207: Quy hoạch đất nông nghiệp khác | E207: =SUM(E208:E220) -> 59.49 | F207: 0 | G207: 0 | H207: 0 | I207: 0 | J207: 0 | K207: 0 | L207: 0 | M207: 45.23 | N207: 0.88 | O207: 0 | P207: 0 | Q207: 0 | R207: 0 | S207: 0 | T207: 0 | U207: 0 | V207: 0 | W207: 0 | X207: 0 | Y207: 0.34 | Z207: 0 | AA207: 0 | AB207: 0 | AC207: 0 | AD207: 0 | AE207: 0 | AF207: 0.34 | AG207: 0 | AH207: 0 | AI207: 0 | AJ207: 0 | AK207: =SUM(AK208:AK220) -> 0 | AL207: 0 | AM207: 0 | AN207: 0 | AO207: 0 | AP207: 0 | AQ207: 0 | AR207: 0 | AS207: 0 | AT207: 0 | AU207: 0 | AV207: 0 | AW207: 0 | AX207: 0 | AY207: 0 | AZ207: 0 | BA207: 0 | BB207: 0 | BC207: 0 | BD207: 13.04 | BE207: 0 | BF207: 0
A209: 2 | B209: Trang trại tổng hợp | C209: NKH | D209: Gia Ninh | E209: =SUM(F209:Y209,AK209:BF209) -> 15 | M209: 15 | Y209: =SUM(Z209:AJ209) -> 0
A210: 3 | B210: Dự án Cơ sở nuôi trồng, chế biến và bảo quản nông lâm thủy sản của HTX nông nghiệp Thắng Lợi | C210: NKH | D210: Gia Ninh | E210: 2.8 | M210: 2.8
A211: 4 | B211: Dự án Trồng, thu hoạch và chế biến cây dược liệu của ông Đoàn Thanh Thái | C211: NKH | D211: Gia Ninh | E211: 3.8 | M211: 3.8
B212: Trang trại sinh thái tổng hợp của ông Trần Quang Hiếu | C212: NKH | D212: Hàm Ninh | E212: 4.84 | M212: 4.84
A213: 6 | B213: Trang trại tổng hợp | C213: NKH | D213: Hàm Ninh | E213: 7.34 | Y213: 0 | BD213: 7.34
... 27 more rows

Sheet SL HIỆN TRẠNG
A1: SL HIỆN TRẠNG | B1: qn | C1: HUYỆN QUẢNG NINH | E1: Mã xã
C2: Nhập năm điều tra vào ô bên phải | D2: 2019 | F2: 1 | G2: 2 | H2: 3 | I2: 4 | J2: 5 | K2: 6 | L2: 7 | M2: 8 | N2: 9 | O2: 10 | P2: 11 | Q2: 12 | R2: 13 | S2: 14 | T2: 15
B3: STT | C3: Loại đất | D3: Ký hiệu | E3: Tổng diện tích toàn huyện | F3: Thị trấn Quán Hàu | G3: Tân Ninh | H3: An Ninh | I3: Duy Ninh | J3: Gia Ninh | K3: Hải Ninh | L3: Hàm Ninh | M3: Hiền Ninh | N3: Lương Ninh | O3: Trường Sơn | P3: Trường Xuân | Q3: Vạn Ninh | R3: Vĩnh Ninh | S3: Võ Ninh | T3: Xuân Ninh
B4: I | C4: Tổng diện tích đất của đơn vị hành chính | F4: 330.6512 | G4: 1145.1216 | H4: 1944.3967 | I4: 778.458 | J4: 2852.1054 | K4: 3826.6084 | L4: 2010.714 | M4: 1499.777 | N4: 539.7467 | O4: 77961.7781 | P4: 15645.574 | Q4: 2910.866 | R4: 4975.154 | S4: 2170.751 | T4: 826.487
B5: 1 | C5: Đất nông nghiệp | D5: NNP | E5: 108638.2717 | F5: 130.886 | G5: 753.244 | H5: 1541.136 | I5: 511.885 | J5: 2375.9649 | K5: 2926.234 | L5: 1559.667 | M5: 984.104 | N5: 307.9688 | O5: 75418.491 | P5: 13601.172 | Q5: 2214.998 | R5: 4207.222 | S5: 1500.446 | T5: 604.853
B6: 1.1 | C6: Đất trồng lúa | D6: LUA | E6: 5331.8275 | F6: 50.977 | G6: 641.67 | H6: 957.881 | I6: 404.089 | J6: 561.85 | K6: 0 | L6: 421.466 | M6: 274.98 | N6: 203.5355 | O6: 22.96 | P6: 75.028 | Q6: 813.96 | R6: 414.3 | S6: 189.731 | T6: 299.4
B7: 1.1.1 | C7: Đất chuyên trồng lúa nước | D7: LUC | E7: 5005.5785 | F7: 43.429 | G7: 641.67 | H7: 947.391 | I7: 404.089 | J7: 561.85 | L7: 417.548 | M7: 173.27 | N7: 202.6025 | O7: 10.19 | P7: 75.028 | Q7: 717.65 | R7: 321.73 | S7: 189.731 | T7: 299.4
B8: 1.1.1.1 | C8: Đất trồng lúa nương | D8: LUN | E8: 0
C9: Đất trồng lúa nước còn lại | D9: LUK | E9: 326.249 | F9: 7.548 | H9: 10.49 | L9: 3.918 | M9: 101.71 | N9: 0.933 | O9: 12.77 | Q9: 96.31 | R9: 92.57
C10: Đất trồng cây hàng năm khác | D10: HNK | E10: 2344.384 | F10: 64.898 | G10: 70.581 | H10: 174.151 | I10: 93.808 | J10: 95.7099 | K10: 72.911 | L10: 133.859 | M10: 252.578 | N10: 46.8911 | O10: 221.67 | P10: 203.119 | Q10: 423.368 | R10: 230.69 | S10: 129.741 | T10: 130.409
C11: Đất trồng cây lâu năm | D11: CLN | E11: 631.594 | H11: 0.512 | I11: 1.988 | J11: 0.01 | K11: 0.352 | L11: 3.086 | M11: 3.138 | O11: 314.42 | P11: 158.448 | Q11: 107.41 | R11: 10.13 | S11: 26.7 | T11: 5.4
C12: Đất rừng phòng hộ | D12: RPH | E12: 53671.925 | G12: 10.772 | J12: 981.191 | K12: 1251.561 | M12: 15.47 | O12: 40997.28 | P12: 9677.8 | S12: 737.851
C13: Đất rừng đặc dụng | D13: RDD | E13: 0
C14: Đất rừng sản xuất | D14: RSX | E14: 46075.1329 | F14: 0.547 | G14: 0.891 | H14: 370.708 | J14: 722.321 | K14: 1438.109 | L14: 959.388 | M14: 409.738 | N14: 14.5109 | O14: 33862.1 | P14: 3475.358 | Q14: 840.098 | R14: 3475.82 | S14: 344.962 | T14: 160.582
C15: Đất nuôi trồng thuỷ sản | D15: NTS | E15: 501.5445 | F15: 14.464 | G15: 29.33 | H15: 32.842 | I15: 12 | J15: 10.401 | K15: 137.621 | L15: 41.868 | M15: 28.2 | N15: 42.9745 | O15: 0.061 | P15: 3.788 | Q15: 12.511 | R15: 59.49 | S15: 69.593 | T15: 6.401
C16: Đất làm muối | D16: LMU | E16: 0 | F16: 0
C17: Đất nông nghiệp khác | D17: NKH | E17: 81.8638 | F17: 0 | H17: 5.042 | J17: 4.482 | K17: 25.68 | N17: 0.0568 | P17: 7.631 | Q17: 17.651 | R17: 16.792 | S17: 1.868 | T17: 2.661
C18: Đất phi nông nghiệp | D18: PNN | E18: 7557.0782 | F18: 181.0572 | G18: 355.1936 | H18: 372.1727 | I18: 258.295 | J18: 454.6905 | K18: 635.8964 | L18: 411.869 | M18: 448.995 | N18: 222.0679 | O18: 704.5571 | P18: 1460.338 | Q18: 641.05 | R18: 741.902 | S18: 462.161 | T18: 206.833
C19: Đất quốc phòng | D19: CQP | E19: 136.8152 | F19: 1.2892 | H19: 0.2942 | L19: 0.018 | N19: 1.6328 | O19: 2.004 | P19: 27.692 | Q19: 77.48 | S19: 26.405
C20: Đất an ninh | D20: CAN | E20: 1.717 | F20: 1.442 | T20: 0.275
C21: Đất khu công nghiệp | D21: SKK | E21: 21.9302 | F21: 5.889 | N21: 0.0812 | R21: 15.96
C22: Đất cụm công nghiệp | D22: SKN | E22: 0
C23: Đất khu chế xuất | D23: SKT | E23: 0
C24: Đất thương mại, dịch vụ | D24: TMD | E24: 519.574 | F24: 1.5 | G24: 0.544 | H24: 1.3014 | I24: 2.2 | J24: 2.9791 | K24: 497 | L24: 0.658 | M24: 0.082 | N24: 1.0415 | P24: 4.468 | Q24: 1 | R24: 4.78 | S24: 2.02
C25: Đất cơ sở sản xuất phi nông nghiệp | D25: SKC | E25: 53.881 | F25: 6.7 | J25: 0.4352 | K25: 0.07 | M25: 0.082 | N25: 0.2418 | O25: 6.072 | Q25: 26.42 | R25: 11.05 | T25: 2.81
C26: Đất sử dụng cho hoạt động khoáng sản | D26: SKS | E26: 0
C27: Đất phát triển hạ tầng | D27: DHT | E27: 3257.5982 | F27: 52.193 | G27: 187.4189 | H27: 265.8732 | I27: 106.022 | J27: 152.5452 | K27: 63.8084 | L27: 151.355 | M27: 151.765 | N27: 85.0224 | O27: 145.0641 | P27: 853.862 | Q27: 353.74 | R27: 432.15 | S27: 147.831 | T27: 108.948
C28: Đất xây dựng cơ sở văn hóa | D28: DVH | E28: 1.855 | F28: 1.11 | Q28: 0.04 | S28: 0.705
C29: Đất xây dựng cơ sở dịch vụ xã hội | D29: DXH | E29: 0
C30: Đất xây dựng cơ sở y tế | D30: DYT | E30: 4.6694 | F30: 0.14 | G30: 0.109 | H30: 0.3688 | I30: 0.1 | J30: 0.7022 | K30: 0.19 | L30: 0.2 | M30: 0.74 | N30: 0.3534 | O30: 0.191 | P30: 0.331 | Q30: 0.13 | R30: 0.37 | S30: 0.495 | T30: 0.249
C31: Đất xây dựng cơ sở giáo dục và đào tạo | D31: DGD | E31: 65.5256 | F31: 2.43 | G31: 4.8942 | H31: 4.468 | I31: 3.219 | J31: 3.596 | K31: 2.435 | L31: 4.048 | M31: 8.451 | N31: 1.9774 | O31: 3.621 | P31: 2.981 | Q31: 4.08 | R31: 9.4 | S31: 4.935 | T31: 4.99
C32: Đất xây dựng cơ sở thể dục thể thao | D32: DTT | E32: 27.1486 | F32: 2.065 | G32: 1.2322 | H32: 2.09 | I32: 0.289 | J32: 0.549 | K32: 0.92 | L32: 4.319 | M32: 3.441 | N32: 0.8684 | O32: 1.1 | P32: 0.34 | Q32: 5.3 | R32: 1.29 | S32: 2.195 | T32: 1.15
C33: Đất xây dựng cơ sở khoa học và công nghệ | D33: DKH | E33: 0
C34: Đất giao thông | D34: DGT | E34: 1545.9541 | F34: 43.505 | G34: 93.755 | H34: 188.2577 | I34: 77.32 | J34: 97.684 | K34: 56.783 | L34: 88.4 | M34: 91.04 | N34: 70.9263 | O34: 138.9111 | P34: 60.33 | Q34: 209.5 | R34: 153.12 | S34: 108.943 | T34: 67.479
C35: Đất thủy lợi | D35: DTL | E35: 1449.2833 | F35: 2.434 | G35: 87.07 | H35: 69.85 | I35: 24.864 | J35: 49.054 | K35: 2.7804 | L35: 33.654 | M35: 18.56 | N35: 10.8969 | O35: 0.9 | P35: 763.86 | Q35: 113.48 | R35: 209.46 | S35: 27.72 | T35: 34.7
C36: Đất công trình năng lượng | D36: DNL | E36: 153.6436 | G36: 0.0126 | L36: 20.215 | M36: 28.945 | P36: 25.801 | Q36: 20.17 | R36: 58.38 | T36: 0.12
C37: Đất công trình bưu chính viễn thông | D37: DBV | E37: 1.1278 | F37: 0.14 | G37: 0.0225 | H37: 0.0253 | I37: 0.02 | J37: 0.03 | K37: 0.02 | L37: 0.019 | M37: 0.008 | O37: 0.13 | P37: 0.019 | Q37: 0.02 | R37: 0.04 | S37: 0.634
C38: Đất chợ | D38: DCH | E38: 8.3908 | F38: 0.369 | G38: 0.3234 | H38: 0.8134 | I38: 0.21 | J38: 0.93 | K38: 0.68 | L38: 0.5 | M38: 0.58 | O38: 0.211 | P38: 0.2 | Q38: 1.02 | R38: 0.09 | S38: 2.204 | T38: 0.26
C39: Đất có di tích lịch sử - văn hóa | D39: DDT | E39: 139.022 | F39: 0.5 | M39: 2.18 | N39: 0.0492 | P39: 136.252 | S39: 0.041
C40: Đất danh lam thắng cảnh | D40: DDL | E40: 0
C41: Đất bãi thải, xử lý chất thải | D41: DRA | E41: 5.2604 | N41: 0.5104 | R41: 4.48 | S41: 0.25 | T41: 0.02
C42: Đất công trình công cộng khác | D42: DCK | E42: 0
C43: Đất ở tại nông thôn | D43: ONT | E43: 610.7093 | G43: 31.11 | H43: 48.5016 | I43: 37.88 | J43: 47.81 | K43: 39.844 | L43: 38.346 | M43: 42.24 | N43: 31.7137 | O43: 37.013 | P43: 30.782 | Q43: 56.4 | R43: 53.4 | S43: 72.75 | T43: 42.919
C44: Đất ở tại đô thị | D44: ODT | E44: 29.36 | F44: 29.36
C45: Đất xây dựng trụ sở cơ quan | D45: TSC | E45: 12.7756 | F45: 3.424 | G45: 0.77 | H45: 0.6944 | I45: 0.3 | J45: 0.364 | K45: 0.44 | L45: 0.439 | M45: 0.65 | N45: 0.7032 | O45: 0.812 | P45: 0.2 | Q45: 2.12 | R45: 0.61 | S45: 0.39 | T45: 0.859
B46: 1.1.1.2 | C46: Đất xây dựng trụ sở của tổ chức sự nghiệp | D46: DTS | E46: 2.181 | F46: 0.02 | J46: 0.21 | P46: 1.561 | R46: 0.39
B47: 1.1.2 | C47: Đất xây dựng cơ sở ngoại giao | D47: DNG | E47: 0
B48: 1.2 | C48: Đất xây dựng công trình sự nghiệp khác | D48: DSK | E48: 0
B49: 1.2.1 | C49: Đất cơ sở tôn giáo | D49: TON | E49: 1.86 | G49: 0.09 | H49: 0.42 | I49: 0.35 | Q49: 1
B50: 1.2.2 | C50: Đất làm nghĩa trang, nghĩa địa, nhà tang lễ, nhà hỏa táng | D50: NTD | E50: 324.7623 | F50: 6.441 | G50: 25.624 | H50: 42.9574 | I50: 22.949 | J50: 38.889 | K50: 20.012 | L50: 14.9 | M50: 23.734 | N50: 17.4939 | O50: 4.201 | P50: 2.879 | Q50: 48.052 | R50: 18.512 | S50: 20.084 | T50: 18.034
B51: 1.2.3 | C51: Đất sản xuất vật liệu xây dựng, làm đồ gốm | D51: SKX | E51: 135.0874 | F51: 0.23 | G51: 0.2997 | I51: 0.07 | J51: 21.469 | N51: 1.7907 | P51: 28.788 | Q51: 67.51 | R51: 2.55 | S51: 11.95 | T51: 0.43
B52: 1.3 | C52: Đất sinh hoạt cộng đồng | D52: DSH | E52: 18.7322 | F52: 0.455 | G52: 0.505 | H52: 1.18 | I52: 1.23 | J52: 0.564 | K52: 0.91 | L52: 1.238 | M52: 1.17 | N52: 1.6222 | O52: 0.95 | P52: 1.84 | Q52: 2.678 | R52: 1.42 | S52: 1.52 | T52: 1.45
B53: 1.4 | C53: Đất khu vui chơi, giải trí công cộng | D53: DKV | E53: 3.924 | F53: 0.4 | K53: 2.094 | S53: 1.43
B54: 1.5 | C54: Đất cơ sở tín ngưỡng | D54: TIN | E54: 6.167 | G54: 0.793 | H54: 0.222 | I54: 0.63 | J54: 0.03 | K54: 0.028 | L54: 0.459 | M54: 0.614 | P54: 2.031 | Q54: 1.09 | S54: 0.01 | T54: 0.26
B55: 2 | C55: Đất sông, ngòi, kênh, rạch, suối | D55: SON | E55: 2151.8772 | F55: 70.425 | G55: 89.315 | I55: 58.745 | J55: 189.395 | K55: 11.69 | L55: 196.618 | M55: 205.354 | N55: 79.2852 | O55: 507.941 | P55: 360.211 | Q55: 0.22 | R55: 178.28 | S55: 176.58 | T55: 27.818
B56: 2.1 | C56: Đất có mặt nước chuyên dùng | D56: MNC | E56: 123.8442 | F56: 0.789 | G56: 18.724 | H56: 10.7285 | I56: 27.919 | L56: 7.838 | M56: 21.124 | N56: 0.8797 | O56: 0.5 | P56: 9.772 | Q56: 3.34 | R56: 18.32 | S56: 0.9 | T56: 3.01
B57: 2.1.1 | C57: Đất phi nông nghiệp khác | D57: PNK | E57: 0 | F57: 0
B58: 2.1.2 | C58: Đất chưa sử dụng | D58: CSD | E58: 3222.839 | F58: 18.708 | G58: 36.684 | H58: 31.088 | I58: 8.278 | J58: 21.45 | K58: 264.478 | L58: 39.178 | M58: 66.678 | N58: 9.71 | O58: 1838.73 | P58: 584.064 | Q58: 54.818 | R58: 26.03 | S58: 208.144 | T58: 14.801
B59: 2.2 | C59: Đất bằng chưa sử dụng | D59: BCS | E59: 855.541 | F59: 18.708 | G59: 36.684 | H59: 29.758 | I59: 8.278 | J59: 9.25 | K59: 264.478 | L59: 39.178 | M59: 66.678 | N59: 9.71 | O59: 179.71 | P59: 85.098 | Q59: 52.438 | R59: 26.03 | S59: 14.812 | T59: 14.731
B60: 2.2.1 | C60: Đất đồi núi chưa sử dụng | D60: DCS | E60: 2326.48 | F60: 0 | H60: 1.33 | J60: 12.2 | O60: 1654.6 | P60: 462.568 | Q60: 2.38 | S60: 193.332 | T60: 0.07
B61: 2.2.2 | C61: Núi đá không có rừng cây | D61: NCS | E61: 40.818 | F61: 0 | O61: 4.42 | P61: 36.398
B62: 4 | C62: Đất khu công nghệ cao* | D62: KCN | F62: 0
B63: 5 | C63: Đất khu kinh tế* | D63: KKT | F63: 0
B64: 6 | C64: Đất đô thị* | D64: KDT | F64: 0
B65: II | C65: KHU CHỨC NĂNG*
B66: 1 | C66: Khu vực chuyên trồng lúa nước | D66: KVL | E66: 0
B67: 2 | C67: Khu vực chuyên trồng cây công nghiệp lâu năm | D67: KVN | E67: 0
B68: 3 | C68: Khu vực rừng phòng hộ | D68: KPH | E68: 0
B69: 4 | C69: Khu vực rừng đặc dụng | D69: KDD | E69: 0
B70: 5 | C70: Khu vực rừng sản xuất | D70: KSX | E70: 0
B71: 6 | C71: Khu vực công nghiệp, cụm công nghiệp | D71: KKN | E71: 0
B72: 7 | C72: Khu đô thị-thương mại - dịch vụ | D72: KDV | E72: 0
B73: 8 | C73: Khu du lịch | D73: KDL | E73: 0
B74: 9 | C74: Khu ở, làng nghề, sản xuất phi nông nghiệp nông thôn | D74: KON | E74: 0
C75: Ghi chú: * Không tổng hợp khi tính tổng diện tích tự nhiên

Sheet Thị trấn Quán Hàu
A1: Thị trấn Quán Hàu | B1: =UPPER("CHU CHUYỂN ĐẤT ĐAI TRONG KỲ QUY HoẠCH SỬ DỤNG ĐẤT CỦA "&A1) -> CHU CHUYỂN ĐẤT ĐAI TRONG KỲ QUY HOẠCH SỬ DỤNG ĐẤT CỦA THị TRấN QUÁN HÀU
A4: STT | B4: Chỉ tiêu sử dụng đất | C4: Mã | D4: ="Diện tíchđầu kỳ, năm "&'SL HIỆN TRẠNG'!$D$2 -> Diện tíchđầu kỳ, năm 2019 | E4: ="Chu chuyển đất đai trong năm kế hoạch "&'SL HIỆN TRẠNG'!D2+2 -> Chu chuyển đất đai trong năm kế hoạch 2021 | BJ4: Cộng giảm | BK4: Tăng (+) Giảm (-) | BL4: ="Diện tíchcuối kỳ năm "&'SL HIỆN TRẠNG'!$D$2+2 -> Diện tíchcuối kỳ năm 2021 | BM4: Kiểm tra
E5: NNP | F5: LUA | G5: LUC | H5: LUN | I5: LUK | J5: HNK | K5: CLN | L5: RPH | M5: RDD | N5: RSX | O5: NTS | P5: LMU | Q5: NKH | R5: PNN | S5: CQP | T5: CAN | U5: SKK | V5: SKT | W5: SKN | X5: TMD | Y5: SKC | Z5: SKS | AA5: DHT | AB5: DVH | AC5: DXH | AD5: DYT | AE5: DGD | AF5: DTT | AG5: DKH | AH5: DGT | AI5: DTL | AJ5: DNL | AK5: DBV | AL5: DCH | AM5: DDT | AN5: DDL | AO5: DRA | AP5: DCK | AQ5: ONT | AR5: ODT | AS5: TSC | AT5: DTS | AU5: DNG | AV5: DSK | AW5: TON | AX5: NTD | AY5: SKX | AZ5: DSH | BA5: DKV | BB5: TIN | BC5: SON | BD5: MNC | BE5: PNK | BF5: CSD | BG5: BCS | BH5: DCS | BI5: NCS
A6: I | B6: TỔNG DIỆN TÍCH ĐẤT TỰ NHIÊN | D6: =D7+D20+D60 -> 330.6512 | E6: =E7+E20+E60 -> 100.086 | F6: 46.057 | G6: 38.909 | H6: 0 | I6: 7.148 | J6: 41.018 | K6: 0 | L6: 0 | M6: 0 | N6: 0.547 | O6: 12.464 | P6: 0 | Q6: 0 | R6: 213.3372 | S6: 1.2892 | T6: 1.442 | U6: 16.889 | V6: 0 | W6: 0 | X6: 3.5 | Y6: 6.6 | Z6: 0 | AA6: 61.463 | AB6: 1.24 | AC6: 0 | AD6: 0.14 | AE6: 2.43 | AF6: 2.765 | AG6: 0 | AH6: 49.565 | AI6: 4.814 | AJ6: 0 | AK6: 0.14 | AL6: 0.369 | AM6: 0.5 | AN6: 0 | AO6: 0 | AP6: 0 | AQ6: 0 | AR6: 41.84 | AS6: 3.224 | AT6: 0.02 | AU6: 0 | AV6: 0 | AW6: 0 | AX6: 5.801 | AY6: 0.23 | AZ6: 0.455 | BA6: 0.4 | BB6: 0 | BC6: 68.925 | BD6: 0.759 | BE6: 0 | BF6: 17.228 | BG6: 17.228 | BH6: 0 | BI6: 0 | BJ6: =BJ7+BJ20+BJ60 -> 32.28 | BK6: =BJ64-BJ6 -> 0 | BL6: =BL7+BL20+BL60 -> 330.6512 | BM6: =IF(BL6-D6=0,"ok","sai") -> ok
A7: 1 | B7: Đất nông nghiệp | C7: NNP | D7: =D8+SUM(D12:D19) -> 130.886 | E7: =F7+SUM(J7:Q7) -> 100.086 | F7: =SUM(G7:I7) -> 46.057 | G7: =G8+SUM(G12:G19) -> 38.909 | H7: =H8+SUM(H12:H19) -> 0 | I7: 7.148 | J7: 41.018 | K7: 0 | L7: 0 | M7: 0 | N7: 0.547 | O7: 12.464 | P7: 0 | Q7: 0 | R7: =SUM(S7:AA7)+SUM(AM7:BE7) -> 30.8 | S7: 0 | T7: =T8+SUM(T12:T19) -> 0 | U7: 11 | V7: 0 | W7: 0 | X7: 1.89 | Y7: 0 | Z7: 0 | AA7: =SUM(AB7:AL7) -> 6.84 | AB7: =AB8+SUM(AB12:AB19) -> 0.07 | AC7: 0 | AD7: 0 | AE7: 0 | AF7: 0.55 | AG7: 0 | AH7: 5.22 | AI7: 1 | AJ7: 0 | AK7: 0 | AL7: 0 | AM7: 0 | AN7: 0 | AO7: 0 | AP7: 0 | AQ7: 0 | AR7: 11.07 | AS7: 0 | AT7: 0 | AU7: 0 | AV7: 0 | AW7: 0 | AX7: 0 | AY7: 0 | AZ7: 0 | BA7: 0 | BB7: 0 | BC7: 0 | BD7: 0 | BE7: 0 | BF7: =SUM(BG7:BI7) -> 0 | BG7: =BG8+SUM(BG12:BG19) -> 0 | BH7: =BH8+SUM(BH12:BH19) -> 0 | BI7: =BI8+SUM(BI12:BI19) -> 0 | BJ7: =D7-E7 -> 30.8 | BK7: =E64-BJ7 -> -30.8 | BL7: =D7+BK7 -> 100.086 | BM7: =IF(BL7<0,"Lỗi diện tích cuối kỳ <0",IF(BJ7>D7,"Lỗi diện tích giảm lớn hơn diện tích hiện trạng","ok")) -> ok
A8: 1.1 | B8: Đất trồng lúa | C8: LUA | D8: =SUM(D9:D11) -> 50.977 | E8: 46.057 | F8: =SUM(G8:I8) -> 46.057 | G8: =SUM(G9:G11) -> 38.909 | H8: =SUM(H9:H11) -> 0 | I8: 7.148 | J8: 0 | K8: 0 | L8: 0 | M8: 0 | N8: 0 | O8: 0 | P8: 0 | Q8: 0 | R8: 4.92 | S8: 0 | T8: 0 | U8: 0 | V8: 0 | W8: 0 | X8: 0 | Y8: 0 | Z8: 0 | AA8: 1.3 | AB8: 0 | AC8: 0 | AD8: 0 | AE8: 0 | AF8: 0 | AG8: 0 | AH8: 1.3 | AI8: 0 | AJ8: 0 | AK8: 0 | AL8: 0 | AM8: 0 | AN8: 0 | AO8: 0 | AP8: 0 | AQ8: 0 | AR8: 3.62 | AS8: 0 | AT8: 0 | AU8: 0 | AV8: 0 | AW8: 0 | AX8: 0 | AY8: 0 | AZ8: 0 | BA8: 0 | BB8: 0 | BC8: 0 | BD8: 0 | BE8: 0 | BF8: 0 | BG8: 0 | BH8: 0 | BI8: 0 | BJ8: =D8-F8 -> 4.92 | BK8: =F64-BJ8 -> -4.92 | BL8: 46.057 | BM8: ok
A9: 1.1.1 | B9: Đất chuyên trồng lúa nước | C9: LUC | D9: =VLOOKUP(C9,hientrang,MATCH($A$1,tenxa,0)+2,0) -> 43.429 | E9: 38.909 | F9: =SUM(G9:I9) -> 38.909 | G9: =D9-(SUM(H9:Q9)+R9+BF9) -> 38.909 | H9: =SUMPRODUCT(đt!$F$8:$F$273*(đt!$D$8:$D$273='Thị trấn Quán Hàu'!$A$1)*(đt!$C$8:$C$273='Thị trấn Quán Hàu'!H5)) -> 0 | I9: =SUMPRODUCT(đt!$F$8:$F$273*(đt!$D$8:$D$273='Thị trấn Quán Hàu'!$A$1)*(đt!$C$8:$C$273='Thị trấn Quán Hàu'!I5)) -> 0 | J9: =SUMPRODUCT(đt!$F$8:$F$273*(đt!$D$8:$D$273='Thị trấn Quán Hàu'!$A$1)*(đt!$C$8:$C$273='Thị trấn Quán Hàu'!J5)) -> 0 | K9: =SUMPRODUCT(đt!$F$8:$F$273*(đt!$D$8:$D$273='Thị trấn Quán Hàu'!$A$1)*(đt!$C$8:$C$273='Thị trấn Quán Hàu'!K5)) -> 0 | L9: =SUMPRODUCT(đt!$F$8:$F$273*(đt!$D$8:$D$273='Thị trấn Quán Hàu'!$A$1)*(đt!$C$8:$C$273='Thị trấn Quán Hàu'!L5)) -> 0 | M9: =SUMPRODUCT(đt!$F$8:$F$273*(đt!$D$8:$D$273='Thị trấn Quán Hàu'!$A$1)*(đt!$C$8:$C$273='Thị trấn Quán Hàu'!M5)) -> 0 | N9: =SUMPRODUCT(đt!$F$8:$F$273*(đt!$D$8:$D$273='Thị trấn Quán Hàu'!$A$1)*(đt!$C$8:$C$273='Thị trấn Quán Hàu'!N5)) -> 0 | O9: =SUMPRODUCT(đt!$F$8:$F$273*(đt!$D$8:$D$273='Thị trấn Quán Hàu'!$A$1)*(đt!$C$8:$C$273='Thị trấn Quán Hàu'!O5)) -> 0 | P9: =SUMPRODUCT(đt!$F$8:$F$273*(đt!$D$8:$D$273='Thị trấn Quán Hàu'!$A$1)*(đt!$C$8:$C$273='Thị trấn Quán Hàu'!P5)) -> 0 | Q9: =SUMPRODUCT(đt!$F$8:$F$273*(đt!$D$8:$D$273='Thị trấn Quán Hàu'!$A$1)*(đt!$C$8:$C$273='Thị trấn Quán Hàu'!Q5)) -> 0 | R9: =SUM(S9:AA9)+SUM(AM9:BE9) -> 4.52 | S9: =SUMPRODUCT(đt!$F$8:$F$273*(đt!$D$8:$D$273='Thị trấn Quán Hàu'!$A$1)*(đt!$C$8:$C$273='Thị trấn Quán Hàu'!S5)) -> 0 | T9: =SUMPRODUCT(đt!$F$8:$F$273*(đt!$D$8:$D$273='Thị trấn Quán Hàu'!$A$1)*(đt!$C$8:$C$273='Thị trấn Quán Hàu'!T5)) -> 0 | U9: =SUMPRODUCT(đt!$F$8:$F$273*(đt!$D$8:$D$273='Thị trấn Quán Hàu'!$A$1)*(đt!$C$8:$C$273='Thị trấn Quán Hàu'!U5)) -> 0 | V9: =SUMPRODUCT(đt!$F$8:$F$273*(đt!$D$8:$D$273='Thị trấn Quán Hàu'!$A$1)*(đt!$C$8:$C$273='Thị trấn Quán Hàu'!V5)) -> 0 | W9: =SUMPRODUCT(đt!$F$8:$F$273*(đt!$D$8:$D$273='Thị trấn Quán Hàu'!$A$1)*(đt!$C$8:$C$273='Thị trấn Quán Hàu'!W5)) -> 0 | X9: =SUMPRODUCT(đt!$F$8:$F$273*(đt!$D$8:$D$273='Thị trấn Quán Hàu'!$A$1)*(đt!$C$8:$C$273='Thị trấn Quán Hàu'!X5)) -> 0 | Y9: =SUMPRODUCT(đt!$F$8:$F$273*(đt!$D$8:$D$273='Thị trấn Quán Hàu'!$A$1)*(đt!$C$8:$C$273='Thị trấn Quán Hàu'!Y5)) -> 0 | Z9: =SUMPRODUCT(đt!$F$8:$F$273*(đt!$D$8:$D$273='Thị trấn Quán Hàu'!$A$1)*(đt!$C$8:$C$273='Thị trấn Quán Hàu'!Z5)) -> 0 | AA9: =SUM(AB9:AL9) -> 1.3 | AB9: =SUMPRODUCT(đt!$F$8:$F$273*(đt!$D$8:$D$273='Thị trấn Quán Hàu'!$A$1)*(đt!$C$8:$C$273='Thị trấn Quán Hàu'!AB5)) -> 0 | AC9: =SUMPRODUCT(đt!$F$8:$F$273*(đt!$D$8:$D$273='Thị trấn Quán Hàu'!$A$1)*(đt!$C$8:$C$273='Thị trấn Quán Hàu'!AC5)) -> 0 | AD9: =SUMPRODUCT(đt!$F$8:$F$273*(đt!$D$8:$D$273='Thị trấn Quán Hàu'!$A$1)*(đt!$C$8:$C$273='Thị trấn Quán Hàu'!AD5)) -> 0 | AE9: =SUMPRODUCT(đt!$F$8:$F$273*(đt!$D$8:$D$273='Thị trấn Quán Hàu'!$A$1)*(đt!$C$8:$C$273='Thị trấn Quán Hàu'!AE5)) -> 0 | AF9: =SUMPRODUCT(đt!$F$8:$F$273*(đt!$D$8:$D$273='Thị trấn Quán Hàu'!$A$1)*(đt!$C$8:$C$273='Thị trấn Quán Hàu'!AF5)) -> 0 | AG9: =SUMPRODUCT(đt!$F$8:$F$273*(đt!$D$8:$D$273='Thị trấn Quán Hàu'!$A$1)*(đt!$C$8:$C$273='Thị trấn Quán Hàu'!AG5)) -> 0 | AH9: =SUMPRODUCT(đt!$F$8:$F$273*(đt!$D$8:$D$273='Thị trấn Quán Hàu'!$A$1)*(đt!$C$8:$C$273='Thị trấn Quán Hàu'!AH5)) -> 1.3 | AI9: =SUMPRODUCT(đt!$F$8:$F$273*(đt!$D$8:$D$273='Thị trấn Quán Hàu'!$A$1)*(đt!$C$8:$C$273='Thị trấn Quán Hàu'!AI5)) -> 0 | AJ9: =SUMPRODUCT(đt!$F$8:$F$273*(đt!$D$8:$D$273='Thị trấn Quán Hàu'!$A$1)*(đt!$C$8:$C$273='Thị trấn Quán Hàu'!AJ5)) -> 0 | AK9: =SUMPRODUCT(đt!$F$8:$F$273*(đt!$D$8:$D$273='Thị trấn Quán Hàu'!$A$1)*(đt!$C$8:$C$273='Thị trấn Quán Hàu'!AK5)) -> 0 | AL9: =SUMPRODUCT(đt!$F$8:$F$273*(đt!$D$8:$D$273='Thị trấn Quán Hàu'!$A$1)*(đt!$C$8:$C$273='Thị trấn Quán Hàu'!AL5)) -> 0 | AM9: =SUMPRODUCT(đt!$F$8:$F$273*(đt!$D$8:$D$273='Thị trấn Quán Hàu'!$A$1)*(đt!$C$8:$C$273='Thị trấn Quán Hàu'!AM5)) -> 0 | AN9: =SUMPRODUCT(đt!$F$8:$F$273*(đt!$D$8:$D$273='Thị trấn Quán Hàu'!$A$1)*(đt!$C$8:$C$273='Thị trấn Quán Hàu'!AN5)) -> 0 | AO9: =SUMPRODUCT(đt!$F$8:$F$273*(đt!$D$8:$D$273='Thị trấn Quán Hàu'!$A$1)*(đt!$C$8:$C$273='Thị trấn Quán Hàu'!AO5)) -> 0 | AP9: =SUMPRODUCT(đt!$F$8:$F$273*(đt!$D$8:$D$273='Thị trấn Quán Hàu'!$A$1)*(đt!$C$8:$C$273='Thị trấn Quán Hàu'!AP5)) -> 0 | AQ9: =SUMPRODUCT(đt!$F$8:$F$273*(đt!$D$8:$D$273='Thị trấn Quán Hàu'!$A$1)*(đt!$C$8:$C$273='Thị trấn Quán Hàu'!AQ5)) -> 0 | AR9: =SUMPRODUCT(đt!$F$8:$F$273*(đt!$D$8:$D$273='Thị trấn Quán Hàu'!$A$1)*(đt!$C$8:$C$273='Thị trấn Quán Hàu'!AR5)) -> 3.22 | AS9: =SUMPRODUCT(đt!$F$8:$F$273*(đt!$D$8:$D$273='Thị trấn Quán Hàu'!$A$1)*(đt!$C$8:$C$273='Thị trấn Quán Hàu'!AS5)) -> 0 | AT9: =SUMPRODUCT(đt!$F$8:$F$273*(đt!$D$8:$D$273='Thị trấn Quán Hàu'!$A$1)*(đt!$C$8:$C$273='Thị trấn Quán Hàu'!AT5)) -> 0 | AU9: =SUMPRODUCT(đt!$F$8:$F$273*(đt!$D$8:$D$273='Thị trấn Quán Hàu'!$A$1)*(đt!$C$8:$C$273='Thị trấn Quán Hàu'!AU5)) -> 0 | AV9: =SUMPRODUCT(đt!$F$8:$F$273*(đt!$D$8:$D$273='Thị trấn Quán Hàu'!$A$1)*(đt!$C$8:$C$273='Thị trấn Quán Hàu'!AV5)) -> 0 | AW9: =SUMPRODUCT(đt!$F$8:$F$273*(đt!$D$8:$D$273='Thị trấn Quán Hàu'!$A$1)*(đt!$C$8:$C$273='Thị trấn Quán Hàu'!AW5)) -> 0 | AX9: =SUMPRODUCT(đt!$F$8:$F$273*(đt!$D$8:$D$273='Thị trấn Quán Hàu'!$A$1)*(đt!$C$8:$C$273='Thị trấn Quán Hàu'!AX5)) -> 0 | AY9: =SUMPRODUCT(đt!$F$8:$F$273*(đt!$D$8:$D$273='Thị trấn Quán Hàu'!$A$1)*(đt!$C$8:$C$273='Thị trấn Quán Hàu'!AY5)) -> 0 | AZ9: =SUMPRODUCT(đt!$F$8:$F$273*(đt!$D$8:$D$273='Thị trấn Quán Hàu'!$A$1)*(đt!$C$8:$C$273='Thị trấn Quán Hàu'!AZ5)) -> 0 | BA9: =SUMPRODUCT(đt!$F$8:$F$273*(đt!$D$8:$D$273='Thị trấn Quán Hàu'!$A$1)*(đt!$C$8:$C$273='Thị trấn Quán Hàu'!BA5)) -> 0 | BB9: =SUMPRODUCT(đt!$F$8:$F$273*(đt!$D$8:$D$273='Thị trấn Quán Hàu'!$A$1)*(đt!$C$8:$C$273='Thị trấn Quán Hàu'!BB5)) -> 0 | BC9: =SUMPRODUCT(đt!$F$8:$F$273*(đt!$D$8:$D$273='Thị trấn Quán Hàu'!$A$1)*(đt!$C$8:$C$273='Thị trấn Quán Hàu'!BC5)) -> 0 | BD9: =SUMPRODUCT(đt!$F$8:$F$273*(đt!$D$8:$D$273='Thị trấn Quán Hàu'!$A$1)*(đt!$C$8:$C$273='Thị trấn Quán Hàu'!BD5)) -> 0 | BE9: =SUMPRODUCT(đt!$F$8:$F$273*(đt!$D$8:$D$273='Thị trấn Quán Hàu'!$A$1)*(đt!$C$8:$C$273='Thị trấn Quán Hàu'!BE5)) -> 0 | BF9: =SUM(BG9:BI9) -> 0 | BG9: =SUMPRODUCT(đt!$F$8:$F$273*(đt!$D$8:$D$273='Thị trấn Quán Hàu'!$A$1)*(đt!$C$8:$C$273='Thị trấn Quán Hàu'!BG5)) -> 0 | BH9: =SUMPRODUCT(đt!$F$8:$F$273*(đt!$D$8:$D$273='Thị trấn Quán Hàu'!$A$1)*(đt!$C$8:$C$273='Thị trấn Quán Hàu'!BH5)) -> 0 | BI9: =SUMPRODUCT(đt!$F$8:$F$273*(đt!$D$8:$D$273='Thị trấn Quán Hàu'!$A$1)*(đt!$C$8:$C$273='Thị trấn Quán Hàu'!BI5)) -> 0 | BJ9: =D9-G9 -> 4.52 | BK9: =G64-BJ9 -> -4.52 | BL9: 38.909 | BM9: ok
A10: 1.1.2 | B10: Đất trồng lúa nương | C10: LUN | D10: 0 | E10: 0 | F10: 0 | G10: =SUMPRODUCT(đt!$G$8:$G$273*(đt!$D$8:$D$273='Thị trấn Quán Hàu'!$A$1)*(đt!$C$8:$C$273='Thị trấn Quán Hàu'!G5)) -> 0 | H10: =D10-(G10+SUM(I10:Q10)+R10+BF10) -> 0 | I10: =SUMPRODUCT(đt!$G$8:$G$273*(đt!$D$8:$D$273='Thị trấn Quán Hàu'!$A$1)*(đt!$C$8:$C$273='Thị trấn Quán Hàu'!I5)) -> 0 | J10: =SUMPRODUCT(đt!$G$8:$G$273*(đt!$D$8:$D$273='Thị trấn Quán Hàu'!$A$1)*(đt!$C$8:$C$273='Thị trấn Quán Hàu'!J5)) -> 0 | K10: =SUMPRODUCT(đt!$G$8:$G$273*(đt!$D$8:$D$273='Thị trấn Quán Hàu'!$A$1)*(đt!$C$8:$C$273='Thị trấn Quán Hàu'!K5)) -> 0 | L10: =SUMPRODUCT(đt!$G$8:$G$273*(đt!$D$8:$D$273='Thị trấn Quán Hàu'!$A$1)*(đt!$C$8:$C$273='Thị trấn Quán Hàu'!L5)) -> 0 | M10: =SUMPRODUCT(đt!$G$8:$G$273*(đt!$D$8:$D$273='Thị trấn Quán Hàu'!$A$1)*(đt!$C$8:$C$273='Thị trấn Quán Hàu'!M5)) -> 0 | N10: =SUMPRODUCT(đt!$G$8:$G$273*(đt!$D$8:$D$273='Thị trấn Quán Hàu'!$A$1)*(đt!$C$8:$C$273='Thị trấn Quán Hàu'!N5)) -> 0 | O10: =SUMPRODUCT(đt!$G$8:$G$273*(đt!$D$8:$D$273='Thị trấn Quán Hàu'!$A$1)*(đt!$C$8:$C$273='Thị trấn Quán Hàu'!O5)) -> 0 | P10: =SUMPRODUCT(đt!$G$8:$G$273*(đt!$D$8:$D$273='Thị trấn Quán Hàu'!$A$1)*(đt!$C$8:$C$273='Thị trấn Quán Hàu'!P5)) -> 0 | Q10: =SUMPRODUCT(đt!$G$8:$G$273*(đt!$D$8:$D$273='Thị trấn Quán Hàu'!$A$1)*(đt!$C$8:$C$273='Thị trấn Quán Hàu'!Q5)) -> 0 | R10: =SUM(S10:AA10)+SUM(AM10:BE10) -> 0 | S10: =SUMPRODUCT(đt!$G$8:$G$273*(đt!$D$8:$D$273='Thị trấn Quán Hàu'!$A$1)*(đt!$C$8:$C$273='Thị trấn Quán Hàu'!S5)) -> 0 | T10: =SUMPRODUCT(đt!$G$8:$G$273*(đt!$D$8:$D$273='Thị trấn Quán Hàu'!$A$1)*(đt!$C$8:$C$273='Thị trấn Quán Hàu'!T5)) -> 0 | U10: =SUMPRODUCT(đt!$G$8:$G$273*(đt!$D$8:$D$273='Thị trấn Quán Hàu'!$A$1)*(đt!$C$8:$C$273='Thị trấn Quán Hàu'!U5)) -> 0 | V10: =SUMPRODUCT(đt!$G$8:$G$273*(đt!$D$8:$D$273='Thị trấn Quán Hàu'!$A$1)*(đt!$C$8:$C$273='Thị trấn Quán Hàu'!V5)) -> 0 | W10: =SUMPRODUCT(đt!$G$8:$G$273*(đt!$D$8:$D$273='Thị trấn Quán Hàu'!$A$1)*(đt!$C$8:$C$273='Thị trấn Quán Hàu'!W5)) -> 0 | X10: =SUMPRODUCT(đt!$G$8:$G$273*(đt!$D$8:$D$273='Thị trấn Quán Hàu'!$A$1)*(đt!$C$8:$C$273='Thị trấn Quán Hàu'!X5)) -> 0 | Y10: =SUMPRODUCT(đt!$G$8:$G$273*(đt!$D$8:$D$273='Thị trấn Quán Hàu'!$A$1)*(đt!$C$8:$C$273='Thị trấn Quán Hàu'!Y5)) -> 0 | Z10: =SUMPRODUCT(đt!$G$8:$G$273*(đt!$D$8:$D$273='Thị trấn Quán Hàu'!$A$1)*(đt!$C$8:$C$273='Thị trấn Quán Hàu'!Z5)) -> 0 | AA10: =SUM(AB10:AL10) -> 0 | AB10: =SUMPRODUCT(đt!$G$8:$G$273*(đt!$D$8:$D$273='Thị trấn Quán Hàu'!$A$1)*(đt!$C$8:$C$273='Thị trấn Quán Hàu'!AB5)) -> 0 | AC10: =SUMPRODUCT(đt!$G$8:$G$273*(đt!$D$8:$D$273='Thị trấn Quán Hàu'!$A$1)*(đt!$C$8:$C$273='Thị trấn Quán Hàu'!AC5)) -> 0 | AD10: =SUMPRODUCT(đt!$G$8:$G$273*(đt!$D$8:$D$273='Thị trấn Quán Hàu'!$A$1)*(đt!$C$8:$C$273='Thị trấn Quán Hàu'!AD5)) -> 0 | AE10: =SUMPRODUCT(đt!$G$8:$G$273*(đt!$D$8:$D$273='Thị trấn Quán Hàu'!$A$1)*(đt!$C$8:$C$273='Thị trấn Quán Hàu'!AE5)) -> 0 | AF10: =SUMPRODUCT(đt!$G$8:$G$273*(đt!$D$8:$D$273='Thị trấn Quán Hàu'!$A$1)*(đt!$C$8:$C$273='Thị trấn Quán Hàu'!AF5)) -> 0 | AG10: =SUMPRODUCT(đt!$G$8:$G$273*(đt!$D$8:$D$273='Thị trấn Quán Hàu'!$A$1)*(đt!$C$8:$C$273='Thị trấn Quán Hàu'!AG5)) -> 0 | AH10: =SUMPRODUCT(đt!$G$8:$G$273*(đt!$D$8:$D$273='Thị trấn Quán Hàu'!$A$1)*(đt!$C$8:$C$273='Thị trấn Quán Hàu'!AH5)) -> 0 | AI10: =SUMPRODUCT(đt!$G$8:$G$273*(đt!$D$8:$D$273='Thị trấn Quán Hàu'!$A$1)*(đt!$C$8:$C$273='Thị trấn Quán Hàu'!AI5)) -> 0 | AJ10: =SUMPRODUCT(đt!$G$8:$G$273*(đt!$D$8:$D$273='Thị trấn Quán Hàu'!$A$1)*(đt!$C$8:$C$273='Thị trấn Quán Hàu'!AJ5)) -> 0 | AK10: =SUMPRODUCT(đt!$G$8:$G$273*(đt!$D$8:$D$273='Thị trấn Quán Hàu'!$A$1)*(đt!$C$8:$C$273='Thị trấn Quán Hàu'!AK5)) -> 0 | AL10: =SUMPRODUCT(đt!$G$8:$G$273*(đt!$D$8:$D$273='Thị trấn Quán Hàu'!$A$1)*(đt!$C$8:$C$273='Thị trấn Quán Hàu'!AL5)) -> 0 | AM10: =SUMPRODUCT(đt!$G$8:$G$273*(đt!$D$8:$D$273='Thị trấn Quán Hàu'!$A$1)*(đt!$C$8:$C$273='Thị trấn Quán Hàu'!AM5)) -> 0 | AN10: =SUMPRODUCT(đt!$G$8:$G$273*(đt!$D$8:$D$273='Thị trấn Quán Hàu'!$A$1)*(đt!$C$8:$C$273='Thị trấn Quán Hàu'!AN5)) -> 0 | AO10: =SUMPRODUCT(đt!$G$8:$G$273*(đt!$D$8:$D$273='Thị trấn Quán Hàu'!$A$1)*(đt!$C$8:$C$273='Thị trấn Quán Hàu'!AO5)) -> 0 | AP10: =SUMPRODUCT(đt!$G$8:$G$273*(đt!$D$8:$D$273='Thị trấn Quán Hàu'!$A$1)*(đt!$C$8:$C$273='Thị trấn Quán Hàu'!AP5)) -> 0 | AQ10: =SUMPRODUCT(đt!$G$8:$G$273*(đt!$D$8:$D$273='Thị trấn Quán Hàu'!$A$1)*(đt!$C$8:$C$273='Thị trấn Quán Hàu'!AQ5)) -> 0 | AR10: =SUMPRODUCT(đt!$G$8:$G$273*(đt!$D$8:$D$273='Thị trấn Quán Hàu'!$A$1)*(đt!$C$8:$C$273='Thị trấn Quán Hàu'!AR5)) -> 0 | AS10: =SUMPRODUCT(đt!$G$8:$G$273*(đt!$D$8:$D$273='Thị trấn Quán Hàu'!$A$1)*(đt!$C$8:$C$273='Thị trấn Quán Hàu'!AS5)) -> 0 | AT10: =SUMPRODUCT(đt!$G$8:$G$273*(đt!$D$8:$D$273='Thị trấn Quán Hàu'!$A$1)*(đt!$C$8:$C$273='Thị trấn Quán Hàu'!AT5)) -> 0 | AU10: =SUMPRODUCT(đt!$G$8:$G$273*(đt!$D$8:$D$273='Thị trấn Quán Hàu'!$A$1)*(đt!$C$8:$C$273='Thị trấn Quán Hàu'!AU5)) -> 0 | AV10: =SUMPRODUCT(đt!$G$8:$G$273*(đt!$D$8:$D$273='Thị trấn Quán Hàu'!$A$1)*(đt!$C$8:$C$273='Thị trấn Quán Hàu'!AV5)) -> 0 | AW10: =SUMPRODUCT(đt!$G$8:$G$273*(đt!$D$8:$D$273='Thị trấn Quán Hàu'!$A$1)*(đt!$C$8:$C$273='Thị trấn Quán Hàu'!AW5)) -> 0 | AX10: =SUMPRODUCT(đt!$G$8:$G$273*(đt!$D$8:$D$273='Thị trấn Quán Hàu'!$A$1)*(đt!$C$8:$C$273='Thị trấn Quán Hàu'!AX5)) -> 0 | AY10: =SUMPRODUCT(đt!$G$8:$G$273*(đt!$D$8:$D$273='Thị trấn Quán Hàu'!$A$1)*(đt!$C$8:$C$273='Thị trấn Quán Hàu'!AY5)) -> 0 | AZ10: =SUMPRODUCT(đt!$G$8:$G$273*(đt!$D$8:$D$273='Thị trấn Quán Hàu'!$A$1)*(đt!$C$8:$C$273='Thị trấn Quán Hàu'!AZ5)) -> 0 | BA10: =SUMPRODUCT(đt!$G$8:$G$273*(đt!$D$8:$D$273='Thị trấn Quán Hàu'!$A$1)*(đt!$C$8:$C$273='Thị trấn Quán Hàu'!BA5)) -> 0 | BB10: =SUMPRODUCT(đt!$G$8:$G$273*(đt!$D$8:$D$273='Thị trấn Quán Hàu'!$A$1)*(đt!$C$8:$C$273='Thị trấn Quán Hàu'!BB5)) -> 0 | BC10: =SUMPRODUCT(đt!$G$8:$G$273*(đt!$D$8:$D$273='Thị trấn Quán Hàu'!$A$1)*(đt!$C$8:$C$273='Thị trấn Quán Hàu'!BC5)) -> 0 | BD10: =SUMPRODUCT(đt!$G$8:$G$273*(đt!$D$8:$D$273='Thị trấn Quán Hàu'!$A$1)*(đt!$C$8:$C$273='Thị trấn Quán Hàu'!BD5)) -> 0 | BE10: =SUMPRODUCT(đt!$G$8:$G$273*(đt!$D$8:$D$273='Thị trấn Quán Hàu'!$A$1)*(đt!$C$8:$C$273='Thị trấn Quán Hàu'!BE5)) -> 0 | BF10: =SUM(BG10:BI10) -> 0 | BG10: =SUMPRODUCT(đt!$G$8:$G$273*(đt!$D$8:$D$273='Thị trấn Quán Hàu'!$A$1)*(đt!$C$8:$C$273='Thị trấn Quán Hàu'!BG5)) -> 0 | BH10: =SUMPRODUCT(đt!$G$8:$G$273*(đt!$D$8:$D$273='Thị trấn Quán Hàu'!$A$1)*(đt!$C$8:$C$273='Thị trấn Quán Hàu'!BH5)) -> 0 | BI10: =SUMPRODUCT(đt!$G$8:$G$273*(đt!$D$8:$D$273='Thị trấn Quán Hàu'!$A$1)*(đt!$C$8:$C$273='Thị trấn Quán Hàu'!BI5)) -> 0 | BJ10: =D10-H10 -> 0 | BK10: =H64-BJ10 -> 0 | BL10: 0 | BM10: ok
A11: 1.1.3 | B11: Đất trồng lúa nước còn lại | C11: LUK | D11: 7.548 | E11: 7.148 | F11: =SUM(G11:I11) -> 7.148 | G11: =SUMPRODUCT(đt!$H$8:$H$273*(đt!$D$8:$D$273='Thị trấn Quán Hàu'!$A$1)*(đt!$C$8:$C$273='Thị trấn Quán Hàu'!G5)) -> 0 | H11: =SUMPRODUCT(đt!$H$8:$H$273*(đt!$D$8:$D$273='Thị trấn Quán Hàu'!$A$1)*(đt!$C$8:$C$273='Thị trấn Quán Hàu'!H5)) -> 0 | I11: =D11-(G11+H11+SUM(J11:Q11)+R11+BF11) -> 7.148 | J11: =SUMPRODUCT(đt!$H$8:$H$273*(đt!$D$8:$D$273='Thị trấn Quán Hàu'!$A$1)*(đt!$C$8:$C$273='Thị trấn Quán Hàu'!J5)) -> 0 | K11: =SUMPRODUCT(đt!$H$8:$H$273*(đt!$D$8:$D$273='Thị trấn Quán Hàu'!$A$1)*(đt!$C$8:$C$273='Thị trấn Quán Hàu'!K5)) -> 0 | L11: =SUMPRODUCT(đt!$H$8:$H$273*(đt!$D$8:$D$273='Thị trấn Quán Hàu'!$A$1)*(đt!$C$8:$C$273='Thị trấn Quán Hàu'!L5)) -> 0 | M11: =SUMPRODUCT(đt!$H$8:$H$273*(đt!$D$8:$D$273='Thị trấn Quán Hàu'!$A$1)*(đt!$C$8:$C$273='Thị trấn Quán Hàu'!M5)) -> 0 | N11: =SUMPRODUCT(đt!$H$8:$H$273*(đt!$D$8:$D$273='Thị trấn Quán Hàu'!$A$1)*(đt!$C$8:$C$273='Thị trấn Quán Hàu'!N5)) -> 0 | O11: =SUMPRODUCT(đt!$H$8:$H$273*(đt!$D$8:$D$273='Thị trấn Quán Hàu'!$A$1)*(đt!$C$8:$C$273='Thị trấn Quán Hàu'!O5)) -> 0 | P11: =SUMPRODUCT(đt!$H$8:$H$273*(đt!$D$8:$D$273='Thị trấn Quán Hàu'!$A$1)*(đt!$C$8:$C$273='Thị trấn Quán Hàu'!P5)) -> 0 | Q11: =SUMPRODUCT(đt!$H$8:$H$273*(đt!$D$8:$D$273='Thị trấn Quán Hàu'!$A$1)*(đt!$C$8:$C$273='Thị trấn Quán Hàu'!Q5)) -> 0 | R11: 0.4 | S11: =SUMPRODUCT(đt!$H$8:$H$273*(đt!$D$8:$D$273='Thị trấn Quán Hàu'!$A$1)*(đt!$C$8:$C$273='Thị trấn Quán Hàu'!S5)) -> 0 | T11: =SUMPRODUCT(đt!$H$8:$H$273*(đt!$D$8:$D$273='Thị trấn Quán Hàu'!$A$1)*(đt!$C$8:$C$273='Thị trấn Quán Hàu'!T5)) -> 0 | U11: =SUMPRODUCT(đt!$H$8:$H$273*(đt!$D$8:$D$273='Thị trấn Quán Hàu'!$A$1)*(đt!$C$8:$C$273='Thị trấn Quán Hàu'!U5)) -> 0 | V11: =SUMPRODUCT(đt!$H$8:$H$273*(đt!$D$8:$D$273='Thị trấn Quán Hàu'!$A$1)*(đt!$C$8:$C$273='Thị trấn Quán Hàu'!V5)) -> 0 | W11: =SUMPRODUCT(đt!$H$8:$H$273*(đt!$D$8:$D$273='Thị trấn Quán Hàu'!$A$1)*(đt!$C$8:$C$273='Thị trấn Quán Hàu'!W5)) -> 0 | X11: =SUMPRODUCT(đt!$H$8:$H$273*(đt!$D$8:$D$273='Thị trấn Quán Hàu'!$A$1)*(đt!$C$8:$C$273='Thị trấn Quán Hàu'!X5)) -> 0 | Y11: =SUMPRODUCT(đt!$H$8:$H$273*(đt!$D$8:$D$273='Thị trấn Quán Hàu'!$A$1)*(đt!$C$8:$C$273='Thị trấn Quán Hàu'!Y5)) -> 0 | Z11: =SUMPRODUCT(đt!$H$8:$H$273*(đt!$D$8:$D$273='Thị trấn Quán Hàu'!$A$1)*(đt!$C$8:$C$273='Thị trấn Quán Hàu'!Z5)) -> 0 | AA11: 0 | AB11: =SUMPRODUCT(đt!$H$8:$H$273*(đt!$D$8:$D$273='Thị trấn Quán Hàu'!$A$1)*(đt!$C$8:$C$273='Thị trấn Quán Hàu'!AB5)) -> 0 | AC11: =SUMPRODUCT(đt!$H$8:$H$273*(đt!$D$8:$D$273='Thị trấn Quán Hàu'!$A$1)*(đt!$C$8:$C$273='Thị trấn Quán Hàu'!AC5)) -> 0 | AD11: =SUMPRODUCT(đt!$H$8:$H$273*(đt!$D$8:$D$273='Thị trấn Quán Hàu'!$A$1)*(đt!$C$8:$C$273='Thị trấn Quán Hàu'!AD5)) -> 0 | AE11: =SUMPRODUCT(đt!$H$8:$H$273*(đt!$D$8:$D$273='Thị trấn Quán Hàu'!$A$1)*(đt!$C$8:$C$273='Thị trấn Quán Hàu'!AE5)) -> 0 | AF11: =SUMPRODUCT(đt!$H$8:$H$273*(đt!$D$8:$D$273='Thị trấn Quán Hàu'!$A$1)*(đt!$C$8:$C$273='Thị trấn Quán Hàu'!AF5)) -> 0 | AG11: =SUMPRODUCT(đt!$H$8:$H$273*(đt!$D$8:$D$273='Thị trấn Quán Hàu'!$A$1)*(đt!$C$8:$C$273='Thị trấn Quán Hàu'!AG5)) -> 0 | AH11: =SUMPRODUCT(đt!$H$8:$H$273*(đt!$D$8:$D$273='Thị trấn Quán Hàu'!$A$1)*(đt!$C$8:$C$273='Thị trấn Quán Hàu'!AH5)) -> 0 | AI11: =SUMPRODUCT(đt!$H$8:$H$273*(đt!$D$8:$D$273='Thị trấn Quán Hàu'!$A$1)*(đt!$C$8:$C$273='Thị trấn Quán Hàu'!AI5)) -> 0 | AJ11: =SUMPRODUCT(đt!$H$8:$H$273*(đt!$D$8:$D$273='Thị trấn Quán Hàu'!$A$1)*(đt!$C$8:$C$273='Thị trấn Quán Hàu'!AJ5)) -> 0 | AK11: =SUMPRODUCT(đt!$H$8:$H$273*(đt!$D$8:$D$273='Thị trấn Quán Hàu'!$A$1)*(đt!$C$8:$C$273='Thị trấn Quán Hàu'!AK5)) -> 0 | AL11: =SUMPRODUCT(đt!$H$8:$H$273*(đt!$D$8:$D$273='Thị trấn Quán Hàu'!$A$1)*(đt!$C$8:$C$273='Thị trấn Quán Hàu'!AL5)) -> 0 | AM11: =SUMPRODUCT(đt!$H$8:$H$273*(đt!$D$8:$D$273='Thị trấn Quán Hàu'!$A$1)*(đt!$C$8:$C$273='Thị trấn Quán Hàu'!AM5)) -> 0 | AN11: =SUMPRODUCT(đt!$H$8:$H$273*(đt!$D$8:$D$273='Thị trấn Quán Hàu'!$A$1)*(đt!$C$8:$C$273='Thị trấn Quán Hàu'!AN5)) -> 0 | AO11: =SUMPRODUCT(đt!$H$8:$H$273*(đt!$D$8:$D$273='Thị trấn Quán Hàu'!$A$1)*(đt!$C$8:$C$273='Thị trấn Quán Hàu'!AO5)) -> 0 | AP11: =SUMPRODUCT(đt!$H$8:$H$273*(đt!$D$8:$D$273='Thị trấn Quán Hàu'!$A$1)*(đt!$C$8:$C$273='Thị trấn Quán Hàu'!AP5)) -> 0 | AQ11: =SUMPRODUCT(đt!$H$8:$H$273*(đt!$D$8:$D$273='Thị trấn Quán Hàu'!$A$1)*(đt!$C$8:$C$273='Thị trấn Quán Hàu'!AQ5)) -> 0 | AR11: =SUMPRODUCT(đt!$H$8:$H$273*(đt!$D$8:$D$273='Thị trấn Quán Hàu'!$A$1)*(đt!$C$8:$C$273='Thị trấn Quán Hàu'!AR5)) -> 0.4 | AS11: =SUMPRODUCT(đt!$H$8:$H$273*(đt!$D$8:$D$273='Thị trấn Quán Hàu'!$A$1)*(đt!$C$8:$C$273='Thị trấn Quán Hàu'!AS5)) -> 0 | AT11: =SUMPRODUCT(đt!$H$8:$H$273*(đt!$D$8:$D$273='Thị trấn Quán Hàu'!$A$1)*(đt!$C$8:$C$273='Thị trấn Quán Hàu'!AT5)) -> 0 | AU11: =SUMPRODUCT(đt!$H$8:$H$273*(đt!$D$8:$D$273='Thị trấn Quán Hàu'!$A$1)*(đt!$C$8:$C$273='Thị trấn Quán Hàu'!AU5)) -> 0 | AV11: =SUMPRODUCT(đt!$H$8:$H$273*(đt!$D$8:$D$273='Thị trấn Quán Hàu'!$A$1)*(đt!$C$8:$C$273='Thị trấn Quán Hàu'!AV5)) -> 0 | AW11: =SUMPRODUCT(đt!$H$8:$H$273*(đt!$D$8:$D$273='Thị trấn Quán Hàu'!$A$1)*(đt!$C$8:$C$273='Thị trấn Quán Hàu'!AW5)) -> 0 | AX11: =SUMPRODUCT(đt!$H$8:$H$273*(đt!$D$8:$D$273='Thị trấn Quán Hàu'!$A$1)*(đt!$C$8:$C$273='Thị trấn Quán Hàu'!AX5)) -> 0 | AY11: =SUMPRODUCT(đt!$H$8:$H$273*(đt!$D$8:$D$273='Thị trấn Quán Hàu'!$A$1)*(đt!$C$8:$C$273='Thị trấn Quán Hàu'!AY5)) -> 0 | AZ11: =SUMPRODUCT(đt!$H$8:$H$273*(đt!$D$8:$D$273='Thị trấn Quán Hàu'!$A$1)*(đt!$C$8:$C$273='Thị trấn Quán Hàu'!AZ5)) -> 0 | BA11: =SUMPRODUCT(đt!$H$8:$H$273*(đt!$D$8:$D$273='Thị trấn Quán Hàu'!$A$1)*(đt!$C$8:$C$273='Thị trấn Quán Hàu'!BA5)) -> 0 | BB11: =SUMPRODUCT(đt!$H$8:$H$273*(đt!$D$8:$D$273='Thị trấn Quán Hàu'!$A$1)*(đt!$C$8:$C$273='Thị trấn Quán Hàu'!BB5)) -> 0 | BC11: =SUMPRODUCT(đt!$H$8:$H$273*(đt!$D$8:$D$273='Thị trấn Quán Hàu'!$A$1)*(đt!$C$8:$C$273='Thị trấn Quán Hàu'!BC5)) -> 0 | BD11: =SUMPRODUCT(đt!$H$8:$H$273*(đt!$D$8:$D$273='Thị trấn Quán Hàu'!$A$1)*(đt!$C$8:$C$273='Thị trấn Quán Hàu'!BD5)) -> 0 | BE11: =SUMPRODUCT(đt!$H$8:$H$273*(đt!$D$8:$D$273='Thị trấn Quán Hàu'!$A$1)*(đt!$C$8:$C$273='Thị trấn Quán Hàu'!BE5)) -> 0 | BF11: 0 | BG11: =SUMPRODUCT(đt!$H$8:$H$273*(đt!$D$8:$D$273='Thị trấn Quán Hàu'!$A$1)*(đt!$C$8:$C$273='Thị trấn Quán Hàu'!BG5)) -> 0 | BH11: =SUMPRODUCT(đt!$H$8:$H$273*(đt!$D$8:$D$273='Thị trấn Quán Hàu'!$A$1)*(đt!$C$8:$C$273='Thị trấn Quán Hàu'!BH5)) -> 0 | BI11: =SUMPRODUCT(đt!$H$8:$H$273*(đt!$D$8:$D$273='Thị trấn Quán Hàu'!$A$1)*(đt!$C$8:$C$273='Thị trấn Quán Hàu'!BI5)) -> 0 | BJ11: =D11-I11 -> 0.4 | BK11: =I64-BJ11 -> -0.4 | BL11: 7.148 | BM11: ok
A12: 1.2 | B12: Đất trồng cây hàng năm khác | C12: HNK | D12: 64.898 | E12: 41.018 | F12: 0 | G12: =SUMPRODUCT(đt!$I$8:$I$273*(đt!$D$8:$D$273='Thị trấn Quán Hàu'!$A$1)*(đt!$C$8:$C$273='Thị trấn Quán Hàu'!G5)) -> 0 | H12: =SUMPRODUCT(đt!$I$8:$I$273*(đt!$D$8:$D$273='Thị trấn Quán Hàu'!$A$1)*(đt!$C$8:$C$273='Thị trấn Quán Hàu'!H5)) -> 0 | I12: =SUMPRODUCT(đt!$I$8:$I$273*(đt!$D$8:$D$273='Thị trấn Quán Hàu'!$A$1)*(đt!$C$8:$C$273='Thị trấn Quán Hàu'!I5)) -> 0 | J12: =D12-(F12+SUM(K12:Q12)+R12+BF12) -> 41.018 | K12: =SUMPRODUCT(đt!$I$8:$I$273*(đt!$D$8:$D$273='Thị trấn Quán Hàu'!$A$1)*(đt!$C$8:$C$273='Thị trấn Quán Hàu'!K5)) -> 0 | L12: =SUMPRODUCT(đt!$I$8:$I$273*(đt!$D$8:$D$273='Thị trấn Quán Hàu'!$A$1)*(đt!$C$8:$C$273='Thị trấn Quán Hàu'!L5)) -> 0 | M12: =SUMPRODUCT(đt!$I$8:$I$273*(đt!$D$8:$D$273='Thị trấn Quán Hàu'!$A$1)*(đt!$C$8:$C$273='Thị trấn Quán Hàu'!M5)) -> 0 | N12: =SUMPRODUCT(đt!$I$8:$I$273*(đt!$D$8:$D$273='Thị trấn Quán Hàu'!$A$1)*(đt!$C$8:$C$273='Thị trấn Quán Hàu'!N5)) -> 0 | O12: =SUMPRODUCT(đt!$I$8:$I$273*(đt!$D$8:$D$273='Thị trấn Quán Hàu'!$A$1)*(đt!$C$8:$C$273='Thị trấn Quán Hàu'!O5)) -> 0 | P12: =SUMPRODUCT(đt!$I$8:$I$273*(đt!$D$8:$D$273='Thị trấn Quán Hàu'!$A$1)*(đt!$C$8:$C$273='Thị trấn Quán Hàu'!P5)) -> 0 | Q12: =SUMPRODUCT(đt!$I$8:$I$273*(đt!$D$8:$D$273='Thị trấn Quán Hàu'!$A$1)*(đt!$C$8:$C$273='Thị trấn Quán Hàu'!Q5)) -> 0 | R12: 23.88 | S12: =SUMPRODUCT(đt!$I$8:$I$273*(đt!$D$8:$D$273='Thị trấn Quán Hàu'!$A$1)*(đt!$C$8:$C$273='Thị trấn Quán Hàu'!S5)) -> 0 | T12: =SUMPRODUCT(đt!$I$8:$I$273*(đt!$D$8:$D$273='Thị trấn Quán Hàu'!$A$1)*(đt!$C$8:$C$273='Thị trấn Quán Hàu'!T5)) -> 0 | U12: =SUMPRODUCT(đt!$I$8:$I$273*(đt!$D$8:$D$273='Thị trấn Quán Hàu'!$A$1)*(đt!$C$8:$C$273='Thị trấn Quán Hàu'!U5)) -> 10 | V12: =SUMPRODUCT(đt!$I$8:$I$273*(đt!$D$8:$D$273='Thị trấn Quán Hàu'!$A$1)*(đt!$C$8:$C$273='Thị trấn Quán Hàu'!V5)) -> 0 | W12: =SUMPRODUCT(đt!$I$8:$I$273*(đt!$D$8:$D$273='Thị trấn Quán Hàu'!$A$1)*(đt!$C$8:$C$273='Thị trấn Quán Hàu'!W5)) -> 0 | X12: =SUMPRODUCT(đt!$I$8:$I$273*(đt!$D$8:$D$273='Thị trấn Quán Hàu'!$A$1)*(đt!$C$8:$C$273='Thị trấn Quán Hàu'!X5)) -> 1.89 | Y12: =SUMPRODUCT(đt!$I$8:$I$273*(đt!$D$8:$D$273='Thị trấn Quán Hàu'!$A$1)*(đt!$C$8:$C$273='Thị trấn Quán Hàu'!Y5)) -> 0 | Z12: =SUMPRODUCT(đt!$I$8:$I$273*(đt!$D$8:$D$273='Thị trấn Quán Hàu'!$A$1)*(đt!$C$8:$C$273='Thị trấn Quán Hàu'!Z5)) -> 0 | AA12: 4.54 | AB12: =SUMPRODUCT(đt!$I$8:$I$273*(đt!$D$8:$D$273='Thị trấn Quán Hàu'!$A$1)*(đt!$C$8:$C$273='Thị trấn Quán Hàu'!AB5)) -> 0.07 | AC12: =SUMPRODUCT(đt!$I$8:$I$273*(đt!$D$8:$D$273='Thị trấn Quán Hàu'!$A$1)*(đt!$C$8:$C$273='Thị trấn Quán Hàu'!AC5)) -> 0 | AD12: =SUMPRODUCT(đt!$I$8:$I$273*(đt!$D$8:$D$273='Thị trấn Quán Hàu'!$A$1)*(đt!$C$8:$C$273='Thị trấn Quán Hàu'!AD5)) -> 0 | AE12: =SUMPRODUCT(đt!$I$8:$I$273*(đt!$D$8:$D$273='Thị trấn Quán Hàu'!$A$1)*(đt!$C$8:$C$273='Thị trấn Quán Hàu'!AE5)) -> 0 | AF12: =SUMPRODUCT(đt!$I$8:$I$273*(đt!$D$8:$D$273='Thị trấn Quán Hàu'!$A$1)*(đt!$C$8:$C$273='Thị trấn Quán Hàu'!AF5)) -> 0.55 | AG12: =SUMPRODUCT(đt!$I$8:$I$273*(đt!$D$8:$D$273='Thị trấn Quán Hàu'!$A$1)*(đt!$C$8:$C$273='Thị trấn Quán Hàu'!AG5)) -> 0 | AH12: =SUMPRODUCT(đt!$I$8:$I$273*(đt!$D$8:$D$273='Thị trấn Quán Hàu'!$A$1)*(đt!$C$8:$C$273='Thị trấn Quán Hàu'!AH5)) -> 3.92 | AI12: =SUMPRODUCT(đt!$I$8:$I$273*(đt!$D$8:$D$273='Thị trấn Quán Hàu'!$A$1)*(đt!$C$8:$C$273='Thị trấn Quán Hàu'!AI5)) -> 0 | AJ12: =SUMPRODUCT(đt!$I$8:$I$273*(đt!$D$8:$D$273='Thị trấn Quán Hàu'!$A$1)*(đt!$C$8:$C$273='Thị trấn Quán Hàu'!AJ5)) -> 0 | AK12: =SUMPRODUCT(đt!$I$8:$I$273*(đt!$D$8:$D$273='Thị trấn Quán Hàu'!$A$1)*(đt!$C$8:$C$273='Thị trấn Quán Hàu'!AK5)) -> 0 | AL12: =SUMPRODUCT(đt!$I$8:$I$273*(đt!$D$8:$D$273='Thị trấn Quán Hàu'!$A$1)*(đt!$C$8:$C$273='Thị trấn Quán Hàu'!AL5)) -> 0 | AM12: =SUMPRODUCT(đt!$I$8:$I$273*(đt!$D$8:$D$273='Thị trấn Quán Hàu'!$A$1)*(đt!$C$8:$C$273='Thị trấn Quán Hàu'!AM5)) -> 0 | AN12: =SUMPRODUCT(đt!$I$8:$I$273*(đt!$D$8:$D$273='Thị trấn Quán Hàu'!$A$1)*(đt!$C$8:$C$273='Thị trấn Quán Hàu'!AN5)) -> 0 | AO12: =SUMPRODUCT(đt!$I$8:$I$273*(đt!$D$8:$D$273='Thị trấn Quán Hàu'!$A$1)*(đt!$C$8:$C$273='Thị trấn Quán Hàu'!AO5)) -> 0 | AP12: =SUMPRODUCT(đt!$I$8:$I$273*(đt!$D$8:$D$273='Thị trấn Quán Hàu'!$A$1)*(đt!$C$8:$C$273='Thị trấn Quán Hàu'!AP5)) -> 0 | AQ12: =SUMPRODUCT(đt!$I$8:$I$273*(đt!$D$8:$D$273='Thị trấn Quán Hàu'!$A$1)*(đt!$C$8:$C$273='Thị trấn Quán Hàu'!AQ5)) -> 0 | AR12: =SUMPRODUCT(đt!$I$8:$I$273*(đt!$D$8:$D$273='Thị trấn Quán Hàu'!$A$1)*(đt!$C$8:$C$273='Thị trấn Quán Hàu'!AR5)) -> 7.45 | AS12: =SUMPRODUCT(đt!$I$8:$I$273*(đt!$D$8:$D$273='Thị trấn Quán Hàu'!$A$1)*(đt!$C$8:$C$273='Thị trấn Quán Hàu'!AS5)) -> 0 | AT12: =SUMPRODUCT(đt!$I$8:$I$273*(đt!$D$8:$D$273='Thị trấn Quán Hàu'!$A$1)*(đt!$C$8:$C$273='Thị trấn Quán Hàu'!AT5)) -> 0 | AU12: =SUMPRODUCT(đt!$I$8:$I$273*(đt!$D$8:$D$273='Thị trấn Quán Hàu'!$A$1)*(đt!$C$8:$C$273='Thị trấn Quán Hàu'!AU5)) -> 0 | AV12: =SUMPRODUCT(đt!$I$8:$I$273*(đt!$D$8:$D$273='Thị trấn Quán Hàu'!$A$1)*(đt!$C$8:$C$273='Thị trấn Quán Hàu'!AV5)) -> 0 | AW12: =SUMPRODUCT(đt!$I$8:$I$273*(đt!$D$8:$D$273='Thị trấn Quán Hàu'!$A$1)*(đt!$C$8:$C$273='Thị trấn Quán Hàu'!AW5)) -> 0 | AX12: =SUMPRODUCT(đt!$I$8:$I$273*(đt!$D$8:$D$273='Thị trấn Quán Hàu'!$A$1)*(đt!$C$8:$C$273='Thị trấn Quán Hàu'!AX5)) -> 0 | AY12: =SUMPRODUCT(đt!$I$8:$I$273*(đt!$D$8:$D$273='Thị trấn Quán Hàu'!$A$1)*(đt!$C$8:$C$273='Thị trấn Quán Hàu'!AY5)) -> 0 | AZ12: =SUMPRODUCT(đt!$I$8:$I$273*(đt!$D$8:$D$273='Thị trấn Quán Hàu'!$A$1)*(đt!$C$8:$C$273='Thị trấn Quán Hàu'!AZ5)) -> 0 | BA12: =SUMPRODUCT(đt!$I$8:$I$273*(đt!$D$8:$D$273='Thị trấn Quán Hàu'!$A$1)*(đt!$C$8:$C$273='Thị trấn Quán Hàu'!BA5)) -> 0 | BB12: =SUMPRODUCT(đt!$I$8:$I$273*(đt!$D$8:$D$273='Thị trấn Quán Hàu'!$A$1)*(đt!$C$8:$C$273='Thị trấn Quán Hàu'!BB5)) -> 0 | BC12: =SUMPRODUCT(đt!$I$8:$I$273*(đt!$D$8:$D$273='Thị trấn Quán Hàu'!$A$1)*(đt!$C$8:$C$273='Thị trấn Quán Hàu'!BC5)) -> 0 | BD12: =SUMPRODUCT(đt!$I$8:$I$273*(đt!$D$8:$D$273='Thị trấn Quán Hàu'!$A$1)*(đt!$C$8:$C$273='Thị trấn Quán Hàu'!BD5)) -> 0 | BE12: =SUMPRODUCT(đt!$I$8:$I$273*(đt!$D$8:$D$273='Thị trấn Quán Hàu'!$A$1)*(đt!$C$8:$C$273='Thị trấn Quán Hàu'!BE5)) -> 0 | BF12: 0 | BG12: =SUMPRODUCT(đt!$I$8:$I$273*(đt!$D$8:$D$273='Thị trấn Quán Hàu'!$A$1)*(đt!$C$8:$C$273='Thị trấn Quán Hàu'!BG5)) -> 0 | BH12: =SUMPRODUCT(đt!$I$8:$I$273*(đt!$D$8:$D$273='Thị trấn Quán Hàu'!$A$1)*(đt!$C$8:$C$273='Thị trấn Quán Hàu'!BH5)) -> 0 | BI12: =SUMPRODUCT(đt!$I$8:$I$273*(đt!$D$8:$D$273='Thị trấn Quán Hàu'!$A$1)*(đt!$C$8:$C$273='Thị trấn Quán Hàu'!BI5)) -> 0 | BJ12: =D12-J12 -> 23.88 | BK12: =J64-BJ12 -> -23.88 | BL12: 41.018 | BM12: ok
A13: 1.3 | B13: Đất trồng cây lâu năm | C13: CLN | D13: 0 | E13: 0 | F13: 0 | G13: =SUMPRODUCT(đt!$J$8:$J$273*(đt!$D$8:$D$273='Thị trấn Quán Hàu'!$A$1)*(đt!$C$8:$C$273='Thị trấn Quán Hàu'!G5)) -> 0 | H13: =SUMPRODUCT(đt!$J$8:$J$273*(đt!$D$8:$D$273='Thị trấn Quán Hàu'!$A$1)*(đt!$C$8:$C$273='Thị trấn Quán Hàu'!H5)) -> 0 | I13: =SUMPRODUCT(đt!$J$8:$J$273*(đt!$D$8:$D$273='Thị trấn Quán Hàu'!$A$1)*(đt!$C$8:$C$273='Thị trấn Quán Hàu'!I5)) -> 0 | J13: =SUMPRODUCT(đt!$J$8:$J$273*(đt!$D$8:$D$273='Thị trấn Quán Hàu'!$A$1)*(đt!$C$8:$C$273='Thị trấn Quán Hàu'!J5)) -> 0 | K13: =D13-(F13+J13+SUM(L13:Q13)+R13+BF13) -> 0 | L13: =SUMPRODUCT(đt!$J$8:$J$273*(đt!$D$8:$D$273='Thị trấn Quán Hàu'!$A$1)*(đt!$C$8:$C$273='Thị trấn Quán Hàu'!L5)) -> 0 | M13: =SUMPRODUCT(đt!$J$8:$J$273*(đt!$D$8:$D$273='Thị trấn Quán Hàu'!$A$1)*(đt!$C$8:$C$273='Thị trấn Quán Hàu'!M5)) -> 0 | N13: =SUMPRODUCT(đt!$J$8:$J$273*(đt!$D$8:$D$273='Thị trấn Quán Hàu'!$A$1)*(đt!$C$8:$C$273='Thị trấn Quán Hàu'!N5)) -> 0 | O13: =SUMPRODUCT(đt!$J$8:$J$273*(đt!$D$8:$D$273='Thị trấn Quán Hàu'!$A$1)*(đt!$C$8:$C$273='Thị trấn Quán Hàu'!O5)) -> 0 | P13: =SUMPRODUCT(đt!$J$8:$J$273*(đt!$D$8:$D$273='Thị trấn Quán Hàu'!$A$1)*(đt!$C$8:$C$273='Thị trấn Quán Hàu'!P5)) -> 0 | Q13: =SUMPRODUCT(đt!$J$8:$J$273*(đt!$D$8:$D$273='Thị trấn Quán Hàu'!$A$1)*(đt!$C$8:$C$273='Thị trấn Quán Hàu'!Q5)) -> 0 | R13: 0 | S13: =SUMPRODUCT(đt!$J$8:$J$273*(đt!$D$8:$D$273='Thị trấn Quán Hàu'!$A$1)*(đt!$C$8:$C$273='Thị trấn Quán Hàu'!S5)) -> 0 | T13: =SUMPRODUCT(đt!$J$8:$J$273*(đt!$D$8:$D$273='Thị trấn Quán Hàu'!$A$1)*(đt!$C$8:$C$273='Thị trấn Quán Hàu'!T5)) -> 0 | U13: =SUMPRODUCT(đt!$J$8:$J$273*(đt!$D$8:$D$273='Thị trấn Quán Hàu'!$A$1)*(đt!$C$8:$C$273='Thị trấn Quán Hàu'!U5)) -> 0 | V13: =SUMPRODUCT(đt!$J$8:$J$273*(đt!$D$8:$D$273='Thị trấn Quán Hàu'!$A$1)*(đt!$C$8:$C$273='Thị trấn Quán Hàu'!V5)) -> 0 | W13: =SUMPRODUCT(đt!$J$8:$J$273*(đt!$D$8:$D$273='Thị trấn Quán Hàu'!$A$1)*(đt!$C$8:$C$273='Thị trấn Quán Hàu'!W5)) -> 0 | X13: =SUMPRODUCT(đt!$J$8:$J$273*(đt!$D$8:$D$273='Thị trấn Quán Hàu'!$A$1)*(đt!$C$8:$C$273='Thị trấn Quán Hàu'!X5)) -> 0 | Y13: =SUMPRODUCT(đt!$J$8:$J$273*(đt!$D$8:$D$273='Thị trấn Quán Hàu'!$A$1)*(đt!$C$8:$C$273='Thị trấn Quán Hàu'!Y5)) -> 0 | Z13: =SUMPRODUCT(đt!$J$8:$J$273*(đt!$D$8:$D$273='Thị trấn Quán Hàu'!$A$1)*(đt!$C$8:$C$273='Thị trấn Quán Hàu'!Z5)) -> 0 | AA13: 0 | AB13: =SUMPRODUCT(đt!$J$8:$J$273*(đt!$D$8:$D$273='Thị trấn Quán Hàu'!$A$1)*(đt!$C$8:$C$273='Thị trấn Quán Hàu'!AB5)) -> 0 | AC13: =SUMPRODUCT(đt!$J$8:$J$273*(đt!$D$8:$D$273='Thị trấn Quán Hàu'!$A$1)*(đt!$C$8:$C$273='Thị trấn Quán Hàu'!AC5)) -> 0 | AD13: =SUMPRODUCT(đt!$J$8:$J$273*(đt!$D$8:$D$273='Thị trấn Quán Hàu'!$A$1)*(đt!$C$8:$C$273='Thị trấn Quán Hàu'!AD5)) -> 0 | AE13: =SUMPRODUCT(đt!$J$8:$J$273*(đt!$D$8:$D$273='Thị trấn Quán Hàu'!$A$1)*(đt!$C$8:$C$273='Thị trấn Quán Hàu'!AE5)) -> 0 | AF13: =SUMPRODUCT(đt!$J$8:$J$273*(đt!$D$8:$D$273='Thị trấn Quán Hàu'!$A$1)*(đt!$C$8:$C$273='Thị trấn Quán Hàu'!AF5)) -> 0 | AG13: =SUMPRODUCT(đt!$J$8:$J$273*(đt!$D$8:$D$273='Thị trấn Quán Hàu'!$A$1)*(đt!$C$8:$C$273='Thị trấn Quán Hàu'!AG5)) -> 0 | AH13: =SUMPRODUCT(đt!$J$8:$J$273*(đt!$D$8:$D$273='Thị trấn Quán Hàu'!$A$1)*(đt!$C$8:$C$273='Thị trấn Quán Hàu'!AH5)) -> 0 | AI13: =SUMPRODUCT(đt!$J$8:$J$273*(đt!$D$8:$D$273='Thị trấn Quán Hàu'!$A$1)*(đt!$C$8:$C$273='Thị trấn Quán Hàu'!AI5)) -> 0 | AJ13: =SUMPRODUCT(đt!$J$8:$J$273*(đt!$D$8:$D$273='Thị trấn Quán Hàu'!$A$1)*(đt!$C$8:$C$273='Thị trấn Quán Hàu'!AJ5)) -> 0 | AK13: =SUMPRODUCT(đt!$J$8:$J$273*(đt!$D$8:$D$273='Thị trấn Quán Hàu'!$A$1)*(đt!$C$8:$C$273='Thị trấn Quán Hàu'!AK5)) -> 0 | AL13: =SUMPRODUCT(đt!$J$8:$J$273*(đt!$D$8:$D$273='Thị trấn Quán Hàu'!$A$1)*(đt!$C$8:$C$273='Thị trấn Quán Hàu'!AL5)) -> 0 | AM13: =SUMPRODUCT(đt!$J$8:$J$273*(đt!$D$8:$D$273='Thị trấn Quán Hàu'!$A$1)*(đt!$C$8:$C$273='Thị trấn Quán Hàu'!AM5)) -> 0 | AN13: =SUMPRODUCT(đt!$J$8:$J$273*(đt!$D$8:$D$273='Thị trấn Quán Hàu'!$A$1)*(đt!$C$8:$C$273='Thị trấn Quán Hàu'!AN5)) -> 0 | AO13: =SUMPRODUCT(đt!$J$8:$J$273*(đt!$D$8:$D$273='Thị trấn Quán Hàu'!$A$1)*(đt!$C$8:$C$273='Thị trấn Quán Hàu'!AO5)) -> 0 | AP13: =SUMPRODUCT(đt!$J$8:$J$273*(đt!$D$8:$D$273='Thị trấn Quán Hàu'!$A$1)*(đt!$C$8:$C$273='Thị trấn Quán Hàu'!AP5)) -> 0 | AQ13: =SUMPRODUCT(đt!$J$8:$J$273*(đt!$D$8:$D$273='Thị trấn Quán Hàu'!$A$1)*(đt!$C$8:$C$273='Thị trấn Quán Hàu'!AQ5)) -> 0 | AR13: =SUMPRODUCT(đt!$J$8:$J$273*(đt!$D$8:$D$273='Thị trấn Quán Hàu'!$A$1)*(đt!$C$8:$C$273='Thị trấn Quán Hàu'!AR5)) -> 0 | AS13: =SUMPRODUCT(đt!$J$8:$J$273*(đt!$D$8:$D$273='Thị trấn Quán Hàu'!$A$1)*(đt!$C$8:$C$273='Thị trấn Quán Hàu'!AS5)) -> 0 | AT13: =SUMPRODUCT(đt!$J$8:$J$273*(đt!$D$8:$D$273='Thị trấn Quán Hàu'!$A$1)*(đt!$C$8:$C$273='Thị trấn Quán Hàu'!AT5)) -> 0 | AU13: =SUMPRODUCT(đt!$J$8:$J$273*(đt!$D$8:$D$273='Thị trấn Quán Hàu'!$A$1)*(đt!$C$8:$C$273='Thị trấn Quán Hàu'!AU5)) -> 0 | AV13: =SUMPRODUCT(đt!$J$8:$J$273*(đt!$D$8:$D$273='Thị trấn Quán Hàu'!$A$1)*(đt!$C$8:$C$273='Thị trấn Quán Hàu'!AV5)) -> 0 | AW13: =SUMPRODUCT(đt!$J$8:$J$273*(đt!$D$8:$D$273='Thị trấn Quán Hàu'!$A$1)*(đt!$C$8:$C$273='Thị trấn Quán Hàu'!AW5)) -> 0 | AX13: =SUMPRODUCT(đt!$J$8:$J$273*(đt!$D$8:$D$273='Thị trấn Quán Hàu'!$A$1)*(đt!$C$8:$C$273='Thị trấn Quán Hàu'!AX5)) -> 0 | AY13: =SUMPRODUCT(đt!$J$8:$J$273*(đt!$D$8:$D$273='Thị trấn Quán Hàu'!$A$1)*(đt!$C$8:$C$273='Thị trấn Quán Hàu'!AY5)) -> 0 | AZ13: =SUMPRODUCT(đt!$J$8:$J$273*(đt!$D$8:$D$273='Thị trấn Quán Hàu'!$A$1)*(đt!$C$8:$C$273='Thị trấn Quán Hàu'!AZ5)) -> 0 | BA13: =SUMPRODUCT(đt!$J$8:$J$273*(đt!$D$8:$D$273='Thị trấn Quán Hàu'!$A$1)*(đt!$C$8:$C$273='Thị trấn Quán Hàu'!BA5)) -> 0 | BB13: =SUMPRODUCT(đt!$J$8:$J$273*(đt!$D$8:$D$273='Thị trấn Quán Hàu'!$A$1)*(đt!$C$8:$C$273='Thị trấn Quán Hàu'!BB5)) -> 0 | BC13: =SUMPRODUCT(đt!$J$8:$J$273*(đt!$D$8:$D$273='Thị trấn Quán Hàu'!$A$1)*(đt!$C$8:$C$273='Thị trấn Quán Hàu'!BC5)) -> 0 | BD13: =SUMPRODUCT(đt!$J$8:$J$273*(đt!$D$8:$D$273='Thị trấn Quán Hàu'!$A$1)*(đt!$C$8:$C$273='Thị trấn Quán Hàu'!BD5)) -> 0 | BE13: =SUMPRODUCT(đt!$J$8:$J$273*(đt!$D$8:$D$273='Thị trấn Quán Hàu'!$A$1)*(đt!$C$8:$C$273='Thị trấn Quán Hàu'!BE5)) -> 0 | BF13: 0 | BG13: =SUMPRODUCT(đt!$J$8:$J$273*(đt!$D$8:$D$273='Thị trấn Quán Hàu'!$A$1)*(đt!$C$8:$C$273='Thị trấn Quán Hàu'!BG5)) -> 0 | BH13: =SUMPRODUCT(đt!$J$8:$J$273*(đt!$D$8:$D$273='Thị trấn Quán Hàu'!$A$1)*(đt!$C$8:$C$273='Thị trấn Quán Hàu'!BH5)) -> 0 | BI13: =SUMPRODUCT(đt!$J$8:$J$273*(đt!$D$8:$D$273='Thị trấn Quán Hàu'!$A$1)*(đt!$C$8:$C$273='Thị trấn Quán Hàu'!BI5)) -> 0 | BJ13: =D13-K13 -> 0 | BK13: =K64-BJ13 -> 0 | BL13: 0 | BM13: ok
A14: 1.4 | B14: Đất rừng phòng hộ | C14: RPH | D14: 0 | E14: 0 | F14: 0 | G14: =SUMPRODUCT(đt!$K$8:$K$273*(đt!$D$8:$D$273='Thị trấn Quán Hàu'!$A$1)*(đt!$C$8:$C$273='Thị trấn Quán Hàu'!G5)) -> 0 | H14: =SUMPRODUCT(đt!$K$8:$K$273*(đt!$D$8:$D$273='Thị trấn Quán Hàu'!$A$1)*(đt!$C$8:$C$273='Thị trấn Quán Hàu'!H5)) -> 0 | I14: =SUMPRODUCT(đt!$K$8:$K$273*(đt!$D$8:$D$273='Thị trấn Quán Hàu'!$A$1)*(đt!$C$8:$C$273='Thị trấn Quán Hàu'!I5)) -> 0 | J14: =SUMPRODUCT(đt!$K$8:$K$273*(đt!$D$8:$D$273='Thị trấn Quán Hàu'!$A$1)*(đt!$C$8:$C$273='Thị trấn Quán Hàu'!J5)) -> 0 | K14: =SUMPRODUCT(đt!$K$8:$K$273*(đt!$D$8:$D$273='Thị trấn Quán Hàu'!$A$1)*(đt!$C$8:$C$273='Thị trấn Quán Hàu'!K5)) -> 0 | L14: =D14-(F14+J14+K14+SUM(M14:Q14)+R14+BF14) -> 0 | M14: =SUMPRODUCT(đt!$K$8:$K$273*(đt!$D$8:$D$273='Thị trấn Quán Hàu'!$A$1)*(đt!$C$8:$C$273='Thị trấn Quán Hàu'!M5)) -> 0 | N14: =SUMPRODUCT(đt!$K$8:$K$273*(đt!$D$8:$D$273='Thị trấn Quán Hàu'!$A$1)*(đt!$C$8:$C$273='Thị trấn Quán Hàu'!N5)) -> 0 | O14: =SUMPRODUCT(đt!$K$8:$K$273*(đt!$D$8:$D$273='Thị trấn Quán Hàu'!$A$1)*(đt!$C$8:$C$273='Thị trấn Quán Hàu'!O5)) -> 0 | P14: =SUMPRODUCT(đt!$K$8:$K$273*(đt!$D$8:$D$273='Thị trấn Quán Hàu'!$A$1)*(đt!$C$8:$C$273='Thị trấn Quán Hàu'!P5)) -> 0 | Q14: =SUMPRODUCT(đt!$K$8:$K$273*(đt!$D$8:$D$273='Thị trấn Quán Hàu'!$A$1)*(đt!$C$8:$C$273='Thị trấn Quán Hàu'!Q5)) -> 0 | R14: 0 | S14: =SUMPRODUCT(đt!$K$8:$K$273*(đt!$D$8:$D$273='Thị trấn Quán Hàu'!$A$1)*(đt!$C$8:$C$273='Thị trấn Quán Hàu'!S5)) -> 0 | T14: =SUMPRODUCT(đt!$K$8:$K$273*(đt!$D$8:$D$273='Thị trấn Quán Hàu'!$A$1)*(đt!$C$8:$C$273='Thị trấn Quán Hàu'!T5)) -> 0 | U14: =SUMPRODUCT(đt!$K$8:$K$273*(đt!$D$8:$D$273='Thị trấn Quán Hàu'!$A$1)*(đt!$C$8:$C$273='Thị trấn Quán Hàu'!U5)) -> 0 | V14: =SUMPRODUCT(đt!$K$8:$K$273*(đt!$D$8:$D$273='Thị trấn Quán Hàu'!$A$1)*(đt!$C$8:$C$273='Thị trấn Quán Hàu'!V5)) -> 0 | W14: =SUMPRODUCT(đt!$K$8:$K$273*(đt!$D$8:$D$273='Thị trấn Quán Hàu'!$A$1)*(đt!$C$8:$C$273='Thị trấn Quán Hàu'!W5)) -> 0 | X14: =SUMPRODUCT(đt!$K$8:$K$273*(đt!$D$8:$D$273='Thị trấn Quán Hàu'!$A$1)*(đt!$C$8:$C$273='Thị trấn Quán Hàu'!X5)) -> 0 | Y14: =SUMPRODUCT(đt!$K$8:$K$273*(đt!$D$8:$D$273='Thị trấn Quán Hàu'!$A$1)*(đt!$C$8:$C$273='Thị trấn Quán Hàu'!Y5)) -> 0 | Z14: =SUMPRODUCT(đt!$K$8:$K$273*(đt!$D$8:$D$273='Thị trấn Quán Hàu'!$A$1)*(đt!$C$8:$C$273='Thị trấn Quán Hàu'!Z5)) -> 0 | AA14: 0 | AB14: =SUMPRODUCT(đt!$K$8:$K$273*(đt!$D$8:$D$273='Thị trấn Quán Hàu'!$A$1)*(đt!$C$8:$C$273='Thị trấn Quán Hàu'!AB5)) -> 0 | AC14: =SUMPRODUCT(đt!$K$8:$K$273*(đt!$D$8:$D$273='Thị trấn Quán Hàu'!$A$1)*(đt!$C$8:$C$273='Thị trấn Quán Hàu'!AC5)) -> 0 | AD14: =SUMPRODUCT(đt!$K$8:$K$273*(đt!$D$8:$D$273='Thị trấn Quán Hàu'!$A$1)*(đt!$C$8:$C$273='Thị trấn Quán Hàu'!AD5)) -> 0 | AE14: =SUMPRODUCT(đt!$K$8:$K$273*(đt!$D$8:$D$273='Thị trấn Quán Hàu'!$A$1)*(đt!$C$8:$C$273='Thị trấn Quán Hàu'!AE5)) -> 0 | AF14: =SUMPRODUCT(đt!$K$8:$K$273*(đt!$D$8:$D$273='Thị trấn Quán Hàu'!$A$1)*(đt!$C$8:$C$273='Thị trấn Quán Hàu'!AF5)) -> 0 | AG14: =SUMPRODUCT(đt!$K$8:$K$273*(đt!$D$8:$D$273='Thị trấn Quán Hàu'!$A$1)*(đt!$C$8:$C$273='Thị trấn Quán Hàu'!AG5)) -> 0 | AH14: =SUMPRODUCT(đt!$K$8:$K$273*(đt!$D$8:$D$273='Thị trấn Quán Hàu'!$A$1)*(đt!$C$8:$C$273='Thị trấn Quán Hàu'!AH5)) -> 0 | AI14: =SUMPRODUCT(đt!$K$8:$K$273*(đt!$D$8:$D$273='Thị trấn Quán Hàu'!$A$1)*(đt!$C$8:$C$273='Thị trấn Quán Hàu'!AI5)) -> 0 | AJ14: =SUMPRODUCT(đt!$K$8:$K$273*(đt!$D$8:$D$273='Thị trấn Quán Hàu'!$A$1)*(đt!$C$8:$C$273='Thị trấn Quán Hàu'!AJ5)) -> 0 | AK14: =SUMPRODUCT(đt!$K$8:$K$273*(đt!$D$8:$D$273='Thị trấn Quán Hàu'!$A$1)*(đt!$C$8:$C$273='Thị trấn Quán Hàu'!AK5)) -> 0 | AL14: =SUMPRODUCT(đt!$K$8:$K$273*(đt!$D$8:$D$273='Thị trấn Quán Hàu'!$A$1)*(đt!$C$8:$C$273='Thị trấn Quán Hàu'!AL5)) -> 0 | AM14: =SUMPRODUCT(đt!$K$8:$K$273*(đt!$D$8:$D$273='Thị trấn Quán Hàu'!$A$1)*(đt!$C$8:$C$273='Thị trấn Quán Hàu'!AM5)) -> 0 | AN14: =SUMPRODUCT(đt!$K$8:$K$273*(đt!$D$8:$D$273='Thị trấn Quán Hàu'!$A$1)*(đt!$C$8:$C$273='Thị trấn Quán Hàu'!AN5)) -> 0 | AO14: =SUMPRODUCT(đt!$K$8:$K$273*(đt!$D$8:$D$273='Thị trấn Quán Hàu'!$A$1)*(đt!$C$8:$C$273='Thị trấn Quán Hàu'!AO5)) -> 0 | AP14: =SUMPRODUCT(đt!$K$8:$K$273*(đt!$D$8:$D$273='Thị trấn Quán Hàu'!$A$1)*(đt!$C$8:$C$273='Thị trấn Quán Hàu'!AP5)) -> 0 | AQ14: =SUMPRODUCT(đt!$K$8:$K$273*(đt!$D$8:$D$273='Thị trấn Quán Hàu'!$A$1)*(đt!$C$8:$C$273='Thị trấn Quán Hàu'!AQ5)) -> 0 | AR14: =SUMPRODUCT(đt!$K$8:$K$273*(đt!$D$8:$D$273='Thị trấn Quán Hàu'!$A$1)*(đt!$C$8:$C$273='Thị trấn Quán Hàu'!AR5)) -> 0 | AS14: =SUMPRODUCT(đt!$K$8:$K$273*(đt!$D$8:$D$273='Thị trấn Quán Hàu'!$A$1)*(đt!$C$8:$C$273='Thị trấn Quán Hàu'!AS5)) -> 0 | AT14: =SUMPRODUCT(đt!$K$8:$K$273*(đt!$D$8:$D$273='Thị trấn Quán Hàu'!$A$1)*(đt!$C$8:$C$273='Thị trấn Quán Hàu'!AT5)) -> 0 | AU14: =SUMPRODUCT(đt!$K$8:$K$273*(đt!$D$8:$D$273='Thị trấn Quán Hàu'!$A$1)*(đt!$C$8:$C$273='Thị trấn Quán Hàu'!AU5)) -> 0 | AV14: =SUMPRODUCT(đt!$K$8:$K$273*(đt!$D$8:$D$273='Thị trấn Quán Hàu'!$A$1)*(đt!$C$8:$C$273='Thị trấn Quán Hàu'!AV5)) -> 0 | AW14: =SUMPRODUCT(đt!$K$8:$K$273*(đt!$D$8:$D$273='Thị trấn Quán Hàu'!$A$1)*(đt!$C$8:$C$273='Thị trấn Quán Hàu'!AW5)) -> 0 | AX14: =SUMPRODUCT(đt!$K$8:$K$273*(đt!$D$8:$D$273='Thị trấn Quán Hàu'!$A$1)*(đt!$C$8:$C$273='Thị trấn Quán Hàu'!AX5)) -> 0 | AY14: =SUMPRODUCT(đt!$K$8:$K$273*(đt!$D$8:$D$273='Thị trấn Quán Hàu'!$A$1)*(đt!$C$8:$C$273='Thị trấn Quán Hàu'!AY5)) -> 0 | AZ14: =SUMPRODUCT(đt!$K$8:$K$273*(đt!$D$8:$D$273='Thị trấn Quán Hàu'!$A$1)*(đt!$C$8:$C$273='Thị trấn Quán Hàu'!AZ5)) -> 0 | BA14: =SUMPRODUCT(đt!$K$8:$K$273*(đt!$D$8:$D$273='Thị trấn Quán Hàu'!$A$1)*(đt!$C$8:$C$273='Thị trấn Quán Hàu'!BA5)) -> 0 | BB14: =SUMPRODUCT(đt!$K$8:$K$273*(đt!$D$8:$D$273='Thị trấn Quán Hàu'!$A$1)*(đt!$C$8:$C$273='Thị trấn Quán Hàu'!BB5)) -> 0 | BC14: =SUMPRODUCT(đt!$K$8:$K$273*(đt!$D$8:$D$273='Thị trấn Quán Hàu'!$A$1)*(đt!$C$8:$C$273='Thị trấn Quán Hàu'!BC5)) -> 0 | BD14: =SUMPRODUCT(đt!$K$8:$K$273*(đt!$D$8:$D$273='Thị trấn Quán Hàu'!$A$1)*(đt!$C$8:$C$273='Thị trấn Quán Hàu'!BD5)) -> 0 | BE14: =SUMPRODUCT(đt!$K$8:$K$273*(đt!$D$8:$D$273='Thị trấn Quán Hàu'!$A$1)*(đt!$C$8:$C$273='Thị trấn Quán Hàu'!BE5)) -> 0 | BF14: 0 | BG14: =SUMPRODUCT(đt!$K$8:$K$273*(đt!$D$8:$D$273='Thị trấn Quán Hàu'!$A$1)*(đt!$C$8:$C$273='Thị trấn Quán Hàu'!BG5)) -> 0 | BH14: =SUMPRODUCT(đt!$K$8:$K$273*(đt!$D$8:$D$273='Thị trấn Quán Hàu'!$A$1)*(đt!$C$8:$C$273='Thị trấn Quán Hàu'!BH5)) -> 0 | BI14: =SUMPRODUCT(đt!$K$8:$K$273*(đt!$D$8:$D$273='Thị trấn Quán Hàu'!$A$1)*(đt!$C$8:$C$273='Thị trấn Quán Hàu'!BI5)) -> 0 | BJ14: =D14-L14 -> 0 | BK14: =L64-BJ14 -> 0 | BL14: 0 | BM14: ok
A15: 1.5 | B15: Đất rừng đặc dụng | C15: RDD | D15: 0 | E15: 0 | F15: 0 | G15: =SUMPRODUCT(đt!$L$8:$L$273*(đt!$D$8:$D$273='Thị trấn Quán Hàu'!$A$1)*(đt!$C$8:$C$273='Thị trấn Quán Hàu'!G5)) -> 0 | H15: =SUMPRODUCT(đt!$L$8:$L$273*(đt!$D$8:$D$273='Thị trấn Quán Hàu'!$A$1)*(đt!$C$8:$C$273='Thị trấn Quán Hàu'!H5)) -> 0 | I15: =SUMPRODUCT(đt!$L$8:$L$273*(đt!$D$8:$D$273='Thị trấn Quán Hàu'!$A$1)*(đt!$C$8:$C$273='Thị trấn Quán Hàu'!I5)) -> 0 | J15: =SUMPRODUCT(đt!$L$8:$L$273*(đt!$D$8:$D$273='Thị trấn Quán Hàu'!$A$1)*(đt!$C$8:$C$273='Thị trấn Quán Hàu'!J5)) -> 0 | K15: =SUMPRODUCT(đt!$L$8:$L$273*(đt!$D$8:$D$273='Thị trấn Quán Hàu'!$A$1)*(đt!$C$8:$C$273='Thị trấn Quán Hàu'!K5)) -> 0 | L15: =SUMPRODUCT(đt!$L$8:$L$273*(đt!$D$8:$D$273='Thị trấn Quán Hàu'!$A$1)*(đt!$C$8:$C$273='Thị trấn Quán Hàu'!L5)) -> 0 | M15: =D15-(F15+SUM(J15:L15)+SUM(N15:Q15)+R15+BF15) -> 0 | N15: =SUMPRODUCT(đt!$L$8:$L$273*(đt!$D$8:$D$273='Thị trấn Quán Hàu'!$A$1)*(đt!$C$8:$C$273='Thị trấn Quán Hàu'!N5)) -> 0 | O15: =SUMPRODUCT(đt!$L$8:$L$273*(đt!$D$8:$D$273='Thị trấn Quán Hàu'!$A$1)*(đt!$C$8:$C$273='Thị trấn Quán Hàu'!O5)) -> 0 | P15: =SUMPRODUCT(đt!$L$8:$L$273*(đt!$D$8:$D$273='Thị trấn Quán Hàu'!$A$1)*(đt!$C$8:$C$273='Thị trấn Quán Hàu'!P5)) -> 0 | Q15: =SUMPRODUCT(đt!$L$8:$L$273*(đt!$D$8:$D$273='Thị trấn Quán Hàu'!$A$1)*(đt!$C$8:$C$273='Thị trấn Quán Hàu'!Q5)) -> 0 | R15: 0 | S15: =SUMPRODUCT(đt!$L$8:$L$273*(đt!$D$8:$D$273='Thị trấn Quán Hàu'!$A$1)*(đt!$C$8:$C$273='Thị trấn Quán Hàu'!S5)) -> 0 | T15: =SUMPRODUCT(đt!$L$8:$L$273*(đt!$D$8:$D$273='Thị trấn Quán Hàu'!$A$1)*(đt!$C$8:$C$273='Thị trấn Quán Hàu'!T5)) -> 0 | U15: =SUMPRODUCT(đt!$L$8:$L$273*(đt!$D$8:$D$273='Thị trấn Quán Hàu'!$A$1)*(đt!$C$8:$C$273='Thị trấn Quán Hàu'!U5)) -> 0 | V15: =SUMPRODUCT(đt!$L$8:$L$273*(đt!$D$8:$D$273='Thị trấn Quán Hàu'!$A$1)*(đt!$C$8:$C$273='Thị trấn Quán Hàu'!V5)) -> 0 | W15: =SUMPRODUCT(đt!$L$8:$L$273*(đt!$D$8:$D$273='Thị trấn Quán Hàu'!$A$1)*(đt!$C$8:$C$273='Thị trấn Quán Hàu'!W5)) -> 0 | X15: =SUMPRODUCT(đt!$L$8:$L$273*(đt!$D$8:$D$273='Thị trấn Quán Hàu'!$A$1)*(đt!$C$8:$C$273='Thị trấn Quán Hàu'!X5)) -> 0 | Y15: =SUMPRODUCT(đt!$L$8:$L$273*(đt!$D$8:$D$273='Thị trấn Quán Hàu'!$A$1)*(đt!$C$8:$C$273='Thị trấn Quán Hàu'!Y5)) -> 0 | Z15: =SUMPRODUCT(đt!$L$8:$L$273*(đt!$D$8:$D$273='Thị trấn Quán Hàu'!$A$1)*(đt!$C$8:$C$273='Thị trấn Quán Hàu'!Z5)) -> 0 | AA15: 0 | AB15: =SUMPRODUCT(đt!$L$8:$L$273*(đt!$D$8:$D$273='Thị trấn Quán Hàu'!$A$1)*(đt!$C$8:$C$273='Thị trấn Quán Hàu'!AB5)) -> 0 | AC15: =SUMPRODUCT(đt!$L$8:$L$273*(đt!$D$8:$D$273='Thị trấn Quán Hàu'!$A$1)*(đt!$C$8:$C$273='Thị trấn Quán Hàu'!AC5)) -> 0 | AD15: =SUMPRODUCT(đt!$L$8:$L$273*(đt!$D$8:$D$273='Thị trấn Quán Hàu'!$A$1)*(đt!$C$8:$C$273='Thị trấn Quán Hàu'!AD5)) -> 0 | AE15: =SUMPRODUCT(đt!$L$8:$L$273*(đt!$D$8:$D$273='Thị trấn Quán Hàu'!$A$1)*(đt!$C$8:$C$273='Thị trấn Quán Hàu'!AE5)) -> 0 | AF15: =SUMPRODUCT(đt!$L$8:$L$273*(đt!$D$8:$D$273='Thị trấn Quán Hàu'!$A$1)*(đt!$C$8:$C$273='Thị trấn Quán Hàu'!AF5)) -> 0 | AG15: =SUMPRODUCT(đt!$L$8:$L$273*(đt!$D$8:$D$273='Thị trấn Quán Hàu'!$A$1)*(đt!$C$8:$C$273='Thị trấn Quán Hàu'!AG5)) -> 0 | AH15: =SUMPRODUCT(đt!$L$8:$L$273*(đt!$D$8:$D$273='Thị trấn Quán Hàu'!$A$1)*(đt!$C$8:$C$273='Thị trấn Quán Hàu'!AH5)) -> 0 | AI15: =SUMPRODUCT(đt!$L$8:$L$273*(đt!$D$8:$D$273='Thị trấn Quán Hàu'!$A$1)*(đt!$C$8:$C$273='Thị trấn Quán Hàu'!AI5)) -> 0 | AJ15: =SUMPRODUCT(đt!$L$8:$L$273*(đt!$D$8:$D$273='Thị trấn Quán Hàu'!$A$1)*(đt!$C$8:$C$273='Thị trấn Quán Hàu'!AJ5)) -> 0 | AK15: =SUMPRODUCT(đt!$L$8:$L$273*(đt!$D$8:$D$273='Thị trấn Quán Hàu'!$A$1)*(đt!$C$8:$C$273='Thị trấn Quán Hàu'!AK5)) -> 0 | AL15: =SUMPRODUCT(đt!$L$8:$L$273*(đt!$D$8:$D$273='Thị trấn Quán Hàu'!$A$1)*(đt!$C$8:$C$273='Thị trấn Quán Hàu'!AL5)) -> 0 | AM15: =SUMPRODUCT(đt!$L$8:$L$273*(đt!$D$8:$D$273='Thị trấn Quán Hàu'!$A$1)*(đt!$C$8:$C$273='Thị trấn Quán Hàu'!AM5)) -> 0 | AN15: =SUMPRODUCT(đt!$L$8:$L$273*(đt!$D$8:$D$273='Thị trấn Quán Hàu'!$A$1)*(đt!$C$8:$C$273='Thị trấn Quán Hàu'!AN5)) -> 0 | AO15: =SUMPRODUCT(đt!$L$8:$L$273*(đt!$D$8:$D$273='Thị trấn Quán Hàu'!$A$1)*(đt!$C$8:$C$273='Thị trấn Quán Hàu'!AO5)) -> 0 | AP15: =SUMPRODUCT(đt!$L$8:$L$273*(đt!$D$8:$D$273='Thị trấn Quán Hàu'!$A$1)*(đt!$C$8:$C$273='Thị trấn Quán Hàu'!AP5)) -> 0 | AQ15: =SUMPRODUCT(đt!$L$8:$L$273*(đt!$D$8:$D$273='Thị trấn Quán Hàu'!$A$1)*(đt!$C$8:$C$273='Thị trấn Quán Hàu'!AQ5)) -> 0 | AR15: =SUMPRODUCT(đt!$L$8:$L$273*(đt!$D$8:$D$273='Thị trấn Quán Hàu'!$A$1)*(đt!$C$8:$C$273='Thị trấn Quán Hàu'!AR5)) -> 0 | AS15: =SUMPRODUCT(đt!$L$8:$L$273*(đt!$D$8:$D$273='Thị trấn Quán Hàu'!$A$1)*(đt!$C$8:$C$273='Thị trấn Quán Hàu'!AS5)) -> 0 | AT15: =SUMPRODUCT(đt!$L$8:$L$273*(đt!$D$8:$D$273='Thị trấn Quán Hàu'!$A$1)*(đt!$C$8:$C$273='Thị trấn Quán Hàu'!AT5)) -> 0 | AU15: =SUMPRODUCT(đt!$L$8:$L$273*(đt!$D$8:$D$273='Thị trấn Quán Hàu'!$A$1)*(đt!$C$8:$C$273='Thị trấn Quán Hàu'!AU5)) -> 0 | AV15: =SUMPRODUCT(đt!$L$8:$L$273*(đt!$D$8:$D$273='Thị trấn Quán Hàu'!$A$1)*(đt!$C$8:$C$273='Thị trấn Quán Hàu'!AV5)) -> 0 | AW15: =SUMPRODUCT(đt!$L$8:$L$273*(đt!$D$8:$D$273='Thị trấn Quán Hàu'!$A$1)*(đt!$C$8:$C$273='Thị trấn Quán Hàu'!AW5)) -> 0 | AX15: =SUMPRODUCT(đt!$L$8:$L$273*(đt!$D$8:$D$273='Thị trấn Quán Hàu'!$A$1)*(đt!$C$8:$C$273='Thị trấn Quán Hàu'!AX5)) -> 0 | AY15: =SUMPRODUCT(đt!$L$8:$L$273*(đt!$D$8:$D$273='Thị trấn Quán Hàu'!$A$1)*(đt!$C$8:$C$273='Thị trấn Quán Hàu'!AY5)) -> 0 | AZ15: =SUMPRODUCT(đt!$L$8:$L$273*(đt!$D$8:$D$273='Thị trấn Quán Hàu'!$A$1)*(đt!$C$8:$C$273='Thị trấn Quán Hàu'!AZ5)) -> 0 | BA15: =SUMPRODUCT(đt!$L$8:$L$273*(đt!$D$8:$D$273='Thị trấn Quán Hàu'!$A$1)*(đt!$C$8:$C$273='Thị trấn Quán Hàu'!BA5)) -> 0 | BB15: =SUMPRODUCT(đt!$L$8:$L$273*(đt!$D$8:$D$273='Thị trấn Quán Hàu'!$A$1)*(đt!$C$8:$C$273='Thị trấn Quán Hàu'!BB5)) -> 0 | BC15: =SUMPRODUCT(đt!$L$8:$L$273*(đt!$D$8:$D$273='Thị trấn Quán Hàu'!$A$1)*(đt!$C$8:$C$273='Thị trấn Quán Hàu'!BC5)) -> 0 | BD15: =SUMPRODUCT(đt!$L$8:$L$273*(đt!$D$8:$D$273='Thị trấn Quán Hàu'!$A$1)*(đt!$C$8:$C$273='Thị trấn Quán Hàu'!BD5)) -> 0 | BE15: =SUMPRODUCT(đt!$L$8:$L$273*(đt!$D$8:$D$273='Thị trấn Quán Hàu'!$A$1)*(đt!$C$8:$C$273='Thị trấn Quán Hàu'!BE5)) -> 0 | BF15: 0 | BG15: =SUMPRODUCT(đt!$L$8:$L$273*(đt!$D$8:$D$273='Thị trấn Quán Hàu'!$A$1)*(đt!$C$8:$C$273='Thị trấn Quán Hàu'!BG5)) -> 0 | BH15: =SUMPRODUCT(đt!$L$8:$L$273*(đt!$D$8:$D$273='Thị trấn Quán Hàu'!$A$1)*(đt!$C$8:$C$273='Thị trấn Quán Hàu'!BH5)) -> 0 | BI15: =SUMPRODUCT(đt!$L$8:$L$273*(đt!$D$8:$D$273='Thị trấn Quán Hàu'!$A$1)*(đt!$C$8:$C$273='Thị trấn Quán Hàu'!BI5)) -> 0 | BJ15: =D15-M15 -> 0 | BK15: =M64-BJ15 -> 0 | BL15: 0 | BM15: ok
A16: 1.6 | B16: Đất rừng sản xuất | C16: RSX | D16: 0.547 | E16: 0.547 | F16: 0 | G16: =SUMPRODUCT(đt!$M$8:$M$273*(đt!$D$8:$D$273='Thị trấn Quán Hàu'!$A$1)*(đt!$C$8:$C$273='Thị trấn Quán Hàu'!G5)) -> 0 | H16: =SUMPRODUCT(đt!$M$8:$M$273*(đt!$D$8:$D$273='Thị trấn Quán Hàu'!$A$1)*(đt!$C$8:$C$273='Thị trấn Quán Hàu'!H5)) -> 0 | I16: =SUMPRODUCT(đt!$M$8:$M$273*(đt!$D$8:$D$273='Thị trấn Quán Hàu'!$A$1)*(đt!$C$8:$C$273='Thị trấn Quán Hàu'!I5)) -> 0 | J16: =SUMPRODUCT(đt!$M$8:$M$273*(đt!$D$8:$D$273='Thị trấn Quán Hàu'!$A$1)*(đt!$C$8:$C$273='Thị trấn Quán Hàu'!J5)) -> 0 | K16: =SUMPRODUCT(đt!$M$8:$M$273*(đt!$D$8:$D$273='Thị trấn Quán Hàu'!$A$1)*(đt!$C$8:$C$273='Thị trấn Quán Hàu'!K5)) -> 0 | L16: =SUMPRODUCT(đt!$M$8:$M$273*(đt!$D$8:$D$273='Thị trấn Quán Hàu'!$A$1)*(đt!$C$8:$C$273='Thị trấn Quán Hàu'!L5)) -> 0 | M16: =SUMPRODUCT(đt!$M$8:$M$273*(đt!$D$8:$D$273='Thị trấn Quán Hàu'!$A$1)*(đt!$C$8:$C$273='Thị trấn Quán Hàu'!M5)) -> 0 | N16: =D16-(F16+SUM(J16:M16)+SUM(O16:Q16)+R16+BF16) -> 0.547 | O16: =SUMPRODUCT(đt!$M$8:$M$273*(đt!$D$8:$D$273='Thị trấn Quán Hàu'!$A$1)*(đt!$C$8:$C$273='Thị trấn Quán Hàu'!O5)) -> 0 | P16: =SUMPRODUCT(đt!$M$8:$M$273*(đt!$D$8:$D$273='Thị trấn Quán Hàu'!$A$1)*(đt!$C$8:$C$273='Thị trấn Quán Hàu'!P5)) -> 0 | Q16: =SUMPRODUCT(đt!$M$8:$M$273*(đt!$D$8:$D$273='Thị trấn Quán Hàu'!$A$1)*(đt!$C$8:$C$273='Thị trấn Quán Hàu'!Q5)) -> 0 | R16: 0 | S16: =SUMPRODUCT(đt!$M$8:$M$273*(đt!$D$8:$D$273='Thị trấn Quán Hàu'!$A$1)*(đt!$C$8:$C$273='Thị trấn Quán Hàu'!S5)) -> 0 | T16: =SUMPRODUCT(đt!$M$8:$M$273*(đt!$D$8:$D$273='Thị trấn Quán Hàu'!$A$1)*(đt!$C$8:$C$273='Thị trấn Quán Hàu'!T5)) -> 0 | U16: =SUMPRODUCT(đt!$M$8:$M$273*(đt!$D$8:$D$273='Thị trấn Quán Hàu'!$A$1)*(đt!$C$8:$C$273='Thị trấn Quán Hàu'!U5)) -> 0 | V16: =SUMPRODUCT(đt!$M$8:$M$273*(đt!$D$8:$D$273='Thị trấn Quán Hàu'!$A$1)*(đt!$C$8:$C$273='Thị trấn Quán Hàu'!V5)) -> 0 | W16: =SUMPRODUCT(đt!$M$8:$M$273*(đt!$D$8:$D$273='Thị trấn Quán Hàu'!$A$1)*(đt!$C$8:$C$273='Thị trấn Quán Hàu'!W5)) -> 0 | X16: =SUMPRODUCT(đt!$M$8:$M$273*(đt!$D$8:$D$273='Thị trấn Quán Hàu'!$A$1)*(đt!$C$8:$C$273='Thị trấn Quán Hàu'!X5)) -> 0 | Y16: =SUMPRODUCT(đt!$M$8:$M$273*(đt!$D$8:$D$273='Thị trấn Quán Hàu'!$A$1)*(đt!$C$8:$C$273='Thị trấn Quán Hàu'!Y5)) -> 0 | Z16: =SUMPRODUCT(đt!$M$8:$M$273*(đt!$D$8:$D$273='Thị trấn Quán Hàu'!$A$1)*(đt!$C$8:$C$273='Thị trấn Quán Hàu'!Z5)) -> 0 | AA16: 0 | AB16: =SUMPRODUCT(đt!$M$8:$M$273*(đt!$D$8:$D$273='Thị trấn Quán Hàu'!$A$1)*(đt!$C$8:$C$273='Thị trấn Quán Hàu'!AB5)) -> 0 | AC16: =SUMPRODUCT(đt!$M$8:$M$273*(đt!$D$8:$D$273='Thị trấn Quán Hàu'!$A$1)*(đt!$C$8:$C$273='Thị trấn Quán Hàu'!AC5)) -> 0 | AD16: =SUMPRODUCT(đt!$M$8:$M$273*(đt!$D$8:$D$273='Thị trấn Quán Hàu'!$A$1)*(đt!$C$8:$C$273='Thị trấn Quán Hàu'!AD5)) -> 0 | AE16: =SUMPRODUCT(đt!$M$8:$M$273*(đt!$D$8:$D$273='Thị trấn Quán Hàu'!$A$1)*(đt!$C$8:$C$273='Thị trấn Quán Hàu'!AE5)) -> 0 | AF16: =SUMPRODUCT(đt!$M$8:$M$273*(đt!$D$8:$D$273='Thị trấn Quán Hàu'!$A$1)*(đt!$C$8:$C$273='Thị trấn Quán Hàu'!AF5)) -> 0 | AG16: =SUMPRODUCT(đt!$M$8:$M$273*(đt!$D$8:$D$273='Thị trấn Quán Hàu'!$A$1)*(đt!$C$8:$C$273='Thị trấn Quán Hàu'!AG5)) -> 0 | AH16: =SUMPRODUCT(đt!$M$8:$M$273*(đt!$D$8:$D$273='Thị trấn Quán Hàu'!$A$1)*(đt!$C$8:$C$273='Thị trấn Quán Hàu'!AH5)) -> 0 | AI16: =SUMPRODUCT(đt!$M$8:$M$273*(đt!$D$8:$D$273='Thị trấn Quán Hàu'!$A$1)*(đt!$C$8:$C$273='Thị trấn Quán Hàu'!AI5)) -> 0 | AJ16: =SUMPRODUCT(đt!$M$8:$M$273*(đt!$D$8:$D$273='Thị trấn Quán Hàu'!$A$1)*(đt!$C$8:$C$273='Thị trấn Quán Hàu'!AJ5)) -> 0 | AK16: =SUMPRODUCT(đt!$M$8:$M$273*(đt!$D$8:$D$273='Thị trấn Quán Hàu'!$A$1)*(đt!$C$8:$C$273='Thị trấn Quán Hàu'!AK5)) -> 0 | AL16: =SUMPRODUCT(đt!$M$8:$M$273*(đt!$D$8:$D$273='Thị trấn Quán Hàu'!$A$1)*(đt!$C$8:$C$273='Thị trấn Quán Hàu'!AL5)) -> 0 | AM16: =SUMPRODUCT(đt!$M$8:$M$273*(đt!$D$8:$D$273='Thị trấn Quán Hàu'!$A$1)*(đt!$C$8:$C$273='Thị trấn Quán Hàu'!AM5)) -> 0 | AN16: =SUMPRODUCT(đt!$M$8:$M$273*(đt!$D$8:$D$273='Thị trấn Quán Hàu'!$A$1)*(đt!$C$8:$C$273='Thị trấn Quán Hàu'!AN5)) -> 0 | AO16: =SUMPRODUCT(đt!$M$8:$M$273*(đt!$D$8:$D$273='Thị trấn Quán Hàu'!$A$1)*(đt!$C$8:$C$273='Thị trấn Quán Hàu'!AO5)) -> 0 | AP16: =SUMPRODUCT(đt!$M$8:$M$273*(đt!$D$8:$D$273='Thị trấn Quán Hàu'!$A$1)*(đt!$C$8:$C$273='Thị trấn Quán Hàu'!AP5)) -> 0 | AQ16: =SUMPRODUCT(đt!$M$8:$M$273*(đt!$D$8:$D$273='Thị trấn Quán Hàu'!$A$1)*(đt!$C$8:$C$273='Thị trấn Quán Hàu'!AQ5)) -> 0 | AR16: =SUMPRODUCT(đt!$M$8:$M$273*(đt!$D$8:$D$273='Thị trấn Quán Hàu'!$A$1)*(đt!$C$8:$C$273='Thị trấn Quán Hàu'!AR5)) -> 0 | AS16: =SUMPRODUCT(đt!$M$8:$M$273*(đt!$D$8:$D$273='Thị trấn Quán Hàu'!$A$1)*(đt!$C$8:$C$273='Thị trấn Quán Hàu'!AS5)) -> 0 | AT16: =SUMPRODUCT(đt!$M$8:$M$273*(đt!$D$8:$D$273='Thị trấn Quán Hàu'!$A$1)*(đt!$C$8:$C$273='Thị trấn Quán Hàu'!AT5)) -> 0 | AU16: =SUMPRODUCT(đt!$M$8:$M$273*(đt!$D$8:$D$273='Thị trấn Quán Hàu'!$A$1)*(đt!$C$8:$C$273='Thị trấn Quán Hàu'!AU5)) -> 0 | AV16: =SUMPRODUCT(đt!$M$8:$M$273*(đt!$D$8:$D$273='Thị trấn Quán Hàu'!$A$1)*(đt!$C$8:$C$273='Thị trấn Quán Hàu'!AV5)) -> 0 | AW16: =SUMPRODUCT(đt!$M$8:$M$273*(đt!$D$8:$D$273='Thị trấn Quán Hàu'!$A$1)*(đt!$C$8:$C$273='Thị trấn Quán Hàu'!AW5)) -> 0 | AX16: =SUMPRODUCT(đt!$M$8:$M$273*(đt!$D$8:$D$273='Thị trấn Quán Hàu'!$A$1)*(đt!$C$8:$C$273='Thị trấn Quán Hàu'!AX5)) -> 0 | AY16: =SUMPRODUCT(đt!$M$8:$M$273*(đt!$D$8:$D$273='Thị trấn Quán Hàu'!$A$1)*(đt!$C$8:$C$273='Thị trấn Quán Hàu'!AY5)) -> 0 | AZ16: =SUMPRODUCT(đt!$M$8:$M$273*(đt!$D$8:$D$273='Thị trấn Quán Hàu'!$A$1)*(đt!$C$8:$C$273='Thị trấn Quán Hàu'!AZ5)) -> 0 | BA16: =SUMPRODUCT(đt!$M$8:$M$273*(đt!$D$8:$D$273='Thị trấn Quán Hàu'!$A$1)*(đt!$C$8:$C$273='Thị trấn Quán Hàu'!BA5)) -> 0 | BB16: =SUMPRODUCT(đt!$M$8:$M$273*(đt!$D$8:$D$273='Thị trấn Quán Hàu'!$A$1)*(đt!$C$8:$C$273='Thị trấn Quán Hàu'!BB5)) -> 0 | BC16: =SUMPRODUCT(đt!$M$8:$M$273*(đt!$D$8:$D$273='Thị trấn Quán Hàu'!$A$1)*(đt!$C$8:$C$273='Thị trấn Quán Hàu'!BC5)) -> 0 | BD16: =SUMPRODUCT(đt!$M$8:$M$273*(đt!$D$8:$D$273='Thị trấn Quán Hàu'!$A$1)*(đt!$C$8:$C$273='Thị trấn Quán Hàu'!BD5)) -> 0 | BE16: =SUMPRODUCT(đt!$M$8:$M$273*(đt!$D$8:$D$273='Thị trấn Quán Hàu'!$A$1)*(đt!$C$8:$C$273='Thị trấn Quán Hàu'!BE5)) -> 0 | BF16: 0 | BG16: =SUMPRODUCT(đt!$M$8:$M$273*(đt!$D$8:$D$273='Thị trấn Quán Hàu'!$A$1)*(đt!$C$8:$C$273='Thị trấn Quán Hàu'!BG5)) -> 0 | BH16: =SUMPRODUCT(đt!$M$8:$M$273*(đt!$D$8:$D$273='Thị trấn Quán Hàu'!$A$1)*(đt!$C$8:$C$273='Thị trấn Quán Hàu'!BH5)) -> 0 | BI16: =SUMPRODUCT(đt!$M$8:$M$273*(đt!$D$8:$D$273='Thị trấn Quán Hàu'!$A$1)*(đt!$C$8:$C$273='Thị trấn Quán Hàu'!BI5)) -> 0 | BJ16: =D16-N16 -> 0 | BK16: =N64-BJ16 -> 0 | BL16: 0.547 | BM16: ok
A17: 1.7 | B17: Đất nuôi trồng thuỷ sản | C17: NTS | D17: 14.464 | E17: 12.464 | F17: 0 | G17: =SUMPRODUCT(đt!$N$8:$N$273*(đt!$D$8:$D$273='Thị trấn Quán Hàu'!$A$1)*(đt!$C$8:$C$273='Thị trấn Quán Hàu'!G5)) -> 0 | H17: =SUMPRODUCT(đt!$N$8:$N$273*(đt!$D$8:$D$273='Thị trấn Quán Hàu'!$A$1)*(đt!$C$8:$C$273='Thị trấn Quán Hàu'!H5)) -> 0 | I17: =SUMPRODUCT(đt!$N$8:$N$273*(đt!$D$8:$D$273='Thị trấn Quán Hàu'!$A$1)*(đt!$C$8:$C$273='Thị trấn Quán Hàu'!I5)) -> 0 | J17: =SUMPRODUCT(đt!$N$8:$N$273*(đt!$D$8:$D$273='Thị trấn Quán Hàu'!$A$1)*(đt!$C$8:$C$273='Thị trấn Quán Hàu'!J5)) -> 0 | K17: =SUMPRODUCT(đt!$N$8:$N$273*(đt!$D$8:$D$273='Thị trấn Quán Hàu'!$A$1)*(đt!$C$8:$C$273='Thị trấn Quán Hàu'!K5)) -> 0 | L17: =SUMPRODUCT(đt!$N$8:$N$273*(đt!$D$8:$D$273='Thị trấn Quán Hàu'!$A$1)*(đt!$C$8:$C$273='Thị trấn Quán Hàu'!L5)) -> 0 | M17: =SUMPRODUCT(đt!$N$8:$N$273*(đt!$D$8:$D$273='Thị trấn Quán Hàu'!$A$1)*(đt!$C$8:$C$273='Thị trấn Quán Hàu'!M5)) -> 0 | N17: =SUMPRODUCT(đt!$N$8:$N$273*(đt!$D$8:$D$273='Thị trấn Quán Hàu'!$A$1)*(đt!$C$8:$C$273='Thị trấn Quán Hàu'!N5)) -> 0 | O17: =D17-(F17+SUM(J17:N17)+P17+Q17+R17+BF17) -> 12.464 | P17: =SUMPRODUCT(đt!$N$8:$N$273*(đt!$D$8:$D$273='Thị trấn Quán Hàu'!$A$1)*(đt!$C$8:$C$273='Thị trấn Quán Hàu'!P5)) -> 0 | Q17: =SUMPRODUCT(đt!$N$8:$N$273*(đt!$D$8:$D$273='Thị trấn Quán Hàu'!$A$1)*(đt!$C$8:$C$273='Thị trấn Quán Hàu'!Q5)) -> 0 | R17: 2 | S17: =SUMPRODUCT(đt!$N$8:$N$273*(đt!$D$8:$D$273='Thị trấn Quán Hàu'!$A$1)*(đt!$C$8:$C$273='Thị trấn Quán Hàu'!S5)) -> 0 | T17: =SUMPRODUCT(đt!$N$8:$N$273*(đt!$D$8:$D$273='Thị trấn Quán Hàu'!$A$1)*(đt!$C$8:$C$273='Thị trấn Quán Hàu'!T5)) -> 0 | U17: =SUMPRODUCT(đt!$N$8:$N$273*(đt!$D$8:$D$273='Thị trấn Quán Hàu'!$A$1)*(đt!$C$8:$C$273='Thị trấn Quán Hàu'!U5)) -> 1 | V17: =SUMPRODUCT(đt!$N$8:$N$273*(đt!$D$8:$D$273='Thị trấn Quán Hàu'!$A$1)*(đt!$C$8:$C$273='Thị trấn Quán Hàu'!V5)) -> 0 | W17: =SUMPRODUCT(đt!$N$8:$N$273*(đt!$D$8:$D$273='Thị trấn Quán Hàu'!$A$1)*(đt!$C$8:$C$273='Thị trấn Quán Hàu'!W5)) -> 0 | X17: =SUMPRODUCT(đt!$N$8:$N$273*(đt!$D$8:$D$273='Thị trấn Quán Hàu'!$A$1)*(đt!$C$8:$C$273='Thị trấn Quán Hàu'!X5)) -> 0 | Y17: =SUMPRODUCT(đt!$N$8:$N$273*(đt!$D$8:$D$273='Thị trấn Quán Hàu'!$A$1)*(đt!$C$8:$C$273='Thị trấn Quán Hàu'!Y5)) -> 0 | Z17: =SUMPRODUCT(đt!$N$8:$N$273*(đt!$D$8:$D$273='Thị trấn Quán Hàu'!$A$1)*(đt!$C$8:$C$273='Thị trấn Quán Hàu'!Z5)) -> 0 | AA17: 1 | AB17: =SUMPRODUCT(đt!$N$8:$N$273*(đt!$D$8:$D$273='Thị trấn Quán Hàu'!$A$1)*(đt!$C$8:$C$273='Thị trấn Quán Hàu'!AB5)) -> 0 | AC17: =SUMPRODUCT(đt!$N$8:$N$273*(đt!$D$8:$D$273='Thị trấn Quán Hàu'!$A$1)*(đt!$C$8:$C$273='Thị trấn Quán Hàu'!AC5)) -> 0 | AD17: =SUMPRODUCT(đt!$N$8:$N$273*(đt!$D$8:$D$273='Thị trấn Quán Hàu'!$A$1)*(đt!$C$8:$C$273='Thị trấn Quán Hàu'!AD5)) -> 0 | AE17: =SUMPRODUCT(đt!$N$8:$N$273*(đt!$D$8:$D$273='Thị trấn Quán Hàu'!$A$1)*(đt!$C$8:$C$273='Thị trấn Quán Hàu'!AE5)) -> 0 | AF17: =SUMPRODUCT(đt!$N$8:$N$273*(đt!$D$8:$D$273='Thị trấn Quán Hàu'!$A$1)*(đt!$C$8:$C$273='Thị trấn Quán Hàu'!AF5)) -> 0 | AG17: =SUMPRODUCT(đt!$N$8:$N$273*(đt!$D$8:$D$273='Thị trấn Quán Hàu'!$A$1)*(đt!$C$8:$C$273='Thị trấn Quán Hàu'!AG5)) -> 0 | AH17: =SUMPRODUCT(đt!$N$8:$N$273*(đt!$D$8:$D$273='Thị trấn Quán Hàu'!$A$1)*(đt!$C$8:$C$273='Thị trấn Quán Hàu'!AH5)) -> 0 | AI17: =SUMPRODUCT(đt!$N$8:$N$273*(đt!$D$8:$D$273='Thị trấn Quán Hàu'!$A$1)*(đt!$C$8:$C$273='Thị trấn Quán Hàu'!AI5)) -> 1 | AJ17: =SUMPRODUCT(đt!$N$8:$N$273*(đt!$D$8:$D$273='Thị trấn Quán Hàu'!$A$1)*(đt!$C$8:$C$273='Thị trấn Quán Hàu'!AJ5)) -> 0 | AK17: =SUMPRODUCT(đt!$N$8:$N$273*(đt!$D$8:$D$273='Thị trấn Quán Hàu'!$A$1)*(đt!$C$8:$C$273='Thị trấn Quán Hàu'!AK5)) -> 0 | AL17: =SUMPRODUCT(đt!$N$8:$N$273*(đt!$D$8:$D$273='Thị trấn Quán Hàu'!$A$1)*(đt!$C$8:$C$273='Thị trấn Quán Hàu'!AL5)) -> 0 | AM17: =SUMPRODUCT(đt!$N$8:$N$273*(đt!$D$8:$D$273='Thị trấn Quán Hàu'!$A$1)*(đt!$C$8:$C$273='Thị trấn Quán Hàu'!AM5)) -> 0 | AN17: =SUMPRODUCT(đt!$N$8:$N$273*(đt!$D$8:$D$273='Thị trấn Quán Hàu'!$A$1)*(đt!$C$8:$C$273='Thị trấn Quán Hàu'!AN5)) -> 0 | AO17: =SUMPRODUCT(đt!$N$8:$N$273*(đt!$D$8:$D$273='Thị trấn Quán Hàu'!$A$1)*(đt!$C$8:$C$273='Thị trấn Quán Hàu'!AO5)) -> 0 | AP17: =SUMPRODUCT(đt!$N$8:$N$273*(đt!$D$8:$D$273='Thị trấn Quán Hàu'!$A$1)*(đt!$C$8:$C$273='Thị trấn Quán Hàu'!AP5)) -> 0 | AQ17: =SUMPRODUCT(đt!$N$8:$N$273*(đt!$D$8:$D$273='Thị trấn Quán Hàu'!$A$1)*(đt!$C$8:$C$273='Thị trấn Quán Hàu'!AQ5)) -> 0 | AR17: =SUMPRODUCT(đt!$N$8:$N$273*(đt!$D$8:$D$273='Thị trấn Quán Hàu'!$A$1)*(đt!$C$8:$C$273='Thị trấn Quán Hàu'!AR5)) -> 0 | AS17: =SUMPRODUCT(đt!$N$8:$N$273*(đt!$D$8:$D$273='Thị trấn Quán Hàu'!$A$1)*(đt!$C$8:$C$273='Thị trấn Quán Hàu'!AS5)) -> 0 | AT17: =SUMPRODUCT(đt!$N$8:$N$273*(đt!$D$8:$D$273='Thị trấn Quán Hàu'!$A$1)*(đt!$C$8:$C$273='Thị trấn Quán Hàu'!AT5)) -> 0 | AU17: =SUMPRODUCT(đt!$N$8:$N$273*(đt!$D$8:$D$273='Thị trấn Quán Hàu'!$A$1)*(đt!$C$8:$C$273='Thị trấn Quán Hàu'!AU5)) -> 0 | AV17: =SUMPRODUCT(đt!$N$8:$N$273*(đt!$D$8:$D$273='Thị trấn Quán Hàu'!$A$1)*(đt!$C$8:$C$273='Thị trấn Quán Hàu'!AV5)) -> 0 | AW17: =SUMPRODUCT(đt!$N$8:$N$273*(đt!$D$8:$D$273='Thị trấn Quán Hàu'!$A$1)*(đt!$C$8:$C$273='Thị trấn Quán Hàu'!AW5)) -> 0 | AX17: =SUMPRODUCT(đt!$N$8:$N$273*(đt!$D$8:$D$273='Thị trấn Quán Hàu'!$A$1)*(đt!$C$8:$C$273='Thị trấn Quán Hàu'!AX5)) -> 0 | AY17: =SUMPRODUCT(đt!$N$8:$N$273*(đt!$D$8:$D$273='Thị trấn Quán Hàu'!$A$1)*(đt!$C$8:$C$273='Thị trấn Quán Hàu'!AY5)) -> 0 | AZ17: =SUMPRODUCT(đt!$N$8:$N$273*(đt!$D$8:$D$273='Thị trấn Quán Hàu'!$A$1)*(đt!$C$8:$C$273='Thị trấn Quán Hàu'!AZ5)) -> 0 | BA17: =SUMPRODUCT(đt!$N$8:$N$273*(đt!$D$8:$D$273='Thị trấn Quán Hàu'!$A$1)*(đt!$C$8:$C$273='Thị trấn Quán Hàu'!BA5)) -> 0 | BB17: =SUMPRODUCT(đt!$N$8:$N$273*(đt!$D$8:$D$273='Thị trấn Quán Hàu'!$A$1)*(đt!$C$8:$C$273='Thị trấn Quán Hàu'!BB5)) -> 0 | BC17: =SUMPRODUCT(đt!$N$8:$N$273*(đt!$D$8:$D$273='Thị trấn Quán Hàu'!$A$1)*(đt!$C$8:$C$273='Thị trấn Quán Hàu'!BC5)) -> 0 | BD17: =SUMPRODUCT(đt!$N$8:$N$273*(đt!$D$8:$D$273='Thị trấn Quán Hàu'!$A$1)*(đt!$C$8:$C$273='Thị trấn Quán Hàu'!BD5)) -> 0 | BE17: =SUMPRODUCT(đt!$N$8:$N$273*(đt!$D$8:$D$273='Thị trấn Quán Hàu'!$A$1)*(đt!$C$8:$C$273='Thị trấn Quán Hàu'!BE5)) -> 0 | BF17: 0 | BG17: =SUMPRODUCT(đt!$N$8:$N$273*(đt!$D$8:$D$273='Thị trấn Quán Hàu'!$A$1)*(đt!$C$8:$C$273='Thị trấn Quán Hàu'!BG5)) -> 0 | BH17: =SUMPRODUCT(đt!$N$8:$N$273*(đt!$D$8:$D$273='Thị trấn Quán Hàu'!$A$1)*(đt!$C$8:$C$273='Thị trấn Quán Hàu'!BH5)) -> 0 | BI17: =SUMPRODUCT(đt!$N$8:$N$273*(đt!$D$8:$D$273='Thị trấn Quán Hàu'!$A$1)*(đt!$C$8:$C$273='Thị trấn Quán Hàu'!BI5)) -> 0 | BJ17: =D17-O17 -> 2 | BK17: =O64-BJ17 -> -2 | BL17: 12.464 | BM17: ok
A18: 1.8 | B18: Đất làm muối | C18: LMU | D18: 0 | E18: 0 | F18: 0 | G18: =SUMPRODUCT(đt!$O$8:$O$273*(đt!$D$8:$D$273='Thị trấn Quán Hàu'!$A$1)*(đt!$C$8:$C$273='Thị trấn Quán Hàu'!G5)) -> 0 | H18: =SUMPRODUCT(đt!$O$8:$O$273*(đt!$D$8:$D$273='Thị trấn Quán Hàu'!$A$1)*(đt!$C$8:$C$273='Thị trấn Quán Hàu'!H5)) -> 0 | I18: =SUMPRODUCT(đt!$O$8:$O$273*(đt!$D$8:$D$273='Thị trấn Quán Hàu'!$A$1)*(đt!$C$8:$C$273='Thị trấn Quán Hàu'!I5)) -> 0 | J18: =SUMPRODUCT(đt!$O$8:$O$273*(đt!$D$8:$D$273='Thị trấn Quán Hàu'!$A$1)*(đt!$C$8:$C$273='Thị trấn Quán Hàu'!J5)) -> 0 | K18: =SUMPRODUCT(đt!$O$8:$O$273*(đt!$D$8:$D$273='Thị trấn Quán Hàu'!$A$1)*(đt!$C$8:$C$273='Thị trấn Quán Hàu'!K5)) -> 0 | L18: =SUMPRODUCT(đt!$O$8:$O$273*(đt!$D$8:$D$273='Thị trấn Quán Hàu'!$A$1)*(đt!$C$8:$C$273='Thị trấn Quán Hàu'!L5)) -> 0 | M18: =SUMPRODUCT(đt!$O$8:$O$273*(đt!$D$8:$D$273='Thị trấn Quán Hàu'!$A$1)*(đt!$C$8:$C$273='Thị trấn Quán Hàu'!M5)) -> 0 | N18: =SUMPRODUCT(đt!$O$8:$O$273*(đt!$D$8:$D$273='Thị trấn Quán Hàu'!$A$1)*(đt!$C$8:$C$273='Thị trấn Quán Hàu'!N5)) -> 0 | O18: =SUMPRODUCT(đt!$O$8:$O$273*(đt!$D$8:$D$273='Thị trấn Quán Hàu'!$A$1)*(đt!$C$8:$C$273='Thị trấn Quán Hàu'!O5)) -> 0 | P18: =D18-(F18+SUM(J18:O18)+SUM(Q18:R18)+BF18) -> 0 | Q18: =SUMPRODUCT(đt!$O$8:$O$273*(đt!$D$8:$D$273='Thị trấn Quán Hàu'!$A$1)*(đt!$C$8:$C$273='Thị trấn Quán Hàu'!Q5)) -> 0 | R18: 0 | S18: =SUMPRODUCT(đt!$O$8:$O$273*(đt!$D$8:$D$273='Thị trấn Quán Hàu'!$A$1)*(đt!$C$8:$C$273='Thị trấn Quán Hàu'!S5)) -> 0 | T18: =SUMPRODUCT(đt!$O$8:$O$273*(đt!$D$8:$D$273='Thị trấn Quán Hàu'!$A$1)*(đt!$C$8:$C$273='Thị trấn Quán Hàu'!T5)) -> 0 | U18: =SUMPRODUCT(đt!$O$8:$O$273*(đt!$D$8:$D$273='Thị trấn Quán Hàu'!$A$1)*(đt!$C$8:$C$273='Thị trấn Quán Hàu'!U5)) -> 0 | V18: =SUMPRODUCT(đt!$O$8:$O$273*(đt!$D$8:$D$273='Thị trấn Quán Hàu'!$A$1)*(đt!$C$8:$C$273='Thị trấn Quán Hàu'!V5)) -> 0 | W18: =SUMPRODUCT(đt!$O$8:$O$273*(đt!$D$8:$D$273='Thị trấn Quán Hàu'!$A$1)*(đt!$C$8:$C$273='Thị trấn Quán Hàu'!W5)) -> 0 | X18: =SUMPRODUCT(đt!$O$8:$O$273*(đt!$D$8:$D$273='Thị trấn Quán Hàu'!$A$1)*(đt!$C$8:$C$273='Thị trấn Quán Hàu'!X5)) -> 0 | Y18: =SUMPRODUCT(đt!$O$8:$O$273*(đt!$D$8:$D$273='Thị trấn Quán Hàu'!$A$1)*(đt!$C$8:$C$273='Thị trấn Quán Hàu'!Y5)) -> 0 | Z18: =SUMPRODUCT(đt!$O$8:$O$273*(đt!$D$8:$D$273='Thị trấn Quán Hàu'!$A$1)*(đt!$C$8:$C$273='Thị trấn Quán Hàu'!Z5)) -> 0 | AA18: 0 | AB18: =SUMPRODUCT(đt!$O$8:$O$273*(đt!$D$8:$D$273='Thị trấn Quán Hàu'!$A$1)*(đt!$C$8:$C$273='Thị trấn Quán Hàu'!AB5)) -> 0 | AC18: =SUMPRODUCT(đt!$O$8:$O$273*(đt!$D$8:$D$273='Thị trấn Quán Hàu'!$A$1)*(đt!$C$8:$C$273='Thị trấn Quán Hàu'!AC5)) -> 0 | AD18: =SUMPRODUCT(đt!$O$8:$O$273*(đt!$D$8:$D$273='Thị trấn Quán Hàu'!$A$1)*(đt!$C$8:$C$273='Thị trấn Quán Hàu'!AD5)) -> 0 | AE18: =SUMPRODUCT(đt!$O$8:$O$273*(đt!$D$8:$D$273='Thị trấn Quán Hàu'!$A$1)*(đt!$C$8:$C$273='Thị trấn Quán Hàu'!AE5)) -> 0 | AF18: =SUMPRODUCT(đt!$O$8:$O$273*(đt!$D$8:$D$273='Thị trấn Quán Hàu'!$A$1)*(đt!$C$8:$C$273='Thị trấn Quán Hàu'!AF5)) -> 0 | AG18: =SUMPRODUCT(đt!$O$8:$O$273*(đt!$D$8:$D$273='Thị trấn Quán Hàu'!$A$1)*(đt!$C$8:$C$273='Thị trấn Quán Hàu'!AG5)) -> 0 | AH18: =SUMPRODUCT(đt!$O$8:$O$273*(đt!$D$8:$D$273='Thị trấn Quán Hàu'!$A$1)*(đt!$C$8:$C$273='Thị trấn Quán Hàu'!AH5)) -> 0 | AI18: =SUMPRODUCT(đt!$O$8:$O$273*(đt!$D$8:$D$273='Thị trấn Quán Hàu'!$A$1)*(đt!$C$8:$C$273='Thị trấn Quán Hàu'!AI5)) -> 0 | AJ18: =SUMPRODUCT(đt!$O$8:$O$273*(đt!$D$8:$D$273='Thị trấn Quán Hàu'!$A$1)*(đt!$C$8:$C$273='Thị trấn Quán Hàu'!AJ5)) -> 0 | AK18: =SUMPRODUCT(đt!$O$8:$O$273*(đt!$D$8:$D$273='Thị trấn Quán Hàu'!$A$1)*(đt!$C$8:$C$273='Thị trấn Quán Hàu'!AK5)) -> 0 | AL18: =SUMPRODUCT(đt!$O$8:$O$273*(đt!$D$8:$D$273='Thị trấn Quán Hàu'!$A$1)*(đt!$C$8:$C$273='Thị trấn Quán Hàu'!AL5)) -> 0 | AM18: =SUMPRODUCT(đt!$O$8:$O$273*(đt!$D$8:$D$273='Thị trấn Quán Hàu'!$A$1)*(đt!$C$8:$C$273='Thị trấn Quán Hàu'!AM5)) -> 0 | AN18: =SUMPRODUCT(đt!$O$8:$O$273*(đt!$D$8:$D$273='Thị trấn Quán Hàu'!$A$1)*(đt!$C$8:$C$273='Thị trấn Quán Hàu'!AN5)) -> 0 | AO18: =SUMPRODUCT(đt!$O$8:$O$273*(đt!$D$8:$D$273='Thị trấn Quán Hàu'!$A$1)*(đt!$C$8:$C$273='Thị trấn Quán Hàu'!AO5)) -> 0 | AP18: =SUMPRODUCT(đt!$O$8:$O$273*(đt!$D$8:$D$273='Thị trấn Quán Hàu'!$A$1)*(đt!$C$8:$C$273='Thị trấn Quán Hàu'!AP5)) -> 0 | AQ18: =SUMPRODUCT(đt!$O$8:$O$273*(đt!$D$8:$D$273='Thị trấn Quán Hàu'!$A$1)*(đt!$C$8:$C$273='Thị trấn Quán Hàu'!AQ5)) -> 0 | AR18: =SUMPRODUCT(đt!$O$8:$O$273*(đt!$D$8:$D$273='Thị trấn Quán Hàu'!$A$1)*(đt!$C$8:$C$273='Thị trấn Quán Hàu'!AR5)) -> 0 | AS18: =SUMPRODUCT(đt!$O$8:$O$273*(đt!$D$8:$D$273='Thị trấn Quán Hàu'!$A$1)*(đt!$C$8:$C$273='Thị trấn Quán Hàu'!AS5)) -> 0 | AT18: =SUMPRODUCT(đt!$O$8:$O$273*(đt!$D$8:$D$273='Thị trấn Quán Hàu'!$A$1)*(đt!$C$8:$C$273='Thị trấn Quán Hàu'!AT5)) -> 0 | AU18: =SUMPRODUCT(đt!$O$8:$O$273*(đt!$D$8:$D$273='Thị trấn Quán Hàu'!$A$1)*(đt!$C$8:$C$273='Thị trấn Quán Hàu'!AU5)) -> 0 | AV18: =SUMPRODUCT(đt!$O$8:$O$273*(đt!$D$8:$D$273='Thị trấn Quán Hàu'!$A$1)*(đt!$C$8:$C$273='Thị trấn Quán Hàu'!AV5)) -> 0 | AW18: =SUMPRODUCT(đt!$O$8:$O$273*(đt!$D$8:$D$273='Thị trấn Quán Hàu'!$A$1)*(đt!$C$8:$C$273='Thị trấn Quán Hàu'!AW5)) -> 0 | AX18: =SUMPRODUCT(đt!$O$8:$O$273*(đt!$D$8:$D$273='Thị trấn Quán Hàu'!$A$1)*(đt!$C$8:$C$273='Thị trấn Quán Hàu'!AX5)) -> 0 | AY18: =SUMPRODUCT(đt!$O$8:$O$273*(đt!$D$8:$D$273='Thị trấn Quán Hàu'!$A$1)*(đt!$C$8:$C$273='Thị trấn Quán Hàu'!AY5)) -> 0 | AZ18: =SUMPRODUCT(đt!$O$8:$O$273*(đt!$D$8:$D$273='Thị trấn Quán Hàu'!$A$1)*(đt!$C$8:$C$273='Thị trấn Quán Hàu'!AZ5)) -> 0 | BA18: =SUMPRODUCT(đt!$O$8:$O$273*(đt!$D$8:$D$273='Thị trấn Quán Hàu'!$A$1)*(đt!$C$8:$C$273='Thị trấn Quán Hàu'!BA5)) -> 0 | BB18: =SUMPRODUCT(đt!$O$8:$O$273*(đt!$D$8:$D$273='Thị trấn Quán Hàu'!$A$1)*(đt!$C$8:$C$273='Thị trấn Quán Hàu'!BB5)) -> 0 | BC18: =SUMPRODUCT(đt!$O$8:$O$273*(đt!$D$8:$D$273='Thị trấn Quán Hàu'!$A$1)*(đt!$C$8:$C$273='Thị trấn Quán Hàu'!BC5)) -> 0 | BD18: =SUMPRODUCT(đt!$O$8:$O$273*(đt!$D$8:$D$273='Thị trấn Quán Hàu'!$A$1)*(đt!$C$8:$C$273='Thị trấn Quán Hàu'!BD5)) -> 0 | BE18: =SUMPRODUCT(đt!$O$8:$O$273*(đt!$D$8:$D$273='Thị trấn Quán Hàu'!$A$1)*(đt!$C$8:$C$273='Thị trấn Quán Hàu'!BE5)) -> 0 | BF18: 0 | BG18: =SUMPRODUCT(đt!$O$8:$O$273*(đt!$D$8:$D$273='Thị trấn Quán Hàu'!$A$1)*(đt!$C$8:$C$273='Thị trấn Quán Hàu'!BG5)) -> 0 | BH18: =SUMPRODUCT(đt!$O$8:$O$273*(đt!$D$8:$D$273='Thị trấn Quán Hàu'!$A$1)*(đt!$C$8:$C$273='Thị trấn Quán Hàu'!BH5)) -> 0 | BI18: =SUMPRODUCT(đt!$O$8:$O$273*(đt!$D$8:$D$273='Thị trấn Quán Hàu'!$A$1)*(đt!$C$8:$C$273='Thị trấn Quán Hàu'!BI5)) -> 0 | BJ18: =D18-P18 -> 0 | BK18: =P64-BJ18 -> 0 | BL18: 0 | BM18: ok
A19: 1.9 | B19: Đất nông nghiệp khác | C19: NKH | D19: 0 | E19: 0 | F19: 0 | G19: =SUMPRODUCT(đt!$P$8:$P$273*(đt!$D$8:$D$273='Thị trấn Quán Hàu'!$A$1)*(đt!$C$8:$C$273='Thị trấn Quán Hàu'!G5)) -> 0 | H19: =SUMPRODUCT(đt!$P$8:$P$273*(đt!$D$8:$D$273='Thị trấn Quán Hàu'!$A$1)*(đt!$C$8:$C$273='Thị trấn Quán Hàu'!H5)) -> 0 | I19: =SUMPRODUCT(đt!$P$8:$P$273*(đt!$D$8:$D$273='Thị trấn Quán Hàu'!$A$1)*(đt!$C$8:$C$273='Thị trấn Quán Hàu'!I5)) -> 0 | J19: =SUMPRODUCT(đt!$P$8:$P$273*(đt!$D$8:$D$273='Thị trấn Quán Hàu'!$A$1)*(đt!$C$8:$C$273='Thị trấn Quán Hàu'!J5)) -> 0 | K19: =SUMPRODUCT(đt!$P$8:$P$273*(đt!$D$8:$D$273='Thị trấn Quán Hàu'!$A$1)*(đt!$C$8:$C$273='Thị trấn Quán Hàu'!K5)) -> 0 | L19: =SUMPRODUCT(đt!$P$8:$P$273*(đt!$D$8:$D$273='Thị trấn Quán Hàu'!$A$1)*(đt!$C$8:$C$273='Thị trấn Quán Hàu'!L5)) -> 0 | M19: =SUMPRODUCT(đt!$P$8:$P$273*(đt!$D$8:$D$273='Thị trấn Quán Hàu'!$A$1)*(đt!$C$8:$C$273='Thị trấn Quán Hàu'!M5)) -> 0 | N19: =SUMPRODUCT(đt!$P$8:$P$273*(đt!$D$8:$D$273='Thị trấn Quán Hàu'!$A$1)*(đt!$C$8:$C$273='Thị trấn Quán Hàu'!N5)) -> 0 | O19: =SUMPRODUCT(đt!$P$8:$P$273*(đt!$D$8:$D$273='Thị trấn Quán Hàu'!$A$1)*(đt!$C$8:$C$273='Thị trấn Quán Hàu'!O5)) -> 0 | P19: =SUMPRODUCT(đt!$P$8:$P$273*(đt!$D$8:$D$273='Thị trấn Quán Hàu'!$A$1)*(đt!$C$8:$C$273='Thị trấn Quán Hàu'!P5)) -> 0 | Q19: =D19-(F19+SUM(J19:P19)+R19+BF19) -> 0 | R19: 0 | S19: =SUMPRODUCT(đt!$P$8:$P$273*(đt!$D$8:$D$273='Thị trấn Quán Hàu'!$A$1)*(đt!$C$8:$C$273='Thị trấn Quán Hàu'!S5)) -> 0 | T19: =SUMPRODUCT(đt!$P$8:$P$273*(đt!$D$8:$D$273='Thị trấn Quán Hàu'!$A$1)*(đt!$C$8:$C$273='Thị trấn Quán Hàu'!T5)) -> 0 | U19: =SUMPRODUCT(đt!$P$8:$P$273*(đt!$D$8:$D$273='Thị trấn Quán Hàu'!$A$1)*(đt!$C$8:$C$273='Thị trấn Quán Hàu'!U5)) -> 0 | V19: =SUMPRODUCT(đt!$P$8:$P$273*(đt!$D$8:$D$273='Thị trấn Quán Hàu'!$A$1)*(đt!$C$8:$C$273='Thị trấn Quán Hàu'!V5)) -> 0 | W19: =SUMPRODUCT(đt!$P$8:$P$273*(đt!$D$8:$D$273='Thị trấn Quán Hàu'!$A$1)*(đt!$C$8:$C$273='Thị trấn Quán Hàu'!W5)) -> 0 | X19: =SUMPRODUCT(đt!$P$8:$P$273*(đt!$D$8:$D$273='Thị trấn Quán Hàu'!$A$1)*(đt!$C$8:$C$273='Thị trấn Quán Hàu'!X5)) -> 0 | Y19: =SUMPRODUCT(đt!$P$8:$P$273*(đt!$D$8:$D$273='Thị trấn Quán Hàu'!$A$1)*(đt!$C$8:$C$273='Thị trấn Quán Hàu'!Y5)) -> 0 | Z19: =SUMPRODUCT(đt!$P$8:$P$273*(đt!$D$8:$D$273='Thị trấn Quán Hàu'!$A$1)*(đt!$C$8:$C$273='Thị trấn Quán Hàu'!Z5)) -> 0 | AA19: 0 | AB19: =SUMPRODUCT(đt!$P$8:$P$273*(đt!$D$8:$D$273='Thị trấn Quán Hàu'!$A$1)*(đt!$C$8:$C$273='Thị trấn Quán Hàu'!AB5)) -> 0 | AC19: =SUMPRODUCT(đt!$P$8:$P$273*(đt!$D$8:$D$273='Thị trấn Quán Hàu'!$A$1)*(đt!$C$8:$C$273='Thị trấn Quán Hàu'!AC5)) -> 0 | AD19: =SUMPRODUCT(đt!$P$8:$P$273*(đt!$D$8:$D$273='Thị trấn Quán Hàu'!$A$1)*(đt!$C$8:$C$273='Thị trấn Quán Hàu'!AD5)) -> 0 | AE19: =SUMPRODUCT(đt!$P$8:$P$273*(đt!$D$8:$D$273='Thị trấn Quán Hàu'!$A$1)*(đt!$C$8:$C$273='Thị trấn Quán Hàu'!AE5)) -> 0 | AF19: =SUMPRODUCT(đt!$P$8:$P$273*(đt!$D$8:$D$273='Thị trấn Quán Hàu'!$A$1)*(đt!$C$8:$C$273='Thị trấn Quán Hàu'!AF5)) -> 0 | AG19: =SUMPRODUCT(đt!$P$8:$P$273*(đt!$D$8:$D$273='Thị trấn Quán Hàu'!$A$1)*(đt!$C$8:$C$273='Thị trấn Quán Hàu'!AG5)) -> 0 | AH19: =SUMPRODUCT(đt!$P$8:$P$273*(đt!$D$8:$D$273='Thị trấn Quán Hàu'!$A$1)*(đt!$C$8:$C$273='Thị trấn Quán Hàu'!AH5)) -> 0 | AI19: =SUMPRODUCT(đt!$P$8:$P$273*(đt!$D$8:$D$273='Thị trấn Quán Hàu'!$A$1)*(đt!$C$8:$C$273='Thị trấn Quán Hàu'!AI5)) -> 0 | AJ19: =SUMPRODUCT(đt!$P$8:$P$273*(đt!$D$8:$D$273='Thị trấn Quán Hàu'!$A$1)*(đt!$C$8:$C$273='Thị trấn Quán Hàu'!AJ5)) -> 0 | AK19: =SUMPRODUCT(đt!$P$8:$P$273*(đt!$D$8:$D$273='Thị trấn Quán Hàu'!$A$1)*(đt!$C$8:$C$273='Thị trấn Quán Hàu'!AK5)) -> 0 | AL19: =SUMPRODUCT(đt!$P$8:$P$273*(đt!$D$8:$D$273='Thị trấn Quán Hàu'!$A$1)*(đt!$C$8:$C$273='Thị trấn Quán Hàu'!AL5)) -> 0 | AM19: =SUMPRODUCT(đt!$P$8:$P$273*(đt!$D$8:$D$273='Thị trấn Quán Hàu'!$A$1)*(đt!$C$8:$C$273='Thị trấn Quán Hàu'!AM5)) -> 0 | AN19: =SUMPRODUCT(đt!$P$8:$P$273*(đt!$D$8:$D$273='Thị trấn Quán Hàu'!$A$1)*(đt!$C$8:$C$273='Thị trấn Quán Hàu'!AN5)) -> 0 | AO19: =SUMPRODUCT(đt!$P$8:$P$273*(đt!$D$8:$D$273='Thị trấn Quán Hàu'!$A$1)*(đt!$C$8:$C$273='Thị trấn Quán Hàu'!AO5)) -> 0 | AP19: =SUMPRODUCT(đt!$P$8:$P$273*(đt!$D$8:$D$273='Thị trấn Quán Hàu'!$A$1)*(đt!$C$8:$C$273='Thị trấn Quán Hàu'!AP5)) -> 0 | AQ19: =SUMPRODUCT(đt!$P$8:$P$273*(đt!$D$8:$D$273='Thị trấn Quán Hàu'!$A$1)*(đt!$C$8:$C$273='Thị trấn Quán Hàu'!AQ5)) -> 0 | AR19: =SUMPRODUCT(đt!$P$8:$P$273*(đt!$D$8:$D$273='Thị trấn Quán Hàu'!$A$1)*(đt!$C$8:$C$273='Thị trấn Quán Hàu'!AR5)) -> 0 | AS19: =SUMPRODUCT(đt!$P$8:$P$273*(đt!$D$8:$D$273='Thị trấn Quán Hàu'!$A$1)*(đt!$C$8:$C$273='Thị trấn Quán Hàu'!AS5)) -> 0 | AT19: =SUMPRODUCT(đt!$P$8:$P$273*(đt!$D$8:$D$273='Thị trấn Quán Hàu'!$A$1)*(đt!$C$8:$C$273='Thị trấn Quán Hàu'!AT5)) -> 0 | AU19: =SUMPRODUCT(đt!$P$8:$P$273*(đt!$D$8:$D$273='Thị trấn Quán Hàu'!$A$1)*(đt!$C$8:$C$273='Thị trấn Quán Hàu'!AU5)) -> 0 | AV19: =SUMPRODUCT(đt!$P$8:$P$273*(đt!$D$8:$D$273='Thị trấn Quán Hàu'!$A$1)*(đt!$C$8:$C$273='Thị trấn Quán Hàu'!AV5)) -> 0 | AW19: =SUMPRODUCT(đt!$P$8:$P$273*(đt!$D$8:$D$273='Thị trấn Quán Hàu'!$A$1)*(đt!$C$8:$C$273='Thị trấn Quán Hàu'!AW5)) -> 0 | AX19: =SUMPRODUCT(đt!$P$8:$P$273*(đt!$D$8:$D$273='Thị trấn Quán Hàu'!$A$1)*(đt!$C$8:$C$273='Thị trấn Quán Hàu'!AX5)) -> 0 | AY19: =SUMPRODUCT(đt!$P$8:$P$273*(đt!$D$8:$D$273='Thị trấn Quán Hàu'!$A$1)*(đt!$C$8:$C$273='Thị trấn Quán Hàu'!AY5)) -> 0 | AZ19: =SUMPRODUCT(đt!$P$8:$P$273*(đt!$D$8:$D$273='Thị trấn Quán Hàu'!$A$1)*(đt!$C$8:$C$273='Thị trấn Quán Hàu'!AZ5)) -> 0 | BA19: =SUMPRODUCT(đt!$P$8:$P$273*(đt!$D$8:$D$273='Thị trấn Quán Hàu'!$A$1)*(đt!$C$8:$C$273='Thị trấn Quán Hàu'!BA5)) -> 0 | BB19: =SUMPRODUCT(đt!$P$8:$P$273*(đt!$D$8:$D$273='Thị trấn Quán Hàu'!$A$1)*(đt!$C$8:$C$273='Thị trấn Quán Hàu'!BB5)) -> 0 | BC19: =SUMPRODUCT(đt!$P$8:$P$273*(đt!$D$8:$D$273='Thị trấn Quán Hàu'!$A$1)*(đt!$C$8:$C$273='Thị trấn Quán Hàu'!BC5)) -> 0 | BD19: =SUMPRODUCT(đt!$P$8:$P$273*(đt!$D$8:$D$273='Thị trấn Quán Hàu'!$A$1)*(đt!$C$8:$C$273='Thị trấn Quán Hàu'!BD5)) -> 0 | BE19: =SUMPRODUCT(đt!$P$8:$P$273*(đt!$D$8:$D$273='Thị trấn Quán Hàu'!$A$1)*(đt!$C$8:$C$273='Thị trấn Quán Hàu'!BE5)) -> 0 | BF19: 0 | BG19: =SUMPRODUCT(đt!$P$8:$P$273*(đt!$D$8:$D$273='Thị trấn Quán Hàu'!$A$1)*(đt!$C$8:$C$273='Thị trấn Quán Hàu'!BG5)) -> 0 | BH19: =SUMPRODUCT(đt!$P$8:$P$273*(đt!$D$8:$D$273='Thị trấn Quán Hàu'!$A$1)*(đt!$C$8:$C$273='Thị trấn Quán Hàu'!BH5)) -> 0 | BI19: =SUMPRODUCT(đt!$P$8:$P$273*(đt!$D$8:$D$273='Thị trấn Quán Hàu'!$A$1)*(đt!$C$8:$C$273='Thị trấn Quán Hàu'!BI5)) -> 0 | BJ19: =D19-Q19 -> 0 | BK19: =Q64-BJ19 -> 0 | BL19: 0 | BM19: ok
A20: 2 | B20: Đất phi nông nghiệp | C20: PNN | D20: =SUM(D21:D29)+SUM(D41:D59) -> 181.0572 | E20: 0 | F20: 0 | G20: =SUM(G21:G29)+SUM(G41:G59) -> 0 | H20: =SUM(H21:H29)+SUM(H41:H59) -> 0 | I20: 0 | J20: 0 | K20: 0 | L20: 0 | M20: 0 | N20: 0 | O20: 0 | P20: 0 | Q20: 0 | R20: 181.0572 | S20: 1.2892 | T20: 1.442 | U20: 5.889 | V20: 0 | W20: 0 | X20: 1.61 | Y20: 6.6 | Z20: 0 | AA20: 53.593 | AB20: 1.17 | AC20: 0 | AD20: 0.14 | AE20: 2.43 | AF20: 2.185 | AG20: 0 | AH20: 43.345 | AI20: 3.814 | AJ20: 0 | AK20: 0.14 | AL20: 0.369 | AM20: 0.5 | AN20: 0 | AO20: 0 | AP20: 0 | AQ20: 0 | AR20: 30.32 | AS20: 3.224 | AT20: 0.02 | AU20: 0 | AV20: 0 | AW20: 0 | AX20: 5.801 | AY20: 0.23 | AZ20: 0.455 | BA20: 0.4 | BB20: 0 | BC20: 68.925 | BD20: 0.759 | BE20: 0 | BF20: 0 | BG20: 0 | BH20: 0 | BI20: 0 | BJ20: =D20-R20 -> 0 | BK20: =R64-BJ20 -> 32.28 | BL20: 213.3372 | BM20: ok
A21: 2.1 | B21: Đất quốc phòng | C21: CQP | D21: =VLOOKUP(C21,hientrang,MATCH($A$1,tenxa,0)+2,0) -> 1.2892 | E21: 0 | F21: 0 | G21: =SUMPRODUCT(đt!$Q$8:$Q$273*(đt!$D$8:$D$273='Thị trấn Quán Hàu'!$A$1)*(đt!$C$8:$C$273='Thị trấn Quán Hàu'!G5)) -> 0 | H21: =SUMPRODUCT(đt!$Q$8:$Q$273*(đt!$D$8:$D$273='Thị trấn Quán Hàu'!$A$1)*(đt!$C$8:$C$273='Thị trấn Quán Hàu'!H5)) -> 0 | I21: =SUMPRODUCT(đt!$Q$8:$Q$273*(đt!$D$8:$D$273='Thị trấn Quán Hàu'!$A$1)*(đt!$C$8:$C$273='Thị trấn Quán Hàu'!I5)) -> 0 | J21: =SUMPRODUCT(đt!$Q$8:$Q$273*(đt!$D$8:$D$273='Thị trấn Quán Hàu'!$A$1)*(đt!$C$8:$C$273='Thị trấn Quán Hàu'!J5)) -> 0 | K21: =SUMPRODUCT(đt!$Q$8:$Q$273*(đt!$D$8:$D$273='Thị trấn Quán Hàu'!$A$1)*(đt!$C$8:$C$273='Thị trấn Quán Hàu'!K5)) -> 0 | L21: =SUMPRODUCT(đt!$Q$8:$Q$273*(đt!$D$8:$D$273='Thị trấn Quán Hàu'!$A$1)*(đt!$C$8:$C$273='Thị trấn Quán Hàu'!L5)) -> 0 | M21: =SUMPRODUCT(đt!$Q$8:$Q$273*(đt!$D$8:$D$273='Thị trấn Quán Hàu'!$A$1)*(đt!$C$8:$C$273='Thị trấn Quán Hàu'!M5)) -> 0 | N21: =SUMPRODUCT(đt!$Q$8:$Q$273*(đt!$D$8:$D$273='Thị trấn Quán Hàu'!$A$1)*(đt!$C$8:$C$273='Thị trấn Quán Hàu'!N5)) -> 0 | O21: =SUMPRODUCT(đt!$Q$8:$Q$273*(đt!$D$8:$D$273='Thị trấn Quán Hàu'!$A$1)*(đt!$C$8:$C$273='Thị trấn Quán Hàu'!O5)) -> 0 | P21: =SUMPRODUCT(đt!$Q$8:$Q$273*(đt!$D$8:$D$273='Thị trấn Quán Hàu'!$A$1)*(đt!$C$8:$C$273='Thị trấn Quán Hàu'!P5)) -> 0 | Q21: =SUMPRODUCT(đt!$Q$8:$Q$273*(đt!$D$8:$D$273='Thị trấn Quán Hàu'!$A$1)*(đt!$C$8:$C$273='Thị trấn Quán Hàu'!Q5)) -> 0 | R21: 1.2892 | S21: =D21-(E21+SUM(T21:AA21)+SUM(AM21:BF21)) -> 1.2892 | T21: =SUMPRODUCT(đt!$Q$8:$Q$273*(đt!$D$8:$D$273='Thị trấn Quán Hàu'!$A$1)*(đt!$C$8:$C$273='Thị trấn Quán Hàu'!T5)) -> 0 | U21: =SUMPRODUCT(đt!$Q$8:$Q$273*(đt!$D$8:$D$273='Thị trấn Quán Hàu'!$A$1)*(đt!$C$8:$C$273='Thị trấn Quán Hàu'!U5)) -> 0 | V21: =SUMPRODUCT(đt!$Q$8:$Q$273*(đt!$D$8:$D$273='Thị trấn Quán Hàu'!$A$1)*(đt!$C$8:$C$273='Thị trấn Quán Hàu'!V5)) -> 0 | W21: =SUMPRODUCT(đt!$Q$8:$Q$273*(đt!$D$8:$D$273='Thị trấn Quán Hàu'!$A$1)*(đt!$C$8:$C$273='Thị trấn Quán Hàu'!W5)) -> 0 | X21: =SUMPRODUCT(đt!$Q$8:$Q$273*(đt!$D$8:$D$273='Thị trấn Quán Hàu'!$A$1)*(đt!$C$8:$C$273='Thị trấn Quán Hàu'!X5)) -> 0 | Y21: =SUMPRODUCT(đt!$Q$8:$Q$273*(đt!$D$8:$D$273='Thị trấn Quán Hàu'!$A$1)*(đt!$C$8:$C$273='Thị trấn Quán Hàu'!Y5)) -> 0 | Z21: =SUMPRODUCT(đt!$Q$8:$Q$273*(đt!$D$8:$D$273='Thị trấn Quán Hàu'!$A$1)*(đt!$C$8:$C$273='Thị trấn Quán Hàu'!Z5)) -> 0 | AA21: 0 | AB21: =SUMPRODUCT(đt!$Q$8:$Q$273*(đt!$D$8:$D$273='Thị trấn Quán Hàu'!$A$1)*(đt!$C$8:$C$273='Thị trấn Quán Hàu'!AB5)) -> 0 | AC21: =SUMPRODUCT(đt!$Q$8:$Q$273*(đt!$D$8:$D$273='Thị trấn Quán Hàu'!$A$1)*(đt!$C$8:$C$273='Thị trấn Quán Hàu'!AC5)) -> 0 | AD21: =SUMPRODUCT(đt!$Q$8:$Q$273*(đt!$D$8:$D$273='Thị trấn Quán Hàu'!$A$1)*(đt!$C$8:$C$273='Thị trấn Quán Hàu'!AD5)) -> 0 | AE21: =SUMPRODUCT(đt!$Q$8:$Q$273*(đt!$D$8:$D$273='Thị trấn Quán Hàu'!$A$1)*(đt!$C$8:$C$273='Thị trấn Quán Hàu'!AE5)) -> 0 | AF21: =SUMPRODUCT(đt!$Q$8:$Q$273*(đt!$D$8:$D$273='Thị trấn Quán Hàu'!$A$1)*(đt!$C$8:$C$273='Thị trấn Quán Hàu'!AF5)) -> 0 | AG21: =SUMPRODUCT(đt!$Q$8:$Q$273*(đt!$D$8:$D$273='Thị trấn Quán Hàu'!$A$1)*(đt!$C$8:$C$273='Thị trấn Quán Hàu'!AG5)) -> 0 | AH21: =SUMPRODUCT(đt!$Q$8:$Q$273*(đt!$D$8:$D$273='Thị trấn Quán Hàu'!$A$1)*(đt!$C$8:$C$273='Thị trấn Quán Hàu'!AH5)) -> 0 | AI21: =SUMPRODUCT(đt!$Q$8:$Q$273*(đt!$D$8:$D$273='Thị trấn Quán Hàu'!$A$1)*(đt!$C$8:$C$273='Thị trấn Quán Hàu'!AI5)) -> 0 | AJ21: =SUMPRODUCT(đt!$Q$8:$Q$273*(đt!$D$8:$D$273='Thị trấn Quán Hàu'!$A$1)*(đt!$C$8:$C$273='Thị trấn Quán Hàu'!AJ5)) -> 0 | AK21: =SUMPRODUCT(đt!$Q$8:$Q$273*(đt!$D$8:$D$273='Thị trấn Quán Hàu'!$A$1)*(đt!$C$8:$C$273='Thị trấn Quán Hàu'!AK5)) -> 0 | AL21: =SUMPRODUCT(đt!$Q$8:$Q$273*(đt!$D$8:$D$273='Thị trấn Quán Hàu'!$A$1)*(đt!$C$8:$C$273='Thị trấn Quán Hàu'!AL5)) -> 0 | AM21: =SUMPRODUCT(đt!$Q$8:$Q$273*(đt!$D$8:$D$273='Thị trấn Quán Hàu'!$A$1)*(đt!$C$8:$C$273='Thị trấn Quán Hàu'!AM5)) -> 0 | AN21: =SUMPRODUCT(đt!$Q$8:$Q$273*(đt!$D$8:$D$273='Thị trấn Quán Hàu'!$A$1)*(đt!$C$8:$C$273='Thị trấn Quán Hàu'!AN5)) -> 0 | AO21: =SUMPRODUCT(đt!$Q$8:$Q$273*(đt!$D$8:$D$273='Thị trấn Quán Hàu'!$A$1)*(đt!$C$8:$C$273='Thị trấn Quán Hàu'!AO5)) -> 0 | AP21: =SUMPRODUCT(đt!$Q$8:$Q$273*(đt!$D$8:$D$273='Thị trấn Quán Hàu'!$A$1)*(đt!$C$8:$C$273='Thị trấn Quán Hàu'!AP5)) -> 0 | AQ21: =SUMPRODUCT(đt!$Q$8:$Q$273*(đt!$D$8:$D$273='Thị trấn Quán Hàu'!$A$1)*(đt!$C$8:$C$273='Thị trấn Quán Hàu'!AQ5)) -> 0 | AR21: =SUMPRODUCT(đt!$Q$8:$Q$273*(đt!$D$8:$D$273='Thị trấn Quán Hàu'!$A$1)*(đt!$C$8:$C$273='Thị trấn Quán Hàu'!AR5)) -> 0 | AS21: =SUMPRODUCT(đt!$Q$8:$Q$273*(đt!$D$8:$D$273='Thị trấn Quán Hàu'!$A$1)*(đt!$C$8:$C$273='Thị trấn Quán Hàu'!AS5)) -> 0 | AT21: =SUMPRODUCT(đt!$Q$8:$Q$273*(đt!$D$8:$D$273='Thị trấn Quán Hàu'!$A$1)*(đt!$C$8:$C$273='Thị trấn Quán Hàu'!AT5)) -> 0 | AU21: =SUMPRODUCT(đt!$Q$8:$Q$273*(đt!$D$8:$D$273='Thị trấn Quán Hàu'!$A$1)*(đt!$C$8:$C$273='Thị trấn Quán Hàu'!AU5)) -> 0 | AV21: =SUMPRODUCT(đt!$Q$8:$Q$273*(đt!$D$8:$D$273='Thị trấn Quán Hàu'!$A$1)*(đt!$C$8:$C$273='Thị trấn Quán Hàu'!AV5)) -> 0 | AW21: =SUMPRODUCT(đt!$Q$8:$Q$273*(đt!$D$8:$D$273='Thị trấn Quán Hàu'!$A$1)*(đt!$C$8:$C$273='Thị trấn Quán Hàu'!AW5)) -> 0 | AX21: =SUMPRODUCT(đt!$Q$8:$Q$273*(đt!$D$8:$D$273='Thị trấn Quán Hàu'!$A$1)*(đt!$C$8:$C$273='Thị trấn Quán Hàu'!AX5)) -> 0 | AY21: =SUMPRODUCT(đt!$Q$8:$Q$273*(đt!$D$8:$D$273='Thị trấn Quán Hàu'!$A$1)*(đt!$C$8:$C$273='Thị trấn Quán Hàu'!AY5)) -> 0 | AZ21: =SUMPRODUCT(đt!$Q$8:$Q$273*(đt!$D$8:$D$273='Thị trấn Quán Hàu'!$A$1)*(đt!$C$8:$C$273='Thị trấn Quán Hàu'!AZ5)) -> 0 | BA21: =SUMPRODUCT(đt!$Q$8:$Q$273*(đt!$D$8:$D$273='Thị trấn Quán Hàu'!$A$1)*(đt!$C$8:$C$273='Thị trấn Quán Hàu'!BA5)) -> 0 | BB21: =SUMPRODUCT(đt!$Q$8:$Q$273*(đt!$D$8:$D$273='Thị trấn Quán Hàu'!$A$1)*(đt!$C$8:$C$273='Thị trấn Quán Hàu'!BB5)) -> 0 | BC21: =SUMPRODUCT(đt!$Q$8:$Q$273*(đt!$D$8:$D$273='Thị trấn Quán Hàu'!$A$1)*(đt!$C$8:$C$273='Thị trấn Quán Hàu'!BC5)) -> 0 | BD21: =SUMPRODUCT(đt!$Q$8:$Q$273*(đt!$D$8:$D$273='Thị trấn Quán Hàu'!$A$1)*(đt!$C$8:$C$273='Thị trấn Quán Hàu'!BD5)) -> 0 | BE21: =SUMPRODUCT(đt!$Q$8:$Q$273*(đt!$D$8:$D$273='Thị trấn Quán Hàu'!$A$1)*(đt!$C$8:$C$273='Thị trấn Quán Hàu'!BE5)) -> 0 | BF21: 0 | BG21: =SUMPRODUCT(đt!$Q$8:$Q$273*(đt!$D$8:$D$273='Thị trấn Quán Hàu'!$A$1)*(đt!$C$8:$C$273='Thị trấn Quán Hàu'!BG5)) -> 0 | BH21: =SUMPRODUCT(đt!$Q$8:$Q$273*(đt!$D$8:$D$273='Thị trấn Quán Hàu'!$A$1)*(đt!$C$8:$C$273='Thị trấn Quán Hàu'!BH5)) -> 0 | BI21: =SUMPRODUCT(đt!$Q$8:$Q$273*(đt!$D$8:$D$273='Thị trấn Quán Hàu'!$A$1)*(đt!$C$8:$C$273='Thị trấn Quán Hàu'!BI5)) -> 0 | BJ21: =D21-S21 -> 0 | BK21: =S64-BJ21 -> 0 | BL21: 1.2892 | BM21: ok
A22: 2.2 | B22: Đất an ninh | C22: CAN | D22: 1.442 | E22: 0 | F22: 0 | G22: =SUMPRODUCT(đt!$R$8:$R$273*(đt!$D$8:$D$273='Thị trấn Quán Hàu'!$A$1)*(đt!$C$8:$C$273='Thị trấn Quán Hàu'!G5)) -> 0 | H22: =SUMPRODUCT(đt!$R$8:$R$273*(đt!$D$8:$D$273='Thị trấn Quán Hàu'!$A$1)*(đt!$C$8:$C$273='Thị trấn Quán Hàu'!H5)) -> 0 | I22: =SUMPRODUCT(đt!$R$8:$R$273*(đt!$D$8:$D$273='Thị trấn Quán Hàu'!$A$1)*(đt!$C$8:$C$273='Thị trấn Quán Hàu'!I5)) -> 0 | J22: =SUMPRODUCT(đt!$R$8:$R$273*(đt!$D$8:$D$273='Thị trấn Quán Hàu'!$A$1)*(đt!$C$8:$C$273='Thị trấn Quán Hàu'!J5)) -> 0 | K22: =SUMPRODUCT(đt!$R$8:$R$273*(đt!$D$8:$D$273='Thị trấn Quán Hàu'!$A$1)*(đt!$C$8:$C$273='Thị trấn Quán Hàu'!K5)) -> 0 | L22: =SUMPRODUCT(đt!$R$8:$R$273*(đt!$D$8:$D$273='Thị trấn Quán Hàu'!$A$1)*(đt!$C$8:$C$273='Thị trấn Quán Hàu'!L5)) -> 0 | M22: =SUMPRODUCT(đt!$R$8:$R$273*(đt!$D$8:$D$273='Thị trấn Quán Hàu'!$A$1)*(đt!$C$8:$C$273='Thị trấn Quán Hàu'!M5)) -> 0 | N22: =SUMPRODUCT(đt!$R$8:$R$273*(đt!$D$8:$D$273='Thị trấn Quán Hàu'!$A$1)*(đt!$C$8:$C$273='Thị trấn Quán Hàu'!N5)) -> 0 | O22: =SUMPRODUCT(đt!$R$8:$R$273*(đt!$D$8:$D$273='Thị trấn Quán Hàu'!$A$1)*(đt!$C$8:$C$273='Thị trấn Quán Hàu'!O5)) -> 0 | P22: =SUMPRODUCT(đt!$R$8:$R$273*(đt!$D$8:$D$273='Thị trấn Quán Hàu'!$A$1)*(đt!$C$8:$C$273='Thị trấn Quán Hàu'!P5)) -> 0 | Q22: =SUMPRODUCT(đt!$R$8:$R$273*(đt!$D$8:$D$273='Thị trấn Quán Hàu'!$A$1)*(đt!$C$8:$C$273='Thị trấn Quán Hàu'!Q5)) -> 0 | R22: 1.442 | S22: =SUMPRODUCT(đt!$R$8:$R$273*(đt!$D$8:$D$273='Thị trấn Quán Hàu'!$A$1)*(đt!$C$8:$C$273='Thị trấn Quán Hàu'!S5)) -> 0 | T22: =D22-(E22+S22+SUM(U22:AA22)+SUM(AM22:BF22)) -> 1.442 | U22: =SUMPRODUCT(đt!$R$8:$R$273*(đt!$D$8:$D$273='Thị trấn Quán Hàu'!$A$1)*(đt!$C$8:$C$273='Thị trấn Quán Hàu'!U5)) -> 0 | V22: =SUMPRODUCT(đt!$R$8:$R$273*(đt!$D$8:$D$273='Thị trấn Quán Hàu'!$A$1)*(đt!$C$8:$C$273='Thị trấn Quán Hàu'!V5)) -> 0 | W22: =SUMPRODUCT(đt!$R$8:$R$273*(đt!$D$8:$D$273='Thị trấn Quán Hàu'!$A$1)*(đt!$C$8:$C$273='Thị trấn Quán Hàu'!W5)) -> 0 | X22: =SUMPRODUCT(đt!$R$8:$R$273*(đt!$D$8:$D$273='Thị trấn Quán Hàu'!$A$1)*(đt!$C$8:$C$273='Thị trấn Quán Hàu'!X5)) -> 0 | Y22: =SUMPRODUCT(đt!$R$8:$R$273*(đt!$D$8:$D$273='Thị trấn Quán Hàu'!$A$1)*(đt!$C$8:$C$273='Thị trấn Quán Hàu'!Y5)) -> 0 | Z22: =SUMPRODUCT(đt!$R$8:$R$273*(đt!$D$8:$D$273='Thị trấn Quán Hàu'!$A$1)*(đt!$C$8:$C$273='Thị trấn Quán Hàu'!Z5)) -> 0 | AA22: 0 | AB22: =SUMPRODUCT(đt!$R$8:$R$273*(đt!$D$8:$D$273='Thị trấn Quán Hàu'!$A$1)*(đt!$C$8:$C$273='Thị trấn Quán Hàu'!AB5)) -> 0 | AC22: =SUMPRODUCT(đt!$R$8:$R$273*(đt!$D$8:$D$273='Thị trấn Quán Hàu'!$A$1)*(đt!$C$8:$C$273='Thị trấn Quán Hàu'!AC5)) -> 0 | AD22: =SUMPRODUCT(đt!$R$8:$R$273*(đt!$D$8:$D$273='Thị trấn Quán Hàu'!$A$1)*(đt!$C$8:$C$273='Thị trấn Quán Hàu'!AD5)) -> 0 | AE22: =SUMPRODUCT(đt!$R$8:$R$273*(đt!$D$8:$D$273='Thị trấn Quán Hàu'!$A$1)*(đt!$C$8:$C$273='Thị trấn Quán Hàu'!AE5)) -> 0 | AF22: =SUMPRODUCT(đt!$R$8:$R$273*(đt!$D$8:$D$273='Thị trấn Quán Hàu'!$A$1)*(đt!$C$8:$C$273='Thị trấn Quán Hàu'!AF5)) -> 0 | AG22: =SUMPRODUCT(đt!$R$8:$R$273*(đt!$D$8:$D$273='Thị trấn Quán Hàu'!$A$1)*(đt!$C$8:$C$273='Thị trấn Quán Hàu'!AG5)) -> 0 | AH22: =SUMPRODUCT(đt!$R$8:$R$273*(đt!$D$8:$D$273='Thị trấn Quán Hàu'!$A$1)*(đt!$C$8:$C$273='Thị trấn Quán Hàu'!AH5)) -> 0 | AI22: =SUMPRODUCT(đt!$R$8:$R$273*(đt!$D$8:$D$273='Thị trấn Quán Hàu'!$A$1)*(đt!$C$8:$C$273='Thị trấn Quán Hàu'!AI5)) -> 0 | AJ22: =SUMPRODUCT(đt!$R$8:$R$273*(đt!$D$8:$D$273='Thị trấn Quán Hàu'!$A$1)*(đt!$C$8:$C$273='Thị trấn Quán Hàu'!AJ5)) -> 0 | AK22: =SUMPRODUCT(đt!$R$8:$R$273*(đt!$D$8:$D$273='Thị trấn Quán Hàu'!$A$1)*(đt!$C$8:$C$273='Thị trấn Quán Hàu'!AK5)) -> 0 | AL22: =SUMPRODUCT(đt!$R$8:$R$273*(đt!$D$8:$D$273='Thị trấn Quán Hàu'!$A$1)*(đt!$C$8:$C$273='Thị trấn Quán Hàu'!AL5)) -> 0 | AM22: =SUMPRODUCT(đt!$R$8:$R$273*(đt!$D$8:$D$273='Thị trấn Quán Hàu'!$A$1)*(đt!$C$8:$C$273='Thị trấn Quán Hàu'!AM5)) -> 0 | AN22: =SUMPRODUCT(đt!$R$8:$R$273*(đt!$D$8:$D$273='Thị trấn Quán Hàu'!$A$1)*(đt!$C$8:$C$273='Thị trấn Quán Hàu'!AN5)) -> 0 | AO22: =SUMPRODUCT(đt!$R$8:$R$273*(đt!$D$8:$D$273='Thị trấn Quán Hàu'!$A$1)*(đt!$C$8:$C$273='Thị trấn Quán Hàu'!AO5)) -> 0 | AP22: =SUMPRODUCT(đt!$R$8:$R$273*(đt!$D$8:$D$273='Thị trấn Quán Hàu'!$A$1)*(đt!$C$8:$C$273='Thị trấn Quán Hàu'!AP5)) -> 0 | AQ22: =SUMPRODUCT(đt!$R$8:$R$273*(đt!$D$8:$D$273='Thị trấn Quán Hàu'!$A$1)*(đt!$C$8:$C$273='Thị trấn Quán Hàu'!AQ5)) -> 0 | AR22: =SUMPRODUCT(đt!$R$8:$R$273*(đt!$D$8:$D$273='Thị trấn Quán Hàu'!$A$1)*(đt!$C$8:$C$273='Thị trấn Quán Hàu'!AR5)) -> 0 | AS22: =SUMPRODUCT(đt!$R$8:$R$273*(đt!$D$8:$D$273='Thị trấn Quán Hàu'!$A$1)*(đt!$C$8:$C$273='Thị trấn Quán Hàu'!AS5)) -> 0 | AT22: =SUMPRODUCT(đt!$R$8:$R$273*(đt!$D$8:$D$273='Thị trấn Quán Hàu'!$A$1)*(đt!$C$8:$C$273='Thị trấn Quán Hàu'!AT5)) -> 0 | AU22: =SUMPRODUCT(đt!$R$8:$R$273*(đt!$D$8:$D$273='Thị trấn Quán Hàu'!$A$1)*(đt!$C$8:$C$273='Thị trấn Quán Hàu'!AU5)) -> 0 | AV22: =SUMPRODUCT(đt!$R$8:$R$273*(đt!$D$8:$D$273='Thị trấn Quán Hàu'!$A$1)*(đt!$C$8:$C$273='Thị trấn Quán Hàu'!AV5)) -> 0 | AW22: =SUMPRODUCT(đt!$R$8:$R$273*(đt!$D$8:$D$273='Thị trấn Quán Hàu'!$A$1)*(đt!$C$8:$C$273='Thị trấn Quán Hàu'!AW5)) -> 0 | AX22: =SUMPRODUCT(đt!$R$8:$R$273*(đt!$D$8:$D$273='Thị trấn Quán Hàu'!$A$1)*(đt!$C$8:$C$273='Thị trấn Quán Hàu'!AX5)) -> 0 | AY22: =SUMPRODUCT(đt!$R$8:$R$273*(đt!$D$8:$D$273='Thị trấn Quán Hàu'!$A$1)*(đt!$C$8:$C$273='Thị trấn Quán Hàu'!AY5)) -> 0 | AZ22: =SUMPRODUCT(đt!$R$8:$R$273*(đt!$D$8:$D$273='Thị trấn Quán Hàu'!$A$1)*(đt!$C$8:$C$273='Thị trấn Quán Hàu'!AZ5)) -> 0 | BA22: =SUMPRODUCT(đt!$R$8:$R$273*(đt!$D$8:$D$273='Thị trấn Quán Hàu'!$A$1)*(đt!$C$8:$C$273='Thị trấn Quán Hàu'!BA5)) -> 0 | BB22: =SUMPRODUCT(đt!$R$8:$R$273*(đt!$D$8:$D$273='Thị trấn Quán Hàu'!$A$1)*(đt!$C$8:$C$273='Thị trấn Quán Hàu'!BB5)) -> 0 | BC22: =SUMPRODUCT(đt!$R$8:$R$273*(đt!$D$8:$D$273='Thị trấn Quán Hàu'!$A$1)*(đt!$C$8:$C$273='Thị trấn Quán Hàu'!BC5)) -> 0 | BD22: =SUMPRODUCT(đt!$R$8:$R$273*(đt!$D$8:$D$273='Thị trấn Quán Hàu'!$A$1)*(đt!$C$8:$C$273='Thị trấn Quán Hàu'!BD5)) -> 0 | BE22: =SUMPRODUCT(đt!$R$8:$R$273*(đt!$D$8:$D$273='Thị trấn Quán Hàu'!$A$1)*(đt!$C$8:$C$273='Thị trấn Quán Hàu'!BE5)) -> 0 | BF22: 0 | BG22: =SUMPRODUCT(đt!$R$8:$R$273*(đt!$D$8:$D$273='Thị trấn Quán Hàu'!$A$1)*(đt!$C$8:$C$273='Thị trấn Quán Hàu'!BG5)) -> 0 | BH22: =SUMPRODUCT(đt!$R$8:$R$273*(đt!$D$8:$D$273='Thị trấn Quán Hàu'!$A$1)*(đt!$C$8:$C$273='Thị trấn Quán Hàu'!BH5)) -> 0 | BI22: =SUMPRODUCT(đt!$R$8:$R$273*(đt!$D$8:$D$273='Thị trấn Quán Hàu'!$A$1)*(đt!$C$8:$C$273='Thị trấn Quán Hàu'!BI5)) -> 0 | BJ22: =D22-T22 -> 0 | BK22: =T64-BJ22 -> 0 | BL22: 1.442 | BM22: ok
A23: 2.3 | B23: Đất khu công nghiệp | C23: SKK | D23: 5.889 | E23: 0 | F23: 0 | G23: =SUMPRODUCT(đt!$S$8:$S$273*(đt!$D$8:$D$273='Thị trấn Quán Hàu'!$A$1)*(đt!$C$8:$C$273='Thị trấn Quán Hàu'!G5)) -> 0 | H23: =SUMPRODUCT(đt!$S$8:$S$273*(đt!$D$8:$D$273='Thị trấn Quán Hàu'!$A$1)*(đt!$C$8:$C$273='Thị trấn Quán Hàu'!H5)) -> 0 | I23: =SUMPRODUCT(đt!$S$8:$S$273*(đt!$D$8:$D$273='Thị trấn Quán Hàu'!$A$1)*(đt!$C$8:$C$273='Thị trấn Quán Hàu'!I5)) -> 0 | J23: =SUMPRODUCT(đt!$S$8:$S$273*(đt!$D$8:$D$273='Thị trấn Quán Hàu'!$A$1)*(đt!$C$8:$C$273='Thị trấn Quán Hàu'!J5)) -> 0 | K23: =SUMPRODUCT(đt!$S$8:$S$273*(đt!$D$8:$D$273='Thị trấn Quán Hàu'!$A$1)*(đt!$C$8:$C$273='Thị trấn Quán Hàu'!K5)) -> 0 | L23: =SUMPRODUCT(đt!$S$8:$S$273*(đt!$D$8:$D$273='Thị trấn Quán Hàu'!$A$1)*(đt!$C$8:$C$273='Thị trấn Quán Hàu'!L5)) -> 0 | M23: =SUMPRODUCT(đt!$S$8:$S$273*(đt!$D$8:$D$273='Thị trấn Quán Hàu'!$A$1)*(đt!$C$8:$C$273='Thị trấn Quán Hàu'!M5)) -> 0 | N23: =SUMPRODUCT(đt!$S$8:$S$273*(đt!$D$8:$D$273='Thị trấn Quán Hàu'!$A$1)*(đt!$C$8:$C$273='Thị trấn Quán Hàu'!N5)) -> 0 | O23: =SUMPRODUCT(đt!$S$8:$S$273*(đt!$D$8:$D$273='Thị trấn Quán Hàu'!$A$1)*(đt!$C$8:$C$273='Thị trấn Quán Hàu'!O5)) -> 0 | P23: =SUMPRODUCT(đt!$S$8:$S$273*(đt!$D$8:$D$273='Thị trấn Quán Hàu'!$A$1)*(đt!$C$8:$C$273='Thị trấn Quán Hàu'!P5)) -> 0 | Q23: =SUMPRODUCT(đt!$S$8:$S$273*(đt!$D$8:$D$273='Thị trấn Quán Hàu'!$A$1)*(đt!$C$8:$C$273='Thị trấn Quán Hàu'!Q5)) -> 0 | R23: 5.889 | S23: =SUMPRODUCT(đt!$S$8:$S$273*(đt!$D$8:$D$273='Thị trấn Quán Hàu'!$A$1)*(đt!$C$8:$C$273='Thị trấn Quán Hàu'!S5)) -> 0 | T23: =SUMPRODUCT(đt!$S$8:$S$273*(đt!$D$8:$D$273='Thị trấn Quán Hàu'!$A$1)*(đt!$C$8:$C$273='Thị trấn Quán Hàu'!T5)) -> 0 | U23: =D23-(E23+S23+T23+SUM(V23:AA23)+SUM(AM23:BF23)) -> 5.889 | V23: =SUMPRODUCT(đt!$S$8:$S$273*(đt!$D$8:$D$273='Thị trấn Quán Hàu'!$A$1)*(đt!$C$8:$C$273='Thị trấn Quán Hàu'!V5)) -> 0 | W23: =SUMPRODUCT(đt!$S$8:$S$273*(đt!$D$8:$D$273='Thị trấn Quán Hàu'!$A$1)*(đt!$C$8:$C$273='Thị trấn Quán Hàu'!W5)) -> 0 | X23: =SUMPRODUCT(đt!$S$8:$S$273*(đt!$D$8:$D$273='Thị trấn Quán Hàu'!$A$1)*(đt!$C$8:$C$273='Thị trấn Quán Hàu'!X5)) -> 0 | Y23: =SUMPRODUCT(đt!$S$8:$S$273*(đt!$D$8:$D$273='Thị trấn Quán Hàu'!$A$1)*(đt!$C$8:$C$273='Thị trấn Quán Hàu'!Y5)) -> 0 | Z23: =SUMPRODUCT(đt!$S$8:$S$273*(đt!$D$8:$D$273='Thị trấn Quán Hàu'!$A$1)*(đt!$C$8:$C$273='Thị trấn Quán Hàu'!Z5)) -> 0 | AA23: 0 | AB23: =SUMPRODUCT(đt!$S$8:$S$273*(đt!$D$8:$D$273='Thị trấn Quán Hàu'!$A$1)*(đt!$C$8:$C$273='Thị trấn Quán Hàu'!AB5)) -> 0 | AC23: =SUMPRODUCT(đt!$S$8:$S$273*(đt!$D$8:$D$273='Thị trấn Quán Hàu'!$A$1)*(đt!$C$8:$C$273='Thị trấn Quán Hàu'!AC5)) -> 0 | AD23: =SUMPRODUCT(đt!$S$8:$S$273*(đt!$D$8:$D$273='Thị trấn Quán Hàu'!$A$1)*(đt!$C$8:$C$273='Thị trấn Quán Hàu'!AD5)) -> 0 | AE23: =SUMPRODUCT(đt!$S$8:$S$273*(đt!$D$8:$D$273='Thị trấn Quán Hàu'!$A$1)*(đt!$C$8:$C$273='Thị trấn Quán Hàu'!AE5)) -> 0 | AF23: =SUMPRODUCT(đt!$S$8:$S$273*(đt!$D$8:$D$273='Thị trấn Quán Hàu'!$A$1)*(đt!$C$8:$C$273='Thị trấn Quán Hàu'!AF5)) -> 0 | AG23: =SUMPRODUCT(đt!$S$8:$S$273*(đt!$D$8:$D$273='Thị trấn Quán Hàu'!$A$1)*(đt!$C$8:$C$273='Thị trấn Quán Hàu'!AG5)) -> 0 | AH23: =SUMPRODUCT(đt!$S$8:$S$273*(đt!$D$8:$D$273='Thị trấn Quán Hàu'!$A$1)*(đt!$C$8:$C$273='Thị trấn Quán Hàu'!AH5)) -> 0 | AI23: =SUMPRODUCT(đt!$S$8:$S$273*(đt!$D$8:$D$273='Thị trấn Quán Hàu'!$A$1)*(đt!$C$8:$C$273='Thị trấn Quán Hàu'!AI5)) -> 0 | AJ23: =SUMPRODUCT(đt!$S$8:$S$273*(đt!$D$8:$D$273='Thị trấn Quán Hàu'!$A$1)*(đt!$C$8:$C$273='Thị trấn Quán Hàu'!AJ5)) -> 0 | AK23: =SUMPRODUCT(đt!$S$8:$S$273*(đt!$D$8:$D$273='Thị trấn Quán Hàu'!$A$1)*(đt!$C$8:$C$273='Thị trấn Quán Hàu'!AK5)) -> 0 | AL23: =SUMPRODUCT(đt!$S$8:$S$273*(đt!$D$8:$D$273='Thị trấn Quán Hàu'!$A$1)*(đt!$C$8:$C$273='Thị trấn Quán Hàu'!AL5)) -> 0 | AM23: =SUMPRODUCT(đt!$S$8:$S$273*(đt!$D$8:$D$273='Thị trấn Quán Hàu'!$A$1)*(đt!$C$8:$C$273='Thị trấn Quán Hàu'!AM5)) -> 0 | AN23: =SUMPRODUCT(đt!$S$8:$S$273*(đt!$D$8:$D$273='Thị trấn Quán Hàu'!$A$1)*(đt!$C$8:$C$273='Thị trấn Quán Hàu'!AN5)) -> 0 | AO23: =SUMPRODUCT(đt!$S$8:$S$273*(đt!$D$8:$D$273='Thị trấn Quán Hàu'!$A$1)*(đt!$C$8:$C$273='Thị trấn Quán Hàu'!AO5)) -> 0 | AP23: =SUMPRODUCT(đt!$S$8:$S$273*(đt!$D$8:$D$273='Thị trấn Quán Hàu'!$A$1)*(đt!$C$8:$C$273='Thị trấn Quán Hàu'!AP5)) -> 0 | AQ23: =SUMPRODUCT(đt!$S$8:$S$273*(đt!$D$8:$D$273='Thị trấn Quán Hàu'!$A$1)*(đt!$C$8:$C$273='Thị trấn Quán Hàu'!AQ5)) -> 0 | AR23: =SUMPRODUCT(đt!$S$8:$S$273*(đt!$D$8:$D$273='Thị trấn Quán Hàu'!$A$1)*(đt!$C$8:$C$273='Thị trấn Quán Hàu'!AR5)) -> 0 | AS23: =SUMPRODUCT(đt!$S$8:$S$273*(đt!$D$8:$D$273='Thị trấn Quán Hàu'!$A$1)*(đt!$C$8:$C$273='Thị trấn Quán Hàu'!AS5)) -> 0 | AT23: =SUMPRODUCT(đt!$S$8:$S$273*(đt!$D$8:$D$273='Thị trấn Quán Hàu'!$A$1)*(đt!$C$8:$C$273='Thị trấn Quán Hàu'!AT5)) -> 0 | AU23: =SUMPRODUCT(đt!$S$8:$S$273*(đt!$D$8:$D$273='Thị trấn Quán Hàu'!$A$1)*(đt!$C$8:$C$273='Thị trấn Quán Hàu'!AU5)) -> 0 | AV23: =SUMPRODUCT(đt!$S$8:$S$273*(đt!$D$8:$D$273='Thị trấn Quán Hàu'!$A$1)*(đt!$C$8:$C$273='Thị trấn Quán Hàu'!AV5)) -> 0 | AW23: =SUMPRODUCT(đt!$S$8:$S$273*(đt!$D$8:$D$273='Thị trấn Quán Hàu'!$A$1)*(đt!$C$8:$C$273='Thị trấn Quán Hàu'!AW5)) -> 0 | AX23: =SUMPRODUCT(đt!$S$8:$S$273*(đt!$D$8:$D$273='Thị trấn Quán Hàu'!$A$1)*(đt!$C$8:$C$273='Thị trấn Quán Hàu'!AX5)) -> 0 | AY23: =SUMPRODUCT(đt!$S$8:$S$273*(đt!$D$8:$D$273='Thị trấn Quán Hàu'!$A$1)*(đt!$C$8:$C$273='Thị trấn Quán Hàu'!AY5)) -> 0 | AZ23: =SUMPRODUCT(đt!$S$8:$S$273*(đt!$D$8:$D$273='Thị trấn Quán Hàu'!$A$1)*(đt!$C$8:$C$273='Thị trấn Quán Hàu'!AZ5)) -> 0 | BA23: =SUMPRODUCT(đt!$S$8:$S$273*(đt!$D$8:$D$273='Thị trấn Quán Hàu'!$A$1)*(đt!$C$8:$C$273='Thị trấn Quán Hàu'!BA5)) -> 0 | BB23: =SUMPRODUCT(đt!$S$8:$S$273*(đt!$D$8:$D$273='Thị trấn Quán Hàu'!$A$1)*(đt!$C$8:$C$273='Thị trấn Quán Hàu'!BB5)) -> 0 | BC23: =SUMPRODUCT(đt!$S$8:$S$273*(đt!$D$8:$D$273='Thị trấn Quán Hàu'!$A$1)*(đt!$C$8:$C$273='Thị trấn Quán Hàu'!BC5)) -> 0 | BD23: =SUMPRODUCT(đt!$S$8:$S$273*(đt!$D$8:$D$273='Thị trấn Quán Hàu'!$A$1)*(đt!$C$8:$C$273='Thị trấn Quán Hàu'!BD5)) -> 0 | BE23: =SUMPRODUCT(đt!$S$8:$S$273*(đt!$D$8:$D$273='Thị trấn Quán Hàu'!$A$1)*(đt!$C$8:$C$273='Thị trấn Quán Hàu'!BE5)) -> 0 | BF23: 0 | BG23: =SUMPRODUCT(đt!$S$8:$S$273*(đt!$D$8:$D$273='Thị trấn Quán Hàu'!$A$1)*(đt!$C$8:$C$273='Thị trấn Quán Hàu'!BG5)) -> 0 | BH23: =SUMPRODUCT(đt!$S$8:$S$273*(đt!$D$8:$D$273='Thị trấn Quán Hàu'!$A$1)*(đt!$C$8:$C$273='Thị trấn Quán Hàu'!BH5)) -> 0 | BI23: =SUMPRODUCT(đt!$S$8:$S$273*(đt!$D$8:$D$273='Thị trấn Quán Hàu'!$A$1)*(đt!$C$8:$C$273='Thị trấn Quán Hàu'!BI5)) -> 0 | BJ23: =D23-U23 -> 0 | BK23: =U64-BJ23 -> 11 | BL23: 16.889 | BM23: ok
A24: 2.4 | B24: Đất khu chế xuất | C24: SKT | D24: 0 | E24: 0 | F24: 0 | G24: =SUMPRODUCT(đt!$T$8:$T$273*(đt!$D$8:$D$273='Thị trấn Quán Hàu'!$A$1)*(đt!$C$8:$C$273='Thị trấn Quán Hàu'!G5)) -> 0 | H24: =SUMPRODUCT(đt!$T$8:$T$273*(đt!$D$8:$D$273='Thị trấn Quán Hàu'!$A$1)*(đt!$C$8:$C$273='Thị trấn Quán Hàu'!H5)) -> 0 | I24: =SUMPRODUCT(đt!$T$8:$T$273*(đt!$D$8:$D$273='Thị trấn Quán Hàu'!$A$1)*(đt!$C$8:$C$273='Thị trấn Quán Hàu'!I5)) -> 0 | J24: =SUMPRODUCT(đt!$T$8:$T$273*(đt!$D$8:$D$273='Thị trấn Quán Hàu'!$A$1)*(đt!$C$8:$C$273='Thị trấn Quán Hàu'!J5)) -> 0 | K24: =SUMPRODUCT(đt!$T$8:$T$273*(đt!$D$8:$D$273='Thị trấn Quán Hàu'!$A$1)*(đt!$C$8:$C$273='Thị trấn Quán Hàu'!K5)) -> 0 | L24: =SUMPRODUCT(đt!$T$8:$T$273*(đt!$D$8:$D$273='Thị trấn Quán Hàu'!$A$1)*(đt!$C$8:$C$273='Thị trấn Quán Hàu'!L5)) -> 0 | M24: =SUMPRODUCT(đt!$T$8:$T$273*(đt!$D$8:$D$273='Thị trấn Quán Hàu'!$A$1)*(đt!$C$8:$C$273='Thị trấn Quán Hàu'!M5)) -> 0 | N24: =SUMPRODUCT(đt!$T$8:$T$273*(đt!$D$8:$D$273='Thị trấn Quán Hàu'!$A$1)*(đt!$C$8:$C$273='Thị trấn Quán Hàu'!N5)) -> 0 | O24: =SUMPRODUCT(đt!$T$8:$T$273*(đt!$D$8:$D$273='Thị trấn Quán Hàu'!$A$1)*(đt!$C$8:$C$273='Thị trấn Quán Hàu'!O5)) -> 0 | P24: =SUMPRODUCT(đt!$T$8:$T$273*(đt!$D$8:$D$273='Thị trấn Quán Hàu'!$A$1)*(đt!$C$8:$C$273='Thị trấn Quán Hàu'!P5)) -> 0 | Q24: =SUMPRODUCT(đt!$T$8:$T$273*(đt!$D$8:$D$273='Thị trấn Quán Hàu'!$A$1)*(đt!$C$8:$C$273='Thị trấn Quán Hàu'!Q5)) -> 0 | R24: 0 | S24: =SUMPRODUCT(đt!$T$8:$T$273*(đt!$D$8:$D$273='Thị trấn Quán Hàu'!$A$1)*(đt!$C$8:$C$273='Thị trấn Quán Hàu'!S5)) -> 0 | T24: =SUMPRODUCT(đt!$T$8:$T$273*(đt!$D$8:$D$273='Thị trấn Quán Hàu'!$A$1)*(đt!$C$8:$C$273='Thị trấn Quán Hàu'!T5)) -> 0 | U24: =SUMPRODUCT(đt!$T$8:$T$273*(đt!$D$8:$D$273='Thị trấn Quán Hàu'!$A$1)*(đt!$C$8:$C$273='Thị trấn Quán Hàu'!U5)) -> 0 | V24: =D24-(E24+SUM(S24:U24)+SUM(W24:AA24)+SUM(AM24:BF24)) -> 0 | W24: =SUMPRODUCT(đt!$T$8:$T$273*(đt!$D$8:$D$273='Thị trấn Quán Hàu'!$A$1)*(đt!$C$8:$C$273='Thị trấn Quán Hàu'!W5)) -> 0 | X24: =SUMPRODUCT(đt!$T$8:$T$273*(đt!$D$8:$D$273='Thị trấn Quán Hàu'!$A$1)*(đt!$C$8:$C$273='Thị trấn Quán Hàu'!X5)) -> 0 | Y24: =SUMPRODUCT(đt!$T$8:$T$273*(đt!$D$8:$D$273='Thị trấn Quán Hàu'!$A$1)*(đt!$C$8:$C$273='Thị trấn Quán Hàu'!Y5)) -> 0 | Z24: =SUMPRODUCT(đt!$T$8:$T$273*(đt!$D$8:$D$273='Thị trấn Quán Hàu'!$A$1)*(đt!$C$8:$C$273='Thị trấn Quán Hàu'!Z5)) -> 0 | AA24: 0 | AB24: =SUMPRODUCT(đt!$T$8:$T$273*(đt!$D$8:$D$273='Thị trấn Quán Hàu'!$A$1)*(đt!$C$8:$C$273='Thị trấn Quán Hàu'!AB5)) -> 0 | AC24: =SUMPRODUCT(đt!$T$8:$T$273*(đt!$D$8:$D$273='Thị trấn Quán Hàu'!$A$1)*(đt!$C$8:$C$273='Thị trấn Quán Hàu'!AC5)) -> 0 | AD24: =SUMPRODUCT(đt!$T$8:$T$273*(đt!$D$8:$D$273='Thị trấn Quán Hàu'!$A$1)*(đt!$C$8:$C$273='Thị trấn Quán Hàu'!AD5)) -> 0 | AE24: =SUMPRODUCT(đt!$T$8:$T$273*(đt!$D$8:$D$273='Thị trấn Quán Hàu'!$A$1)*(đt!$C$8:$C$273='Thị trấn Quán Hàu'!AE5)) -> 0 | AF24: =SUMPRODUCT(đt!$T$8:$T$273*(đt!$D$8:$D$273='Thị trấn Quán Hàu'!$A$1)*(đt!$C$8:$C$273='Thị trấn Quán Hàu'!AF5)) -> 0 | AG24: =SUMPRODUCT(đt!$T$8:$T$273*(đt!$D$8:$D$273='Thị trấn Quán Hàu'!$A$1)*(đt!$C$8:$C$273='Thị trấn Quán Hàu'!AG5)) -> 0 | AH24: =SUMPRODUCT(đt!$T$8:$T$273*(đt!$D$8:$D$273='Thị trấn Quán Hàu'!$A$1)*(đt!$C$8:$C$273='Thị trấn Quán Hàu'!AH5)) -> 0 | AI24: =SUMPRODUCT(đt!$T$8:$T$273*(đt!$D$8:$D$273='Thị trấn Quán Hàu'!$A$1)*(đt!$C$8:$C$273='Thị trấn Quán Hàu'!AI5)) -> 0 | AJ24: =SUMPRODUCT(đt!$T$8:$T$273*(đt!$D$8:$D$273='Thị trấn Quán Hàu'!$A$1)*(đt!$C$8:$C$273='Thị trấn Quán Hàu'!AJ5)) -> 0 | AK24: =SUMPRODUCT(đt!$T$8:$T$273*(đt!$D$8:$D$273='Thị trấn Quán Hàu'!$A$1)*(đt!$C$8:$C$273='Thị trấn Quán Hàu'!AK5)) -> 0 | AL24: =SUMPRODUCT(đt!$T$8:$T$273*(đt!$D$8:$D$273='Thị trấn Quán Hàu'!$A$1)*(đt!$C$8:$C$273='Thị trấn Quán Hàu'!AL5)) -> 0 | AM24: =SUMPRODUCT(đt!$T$8:$T$273*(đt!$D$8:$D$273='Thị trấn Quán Hàu'!$A$1)*(đt!$C$8:$C$273='Thị trấn Quán Hàu'!AM5)) -> 0 | AN24: =SUMPRODUCT(đt!$T$8:$T$273*(đt!$D$8:$D$273='Thị trấn Quán Hàu'!$A$1)*(đt!$C$8:$C$273='Thị trấn Quán Hàu'!AN5)) -> 0 | AO24: =SUMPRODUCT(đt!$T$8:$T$273*(đt!$D$8:$D$273='Thị trấn Quán Hàu'!$A$1)*(đt!$C$8:$C$273='Thị trấn Quán Hàu'!AO5)) -> 0 | AP24: =SUMPRODUCT(đt!$T$8:$T$273*(đt!$D$8:$D$273='Thị trấn Quán Hàu'!$A$1)*(đt!$C$8:$C$273='Thị trấn Quán Hàu'!AP5)) -> 0 | AQ24: =SUMPRODUCT(đt!$T$8:$T$273*(đt!$D$8:$D$273='Thị trấn Quán Hàu'!$A$1)*(đt!$C$8:$C$273='Thị trấn Quán Hàu'!AQ5)) -> 0 | AR24: =SUMPRODUCT(đt!$T$8:$T$273*(đt!$D$8:$D$273='Thị trấn Quán Hàu'!$A$1)*(đt!$C$8:$C$273='Thị trấn Quán Hàu'!AR5)) -> 0 | AS24: =SUMPRODUCT(đt!$T$8:$T$273*(đt!$D$8:$D$273='Thị trấn Quán Hàu'!$A$1)*(đt!$C$8:$C$273='Thị trấn Quán Hàu'!AS5)) -> 0 | AT24: =SUMPRODUCT(đt!$T$8:$T$273*(đt!$D$8:$D$273='Thị trấn Quán Hàu'!$A$1)*(đt!$C$8:$C$273='Thị trấn Quán Hàu'!AT5)) -> 0 | AU24: =SUMPRODUCT(đt!$T$8:$T$273*(đt!$D$8:$D$273='Thị trấn Quán Hàu'!$A$1)*(đt!$C$8:$C$273='Thị trấn Quán Hàu'!AU5)) -> 0 | AV24: =SUMPRODUCT(đt!$T$8:$T$273*(đt!$D$8:$D$273='Thị trấn Quán Hàu'!$A$1)*(đt!$C$8:$C$273='Thị trấn Quán Hàu'!AV5)) -> 0 | AW24: =SUMPRODUCT(đt!$T$8:$T$273*(đt!$D$8:$D$273='Thị trấn Quán Hàu'!$A$1)*(đt!$C$8:$C$273='Thị trấn Quán Hàu'!AW5)) -> 0 | AX24: =SUMPRODUCT(đt!$T$8:$T$273*(đt!$D$8:$D$273='Thị trấn Quán Hàu'!$A$1)*(đt!$C$8:$C$273='Thị trấn Quán Hàu'!AX5)) -> 0 | AY24: =SUMPRODUCT(đt!$T$8:$T$273*(đt!$D$8:$D$273='Thị trấn Quán Hàu'!$A$1)*(đt!$C$8:$C$273='Thị trấn Quán Hàu'!AY5)) -> 0 | AZ24: =SUMPRODUCT(đt!$T$8:$T$273*(đt!$D$8:$D$273='Thị trấn Quán Hàu'!$A$1)*(đt!$C$8:$C$273='Thị trấn Quán Hàu'!AZ5)) -> 0 | BA24: =SUMPRODUCT(đt!$T$8:$T$273*(đt!$D$8:$D$273='Thị trấn Quán Hàu'!$A$1)*(đt!$C$8:$C$273='Thị trấn Quán Hàu'!BA5)) -> 0 | BB24: =SUMPRODUCT(đt!$T$8:$T$273*(đt!$D$8:$D$273='Thị trấn Quán Hàu'!$A$1)*(đt!$C$8:$C$273='Thị trấn Quán Hàu'!BB5)) -> 0 | BC24: =SUMPRODUCT(đt!$T$8:$T$273*(đt!$D$8:$D$273='Thị trấn Quán Hàu'!$A$1)*(đt!$C$8:$C$273='Thị trấn Quán Hàu'!BC5)) -> 0 | BD24: =SUMPRODUCT(đt!$T$8:$T$273*(đt!$D$8:$D$273='Thị trấn Quán Hàu'!$A$1)*(đt!$C$8:$C$273='Thị trấn Quán Hàu'!BD5)) -> 0 | BE24: =SUMPRODUCT(đt!$T$8:$T$273*(đt!$D$8:$D$273='Thị trấn Quán Hàu'!$A$1)*(đt!$C$8:$C$273='Thị trấn Quán Hàu'!BE5)) -> 0 | BF24: 0 | BG24: =SUMPRODUCT(đt!$T$8:$T$273*(đt!$D$8:$D$273='Thị trấn Quán Hàu'!$A$1)*(đt!$C$8:$C$273='Thị trấn Quán Hàu'!BG5)) -> 0 | BH24: =SUMPRODUCT(đt!$T$8:$T$273*(đt!$D$8:$D$273='Thị trấn Quán Hàu'!$A$1)*(đt!$C$8:$C$273='Thị trấn Quán Hàu'!BH5)) -> 0 | BI24: =SUMPRODUCT(đt!$T$8:$T$273*(đt!$D$8:$D$273='Thị trấn Quán Hàu'!$A$1)*(đt!$C$8:$C$273='Thị trấn Quán Hàu'!BI5)) -> 0 | BJ24: =D24-V24 -> 0 | BK24: =V64-BJ24 -> 0 | BL24: 0 | BM24: ok
A25: 2.5 | B25: Đất cụm công nghiệp | C25: SKN | D25: 0 | E25: 0 | F25: 0 | G25: =SUMPRODUCT(đt!$U$8:$U$273*(đt!$D$8:$D$273='Thị trấn Quán Hàu'!$A$1)*(đt!$C$8:$C$273='Thị trấn Quán Hàu'!G5)) -> 0 | H25: =SUMPRODUCT(đt!$U$8:$U$273*(đt!$D$8:$D$273='Thị trấn Quán Hàu'!$A$1)*(đt!$C$8:$C$273='Thị trấn Quán Hàu'!H5)) -> 0 | I25: =SUMPRODUCT(đt!$U$8:$U$273*(đt!$D$8:$D$273='Thị trấn Quán Hàu'!$A$1)*(đt!$C$8:$C$273='Thị trấn Quán Hàu'!I5)) -> 0 | J25: =SUMPRODUCT(đt!$U$8:$U$273*(đt!$D$8:$D$273='Thị trấn Quán Hàu'!$A$1)*(đt!$C$8:$C$273='Thị trấn Quán Hàu'!J5)) -> 0 | K25: =SUMPRODUCT(đt!$U$8:$U$273*(đt!$D$8:$D$273='Thị trấn Quán Hàu'!$A$1)*(đt!$C$8:$C$273='Thị trấn Quán Hàu'!K5)) -> 0 | L25: =SUMPRODUCT(đt!$U$8:$U$273*(đt!$D$8:$D$273='Thị trấn Quán Hàu'!$A$1)*(đt!$C$8:$C$273='Thị trấn Quán Hàu'!L5)) -> 0 | M25: =SUMPRODUCT(đt!$U$8:$U$273*(đt!$D$8:$D$273='Thị trấn Quán Hàu'!$A$1)*(đt!$C$8:$C$273='Thị trấn Quán Hàu'!M5)) -> 0 | N25: =SUMPRODUCT(đt!$U$8:$U$273*(đt!$D$8:$D$273='Thị trấn Quán Hàu'!$A$1)*(đt!$C$8:$C$273='Thị trấn Quán Hàu'!N5)) -> 0 | O25: =SUMPRODUCT(đt!$U$8:$U$273*(đt!$D$8:$D$273='Thị trấn Quán Hàu'!$A$1)*(đt!$C$8:$C$273='Thị trấn Quán Hàu'!O5)) -> 0 | P25: =SUMPRODUCT(đt!$U$8:$U$273*(đt!$D$8:$D$273='Thị trấn Quán Hàu'!$A$1)*(đt!$C$8:$C$273='Thị trấn Quán Hàu'!P5)) -> 0 | Q25: =SUMPRODUCT(đt!$U$8:$U$273*(đt!$D$8:$D$273='Thị trấn Quán Hàu'!$A$1)*(đt!$C$8:$C$273='Thị trấn Quán Hàu'!Q5)) -> 0 | R25: 0 | S25: =SUMPRODUCT(đt!$U$8:$U$273*(đt!$D$8:$D$273='Thị trấn Quán Hàu'!$A$1)*(đt!$C$8:$C$273='Thị trấn Quán Hàu'!S5)) -> 0 | T25: =SUMPRODUCT(đt!$U$8:$U$273*(đt!$D$8:$D$273='Thị trấn Quán Hàu'!$A$1)*(đt!$C$8:$C$273='Thị trấn Quán Hàu'!T5)) -> 0 | U25: =SUMPRODUCT(đt!$U$8:$U$273*(đt!$D$8:$D$273='Thị trấn Quán Hàu'!$A$1)*(đt!$C$8:$C$273='Thị trấn Quán Hàu'!U5)) -> 0 | V25: =SUMPRODUCT(đt!$U$8:$U$273*(đt!$D$8:$D$273='Thị trấn Quán Hàu'!$A$1)*(đt!$C$8:$C$273='Thị trấn Quán Hàu'!V5)) -> 0 | W25: =D25-(E25+SUM(S25:V25)+SUM(X25:AA25)+SUM(AM25:BF25)) -> 0 | X25: =SUMPRODUCT(đt!$U$8:$U$273*(đt!$D$8:$D$273='Thị trấn Quán Hàu'!$A$1)*(đt!$C$8:$C$273='Thị trấn Quán Hàu'!X5)) -> 0 | Y25: =SUMPRODUCT(đt!$U$8:$U$273*(đt!$D$8:$D$273='Thị trấn Quán Hàu'!$A$1)*(đt!$C$8:$C$273='Thị trấn Quán Hàu'!Y5)) -> 0 | Z25: =SUMPRODUCT(đt!$U$8:$U$273*(đt!$D$8:$D$273='Thị trấn Quán Hàu'!$A$1)*(đt!$C$8:$C$273='Thị trấn Quán Hàu'!Z5)) -> 0 | AA25: 0 | AB25: =SUMPRODUCT(đt!$U$8:$U$273*(đt!$D$8:$D$273='Thị trấn Quán Hàu'!$A$1)*(đt!$C$8:$C$273='Thị trấn Quán Hàu'!AB5)) -> 0 | AC25: =SUMPRODUCT(đt!$U$8:$U$273*(đt!$D$8:$D$273='Thị trấn Quán Hàu'!$A$1)*(đt!$C$8:$C$273='Thị trấn Quán Hàu'!AC5)) -> 0 | AD25: =SUMPRODUCT(đt!$U$8:$U$273*(đt!$D$8:$D$273='Thị trấn Quán Hàu'!$A$1)*(đt!$C$8:$C$273='Thị trấn Quán Hàu'!AD5)) -> 0 | AE25: =SUMPRODUCT(đt!$U$8:$U$273*(đt!$D$8:$D$273='Thị trấn Quán Hàu'!$A$1)*(đt!$C$8:$C$273='Thị trấn Quán Hàu'!AE5)) -> 0 | AF25: =SUMPRODUCT(đt!$U$8:$U$273*(đt!$D$8:$D$273='Thị trấn Quán Hàu'!$A$1)*(đt!$C$8:$C$273='Thị trấn Quán Hàu'!AF5)) -> 0 | AG25: =SUMPRODUCT(đt!$U$8:$U$273*(đt!$D$8:$D$273='Thị trấn Quán Hàu'!$A$1)*(đt!$C$8:$C$273='Thị trấn Quán Hàu'!AG5)) -> 0 | AH25: =SUMPRODUCT(đt!$U$8:$U$273*(đt!$D$8:$D$273='Thị trấn Quán Hàu'!$A$1)*(đt!$C$8:$C$273='Thị trấn Quán Hàu'!AH5)) -> 0 | AI25: =SUMPRODUCT(đt!$U$8:$U$273*(đt!$D$8:$D$273='Thị trấn Quán Hàu'!$A$1)*(đt!$C$8:$C$273='Thị trấn Quán Hàu'!AI5)) -> 0 | AJ25: =SUMPRODUCT(đt!$U$8:$U$273*(đt!$D$8:$D$273='Thị trấn Quán Hàu'!$A$1)*(đt!$C$8:$C$273='Thị trấn Quán Hàu'!AJ5)) -> 0 | AK25: =SUMPRODUCT(đt!$U$8:$U$273*(đt!$D$8:$D$273='Thị trấn Quán Hàu'!$A$1)*(đt!$C$8:$C$273='Thị trấn Quán Hàu'!AK5)) -> 0 | AL25: =SUMPRODUCT(đt!$U$8:$U$273*(đt!$D$8:$D$273='Thị trấn Quán Hàu'!$A$1)*(đt!$C$8:$C$273='Thị trấn Quán Hàu'!AL5)) -> 0 | AM25: =SUMPRODUCT(đt!$U$8:$U$273*(đt!$D$8:$D$273='Thị trấn Quán Hàu'!$A$1)*(đt!$C$8:$C$273='Thị trấn Quán Hàu'!AM5)) -> 0 | AN25: =SUMPRODUCT(đt!$U$8:$U$273*(đt!$D$8:$D$273='Thị trấn Quán Hàu'!$A$1)*(đt!$C$8:$C$273='Thị trấn Quán Hàu'!AN5)) -> 0 | AO25: =SUMPRODUCT(đt!$U$8:$U$273*(đt!$D$8:$D$273='Thị trấn Quán Hàu'!$A$1)*(đt!$C$8:$C$273='Thị trấn Quán Hàu'!AO5)) -> 0 | AP25: =SUMPRODUCT(đt!$U$8:$U$273*(đt!$D$8:$D$273='Thị trấn Quán Hàu'!$A$1)*(đt!$C$8:$C$273='Thị trấn Quán Hàu'!AP5)) -> 0 | AQ25: =SUMPRODUCT(đt!$U$8:$U$273*(đt!$D$8:$D$273='Thị trấn Quán Hàu'!$A$1)*(đt!$C$8:$C$273='Thị trấn Quán Hàu'!AQ5)) -> 0 | AR25: =SUMPRODUCT(đt!$U$8:$U$273*(đt!$D$8:$D$273='Thị trấn Quán Hàu'!$A$1)*(đt!$C$8:$C$273='Thị trấn Quán Hàu'!AR5)) -> 0 | AS25: =SUMPRODUCT(đt!$U$8:$U$273*(đt!$D$8:$D$273='Thị trấn Quán Hàu'!$A$1)*(đt!$C$8:$C$273='Thị trấn Quán Hàu'!AS5)) -> 0 | AT25: =SUMPRODUCT(đt!$U$8:$U$273*(đt!$D$8:$D$273='Thị trấn Quán Hàu'!$A$1)*(đt!$C$8:$C$273='Thị trấn Quán Hàu'!AT5)) -> 0 | AU25: =SUMPRODUCT(đt!$U$8:$U$273*(đt!$D$8:$D$273='Thị trấn Quán Hàu'!$A$1)*(đt!$C$8:$C$273='Thị trấn Quán Hàu'!AU5)) -> 0 | AV25: =SUMPRODUCT(đt!$U$8:$U$273*(đt!$D$8:$D$273='Thị trấn Quán Hàu'!$A$1)*(đt!$C$8:$C$273='Thị trấn Quán Hàu'!AV5)) -> 0 | AW25: =SUMPRODUCT(đt!$U$8:$U$273*(đt!$D$8:$D$273='Thị trấn Quán Hàu'!$A$1)*(đt!$C$8:$C$273='Thị trấn Quán Hàu'!AW5)) -> 0 | AX25: =SUMPRODUCT(đt!$U$8:$U$273*(đt!$D$8:$D$273='Thị trấn Quán Hàu'!$A$1)*(đt!$C$8:$C$273='Thị trấn Quán Hàu'!AX5)) -> 0 | AY25: =SUMPRODUCT(đt!$U$8:$U$273*(đt!$D$8:$D$273='Thị trấn Quán Hàu'!$A$1)*(đt!$C$8:$C$273='Thị trấn Quán Hàu'!AY5)) -> 0 | AZ25: =SUMPRODUCT(đt!$U$8:$U$273*(đt!$D$8:$D$273='Thị trấn Quán Hàu'!$A$1)*(đt!$C$8:$C$273='Thị trấn Quán Hàu'!AZ5)) -> 0 | BA25: =SUMPRODUCT(đt!$U$8:$U$273*(đt!$D$8:$D$273='Thị trấn Quán Hàu'!$A$1)*(đt!$C$8:$C$273='Thị trấn Quán Hàu'!BA5)) -> 0 | BB25: =SUMPRODUCT(đt!$U$8:$U$273*(đt!$D$8:$D$273='Thị trấn Quán Hàu'!$A$1)*(đt!$C$8:$C$273='Thị trấn Quán Hàu'!BB5)) -> 0 | BC25: =SUMPRODUCT(đt!$U$8:$U$273*(đt!$D$8:$D$273='Thị trấn Quán Hàu'!$A$1)*(đt!$C$8:$C$273='Thị trấn Quán Hàu'!BC5)) -> 0 | BD25: =SUMPRODUCT(đt!$U$8:$U$273*(đt!$D$8:$D$273='Thị trấn Quán Hàu'!$A$1)*(đt!$C$8:$C$273='Thị trấn Quán Hàu'!BD5)) -> 0 | BE25: =SUMPRODUCT(đt!$U$8:$U$273*(đt!$D$8:$D$273='Thị trấn Quán Hàu'!$A$1)*(đt!$C$8:$C$273='Thị trấn Quán Hàu'!BE5)) -> 0 | BF25: 0 | BG25: =SUMPRODUCT(đt!$U$8:$U$273*(đt!$D$8:$D$273='Thị trấn Quán Hàu'!$A$1)*(đt!$C$8:$C$273='Thị trấn Quán Hàu'!BG5)) -> 0 | BH25: =SUMPRODUCT(đt!$U$8:$U$273*(đt!$D$8:$D$273='Thị trấn Quán Hàu'!$A$1)*(đt!$C$8:$C$273='Thị trấn Quán Hàu'!BH5)) -> 0 | BI25: =SUMPRODUCT(đt!$U$8:$U$273*(đt!$D$8:$D$273='Thị trấn Quán Hàu'!$A$1)*(đt!$C$8:$C$273='Thị trấn Quán Hàu'!BI5)) -> 0 | BJ25: =D25-W25 -> 0 | BK25: =W64-BJ25 -> 0 | BL25: 0 | BM25: ok
A26: 2.6 | B26: Đất thương mại, dịch vụ | C26: TMD | D26: 1.5 | E26: 0 | F26: 0 | G26: =SUMPRODUCT(đt!$V$8:$V$273*(đt!$D$8:$D$273='Thị trấn Quán Hàu'!$A$1)*(đt!$C$8:$C$273='Thị trấn Quán Hàu'!G5)) -> 0 | H26: =SUMPRODUCT(đt!$V$8:$V$273*(đt!$D$8:$D$273='Thị trấn Quán Hàu'!$A$1)*(đt!$C$8:$C$273='Thị trấn Quán Hàu'!H5)) -> 0 | I26: =SUMPRODUCT(đt!$V$8:$V$273*(đt!$D$8:$D$273='Thị trấn Quán Hàu'!$A$1)*(đt!$C$8:$C$273='Thị trấn Quán Hàu'!I5)) -> 0 | J26: =SUMPRODUCT(đt!$V$8:$V$273*(đt!$D$8:$D$273='Thị trấn Quán Hàu'!$A$1)*(đt!$C$8:$C$273='Thị trấn Quán Hàu'!J5)) -> 0 | K26: =SUMPRODUCT(đt!$V$8:$V$273*(đt!$D$8:$D$273='Thị trấn Quán Hàu'!$A$1)*(đt!$C$8:$C$273='Thị trấn Quán Hàu'!K5)) -> 0 | L26: =SUMPRODUCT(đt!$V$8:$V$273*(đt!$D$8:$D$273='Thị trấn Quán Hàu'!$A$1)*(đt!$C$8:$C$273='Thị trấn Quán Hàu'!L5)) -> 0 | M26: =SUMPRODUCT(đt!$V$8:$V$273*(đt!$D$8:$D$273='Thị trấn Quán Hàu'!$A$1)*(đt!$C$8:$C$273='Thị trấn Quán Hàu'!M5)) -> 0 | N26: =SUMPRODUCT(đt!$V$8:$V$273*(đt!$D$8:$D$273='Thị trấn Quán Hàu'!$A$1)*(đt!$C$8:$C$273='Thị trấn Quán Hàu'!N5)) -> 0 | O26: =SUMPRODUCT(đt!$V$8:$V$273*(đt!$D$8:$D$273='Thị trấn Quán Hàu'!$A$1)*(đt!$C$8:$C$273='Thị trấn Quán Hàu'!O5)) -> 0 | P26: =SUMPRODUCT(đt!$V$8:$V$273*(đt!$D$8:$D$273='Thị trấn Quán Hàu'!$A$1)*(đt!$C$8:$C$273='Thị trấn Quán Hàu'!P5)) -> 0 | Q26: =SUMPRODUCT(đt!$V$8:$V$273*(đt!$D$8:$D$273='Thị trấn Quán Hàu'!$A$1)*(đt!$C$8:$C$273='Thị trấn Quán Hàu'!Q5)) -> 0 | R26: 1.5 | S26: =SUMPRODUCT(đt!$V$8:$V$273*(đt!$D$8:$D$273='Thị trấn Quán Hàu'!$A$1)*(đt!$C$8:$C$273='Thị trấn Quán Hàu'!S5)) -> 0 | T26: =SUMPRODUCT(đt!$V$8:$V$273*(đt!$D$8:$D$273='Thị trấn Quán Hàu'!$A$1)*(đt!$C$8:$C$273='Thị trấn Quán Hàu'!T5)) -> 0 | U26: =SUMPRODUCT(đt!$V$8:$V$273*(đt!$D$8:$D$273='Thị trấn Quán Hàu'!$A$1)*(đt!$C$8:$C$273='Thị trấn Quán Hàu'!U5)) -> 0 | V26: =SUMPRODUCT(đt!$V$8:$V$273*(đt!$D$8:$D$273='Thị trấn Quán Hàu'!$A$1)*(đt!$C$8:$C$273='Thị trấn Quán Hàu'!V5)) -> 0 | W26: =SUMPRODUCT(đt!$V$8:$V$273*(đt!$D$8:$D$273='Thị trấn Quán Hàu'!$A$1)*(đt!$C$8:$C$273='Thị trấn Quán Hàu'!W5)) -> 0 | X26: =D26-(E26+SUM(S26:W26)+SUM(Y26:AA26)+SUM(AM26:BF26)) -> 1.5 | Y26: =SUMPRODUCT(đt!$V$8:$V$273*(đt!$D$8:$D$273='Thị trấn Quán Hàu'!$A$1)*(đt!$C$8:$C$273='Thị trấn Quán Hàu'!Y5)) -> 0 | Z26: =SUMPRODUCT(đt!$V$8:$V$273*(đt!$D$8:$D$273='Thị trấn Quán Hàu'!$A$1)*(đt!$C$8:$C$273='Thị trấn Quán Hàu'!Z5)) -> 0 | AA26: 0 | AB26: =SUMPRODUCT(đt!$V$8:$V$273*(đt!$D$8:$D$273='Thị trấn Quán Hàu'!$A$1)*(đt!$C$8:$C$273='Thị trấn Quán Hàu'!AB5)) -> 0 | AC26: =SUMPRODUCT(đt!$V$8:$V$273*(đt!$D$8:$D$273='Thị trấn Quán Hàu'!$A$1)*(đt!$C$8:$C$273='Thị trấn Quán Hàu'!AC5)) -> 0 | AD26: =SUMPRODUCT(đt!$V$8:$V$273*(đt!$D$8:$D$273='Thị trấn Quán Hàu'!$A$1)*(đt!$C$8:$C$273='Thị trấn Quán Hàu'!AD5)) -> 0 | AE26: =SUMPRODUCT(đt!$V$8:$V$273*(đt!$D$8:$D$273='Thị trấn Quán Hàu'!$A$1)*(đt!$C$8:$C$273='Thị trấn Quán Hàu'!AE5)) -> 0 | AF26: =SUMPRODUCT(đt!$V$8:$V$273*(đt!$D$8:$D$273='Thị trấn Quán Hàu'!$A$1)*(đt!$C$8:$C$273='Thị trấn Quán Hàu'!AF5)) -> 0 | AG26: =SUMPRODUCT(đt!$V$8:$V$273*(đt!$D$8:$D$273='Thị trấn Quán Hàu'!$A$1)*(đt!$C$8:$C$273='Thị trấn Quán Hàu'!AG5)) -> 0 | AH26: =SUMPRODUCT(đt!$V$8:$V$273*(đt!$D$8:$D$273='Thị trấn Quán Hàu'!$A$1)*(đt!$C$8:$C$273='Thị trấn Quán Hàu'!AH5)) -> 0 | AI26: =SUMPRODUCT(đt!$V$8:$V$273*(đt!$D$8:$D$273='Thị trấn Quán Hàu'!$A$1)*(đt!$C$8:$C$273='Thị trấn Quán Hàu'!AI5)) -> 0 | AJ26: =SUMPRODUCT(đt!$V$8:$V$273*(đt!$D$8:$D$273='Thị trấn Quán Hàu'!$A$1)*(đt!$C$8:$C$273='Thị trấn Quán Hàu'!AJ5)) -> 0 | AK26: =SUMPRODUCT(đt!$V$8:$V$273*(đt!$D$8:$D$273='Thị trấn Quán Hàu'!$A$1)*(đt!$C$8:$C$273='Thị trấn Quán Hàu'!AK5)) -> 0 | AL26: =SUMPRODUCT(đt!$V$8:$V$273*(đt!$D$8:$D$273='Thị trấn Quán Hàu'!$A$1)*(đt!$C$8:$C$273='Thị trấn Quán Hàu'!AL5)) -> 0 | AM26: =SUMPRODUCT(đt!$V$8:$V$273*(đt!$D$8:$D$273='Thị trấn Quán Hàu'!$A$1)*(đt!$C$8:$C$273='Thị trấn Quán Hàu'!AM5)) -> 0 | AN26: =SUMPRODUCT(đt!$V$8:$V$273*(đt!$D$8:$D$273='Thị trấn Quán Hàu'!$A$1)*(đt!$C$8:$C$273='Thị trấn Quán Hàu'!AN5)) -> 0 | AO26: =SUMPRODUCT(đt!$V$8:$V$273*(đt!$D$8:$D$273='Thị trấn Quán Hàu'!$A$1)*(đt!$C$8:$C$273='Thị trấn Quán Hàu'!AO5)) -> 0 | AP26: =SUMPRODUCT(đt!$V$8:$V$273*(đt!$D$8:$D$273='Thị trấn Quán Hàu'!$A$1)*(đt!$C$8:$C$273='Thị trấn Quán Hàu'!AP5)) -> 0 | AQ26: =SUMPRODUCT(đt!$V$8:$V$273*(đt!$D$8:$D$273='Thị trấn Quán Hàu'!$A$1)*(đt!$C$8:$C$273='Thị trấn Quán Hàu'!AQ5)) -> 0 | AR26: =SUMPRODUCT(đt!$V$8:$V$273*(đt!$D$8:$D$273='Thị trấn Quán Hàu'!$A$1)*(đt!$C$8:$C$273='Thị trấn Quán Hàu'!AR5)) -> 0 | AS26: =SUMPRODUCT(đt!$V$8:$V$273*(đt!$D$8:$D$273='Thị trấn Quán Hàu'!$A$1)*(đt!$C$8:$C$273='Thị trấn Quán Hàu'!AS5)) -> 0 | AT26: =SUMPRODUCT(đt!$V$8:$V$273*(đt!$D$8:$D$273='Thị trấn Quán Hàu'!$A$1)*(đt!$C$8:$C$273='Thị trấn Quán Hàu'!AT5)) -> 0 | AU26: =SUMPRODUCT(đt!$V$8:$V$273*(đt!$D$8:$D$273='Thị trấn Quán Hàu'!$A$1)*(đt!$C$8:$C$273='Thị trấn Quán Hàu'!AU5)) -> 0 | AV26: =SUMPRODUCT(đt!$V$8:$V$273*(đt!$D$8:$D$273='Thị trấn Quán Hàu'!$A$1)*(đt!$C$8:$C$273='Thị trấn Quán Hàu'!AV5)) -> 0 | AW26: =SUMPRODUCT(đt!$V$8:$V$273*(đt!$D$8:$D$273='Thị trấn Quán Hàu'!$A$1)*(đt!$C$8:$C$273='Thị trấn Quán Hàu'!AW5)) -> 0 | AX26: =SUMPRODUCT(đt!$V$8:$V$273*(đt!$D$8:$D$273='Thị trấn Quán Hàu'!$A$1)*(đt!$C$8:$C$273='Thị trấn Quán Hàu'!AX5)) -> 0 | AY26: =SUMPRODUCT(đt!$V$8:$V$273*(đt!$D$8:$D$273='Thị trấn Quán Hàu'!$A$1)*(đt!$C$8:$C$273='Thị trấn Quán Hàu'!AY5)) -> 0 | AZ26: =SUMPRODUCT(đt!$V$8:$V$273*(đt!$D$8:$D$273='Thị trấn Quán Hàu'!$A$1)*(đt!$C$8:$C$273='Thị trấn Quán Hàu'!AZ5)) -> 0 | BA26: =SUMPRODUCT(đt!$V$8:$V$273*(đt!$D$8:$D$273='Thị trấn Quán Hàu'!$A$1)*(đt!$C$8:$C$273='Thị trấn Quán Hàu'!BA5)) -> 0 | BB26: =SUMPRODUCT(đt!$V$8:$V$273*(đt!$D$8:$D$273='Thị trấn Quán Hàu'!$A$1)*(đt!$C$8:$C$273='Thị trấn Quán Hàu'!BB5)) -> 0 | BC26: =SUMPRODUCT(đt!$V$8:$V$273*(đt!$D$8:$D$273='Thị trấn Quán Hàu'!$A$1)*(đt!$C$8:$C$273='Thị trấn Quán Hàu'!BC5)) -> 0 | BD26: =SUMPRODUCT(đt!$V$8:$V$273*(đt!$D$8:$D$273='Thị trấn Quán Hàu'!$A$1)*(đt!$C$8:$C$273='Thị trấn Quán Hàu'!BD5)) -> 0 | BE26: =SUMPRODUCT(đt!$V$8:$V$273*(đt!$D$8:$D$273='Thị trấn Quán Hàu'!$A$1)*(đt!$C$8:$C$273='Thị trấn Quán Hàu'!BE5)) -> 0 | BF26: 0 | BG26: =SUMPRODUCT(đt!$V$8:$V$273*(đt!$D$8:$D$273='Thị trấn Quán Hàu'!$A$1)*(đt!$C$8:$C$273='Thị trấn Quán Hàu'!BG5)) -> 0 | BH26: =SUMPRODUCT(đt!$V$8:$V$273*(đt!$D$8:$D$273='Thị trấn Quán Hàu'!$A$1)*(đt!$C$8:$C$273='Thị trấn Quán Hàu'!BH5)) -> 0 | BI26: =SUMPRODUCT(đt!$V$8:$V$273*(đt!$D$8:$D$273='Thị trấn Quán Hàu'!$A$1)*(đt!$C$8:$C$273='Thị trấn Quán Hàu'!BI5)) -> 0 | BJ26: =D26-X26 -> 0 | BK26: =X64-BJ26 -> 2 | BL26: 3.5 | BM26: ok
